Workbook

Sheet Notes
A1: An Expert Of A System.xlsm
A2: Coded beginning 2013-Aug-11 by Ronald McAllister (rpmac_xltt@sprynet.com)
A4: This Workbook demonstrates an EXCEL version of the ideas presented
A5: by Sylvain Vervoort in an article titled "An Expert Of A System"
A6: which appears in the October 2013 issue of
A7: "Technical Analysis of Stocks and Commodities" magazine.
A9: New Features for the basic TradersTips Template
A10: 1 | C10: I am a strong believer in giving credit where credit is due: Thank you Mr. Tavares for the gentle push out of my comfort zone.
C11: The VBA macro used to create the Zigzag indicator on the price chart is SLOW!! Painfully SLOW! And there is not much that can be done in VBA land to speed it up.
C12: I used VBA to create the Zigzag because at the time I could not find a way, using cell formulas, to get the EXCEL graphics engine to treat a cell containing
C13: a formula the same way it treats a truly empty cell. By default, EXCEL will not plot a truly empty cell. For the Zigzag plot, this behavior is a good thing.
C14: With VBA I could refresh a zigzag using "clear contents" to "Empty" the zigzag data series columns, and then reload the zigzag columns with just the freshly determined turning points.
C15: Fast forward a couple of months: Over the course of several recent email exchanges with Mr. E. M. Tavares, I mentally re-opened
C16: the topic and went hunting for new-to-me formula values that might get the treat-this-cell-as-empty job done.
C17: It turns out that there is such a formula computable value. Using the NA() formula function for this purpose was new to me, but not new to several EXCEL'ers, as I found in various places including:
C18: http://windowssecrets.com/forums/showthread.php/143418-need-line-graph-to-omit-plotting-zeros
C19: The built-in cell formula function NA() will cause a cell to display #N/A. The Graphics engine will treat a cell that evaluates to #N/A as empty (sort of… but close enough for current purposes).
C20: With this in mind, you will see lots of #N/A in the computational columns involved in plotting this months indicators, including the Buy and Sell markers.
C21: Sorry to say , I did not find this approach soon enough! At this writing, I do not believe that I will have time to convert the Zigzag indicator
C22: from VBA code to cell formula computations between now and the publication deadline for this October tip.
C23: Perhaps I can accomplish such a conversion by the November tip deadline.
A25: 2 | C25: New as of the September 2013 Traders Tip: Direct download from Yahoo Finance to the InputPriceData tab.
C26: Unlike the previous traders tips which required on to Import price data from a disk based CSV file (capability still in this version),
C27: pre-downloading of intermediary disk files is no longer absolutely required.
C28: To support this capability I have resurrected some VBA code I wrote in September of 2010 which explored the possibility of
C29: downloading price history data from Yahoo Finance directly into a spreadsheet tab.
C30: That old VBA code required several modifications to get it to place the resulting price history data
C31: on the InputPriceData tab. Also needed some "user friendly" in the way of a couple of simple error handlers to support
C32: query building, and query execution faults.
C33: I also added a query to the Yahoo fundamentals URL to retrieve the company name and exchange name.
C34: The result is a pair of web URL direct to spreadsheet tab queries.
C35: The data is just what we ask for, so no VBA code is necessary to perform screen scraping:
C36: No effort spent to remove extraneous web page artifact bits we do not want or need.
C37: Minimal subsequent formatting and a simple set of cell formulations to compute close adjusted prices.
C39: Usage: On the InputPriceData tab the user enters the same 4 items one would provide on the YAHOO history page.
C40: Enter a stock or index symbol, two dates specifying beginning and end of the historical interval of interest, and a data type.
C41: Then click the "Get Historical Data" Button
C43: While dividends and splits are interesting data points, they are of no particular use to this traders tip workbook.
C44: I have included the capability only for completeness of this direct to worksheet data retrieval example.
A46: CalculationsAndCharts construction Notes:
A48: 1 | C48: The October 2013 traders tip spreadsheet is the September 2013 traders tip spreadsheet modified to add
C49: Mr. Vervoort's HeikenAshiClose vs Typical Price crossover system.
C50: With all of the bits Mr. Vervoort has given us to consider over the course of this article series, things are getting a bit busy
C51: on the CalculationsAndCharts sheet. The necessary calculations for the October tip begin in column CK and extend to the right.
C52: Control values for these calculations will be found in that area as well.
C54: Figures from Mr. Vervoort's October article can be approximated using the following symbols and date ranges:
C55: Figures 1 & 2: Ciena Corporation (CIEN) -NasdaqNM with bars from 4/18/2012 thru 9/4/2012
C56: Figures 3 & 4: Darned if I know. I could not find similar price patterns near August of any year in the Yahoo version of CIEN data.
C57: My conjecture is that these figures show data for symbols not mentioned in the text or on the figure.
C58: Figure 12: Ciena Corporation (CIEN) -NasdaqNM with bars from 8/6/2010 thru 11/9/2010
A60: 6 | C60: I am taking advantage of scatter plots and of the fact that an empty cell in a charted data series
C61: simply does not plot on the chart.
C62: By using VBA code to apply "clear contents" to the cells of a data series I can make the series
C63: seem to disappear from the chart; without actually removing the series specification from the
C64: chart and thus loosing any series specific formatting.
C65: Subsequent use of VBA to fill in only a few cells of a scatter chart series allows the corresponding
C66: points to "magically" appear on the chart.
C67: And, since the series specification never left the chart, these "New" points appear on the chart with
C68: the previously established series formatting intact.
A70: 7 | C70: I am plotting the Zigzag and related indicators as separate scatter chart type series.
C71: The Pivot Limit and the Unconfirmed leg indicators are also separate scatter plot data series.
C72: The Unconfirmed leg is intended to show where the next Zag leg might lie, pending confirmation
C73: by way of the HLPivot limit test. The x and y components for these scatter series are generated
C74: by a macro invoked with the "Refresh Zigzag" button on the CalculationsAndCharts tab.
A76: 8 | C76: The ZigZag computation is quite intensive and doing it in a VBA subroutine is quite slow.
C77: Patience please! Let it run to completion.
A79: 9 | C79: Candlestick detection: In this article Mr. Vervoort is only interested in 4 distinct candle patterns
C80: and then only if they occur at Zig reversal points. So once I have confirmed a reversal, the zigzag
C81: code calls a routine to check for all of the patterns of interest at the newly confirmed reversal.
A82: 10 | C82: Mr. Vervoort considers a Body Gap to be a special case of his Step pattern and has chosen to
C83: plot it under the same indicator as a Step pattern. I wanted to be able to see it as a special case
C84: so my code sets both the Step pattern flag and a separate Gap pattern flag.
A85: 11 | C85: Plotting Candle type indicators: These are plotted as 8 individual scatterplots: One scatter plot
C86: each for the 4 bullish patterns and one each for the 4 bearish patterns.
C87: These 8 data series scatter plots are formatted with no marker and no line. So they do not actually
C88: show on the chart. I also removed their Legend entries to reduce chart clutter.
C89: However, these "invisible" series are the necessary anchor points for series associated Data Labels.
C90: Each Data Label series gets a custom format, exactly 4 characters long. The custom formats are
C91: designed to suppress the numeric value for the data point, and instead display an appropriate
C92: pattern id text made up of underscores, and letters. The custom format for Bullish data label series
C93: are set to Blue and they appear under the "invisible" data points of the series. The Bearish formats
C94: are set to Red and they appear above the "invisible" data points of the series.
C95: The magic of the displayed pattern indicator is in how the letters and underscores are positioned
C96: in the data label formats. If multiple pattern types are detected at a given turning point, then multiple
C97: data labels will be placed at that point on the chart. By making each of the data label formats
C98: exactly 4 characters long, and giving each pattern type its own position out of the 4 possible,
C99: we take advantage of the graph engine Data Label centering logic to have any multiple hit labels
C100: appear to merge with each other. This creates the composite flag display we see on the chart.
C101: Note: You will need to pay close attention to the candles around a turning point candle and review
C102: Mr. Vervoort's descriptions of the patterns to understand which pair set which flag.
A103: 12 | C103: Using the "Chart Window" settings button on the CalculationsAndCharts tab or the "Import Data"
C104: button on the InputPriceData tab will clear the zigzag plot and candle flags.
C105: Changing either of the chart data window specifications in cells A11 or A12 should also invalidate
C106: the Zigzag and flag plots, but I have not coded for that in this spread sheet.
C107: You will need to use the "Refresh ZigZag" button on the CalculationsAndCharts tab to plot a fresh set.
A108: 13 | C108: With a completed ZigZag displayed, you may use the check boxes at the right of the chart to
C109: dynamically display or hide the flags for the various candle patterns.
A110: 14 | C110: The check box values are examined at Refresh ZigZag time to determine if a relrow and price value
C111: are placed in the pattern type column at scan time.
A112: 15 | C112: After a completed zigzag is displayed, the check boxes drive VBA macro code which displays or
C113: hides the pattern indicators by filling in or clearing the relrow and price value cells in the appropriate
C114: flag series columns.
A116: Data for this EXCEL example:
A118: Price history for various STOCK symbols and some INDEX symbols may be available for downloaded
A119: as .csv formatted files from Yahoo Finance: http://finance.yahoo.com
A120: Enter a symbol and select "Historical Prices" from the left margin.
A121: Hint: You might want to copy the name and symbol text from the top of the history page to use as
A122: your downloaded file name (via Paste).
A123: Then go to the bottom of the page and click "Download to Spreadsheet".
A124: Use the "Save As" option to name and save the file to your drive for later input processing. (See
A125: Automated data import below)
A126: Note: The resulting .csv file is in date-descending sequence (most recent first) and may be used in
A127: this spread sheet with out sorting.
A129: Automated data import
A130: The InputPriceData tab now has a button that will automate importing Price History data which you
A131: have previously downloaded to your hard drive from Yahoo Finance (.csv format please!)
A132: The VBA macro code behind this button uses the standard EXCEL file open dialog to allow you to
A133: navigate to the directory where you have stored the downloaded history files. You may then select the
A134: file you are interested in.
A135: Subsequent processing will adjust the Open, High, Low, and Close prices as indicated by the
B136: Adjusted Close values provided in the downloaded file.
A137: Both the Raw and the Adjusted data will be copied to the InputPriceData tab for use in this workbook.
A138: However, YOU must enter the symbol and description in cell A1 of the InputPriceData tab after you
A139: use the button: YAHOO history files DO NOT contain the symbol or a description!
A140: If you used the name and symbol copied from the top of the history page as your file name you may not
A141: need to adjust A1.
A142: Note: After the data has been transferred to this workbook, the source history file will be closed
A143: with out saving it so that it remains unchanged for future uses.
A145: Development Notes:
A146: 1 | C146: This workbook contains and uses VBA macros.
A147: 2 | C147: Input Data
C148: The data in this workbook is sorted date descending (most recent date at the top). All formulas and
C149: VBA routines are built accordingly.
A150: Calculation and Chart Worksheet Usage Comments:
A151: 1 | C151: In General, Items in Bolded BLUE are items you may freely change to play what-if games.
C152: Be sure to have a backup copy of the spreadsheet before you alter anything else.
A153: 2 | C153: Several of the column formulas begin with "IF" logic that determines when there is sufficient data
C154: available for the subsequent calculations to be relevant. The cell will calculate to blank or the
C155: result of the calculation.
C156: In a couple of cases, this "IF" logic also sets starter values for subsequent smoothing calculations.
A157: 3 | C157: Data windowing can be performed by changing cell A11. Positive values logically "Pan" the
C158: data window represented by the Calculation sheet down the input sheet and back in time.
C159: This can have two side effects: First, data may fall outside of the fixed Y-axis scales and be clipped
C160: or fall well inside the Y-axis scales wasting a lot of chart vertical space. Second, you may move far
C161: enough back that you do not have sufficient data points to fill the left of the chart.
A162: 4 | C162: The VBA macros behind the SetChart button address these Data Windowing problems and also
C163: resizes and vertically aligns all charts on the work sheet to match the Price chart and then
C164: horizontally adjusts the X-axis positions of all charts on the work sheet so that the corresponding
C165: data points align vertically.
C166: The macros behind the SetChart button are sensitive to the user control values in cells A11 and
C167: A12, and also uses the computed values in cells A8, F11, and F12

Sheet InputPriceData
A1: Ciena Corporation (CIEN) -NasdaqNM | L1: Notes: | M1: Online Yahoo Finance Query Interfaces used in the VBA code to obtain this data:
M2: A.) Price History Only: "http://ichart.finance.yahoo.com/table.csv"
A3: Request Online Yahoo History for: | M3: B.) Price History w/ imbedded divs n splits: "http://ichart.finance.yahoo.com/x"
A4: Symbol | B4: cien | D4: Valid
A5: From | B5: 1960-01-01 | D5: Data | M5: C.) Fundamentals (in this case name and exchange):
A6: To | B6: =TODAY() -> 2013-08-11 | D6: Types | E6: =VLOOKUP(B7,D7:E10,2,FALSE) -> d | M6: "http://download.finance.yahoo.com/d/quotes.csv?"
A7: Data Type | B7: Daily | D7: Daily | E7: d | M7: For some how-to doc regarding this particular interface, including a list of the
D8: Weekly | E8: w | M8: specific fields you can include in a request to this interface see:
A9: Available Data | D9: Monthly | E9: m | M9: http://www.gummy-stuff.org/Yahoo-data.htm
A10: Bar Count: | B10: =COUNTA(B16:B64993) -> 4152 | D10: Div/Split | E10: v | M10: This web site includes a downloadable working EXCEL/VBA example
A11: From: | B11: =IF(B10<=0,"",OFFSET(B15,B10,IF(HistReqDataType="v",1,0),1,1)) -> 1997-02-07 | M11: of the capabilities of this interface.
A12: To: | B12: =IF(B10<=0,"",IF(HistReqDataType="v",OFFSET(B15,2,1,1,1),OFFSET(B15,1,0,1,1))) -> 2013-08-09
B14: Raw Data Values | H14: Adjusted | I14: Adjustment | J14: Adjusted Values
A15: RelRow | B15: Date | C15: Open | D15: High | E15: Low | F15: Close | G15: Volume | H15: Adj Close | I15: Factor | J15: Open | K15: High | L15: Low | M15: Close
A16: 1 | B16: 2013-08-09 | C16: 22.95 | D16: 23.14 | E16: 22.36 | F16: 22.53 | G16: 2272300 | H16: 22.53 | I16: =H16/F16 -> 1 | J16: =ROUND($I16*C16,2) -> 22.95 | K16: =ROUND($I16*D16,2) -> 23.14 | L16: =ROUND($I16*E16,2) -> 22.36 | M16: =ROUND($I16*F16,2) -> 22.53
A17: 2 | B17: 2013-08-08 | C17: 23.37 | D17: 23.48 | E17: 22.95 | F17: 23 | G17: 2209000 | H17: 23 | I17: =H17/F17 -> 1 | J17: =ROUND($I17*C17,2) -> 23.37 | K17: =ROUND($I17*D17,2) -> 23.48 | L17: =ROUND($I17*E17,2) -> 22.95 | M17: =ROUND($I17*F17,2) -> 23
A18: 3 | B18: 2013-08-07 | C18: 23.05 | D18: 23.63 | E18: 22.75 | F18: 23.25 | G18: 3173300 | H18: 23.25 | I18: 1 | J18: 23.05 | K18: 23.63 | L18: 22.75 | M18: 23.25
A19: 4 | B19: 2013-08-06 | C19: 23 | D19: 23.09 | E19: 22.44 | F19: 22.45 | G19: 1404200 | H19: 22.45 | I19: 1 | J19: 23 | K19: 23.09 | L19: 22.44 | M19: 22.45
A20: 5 | B20: 2013-08-05 | C20: 22.89 | D20: 23.1 | E20: 22.67 | F20: 23.02 | G20: 1867800 | H20: 23.02 | I20: 1 | J20: 22.89 | K20: 23.1 | L20: 22.67 | M20: 23.02
A21: 6 | B21: 2013-08-02 | C21: 22.35 | D21: 22.87 | E21: 22.26 | F21: 22.86 | G21: 1545900 | H21: 22.86 | I21: 1 | J21: 22.35 | K21: 22.87 | L21: 22.26 | M21: 22.86
A22: 7 | B22: 2013-08-01 | C22: 22.35 | D22: 22.6 | E22: 22.22 | F22: 22.52 | G22: 2104300 | H22: 22.52 | I22: 1 | J22: 22.35 | K22: 22.6 | L22: 22.22 | M22: 22.52
A23: 8 | B23: 2013-07-31 | C23: 22.28 | D23: 22.32 | E23: 21.99 | F23: 22.06 | G23: 2072200 | H23: 22.06 | I23: 1 | J23: 22.28 | K23: 22.32 | L23: 21.99 | M23: 22.06
A24: 9 | B24: 2013-07-30 | C24: 22.09 | D24: 22.79 | E24: 21.93 | F24: 22.35 | G24: 2945900 | H24: 22.35 | I24: 1 | J24: 22.09 | K24: 22.79 | L24: 21.93 | M24: 22.35
A25: 10 | B25: 2013-07-29 | C25: 21.82 | D25: 22.2 | E25: 21.78 | F25: 21.92 | G25: 2536200 | H25: 21.92 | I25: 1 | J25: 21.82 | K25: 22.2 | L25: 21.78 | M25: 21.92
A26: 11 | B26: 2013-07-26 | C26: 22.64 | D26: 22.69 | E26: 21.24 | F26: 21.79 | G26: 5105300 | H26: 21.79 | I26: 1 | J26: 22.64 | K26: 22.69 | L26: 21.24 | M26: 21.79
A27: 12 | B27: 2013-07-25 | C27: 22.97 | D27: 23.04 | E27: 22.35 | F27: 22.84 | G27: 2855000 | H27: 22.84 | I27: 1 | J27: 22.97 | K27: 23.04 | L27: 22.35 | M27: 22.84
A28: 13 | B28: 2013-07-24 | C28: 23.1 | D28: 23.48 | E28: 22.89 | F28: 22.96 | G28: 2886500 | H28: 22.96 | I28: 1 | J28: 23.1 | K28: 23.48 | L28: 22.89 | M28: 22.96
A29: 14 | B29: 2013-07-23 | C29: 22.87 | D29: 23.04 | E29: 22.54 | F29: 22.92 | G29: 2814600 | H29: 22.92 | I29: 1 | J29: 22.87 | K29: 23.04 | L29: 22.54 | M29: 22.92
A30: 15 | B30: 2013-07-22 | C30: 22.66 | D30: 22.9 | E30: 22.44 | F30: 22.68 | G30: 1908500 | H30: 22.68 | I30: 1 | J30: 22.66 | K30: 22.9 | L30: 22.44 | M30: 22.68
A31: 16 | B31: 2013-07-19 | C31: 22.59 | D31: 22.89 | E31: 22.53 | F31: 22.8 | G31: 3879200 | H31: 22.8 | I31: 1 | J31: 22.59 | K31: 22.89 | L31: 22.53 | M31: 22.8
A32: 17 | B32: 2013-07-18 | C32: 22.42 | D32: 22.85 | E32: 22.28 | F32: 22.72 | G32: 3193000 | H32: 22.72 | I32: 1 | J32: 22.42 | K32: 22.85 | L32: 22.28 | M32: 22.72
A33: 18 | B33: 2013-07-17 | C33: 22.02 | D33: 22.79 | E33: 21.72 | F33: 22.21 | G33: 5696400 | H33: 22.21 | I33: 1 | J33: 22.02 | K33: 22.79 | L33: 21.72 | M33: 22.21
A34: 19 | B34: 2013-07-16 | C34: 21.78 | D34: 22.06 | E34: 21.46 | F34: 21.68 | G34: 2752800 | H34: 21.68 | I34: 1 | J34: 21.78 | K34: 22.06 | L34: 21.46 | M34: 21.68
A35: 20 | B35: 2013-07-15 | C35: 21.5 | D35: 22.2 | E35: 21.43 | F35: 21.82 | G35: 4367300 | H35: 21.82 | I35: 1 | J35: 21.5 | K35: 22.2 | L35: 21.43 | M35: 21.82
A36: 21 | B36: 2013-07-12 | C36: 21.71 | D36: 21.82 | E36: 21.27 | F36: 21.43 | G36: 4765900 | H36: 21.43 | I36: 1 | J36: 21.71 | K36: 21.82 | L36: 21.27 | M36: 21.43
A37: 22 | B37: 2013-07-11 | C37: 19.95 | D37: 21.76 | E37: 19.92 | F37: 21.74 | G37: 7663400 | H37: 21.74 | I37: 1 | J37: 19.95 | K37: 21.76 | L37: 19.92 | M37: 21.74
A38: 23 | B38: 2013-07-10 | C38: 20 | D38: 20.19 | E38: 19.64 | F38: 19.73 | G38: 2300700 | H38: 19.73 | I38: 1 | J38: 20 | K38: 20.19 | L38: 19.64 | M38: 19.73
A39: 24 | B39: 2013-07-09 | C39: 20.13 | D39: 20.16 | E39: 19.65 | F39: 19.86 | G39: 2570800 | H39: 19.86 | I39: 1 | J39: 20.13 | K39: 20.16 | L39: 19.65 | M39: 19.86
A40: 25 | B40: 2013-07-08 | C40: 20.19 | D40: 20.19 | E40: 19.75 | F40: 20.08 | G40: 1736800 | H40: 20.08 | I40: 1 | J40: 20.19 | K40: 20.19 | L40: 19.75 | M40: 20.08
A41: 26 | B41: 2013-07-05 | C41: 19.93 | D41: 20.04 | E41: 19.46 | F41: 19.96 | G41: 2104700 | H41: 19.96 | I41: 1 | J41: 19.93 | K41: 20.04 | L41: 19.46 | M41: 19.96
A42: 27 | B42: 2013-07-03 | C42: 19.46 | D42: 19.75 | E42: 19.4 | F42: 19.61 | G42: 681400 | H42: 19.61 | I42: 1 | J42: 19.46 | K42: 19.75 | L42: 19.4 | M42: 19.61
A43: 28 | B43: 2013-07-02 | C43: 19.51 | D43: 19.88 | E43: 19.45 | F43: 19.63 | G43: 2243700 | H43: 19.63 | I43: 1 | J43: 19.51 | K43: 19.88 | L43: 19.45 | M43: 19.63
A44: 29 | B44: 2013-07-01 | C44: 19.53 | D44: 19.87 | E44: 19.37 | F44: 19.46 | G44: 1953300 | H44: 19.46 | I44: 1 | J44: 19.53 | K44: 19.87 | L44: 19.37 | M44: 19.46
A45: 30 | B45: 2013-06-28 | C45: 19.52 | D45: 19.63 | E45: 19.28 | F45: 19.43 | G45: 2317200 | H45: 19.43 | I45: 1 | J45: 19.52 | K45: 19.63 | L45: 19.28 | M45: 19.43
A46: 31 | B46: 2013-06-27 | C46: 19.45 | D46: 19.71 | E46: 19.36 | F46: 19.67 | G46: 2064600 | H46: 19.67 | I46: 1 | J46: 19.45 | K46: 19.71 | L46: 19.36 | M46: 19.67
A47: 32 | B47: 2013-06-26 | C47: 19.75 | D47: 19.88 | E47: 19.33 | F47: 19.35 | G47: 2503100 | H47: 19.35 | I47: 1 | J47: 19.75 | K47: 19.88 | L47: 19.33 | M47: 19.35
A48: 33 | B48: 2013-06-25 | C48: 19.4 | D48: 19.69 | E48: 19.27 | F48: 19.63 | G48: 2673400 | H48: 19.63 | I48: 1 | J48: 19.4 | K48: 19.69 | L48: 19.27 | M48: 19.63
A49: 34 | B49: 2013-06-24 | C49: 19.48 | D49: 19.51 | E49: 19 | F49: 19.25 | G49: 3477600 | H49: 19.25 | I49: 1 | J49: 19.48 | K49: 19.51 | L49: 19 | M49: 19.25
A50: 35 | B50: 2013-06-21 | C50: 19.81 | D50: 20.05 | E50: 19.45 | F50: 19.79 | G50: 4064500 | H50: 19.79 | I50: 1 | J50: 19.81 | K50: 20.05 | L50: 19.45 | M50: 19.79
A51: 36 | B51: 2013-06-20 | C51: 20.03 | D51: 20.45 | E51: 19.83 | F51: 19.9 | G51: 3468000 | H51: 19.9 | I51: 1 | J51: 20.03 | K51: 20.45 | L51: 19.83 | M51: 19.9
A52: 37 | B52: 2013-06-19 | C52: 20.28 | D52: 20.45 | E52: 20.09 | F52: 20.19 | G52: 2561200 | H52: 20.19 | I52: 1 | J52: 20.28 | K52: 20.45 | L52: 20.09 | M52: 20.19
A53: 38 | B53: 2013-06-18 | C53: 20.05 | D53: 20.41 | E53: 19.99 | F53: 20.38 | G53: 3207900 | H53: 20.38 | I53: 1 | J53: 20.05 | K53: 20.41 | L53: 19.99 | M53: 20.38
A54: 39 | B54: 2013-06-17 | C54: 20.25 | D54: 20.46 | E54: 19.93 | F54: 20.1 | G54: 3340900 | H54: 20.1 | I54: 1 | J54: 20.25 | K54: 20.46 | L54: 19.93 | M54: 20.1
A55: 40 | B55: 2013-06-14 | C55: 20.4 | D55: 20.6 | E55: 19.9 | F55: 20.13 | G55: 4101200 | H55: 20.13 | I55: 1 | J55: 20.4 | K55: 20.6 | L55: 19.9 | M55: 20.13
A56: 41 | B56: 2013-06-13 | C56: 19.84 | D56: 20.58 | E56: 19.66 | F56: 20.52 | G56: 3818300 | H56: 20.52 | I56: 1 | J56: 19.84 | K56: 20.58 | L56: 19.66 | M56: 20.52
A57: 42 | B57: 2013-06-12 | C57: 20.22 | D57: 20.26 | E57: 19.79 | F57: 20.02 | G57: 3180400 | H57: 20.02 | I57: 1 | J57: 20.22 | K57: 20.26 | L57: 19.79 | M57: 20.02
A58: 43 | B58: 2013-06-11 | C58: 19.87 | D58: 20.39 | E58: 19.74 | F58: 20.02 | G58: 4841500 | H58: 20.02 | I58: 1 | J58: 19.87 | K58: 20.39 | L58: 19.74 | M58: 20.02
A59: 44 | B59: 2013-06-10 | C59: 19.7 | D59: 20.29 | E59: 19.6 | F59: 20.17 | G59: 5901000 | H59: 20.17 | I59: 1 | J59: 19.7 | K59: 20.29 | L59: 19.6 | M59: 20.17
A60: 45 | B60: 2013-06-07 | C60: 19.12 | D60: 19.95 | E60: 18.97 | F60: 19.75 | G60: 10429300 | H60: 19.75 | I60: 1 | J60: 19.12 | K60: 19.95 | L60: 18.97 | M60: 19.75
A61: 46 | B61: 2013-06-06 | C61: 18.45 | D61: 19.19 | E61: 18.17 | F61: 19.15 | G61: 24069600 | H61: 19.15 | I61: 1 | J61: 18.45 | K61: 19.19 | L61: 18.17 | M61: 19.15
A62: 47 | B62: 2013-06-05 | C62: 16.45 | D62: 16.6 | E62: 16.21 | F62: 16.31 | G62: 5557600 | H62: 16.31 | I62: 1 | J62: 16.45 | K62: 16.6 | L62: 16.21 | M62: 16.31
A63: 48 | B63: 2013-06-04 | C63: 16.7 | D63: 16.94 | E63: 16.32 | F63: 16.48 | G63: 4566400 | H63: 16.48 | I63: 1 | J63: 16.7 | K63: 16.94 | L63: 16.32 | M63: 16.48
A64: 49 | B64: 2013-06-03 | C64: 16.8 | D64: 16.93 | E64: 16.08 | F64: 16.53 | G64: 4701800 | H64: 16.53 | I64: 1 | J64: 16.8 | K64: 16.93 | L64: 16.08 | M64: 16.53
A65: 50 | B65: 2013-05-31 | C65: 16.6 | D65: 17.11 | E65: 16.54 | F65: 16.74 | G65: 3408800 | H65: 16.74 | I65: 1 | J65: 16.6 | K65: 17.11 | L65: 16.54 | M65: 16.74
A66: 51 | B66: 2013-05-30 | C66: 16.62 | D66: 16.84 | E66: 16.59 | F66: 16.69 | G66: 2872900 | H66: 16.69 | I66: 1 | J66: 16.62 | K66: 16.84 | L66: 16.59 | M66: 16.69
A67: 52 | B67: 2013-05-29 | C67: 16 | D67: 16.82 | E67: 15.93 | F67: 16.68 | G67: 6500000 | H67: 16.68 | I67: 1 | J67: 16 | K67: 16.82 | L67: 15.93 | M67: 16.68
A68: 53 | B68: 2013-05-28 | C68: 15.75 | D68: 16.11 | E68: 15.71 | F68: 16.1 | G68: 2854500 | H68: 16.1 | I68: 1 | J68: 15.75 | K68: 16.11 | L68: 15.71 | M68: 16.1
A69: 54 | B69: 2013-05-24 | C69: 15.33 | D69: 15.53 | E69: 15.26 | F69: 15.51 | G69: 1836000 | H69: 15.51 | I69: 1 | J69: 15.33 | K69: 15.53 | L69: 15.26 | M69: 15.51
A70: 55 | B70: 2013-05-23 | C70: 15.34 | D70: 15.6 | E70: 15.21 | F70: 15.48 | G70: 2532000 | H70: 15.48 | I70: 1 | J70: 15.34 | K70: 15.6 | L70: 15.21 | M70: 15.48
A71: 56 | B71: 2013-05-22 | C71: 15.88 | D71: 16.09 | E71: 15.47 | F71: 15.52 | G71: 2871900 | H71: 15.52 | I71: 1 | J71: 15.88 | K71: 16.09 | L71: 15.47 | M71: 15.52
A72: 57 | B72: 2013-05-21 | C72: 15.93 | D72: 16.1 | E72: 15.82 | F72: 15.87 | G72: 1907600 | H72: 15.87 | I72: 1 | J72: 15.93 | K72: 16.1 | L72: 15.82 | M72: 15.87
A73: 58 | B73: 2013-05-20 | C73: 16.27 | D73: 16.35 | E73: 15.84 | F73: 15.97 | G73: 2837500 | H73: 15.97 | I73: 1 | J73: 16.27 | K73: 16.35 | L73: 15.84 | M73: 15.97
A74: 59 | B74: 2013-05-17 | C74: 16.1 | D74: 16.4 | E74: 16 | F74: 16.35 | G74: 3119400 | H74: 16.35 | I74: 1 | J74: 16.1 | K74: 16.4 | L74: 16 | M74: 16.35
A75: 60 | B75: 2013-05-16 | C75: 15.57 | D75: 16.33 | E75: 15.57 | F75: 16.03 | G75: 8678700 | H75: 16.03 | I75: 1 | J75: 15.57 | K75: 16.33 | L75: 15.57 | M75: 16.03
A76: 61 | B76: 2013-05-15 | C76: 15.15 | D76: 15.38 | E76: 15.03 | F76: 15.06 | G76: 3800500 | H76: 15.06 | I76: 1 | J76: 15.15 | K76: 15.38 | L76: 15.03 | M76: 15.06
A77: 62 | B77: 2013-05-14 | C77: 15.09 | D77: 15.16 | E77: 14.84 | F77: 14.91 | G77: 2405100 | H77: 14.91 | I77: 1 | J77: 15.09 | K77: 15.16 | L77: 14.84 | M77: 14.91
A78: 63 | B78: 2013-05-13 | C78: 15.18 | D78: 15.31 | E78: 15.06 | F78: 15.08 | G78: 1651600 | H78: 15.08 | I78: 1 | J78: 15.18 | K78: 15.31 | L78: 15.06 | M78: 15.08
A79: 64 | B79: 2013-05-10 | C79: 15.09 | D79: 15.46 | E79: 15.09 | F79: 15.17 | G79: 4077200 | H79: 15.17 | I79: 1 | J79: 15.09 | K79: 15.46 | L79: 15.09 | M79: 15.17
A80: 65 | B80: 2013-05-09 | C80: 15.03 | D80: 15.27 | E80: 14.94 | F80: 15.1 | G80: 2330200 | H80: 15.1 | I80: 1 | J80: 15.03 | K80: 15.27 | L80: 14.94 | M80: 15.1
A81: 66 | B81: 2013-05-08 | C81: 15.01 | D81: 15.12 | E81: 14.89 | F81: 15.11 | G81: 2403900 | H81: 15.11 | I81: =H81/F81 -> 1 | J81: =ROUND($I81*C81,2) -> 15.01 | K81: =ROUND($I81*D81,2) -> 15.12 | L81: =ROUND($I81*E81,2) -> 14.89 | M81: =ROUND($I81*F81,2) -> 15.11
A82: 67 | B82: 2013-05-07 | C82: 15.44 | D82: 15.45 | E82: 15.01 | F82: 15.09 | G82: 3224600 | H82: 15.09 | I82: 1 | J82: 15.44 | K82: 15.45 | L82: 15.01 | M82: 15.09
A83: 68 | B83: 2013-05-06 | C83: 14.96 | D83: 15.32 | E83: 14.86 | F83: 15.25 | G83: 3385900 | H83: 15.25 | I83: 1 | J83: 14.96 | K83: 15.32 | L83: 14.86 | M83: 15.25
A84: 69 | B84: 2013-05-03 | C84: 14.6 | D84: 14.9 | E84: 14.55 | F84: 14.71 | G84: 2958100 | H84: 14.71 | I84: 1 | J84: 14.6 | K84: 14.9 | L84: 14.55 | M84: 14.71
A85: 70 | B85: 2013-05-02 | C85: 14.6 | D85: 14.7 | E85: 14.22 | F85: 14.32 | G85: 4260500 | H85: 14.32 | I85: 1 | J85: 14.6 | K85: 14.7 | L85: 14.22 | M85: 14.32
A86: 71 | B86: 2013-05-01 | C86: 14.92 | D86: 14.96 | E86: 14.34 | F86: 14.34 | G86: 3817400 | H86: 14.34 | I86: 1 | J86: 14.92 | K86: 14.96 | L86: 14.34 | M86: 14.34
A87: 72 | B87: 2013-04-30 | C87: 14.73 | D87: 14.98 | E87: 14.58 | F87: 14.96 | G87: 2913300 | H87: 14.96 | I87: 1 | J87: 14.73 | K87: 14.98 | L87: 14.58 | M87: 14.96
A88: 73 | B88: 2013-04-29 | C88: 14.88 | D88: 14.96 | E88: 14.69 | F88: 14.8 | G88: 1961500 | H88: 14.8 | I88: 1 | J88: 14.88 | K88: 14.96 | L88: 14.69 | M88: 14.8
A89: 74 | B89: 2013-04-26 | C89: 14.84 | D89: 14.98 | E89: 14.65 | F89: 14.78 | G89: 1870600 | H89: 14.78 | I89: 1 | J89: 14.84 | K89: 14.98 | L89: 14.65 | M89: 14.78
A90: 75 | B90: 2013-04-25 | C90: 15.3 | D90: 15.53 | E90: 14.87 | F90: 14.88 | G90: 3308900 | H90: 14.88 | I90: 1 | J90: 15.3 | K90: 15.53 | L90: 14.87 | M90: 14.88
A91: 76 | B91: 2013-04-24 | C91: 14.82 | D91: 15.12 | E91: 14.6 | F91: 14.95 | G91: 3602100 | H91: 14.95 | I91: 1 | J91: 14.82 | K91: 15.12 | L91: 14.6 | M91: 14.95
A92: 77 | B92: 2013-04-23 | C92: 14.8 | D92: 15.25 | E92: 14.76 | F92: 15.23 | G92: 3798000 | H92: 15.23 | I92: 1 | J92: 14.8 | K92: 15.25 | L92: 14.76 | M92: 15.23
A93: 78 | B93: 2013-04-22 | C93: 14.65 | D93: 14.77 | E93: 14.14 | F93: 14.66 | G93: 3761500 | H93: 14.66 | I93: 1 | J93: 14.65 | K93: 14.77 | L93: 14.14 | M93: 14.66
A94: 79 | B94: 2013-04-19 | C94: 14.79 | D94: 14.95 | E94: 14.45 | F94: 14.63 | G94: 3870700 | H94: 14.63 | I94: 1 | J94: 14.79 | K94: 14.95 | L94: 14.45 | M94: 14.63
A95: 80 | B95: 2013-04-18 | C95: 15.15 | D95: 15.28 | E95: 14.52 | F95: 14.67 | G95: 3576300 | H95: 14.67 | I95: 1 | J95: 15.15 | K95: 15.28 | L95: 14.52 | M95: 14.67
A96: 81 | B96: 2013-04-17 | C96: 15.45 | D96: 15.48 | E96: 14.85 | F96: 15.08 | G96: 4587700 | H96: 15.08 | I96: 1 | J96: 15.45 | K96: 15.48 | L96: 14.85 | M96: 15.08
A97: 82 | B97: 2013-04-16 | C97: 15.81 | D97: 15.97 | E97: 15.45 | F97: 15.63 | G97: 2757600 | H97: 15.63 | I97: 1 | J97: 15.81 | K97: 15.97 | L97: 15.45 | M97: 15.63
A98: 83 | B98: 2013-04-15 | C98: 16.19 | D98: 16.35 | E98: 15.56 | F98: 15.69 | G98: 4110200 | H98: 15.69 | I98: 1 | J98: 16.19 | K98: 16.35 | L98: 15.56 | M98: 15.69
A99: 84 | B99: 2013-04-12 | C99: 16.37 | D99: 16.47 | E99: 15.95 | F99: 16.36 | G99: 1563900 | H99: 16.36 | I99: 1 | J99: 16.37 | K99: 16.47 | L99: 15.95 | M99: 16.36
A100: 85 | B100: 2013-04-11 | C100: 16.29 | D100: 16.55 | E100: 16.15 | F100: 16.49 | G100: 2257600 | H100: 16.49 | I100: 1 | J100: 16.29 | K100: 16.55 | L100: 16.15 | M100: 16.49
A101: 86 | B101: 2013-04-10 | C101: 16.02 | D101: 16.81 | E101: 15.98 | F101: 16.4 | G101: 7506500 | H101: 16.4 | I101: 1 | J101: 16.02 | K101: 16.81 | L101: 15.98 | M101: 16.4
A102: 87 | B102: 2013-04-09 | C102: 15.53 | D102: 15.78 | E102: 15.25 | F102: 15.52 | G102: 2902800 | H102: 15.52 | I102: 1 | J102: 15.53 | K102: 15.78 | L102: 15.25 | M102: 15.52
A103: 88 | B103: 2013-04-08 | C103: 15.07 | D103: 15.52 | E103: 15.07 | F103: 15.51 | G103: 2869500 | H103: 15.51 | I103: 1 | J103: 15.07 | K103: 15.52 | L103: 15.07 | M103: 15.51
A104: 89 | B104: 2013-04-05 | C104: 14.8 | D104: 15.26 | E104: 14.72 | F104: 15.02 | G104: 4636900 | H104: 15.02 | I104: 1 | J104: 14.8 | K104: 15.26 | L104: 14.72 | M104: 15.02
A105: 90 | B105: 2013-04-04 | C105: 15.41 | D105: 15.67 | E105: 15.28 | F105: 15.57 | G105: 2539700 | H105: 15.57 | I105: 1 | J105: 15.41 | K105: 15.67 | L105: 15.28 | M105: 15.57
A106: 91 | B106: 2013-04-03 | C106: 15.48 | D106: 15.93 | E106: 15.32 | F106: 15.36 | G106: 3488800 | H106: 15.36 | I106: 1 | J106: 15.48 | K106: 15.93 | L106: 15.32 | M106: 15.36
A107: 92 | B107: 2013-04-02 | C107: 15.97 | D107: 16.1 | E107: 15.34 | F107: 15.45 | G107: 3680300 | H107: 15.45 | I107: 1 | J107: 15.97 | K107: 16.1 | L107: 15.34 | M107: 15.45
A108: 93 | B108: 2013-04-01 | C108: 16.05 | D108: 16.15 | E108: 15.68 | F108: 15.9 | G108: 2645200 | H108: 15.9 | I108: 1 | J108: 16.05 | K108: 16.15 | L108: 15.68 | M108: 15.9
A109: 94 | B109: 2013-03-28 | C109: 15.97 | D109: 16.1 | E109: 15.87 | F109: 16.01 | G109: 1361200 | H109: 16.01 | I109: 1 | J109: 15.97 | K109: 16.1 | L109: 15.87 | M109: 16.01
A110: 95 | B110: 2013-03-27 | C110: 15.82 | D110: 16.04 | E110: 15.63 | F110: 16.02 | G110: 1625000 | H110: 16.02 | I110: 1 | J110: 15.82 | K110: 16.04 | L110: 15.63 | M110: 16.02
A111: 96 | B111: 2013-03-26 | C111: 16.14 | D111: 16.36 | E111: 15.8 | F111: 15.89 | G111: 2543800 | H111: 15.89 | I111: 1 | J111: 16.14 | K111: 16.36 | L111: 15.8 | M111: 15.89
A112: 97 | B112: 2013-03-25 | C112: 15.84 | D112: 16.12 | E112: 15.66 | F112: 16.09 | G112: 3262700 | H112: 16.09 | I112: 1 | J112: 15.84 | K112: 16.12 | L112: 15.66 | M112: 16.09
A113: 98 | B113: 2013-03-22 | C113: 16.31 | D113: 16.33 | E113: 15.62 | F113: 15.76 | G113: 4573300 | H113: 15.76 | I113: 1 | J113: 16.31 | K113: 16.33 | L113: 15.62 | M113: 15.76
A114: 99 | B114: 2013-03-21 | C114: 16.38 | D114: 16.82 | E114: 16.13 | F114: 16.27 | G114: 6361600 | H114: 16.27 | I114: 1 | J114: 16.38 | K114: 16.82 | L114: 16.13 | M114: 16.27
A115: 100 | B115: 2013-03-20 | C115: 16.84 | D115: 17.24 | E115: 16.78 | F115: 16.95 | G115: 3709500 | H115: 16.95 | I115: 1 | J115: 16.84 | K115: 17.24 | L115: 16.78 | M115: 16.95
A116: 101 | B116: 2013-03-19 | C116: 17.07 | D116: 17.16 | E116: 16.58 | F116: 16.7 | G116: 2905300 | H116: 16.7 | I116: 1 | J116: 17.07 | K116: 17.16 | L116: 16.58 | M116: 16.7
A117: 102 | B117: 2013-03-18 | C117: 16.7 | D117: 17.18 | E117: 16.61 | F117: 16.99 | G117: 2167600 | H117: 16.99 | I117: 1 | J117: 16.7 | K117: 17.18 | L117: 16.61 | M117: 16.99
A118: 103 | B118: 2013-03-15 | C118: 17.02 | D118: 17.13 | E118: 16.69 | F118: 16.99 | G118: 2908700 | H118: 16.99 | I118: 1 | J118: 17.02 | K118: 17.13 | L118: 16.69 | M118: 16.99
A119: 104 | B119: 2013-03-14 | C119: 17 | D119: 17.28 | E119: 17 | F119: 17.1 | G119: 2375200 | H119: 17.1 | I119: 1 | J119: 17 | K119: 17.28 | L119: 17 | M119: 17.1
A120: 105 | B120: 2013-03-13 | C120: 17.1 | D120: 17.19 | E120: 16.74 | F120: 16.85 | G120: 2764400 | H120: 16.85 | I120: 1 | J120: 17.1 | K120: 17.19 | L120: 16.74 | M120: 16.85
A121: 106 | B121: 2013-03-12 | C121: 17.25 | D121: 17.43 | E121: 17.07 | F121: 17.1 | G121: 2638200 | H121: 17.1 | I121: 1 | J121: 17.25 | K121: 17.43 | L121: 17.07 | M121: 17.1
A122: 107 | B122: 2013-03-11 | C122: 17.2 | D122: 17.5 | E122: 17.01 | F122: 17.27 | G122: 3326800 | H122: 17.27 | I122: 1 | J122: 17.2 | K122: 17.5 | L122: 17.01 | M122: 17.27
A123: 108 | B123: 2013-03-08 | C123: 17.7 | D123: 17.78 | E123: 17.11 | F123: 17.15 | G123: 6775600 | H123: 17.15 | I123: 1 | J123: 17.7 | K123: 17.78 | L123: 17.11 | M123: 17.15
A124: 109 | B124: 2013-03-07 | C124: 17.1 | D124: 17.75 | E124: 16.8 | F124: 17.53 | G124: 17715700 | H124: 17.53 | I124: 1 | J124: 17.1 | K124: 17.75 | L124: 16.8 | M124: 17.53
A125: 110 | B125: 2013-03-06 | C125: 15.06 | D125: 15.17 | E125: 14.81 | F125: 14.94 | G125: 4301000 | H125: 14.94 | I125: 1 | J125: 15.06 | K125: 15.17 | L125: 14.81 | M125: 14.94
A126: 111 | B126: 2013-03-05 | C126: 15.02 | D126: 15.2 | E126: 14.86 | F126: 14.92 | G126: 3044600 | H126: 14.92 | I126: 1 | J126: 15.02 | K126: 15.2 | L126: 14.86 | M126: 14.92
A127: 112 | B127: 2013-03-04 | C127: 14.83 | D127: 14.98 | E127: 14.74 | F127: 14.93 | G127: 2916600 | H127: 14.93 | I127: 1 | J127: 14.83 | K127: 14.98 | L127: 14.74 | M127: 14.93
A128: 113 | B128: 2013-03-01 | C128: 15.12 | D128: 15.22 | E128: 14.69 | F128: 14.83 | G128: 3148600 | H128: 14.83 | I128: 1 | J128: 15.12 | K128: 15.22 | L128: 14.69 | M128: 14.83
A129: 114 | B129: 2013-02-28 | C129: 15.43 | D129: 15.54 | E129: 15.19 | F129: 15.24 | G129: 1478700 | H129: 15.24 | I129: 1 | J129: 15.43 | K129: 15.54 | L129: 15.19 | M129: 15.24
A130: 115 | B130: 2013-02-27 | C130: 15.38 | D130: 15.66 | E130: 15.25 | F130: 15.5 | G130: 1896600 | H130: 15.5 | I130: 1 | J130: 15.38 | K130: 15.66 | L130: 15.25 | M130: 15.5
A131: 116 | B131: 2013-02-26 | C131: 15.29 | D131: 15.48 | E131: 14.93 | F131: 15.27 | G131: 2533100 | H131: 15.27 | I131: 1 | J131: 15.29 | K131: 15.48 | L131: 14.93 | M131: 15.27
A132: 117 | B132: 2013-02-25 | C132: 15.73 | D132: 15.89 | E132: 15.22 | F132: 15.23 | G132: 1411200 | H132: 15.23 | I132: 1 | J132: 15.73 | K132: 15.89 | L132: 15.22 | M132: 15.23
A133: 118 | B133: 2013-02-22 | C133: 15.43 | D133: 15.65 | E133: 15.38 | F133: 15.62 | G133: 1579500 | H133: 15.62 | I133: 1 | J133: 15.43 | K133: 15.65 | L133: 15.38 | M133: 15.62
A134: 119 | B134: 2013-02-21 | C134: 15.74 | D134: 15.76 | E134: 15.02 | F134: 15.29 | G134: 3057000 | H134: 15.29 | I134: 1 | J134: 15.74 | K134: 15.76 | L134: 15.02 | M134: 15.29
A135: 120 | B135: 2013-02-20 | C135: 16.33 | D135: 16.37 | E135: 15.75 | F135: 15.76 | G135: 2472600 | H135: 15.76 | I135: 1 | J135: 16.33 | K135: 16.37 | L135: 15.75 | M135: 15.76
A136: 121 | B136: 2013-02-19 | C136: 16.1 | D136: 16.35 | E136: 15.95 | F136: 16.34 | G136: 1690600 | H136: 16.34 | I136: 1 | J136: 16.1 | K136: 16.35 | L136: 15.95 | M136: 16.34
A137: 122 | B137: 2013-02-15 | C137: 16.35 | D137: 16.38 | E137: 15.98 | F137: 16.15 | G137: 2002200 | H137: 16.15 | I137: 1 | J137: 16.35 | K137: 16.38 | L137: 15.98 | M137: 16.15
A138: 123 | B138: 2013-02-14 | C138: 16.11 | D138: 16.4 | E138: 15.93 | F138: 16.29 | G138: 2379700 | H138: 16.29 | I138: 1 | J138: 16.11 | K138: 16.4 | L138: 15.93 | M138: 16.29
A139: 124 | B139: 2013-02-13 | C139: 16.01 | D139: 16.22 | E139: 15.76 | F139: 16.2 | G139: 4009200 | H139: 16.2 | I139: 1 | J139: 16.01 | K139: 16.22 | L139: 15.76 | M139: 16.2
A140: 125 | B140: 2013-02-12 | C140: 16.02 | D140: 16.28 | E140: 15.78 | F140: 15.9 | G140: 3215200 | H140: 15.9 | I140: 1 | J140: 16.02 | K140: 16.28 | L140: 15.78 | M140: 15.9
A141: 126 | B141: 2013-02-11 | C141: 16.01 | D141: 16.09 | E141: 15.79 | F141: 15.99 | G141: 1450800 | H141: 15.99 | I141: 1 | J141: 16.01 | K141: 16.09 | L141: 15.79 | M141: 15.99
A142: 127 | B142: 2013-02-08 | C142: 16.06 | D142: 16.31 | E142: 15.97 | F142: 16.06 | G142: 1663200 | H142: 16.06 | I142: 1 | J142: 16.06 | K142: 16.31 | L142: 15.97 | M142: 16.06
A143: 128 | B143: 2013-02-07 | C143: 16.09 | D143: 16.5 | E143: 16.02 | F143: 16.12 | G143: 3707600 | H143: 16.12 | I143: 1 | J143: 16.09 | K143: 16.5 | L143: 16.02 | M143: 16.12
A144: 129 | B144: 2013-02-06 | C144: 16 | D144: 16.15 | E144: 15.87 | F144: 16.04 | G144: 2222600 | H144: 16.04 | I144: 1 | J144: 16 | K144: 16.15 | L144: 15.87 | M144: 16.04
A145: 130 | B145: 2013-02-05 | C145: 15.75 | D145: 16.2 | E145: 15.66 | F145: 16.11 | G145: 2848500 | H145: 16.11 | I145: =H145/F145 -> 1 | J145: =ROUND($I145*C145,2) -> 15.75 | K145: =ROUND($I145*D145,2) -> 16.2 | L145: =ROUND($I145*E145,2) -> 15.66 | M145: =ROUND($I145*F145,2) -> 16.11
A146: 131 | B146: 2013-02-04 | C146: 15.85 | D146: 16.59 | E146: 15.62 | F146: 15.66 | G146: 4940300 | H146: 15.66 | I146: 1 | J146: 15.85 | K146: 16.59 | L146: 15.62 | M146: 15.66
A147: 132 | B147: 2013-02-01 | C147: 15.75 | D147: 15.97 | E147: 15.69 | F147: 15.87 | G147: 2947800 | H147: 15.87 | I147: 1 | J147: 15.75 | K147: 15.97 | L147: 15.69 | M147: 15.87
A148: 133 | B148: 2013-01-31 | C148: 15.23 | D148: 15.7 | E148: 15.15 | F148: 15.66 | G148: 7002200 | H148: 15.66 | I148: 1 | J148: 15.23 | K148: 15.7 | L148: 15.15 | M148: 15.66
A149: 134 | B149: 2013-01-30 | C149: 15.07 | D149: 15.25 | E149: 14.54 | F149: 14.6 | G149: 3331500 | H149: 14.6 | I149: 1 | J149: 15.07 | K149: 15.25 | L149: 14.54 | M149: 14.6
A150: 135 | B150: 2013-01-29 | C150: 15.73 | D150: 15.74 | E150: 15.1 | F150: 15.2 | G150: 2778000 | H150: 15.2 | I150: 1 | J150: 15.73 | K150: 15.74 | L150: 15.1 | M150: 15.2
A151: 136 | B151: 2013-01-28 | C151: 15.69 | D151: 16 | E151: 15.68 | F151: 15.73 | G151: 2071500 | H151: 15.73 | I151: 1 | J151: 15.69 | K151: 16 | L151: 15.68 | M151: 15.73
A152: 137 | B152: 2013-01-25 | C152: 15.53 | D152: 15.77 | E152: 15.36 | F152: 15.69 | G152: 4119000 | H152: 15.69 | I152: 1 | J152: 15.53 | K152: 15.77 | L152: 15.36 | M152: 15.69
A153: 138 | B153: 2013-01-24 | C153: 15.41 | D153: 15.72 | E153: 15.31 | F153: 15.46 | G153: 3962700 | H153: 15.46 | I153: 1 | J153: 15.41 | K153: 15.72 | L153: 15.31 | M153: 15.46
A154: 139 | B154: 2013-01-23 | C154: 15.44 | D154: 15.51 | E154: 15.31 | F154: 15.41 | G154: 4367900 | H154: 15.41 | I154: 1 | J154: 15.44 | K154: 15.51 | L154: 15.31 | M154: 15.41
A155: 140 | B155: 2013-01-22 | C155: 15.44 | D155: 15.56 | E155: 15.25 | F155: 15.41 | G155: 2325300 | H155: 15.41 | I155: 1 | J155: 15.44 | K155: 15.56 | L155: 15.25 | M155: 15.41
A156: 141 | B156: 2013-01-18 | C156: 15.43 | D156: 15.57 | E156: 15.25 | F156: 15.44 | G156: 3532300 | H156: 15.44 | I156: 1 | J156: 15.43 | K156: 15.57 | L156: 15.25 | M156: 15.44
A157: 142 | B157: 2013-01-17 | C157: 15.37 | D157: 15.93 | E157: 15.37 | F157: 15.52 | G157: 5841700 | H157: 15.52 | I157: 1 | J157: 15.37 | K157: 15.93 | L157: 15.37 | M157: 15.52
A158: 143 | B158: 2013-01-16 | C158: 14.69 | D158: 15.41 | E158: 14.65 | F158: 15.23 | G158: 10666400 | H158: 15.23 | I158: 1 | J158: 14.69 | K158: 15.41 | L158: 14.65 | M158: 15.23
A159: 144 | B159: 2013-01-15 | C159: 14.51 | D159: 14.89 | E159: 14.37 | F159: 14.69 | G159: 4123900 | H159: 14.69 | I159: 1 | J159: 14.51 | K159: 14.89 | L159: 14.37 | M159: 14.69
A160: 145 | B160: 2013-01-14 | C160: 14.61 | D160: 14.81 | E160: 14.51 | F160: 14.6 | G160: 2514000 | H160: 14.6 | I160: 1 | J160: 14.61 | K160: 14.81 | L160: 14.51 | M160: 14.6
A161: 146 | B161: 2013-01-11 | C161: 15.25 | D161: 15.25 | E161: 14.57 | F161: 14.65 | G161: 5552000 | H161: 14.65 | I161: 1 | J161: 15.25 | K161: 15.25 | L161: 14.57 | M161: 14.65
A162: 147 | B162: 2013-01-10 | C162: 15.31 | D162: 15.42 | E162: 15.08 | F162: 15.14 | G162: 2372400 | H162: 15.14 | I162: 1 | J162: 15.31 | K162: 15.42 | L162: 15.08 | M162: 15.14
A163: 148 | B163: 2013-01-09 | C163: 15.47 | D163: 15.58 | E163: 14.76 | F163: 15.21 | G163: 5606700 | H163: 15.21 | I163: 1 | J163: 15.47 | K163: 15.58 | L163: 14.76 | M163: 15.21
A164: 149 | B164: 2013-01-08 | C164: 16.11 | D164: 16.14 | E164: 15.32 | F164: 15.46 | G164: 5245000 | H164: 15.46 | I164: 1 | J164: 16.11 | K164: 16.14 | L164: 15.32 | M164: 15.46
A165: 150 | B165: 2013-01-07 | C165: 16.06 | D165: 16.16 | E165: 15.99 | F165: 16.05 | G165: 2515000 | H165: 16.05 | I165: 1 | J165: 16.06 | K165: 16.16 | L165: 15.99 | M165: 16.05
A166: 151 | B166: 2013-01-04 | C166: 16.28 | D166: 16.37 | E166: 16.08 | F166: 16.1 | G166: 2149100 | H166: 16.1 | I166: 1 | J166: 16.28 | K166: 16.37 | L166: 16.08 | M166: 16.1
A167: 152 | B167: 2013-01-03 | C167: 16.34 | D167: 16.72 | E167: 16.17 | F167: 16.2 | G167: 2892000 | H167: 16.2 | I167: 1 | J167: 16.34 | K167: 16.72 | L167: 16.17 | M167: 16.2
A168: 153 | B168: 2013-01-02 | C168: 16.04 | D168: 16.51 | E168: 16.02 | F168: 16.48 | G168: 3863900 | H168: 16.48 | I168: 1 | J168: 16.04 | K168: 16.51 | L168: 16.02 | M168: 16.48
A169: 154 | B169: 2012-12-31 | C169: 15.26 | D169: 15.74 | E169: 15.15 | F169: 15.7 | G169: 2113300 | H169: 15.7 | I169: 1 | J169: 15.26 | K169: 15.74 | L169: 15.15 | M169: 15.7
A170: 155 | B170: 2012-12-28 | C170: 15.33 | D170: 15.57 | E170: 15.15 | F170: 15.33 | G170: 1897200 | H170: 15.33 | I170: 1 | J170: 15.33 | K170: 15.57 | L170: 15.15 | M170: 15.33
A171: 156 | B171: 2012-12-27 | C171: 15.61 | D171: 15.66 | E171: 15.16 | F171: 15.41 | G171: 2767000 | H171: 15.41 | I171: 1 | J171: 15.61 | K171: 15.66 | L171: 15.16 | M171: 15.41
A172: 157 | B172: 2012-12-26 | C172: 15.71 | D172: 15.99 | E172: 15.65 | F172: 15.73 | G172: 1654100 | H172: 15.73 | I172: 1 | J172: 15.71 | K172: 15.99 | L172: 15.65 | M172: 15.73
A173: 158 | B173: 2012-12-24 | C173: 15.85 | D173: 15.85 | E173: 15.47 | F173: 15.69 | G173: 999900 | H173: 15.69 | I173: 1 | J173: 15.85 | K173: 15.85 | L173: 15.47 | M173: 15.69
A174: 159 | B174: 2012-12-21 | C174: 15.23 | D174: 15.92 | E174: 15.23 | F174: 15.88 | G174: 5077200 | H174: 15.88 | I174: 1 | J174: 15.23 | K174: 15.92 | L174: 15.23 | M174: 15.88
A175: 160 | B175: 2012-12-20 | C175: 15.9 | D175: 16 | E175: 15.63 | F175: 15.91 | G175: 2176500 | H175: 15.91 | I175: 1 | J175: 15.9 | K175: 16 | L175: 15.63 | M175: 15.91
A176: 161 | B176: 2012-12-19 | C176: 15.71 | D176: 15.91 | E176: 15.62 | F176: 15.83 | G176: 2812200 | H176: 15.83 | I176: 1 | J176: 15.71 | K176: 15.91 | L176: 15.62 | M176: 15.83
A177: 162 | B177: 2012-12-18 | C177: 15.3 | D177: 15.67 | E177: 15.28 | F177: 15.64 | G177: 2334900 | H177: 15.64 | I177: 1 | J177: 15.3 | K177: 15.67 | L177: 15.28 | M177: 15.64
A178: 163 | B178: 2012-12-17 | C178: 15.54 | D178: 15.63 | E178: 14.91 | F178: 15.3 | G178: 3651300 | H178: 15.3 | I178: 1 | J178: 15.54 | K178: 15.63 | L178: 14.91 | M178: 15.3
A179: 164 | B179: 2012-12-14 | C179: 15.42 | D179: 16.01 | E179: 15.35 | F179: 15.71 | G179: 4873400 | H179: 15.71 | I179: 1 | J179: 15.42 | K179: 16.01 | L179: 15.35 | M179: 15.71
A180: 165 | B180: 2012-12-13 | C180: 16.02 | D180: 16.43 | E180: 15.27 | F180: 15.8 | G180: 15671600 | H180: 15.8 | I180: 1 | J180: 16.02 | K180: 16.43 | L180: 15.27 | M180: 15.8
A181: 166 | B181: 2012-12-12 | C181: 15.41 | D181: 15.75 | E181: 15.3 | F181: 15.57 | G181: 4746500 | H181: 15.57 | I181: 1 | J181: 15.41 | K181: 15.75 | L181: 15.3 | M181: 15.57
A182: 167 | B182: 2012-12-11 | C182: 15.94 | D182: 15.96 | E182: 15.25 | F182: 15.31 | G182: 6034500 | H182: 15.31 | I182: 1 | J182: 15.94 | K182: 15.96 | L182: 15.25 | M182: 15.31
A183: 168 | B183: 2012-12-10 | C183: 15.6 | D183: 15.96 | E183: 15.6 | F183: 15.8 | G183: 2847300 | H183: 15.8 | I183: 1 | J183: 15.6 | K183: 15.96 | L183: 15.6 | M183: 15.8
A184: 169 | B184: 2012-12-07 | C184: 15.72 | D184: 15.81 | E184: 15.28 | F184: 15.6 | G184: 2856200 | H184: 15.6 | I184: 1 | J184: 15.72 | K184: 15.81 | L184: 15.28 | M184: 15.6
A185: 170 | B185: 2012-12-06 | C185: 14.97 | D185: 15.67 | E185: 14.92 | F185: 15.64 | G185: 3838600 | H185: 15.64 | I185: 1 | J185: 14.97 | K185: 15.67 | L185: 14.92 | M185: 15.64
A186: 171 | B186: 2012-12-05 | C186: 15.37 | D186: 15.45 | E186: 14.83 | F186: 14.99 | G186: 3241000 | H186: 14.99 | I186: 1 | J186: 15.37 | K186: 15.45 | L186: 14.83 | M186: 14.99
A187: 172 | B187: 2012-12-04 | C187: 15.08 | D187: 15.4 | E187: 15.01 | F187: 15.33 | G187: 2511800 | H187: 15.33 | I187: 1 | J187: 15.08 | K187: 15.4 | L187: 15.01 | M187: 15.33
A188: 173 | B188: 2012-12-03 | C188: 15.03 | D188: 15.35 | E188: 15.01 | F188: 15.07 | G188: 3733800 | H188: 15.07 | I188: 1 | J188: 15.03 | K188: 15.35 | L188: 15.01 | M188: 15.07
A189: 174 | B189: 2012-11-30 | C189: 14.91 | D189: 15.15 | E189: 14.58 | F189: 14.88 | G189: 3905500 | H189: 14.88 | I189: 1 | J189: 14.91 | K189: 15.15 | L189: 14.58 | M189: 14.88
A190: 175 | B190: 2012-11-29 | C190: 14.49 | D190: 15 | E190: 14.42 | F190: 14.88 | G190: 4866700 | H190: 14.88 | I190: 1 | J190: 14.49 | K190: 15 | L190: 14.42 | M190: 14.88
A191: 176 | B191: 2012-11-28 | C191: 14.3 | D191: 14.43 | E191: 14.09 | F191: 14.39 | G191: 4310500 | H191: 14.39 | I191: 1 | J191: 14.3 | K191: 14.43 | L191: 14.09 | M191: 14.39
A192: 177 | B192: 2012-11-27 | C192: 14.57 | D192: 14.79 | E192: 14.51 | F192: 14.51 | G192: 2802600 | H192: 14.51 | I192: 1 | J192: 14.57 | K192: 14.79 | L192: 14.51 | M192: 14.51
A193: 178 | B193: 2012-11-26 | C193: 14.56 | D193: 14.66 | E193: 14.39 | F193: 14.6 | G193: 1561900 | H193: 14.6 | I193: 1 | J193: 14.56 | K193: 14.66 | L193: 14.39 | M193: 14.6
A194: 179 | B194: 2012-11-23 | C194: 14.5 | D194: 14.61 | E194: 14.32 | F194: 14.58 | G194: 814400 | H194: 14.58 | I194: 1 | J194: 14.5 | K194: 14.61 | L194: 14.32 | M194: 14.58
A195: 180 | B195: 2012-11-21 | C195: 14.15 | D195: 14.47 | E195: 14.15 | F195: 14.4 | G195: 1554100 | H195: 14.4 | I195: 1 | J195: 14.15 | K195: 14.47 | L195: 14.15 | M195: 14.4
A196: 181 | B196: 2012-11-20 | C196: 14.03 | D196: 14.36 | E196: 13.95 | F196: 14.16 | G196: 1885800 | H196: 14.16 | I196: 1 | J196: 14.03 | K196: 14.36 | L196: 13.95 | M196: 14.16
A197: 182 | B197: 2012-11-19 | C197: 14.05 | D197: 14.19 | E197: 13.96 | F197: 14.07 | G197: 2497800 | H197: 14.07 | I197: 1 | J197: 14.05 | K197: 14.19 | L197: 13.96 | M197: 14.07
A198: 183 | B198: 2012-11-16 | C198: 14.09 | D198: 14.16 | E198: 13.52 | F198: 13.87 | G198: 2521500 | H198: 13.87 | I198: 1 | J198: 14.09 | K198: 14.16 | L198: 13.52 | M198: 13.87
A199: 184 | B199: 2012-11-15 | C199: 14.17 | D199: 14.32 | E199: 14.02 | F199: 14.09 | G199: 2370900 | H199: 14.09 | I199: 1 | J199: 14.17 | K199: 14.32 | L199: 14.02 | M199: 14.09
A200: 185 | B200: 2012-11-14 | C200: 14.49 | D200: 14.56 | E200: 14.09 | F200: 14.17 | G200: 3898900 | H200: 14.17 | I200: 1 | J200: 14.49 | K200: 14.56 | L200: 14.09 | M200: 14.17
A201: 186 | B201: 2012-11-13 | C201: 14.63 | D201: 14.63 | E201: 14.01 | F201: 14.17 | G201: 3128000 | H201: 14.17 | I201: 1 | J201: 14.63 | K201: 14.63 | L201: 14.01 | M201: 14.17
... 3966 more rows

Sheet CalculationsAndCharts
A1: An Expert Of A System.xlsm | S1: Pattern Flags
A2: =InputPriceData!A1&B3 -> Ciena Corporation (CIEN) -NasdaqNM | S2: Bearish | T2: Bullish
B3: =IF(S15," w/ "&C18&"("&F18&","&F19&","&F20&","&F21&")","") -> 
A4: User Charting Controls | S4: FALSE
A5: Data Control
A6: =InputPriceData!$B$10 -> 4152 | B6: Available Input Data Rows | E6: Earliest: | F6: =OFFSET(InputPriceData!B15,CalculationsAndCharts!A6,0,1,1) -> 1997-02-07 | S6: FALSE
B7: Use Close Adjusted: | C7: TRUE | E7: Latest: | F7: =OFFSET(InputPriceData!B15,1,0,1,1) -> 2013-08-09
A8: =MIN(A6-A11,COUNTA(B32:B9982)) -> 841 | B8: Logically Available for Calc / Plot | S8: FALSE
A10: Price Chart Windowing Controls | F10: Y-axis Range | S10: FALSE
A11: 691 | B11: Input Data Offset (Pan) | E11: Max High+ | F11: =CEILING(MAX(OFFSET($E$32,0,0,$A$12,1),IF($S$16,OFFSET(H32,0,0,$A$12,4),0),IF($S$15,OFFSET(S32,0,0,$A$12,3),0))+2*F14,0.1) -> 16.7
A12: 67 | B12: Data Points to Plot (Zoom) | E12: Min Low- | F12: =FLOOR(MIN(OFFSET($F$32,0,0,$A$12,1),IF($S$16,OFFSET(H32,0,0,$A$12,4),F11),IF($S$15,OFFSET(S32,0,0,$A$12,3),F11))-2*F14,0.1) -> 11.2
B13: First: | C13: =OFFSET(B31,A12,0,1,1) -> 2010-08-06 | E13: White space %: | F13: 0.05
B14: Last: | C14: =B32 -> 2010-11-09 | E14: Allowance: | F14: =FLOOR((CEILING(MAX(OFFSET($E$32,0,0,$A$12,1)),1)-FLOOR(MIN(OFFSET($F$32,0,0,$A$12,1)),1))*F13,0.01) -> 0.3 | S14: Chart Clutter Control
A15: ZigZag Control Factors: | D15: TRUE | S15: FALSE
A16: ZZ%: | B16: 0.05 | C16: ATR Period: | D16: 3 | E16: ATR Factor: | F16: 1 | S16: FALSE
A17: 8 | B17: EMA | C17: =2/(A17+1) -> 0.2222222222 | D17: =1-C17 -> 0.7777777778 | E17: =2/(F18+1) -> 0.2222222222 | F17: =1-E17 -> 0.7777777778 | S17: TRUE
A18: 50 | B18: SMA | C18: SVEVolatility | E18: Band Average: | F18: 8 | S18: TRUE
A19: 100 | B19: SMA | C19: Calculation | E19: Summing Period: | F19: 13
A20: 200 | B20: SMA | C20: Factors | E20: Deviation Factor: | F20: 3.55
E21: Lower Band Adjust: | F21: 0.9
A22: Help! I would like to plot data | D22: Chart Windowing values to use | BE22: User Control Specifications for Vervoort Oscillators
B23: From | C23: 2010-08-06 | D23: =OFFSET(InputPriceData!$A$15,MATCH(C23,OFFSET(InputPriceData!B15,1,0,InputPriceData!$B$10,1),0),0,1,1)-D24 -> 67 | E23: ==> for Points to Plot | BG23: WMA & | BH23: For use
B24: To | C24: 2010-11-09 | D24: =OFFSET(InputPriceData!$A$15,MATCH(C24,OFFSET(InputPriceData!$B$15,1,0,InputPriceData!$B$10,1),0),0,1,1)-1 -> 691 | E24: ==> for Offset | BF24: TEMA | BG24: Standard | BH24: In WMA, | CN24: FALSE
D25: Date at Cursor | BE25: SMA | BF25: EMA | BG25: Dev | BH25: Sum of | BI25: Period | BJ25: Smooth | CK25: SVEHaTypCross Calculations
BE26: Lookback | BF26: Smooth | BG26: Period | BH26: Weights | BI26: K | BJ26: K | CM26: TypAvg | CN26: haCAvg
D27: =OFFSET($B$31,B27,0,1,1) -> Date | H27: @ Scroll Bar => | I27: =OFFSET(A31,$B$28,0,1,1)&"(RR)" -> 30(RR) | J27: =TEXT(OFFSET(D31,$B$28,0,1,1),"#,##0.00")&"(o)" -> 15.64(o) | K27: =TEXT(OFFSET(E31,$B$28,0,1,1),"#,##0.00")&"(h)" -> 15.89(h) | L27: =TEXT(OFFSET(F31,$B$28,0,1,1),"#,##0.00")&"(l)" -> 15.40(l) | M27: =TEXT(OFFSET(G31,$B$28,0,1,1),"#,##0.00")&"(c)" -> 15.69(c) | O27: =TEXT(OFFSET(X31,$B$28,0,1,1),"#,##0.0000")&"(HLPvt)" -> 0.0830(HLPvt) | AG27: Step, and Various Other Candle Pattern ID Point Tables | BE27: 2 | BF27: 3 | BG27: 18 | BH27: =BG27*(BG27+1)/2 -> 171 | BI27: 30 | BJ27: 3 | CL27: EMA len | CM27: 4 | CN27: 6
A28: 38 | B28: =$A$12-$A$28+1 -> 30 | D28: =OFFSET($B$31,B28,0,1,1) -> 2010-09-29 | E28: Scroll Price => | BE28: Alpha | BF28: =2/(BF27+1) -> 0.5 | BY28: Stick of | CG28: Vervoort | CL28: k | CM28: =IF($CN$24,1/CM27,2/(CM27+1)) -> 0.4 | CN28: =IF($CN$24,1/CN27,2/(CN27+1)) -> 0.2857142857 | CP28: Bar Background Colors
Y29: Price Cursor | BE29: 1-alpha | BF29: =1-BF28 -> 0.5 | BX29: StdDev | BY29: Weights | BZ29: WMA | CG29: Indicator Threshold Lines & Cursor | CL29: 1 - k | CM29: =1-CM28 -> 0.6 | CN29: =1-CN28 -> 0.7142857143
A30: Rel Row | D30: Price Sources | H30: Averages | L30: Vervoort Volatility Band Computations | R30: EMA of Vmedavg | V30: True Range | Z30: ZigZag | AC30: Unconfirmed Zag | AE30: Pivot Limit | AG30: Up Step | AJ30: Down Step | AM30: Gap Up | AP30: Gap Down | AS30: Bull Harami | AV30: Bear Harami | AY30: Bull Engulfing | BB30: Bear Engulfing | BO30: Rainbow | BS30: ZLRB | BT30: EMA^1 | BU30: EMA^2 | BV30: EMA^3 | BW30: TEMA of | BX30: TEMA of | BY30: for WMA | BZ30: TEMA of | CA30: PB Plot | CF30: K | CG30: 100 | CH30: 50 | CI30: 0 | CJ30: 100 | CO30: Cross | CP30: =$F$11 -> 16.7 | CQ30: =$F$11 -> 16.7 | CR30: HaTypCross
B31: Date | C31: Volume | D31: Open | E31: High | F31: Low | G31: Close | H31: =A17 -> 8 | I31: =A18 -> 50 | J31: =A19 -> 100 | K31: =A20 -> 200 | L31: TYPICAL | M31: Vtypical | N31: VDeviation | O31: Vdevhigh | P31: Vdevlow | Q31: Vmedianavg | S31: V Median | T31: V Upper | U31: V Lower | W31: =$D$16 -> 3 | X31: HL Pivot | Y31: =$F$11 -> 16.7 | Z31: Date | AA31: Relrow | AB31: Price | AC31: Relrow | AD31: Price | AE31: Relrow | AF31: Price | AG31: Flag | AH31: Relrow | AI31: Price | AJ31: Flag | AK31: Relrow | AL31: Price | AM31: Flag | AN31: Relrow | AO31: Price | AP31: Flag | AQ31: Relrow | AR31: Price | AS31: Flag | AT31: Relrow | AU31: Price | AV31: Flag | AW31: Relrow | AX31: Price | AY31: Flag | AZ31: Relrow | BA31: Price | BB31: Flag | BC31: Relrow | BD31: Price | BE31: SMA^1 | BF31: SMA^2 | BG31: SMA^3 | BH31: SMA^4 | BI31: SMA^5 | BJ31: SMA^6 | BK31: SMA^7 | BL31: SMA^8 | BM31: SMA^9 | BN31: SMA^10 | BO31: Value | BP31: EMA^1 | BQ31: EMA^2 | BR31: Diff | BS31: Value | BT31: ZLRB | BU31: ZLRB | BV31: ZLRB | BW31: ZLRB | BX31: ZLRB | BY31: Calc | BZ31: ZLRB | CA31: ="SVEZLRBPercB("&BG27&","&BF27&","&BI27&","&BJ27&")" -> SVEZLRBPercB(18,3,30,3) | CB31: RBC | CC31: nom | CD31: den | CE31: Fast K | CF31: Smoothed Stochastic | CG31: Overbought | CH31: Neutral | CI31: OverSold | CJ31: Cursor | CK31: haOpen | CL31: HaC | CM31: AVGtyp | CN31: AVGhaC | CO31: ="SVEHaTypCross("&CN27&", "&CM27&")" -> SVEHaTypCross(6, 4) | CP31: Cross up | CQ31: Cross dn | CR31: Buy | CS31: Sell
A32: 1 | B32: =OFFSET(InputPriceData!B$15,CalculationsAndCharts!$A32+$A$11,0,1,1) -> 2010-11-09 | C32: =OFFSET(InputPriceData!G$15,CalculationsAndCharts!$A32+$A$11,0,1,1) -> 4934500 | D32: =OFFSET(InputPriceData!C$15,CalculationsAndCharts!$A32+$A$11,IF($C$7,7,0),1,1) -> 14.47 | E32: =OFFSET(InputPriceData!D$15,CalculationsAndCharts!$A32+$A$11,IF($C$7,7,0),1,1) -> 14.59 | F32: =OFFSET(InputPriceData!E$15,CalculationsAndCharts!$A32+$A$11,IF($C$7,7,0),1,1) -> 14.16 | G32: =OFFSET(InputPriceData!F$15,CalculationsAndCharts!$A32+$A$11,IF($C$7,7,0),1,1) -> 14.3 | H32: =IF($S$16,$C$17*G32+$D$17*H33,0) -> 0 | I32: =IF($S$16,AVERAGE(OFFSET($G32,0,0,I$31,1)),0) -> 0 | J32: 0 | K32: 0 | L32: =AVERAGE(E32:G32) -> 14.35 | M32: =IF(L32>=L33,L32-F33,L33-F32) -> 0.32 | N32: =AVERAGE(OFFSET(M32,0,0,$F$19,1))*$F$20 -> 1.667589744 | O32: =(N32*$E$17+O33*$F$17) -> 1.795438509 | P32: =O32*$F$21 -> 1.615894658 | Q32: =(L32*$E$17+Q33*$F$17) -> 14.11986186 | R32: =Q32*$E$17+R33*$F$17 -> 13.99581946 | S32: =IF($S$15,AVERAGE(OFFSET(Q32,0,0,$F$18,1)),0) -> 0 | T32: =IF($S$15,R32+O32,0) -> 0 | U32: =IF($S$15,R32-P32,0) -> 0 | V32: =MAX(E32-F32,ABS(E32-G33),ABS(F32-G33)) -> 0.43 | W32: =(W33*($W$31-1)+V32)/$W$31 -> 0.4372522954 | X32: =$B$16+W32/G32*$F$16 -> 0.08057708359 | Y32: =IF($A32=$B$28,Y$31,NA()) ->  | BE32: =AVERAGE(OFFSET($G$31,$A32,0,$BE$27,1)) -> 14.385 | BF32: =AVERAGE(OFFSET(BE$31,$A32,0,$BE$27,1)) -> 14.4025 | BG32: 14.3775 | BH32: 14.32125 | BI32: 14.2375 | BJ32: 14.13546875 | BK32: 14.02984375 | BL32: 13.93289063 | BM32: 13.85074219 | BN32: 13.78485352 | BO32: =(5*BE32+4*BF32+3*BG32+2*BH32+BI32+BJ32+BK32+BL32+BM32+BN32)/20 -> 14.26406494 | BP32: =BO32*$BF$28+$BF$29*BP33 -> 14.14846323 | BQ32: =BP32*$BF$28+$BF$29*BQ33 -> 14.03464233 | BR32: =BP32-BQ32 -> 0.113820903 | BS32: =BP32+BR32 -> 14.26228413 | BT32: =BS32*$BF$28+$BF$29*BT33 -> 14.12853852 | BU32: =BT32*$BF$28+$BF$29*BU33 -> 14.00700264 | BV32: =BU32*$BF$28+$BF$29*BV33 -> 13.91173296 | BW32: =3*BT32-3*BU32+BV32 -> 14.27634061 | BX32: =_xlfn.STDEV.P(OFFSET(BW32,0,0,$BG$27,1)) -> 0.4052917036 | BY32: =$BG$27 -> 18 | BZ32: =SUMPRODUCT(OFFSET(BW32,0,0,$BG$27,1),OFFSET($BY$31,1,0,$BG$27,1))/$BH$27 -> 13.90597923 | CA32: =(BW32+2*BX32-BZ32)/(4*BX32)*100 -> 72.84535925 | CB32: =(BO32+L32)/2 -> 14.30703247 | CC32: =CB32-MIN(OFFSET(F32,0,0,$BI$27,1)) -> 1.347032471 | CD32: =MAX(OFFSET(E32,0,0,$BI$27,1))-MIN(OFFSET(CB32,0,0,$BI$27,1)) -> 2.489498535 | CE32: =IF(CD32<0.000000000001,IF($A32>=$A$8,50,CE33),MIN(100,MAX(0,100*CC32/CD32))) -> 54.1085866 | CF32: =AVERAGE(OFFSET(CE$31,$A32,0,$BJ$27,1)) -> 52.21302648 | CG32: =CG$30 -> 100 | CH32: =CH$30 -> 50 | CI32: 0 | CJ32: =IF($A32=$B$28,CJ$30,NA()) ->  | CK32: =IF(A32>=$A$8,0,(AVERAGE(D33:G33)+CK33)/2) -> 14.26010925 | CL32: =(AVERAGE(D32:G32)+CK32+MAX(E32,CK32)+MIN(F32,CK32))/4 -> 14.34752731 | CM32: =IF(A32>=$A$8,L32,(L32*CM$28+CM33*CM$29)) -> 14.26226194 | CN32: =IF(A32>=$A$8,CL32,(CL32*CN$28+CN33*CN$29)) -> 14.09995586 | CO32: =IF(AND(CM32>CN32,G32>D32),100,IF(AND(CM32<CN32,G32<D32),0,CO33)) -> 100 | CP32: =IF($S$17,IF($A32>$A$8,NA(),IF($CO32=100,CP$30,NA())),NA()) -> 16.7 | CQ32: =IF($S$17,IF($A32>$A$8,NA(),IF($CO32=0,CQ$30,NA())),NA()) ->  | CR32: =IF(AND($S$18,$CO33>$CO34),$D32,NA()) ->  | CS32: =IF(AND($S$18,$CO33<$CO34),$D32,NA()) -> 
A33: 2 | B33: =OFFSET(InputPriceData!B$15,CalculationsAndCharts!$A33+$A$11,0,1,1) -> 2010-11-08 | C33: =OFFSET(InputPriceData!G$15,CalculationsAndCharts!$A33+$A$11,0,1,1) -> 4388500 | D33: =OFFSET(InputPriceData!C$15,CalculationsAndCharts!$A33+$A$11,IF($C$7,7,0),1,1) -> 14.33 | E33: =OFFSET(InputPriceData!D$15,CalculationsAndCharts!$A33+$A$11,IF($C$7,7,0),1,1) -> 14.67 | F33: =OFFSET(InputPriceData!E$15,CalculationsAndCharts!$A33+$A$11,IF($C$7,7,0),1,1) -> 14.3 | G33: =OFFSET(InputPriceData!F$15,CalculationsAndCharts!$A33+$A$11,IF($C$7,7,0),1,1) -> 14.47 | H33: 0 | I33: 0 | J33: 0 | K33: 0 | L33: 14.48 | M33: 0.48 | N33: =AVERAGE(OFFSET(M33,0,0,$F$19,1))*$F$20 -> 1.721294872 | O33: =(N33*$E$17+O34*$F$17) -> 1.831966727 | P33: =O33*$F$21 -> 1.648770055 | Q33: 14.05410811 | R33: 13.96037877 | S33: =IF($S$15,AVERAGE(OFFSET(Q33,0,0,$F$18,1)),0) -> 0 | T33: =IF($S$15,R33+O33,0) -> 0 | U33: =IF($S$15,R33-P33,0) -> 0 | V33: 0.37 | W33: 0.4408784431 | X33: 0.08046844803 | BE33: =AVERAGE(OFFSET($G$31,$A33,0,$BE$27,1)) -> 14.42 | BF33: =AVERAGE(OFFSET(BE$31,$A33,0,$BE$27,1)) -> 14.3525 | BG33: 14.265 | BH33: 14.15375 | BI33: 14.0334375 | BJ33: 13.92421875 | BK33: 13.8359375 | BL33: 13.76859375 | BM33: 13.71896484 | BN33: 13.6850293 | BO33: =(5*BE33+4*BF33+3*BG33+2*BH33+BI33+BJ33+BK33+BL33+BM33+BN33)/20 -> 14.17893408 | BP33: 14.03286152 | BQ33: 13.92082142 | BR33: 0.1120400954 | BS33: 14.14490162 | BT33: 13.99479291 | BU33: 13.88546676 | BV33: 13.81646328 | BW33: =3*BT33-3*BU33+BV33 -> 14.14444176 | BX33: =_xlfn.STDEV.P(OFFSET(BW33,0,0,$BG$27,1)) -> 0.4906103274 | BY33: =BY32-1 -> 17 | BZ33: =SUMPRODUCT(OFFSET(BW33,0,0,$BG$27,1),OFFSET($BY$31,1,0,$BG$27,1))/$BH$27 -> 13.88540711 | CA33: =(BW33+2*BX33-BZ33)/(4*BX33)*100 -> 63.19961257 | CB33: =(BO33+L33)/2 -> 14.32946704 | CC33: =CB33-MIN(OFFSET(F33,0,0,$BI$27,1)) -> 1.369467041 | CD33: =MAX(OFFSET(E33,0,0,$BI$27,1))-MIN(OFFSET(CB33,0,0,$BI$27,1)) -> 2.489498535 | CE33: =IF(CD33<0.000000000001,IF($A33>=$A$8,50,CE34),MIN(100,MAX(0,100*CC33/CD33))) -> 55.00975484 | CF33: =AVERAGE(OFFSET(CE$31,$A33,0,$BJ$27,1)) -> 47.64047381 | CG33: =CG$30 -> 100 | CH33: 50 | CI33: 0 | CJ33: =IF($A33=$B$28,CJ$30,NA()) ->  | CK33: =IF(A33>=$A$8,0,(AVERAGE(D34:G34)+CK34)/2) -> 14.0777185 | CL33: =(AVERAGE(D33:G33)+CK33+MAX(E33,CK33)+MIN(F33,CK33))/4 -> 14.31698425 | CM33: =IF(A33>=$A$8,L33,(L33*CM$28+CM34*CM$29)) -> 14.2037699 | CN33: =IF(A33>=$A$8,CL33,(CL33*CN$28+CN34*CN$29)) -> 14.00092728 | CO33: =IF(AND(CM33>CN33,G33>D33),100,IF(AND(CM33<CN33,G33<D33),0,CO34)) -> 100 | CP33: =IF($S$17,IF($A33>$A$8,NA(),IF($CO33=100,CP$30,NA())),NA()) -> 16.7 | CQ33: =IF($S$17,IF($A33>$A$8,NA(),IF($CO33=0,CQ$30,NA())),NA()) ->  | CR33: =IF(AND($S$18,$CO34>$CO35),$D33,NA()) ->  | CS33: =IF(AND($S$18,$CO34<$CO35),$D33,NA()) -> 
A34: 3 | B34: =OFFSET(InputPriceData!B$15,CalculationsAndCharts!$A34+$A$11,0,1,1) -> 2010-11-05 | C34: =OFFSET(InputPriceData!G$15,CalculationsAndCharts!$A34+$A$11,0,1,1) -> 4851700 | D34: =OFFSET(InputPriceData!C$15,CalculationsAndCharts!$A34+$A$11,IF($C$7,7,0),1,1) -> 14.26 | E34: =OFFSET(InputPriceData!D$15,CalculationsAndCharts!$A34+$A$11,IF($C$7,7,0),1,1) -> 14.44 | F34: =OFFSET(InputPriceData!E$15,CalculationsAndCharts!$A34+$A$11,IF($C$7,7,0),1,1) -> 14 | G34: =OFFSET(InputPriceData!F$15,CalculationsAndCharts!$A34+$A$11,IF($C$7,7,0),1,1) -> 14.37 | H34: 0 | I34: 0 | J34: 0 | K34: 0 | L34: 14.27 | M34: 0.42 | N34: 1.750423077 | O34: 1.863587257 | P34: 1.677228532 | Q34: 13.93242471 | R34: 13.93359896 | S34: 0 | T34: 0 | U34: 0 | V34: 0.44 | W34: 0.4763176646 | X34: 0.08314667116 | Z34: =IF(AA34="","",OFFSET($B$31,AA34,0,1,1)) ->  | BE34: 14.285 | BF34: =AVERAGE(OFFSET(BE$31,$A34,0,$BE$27,1)) -> 14.1775 | BG34: 14.0425 | BH34: 13.913125 | BI34: 13.815 | BJ34: 13.74765625 | BK34: 13.70125 | BL34: 13.66933594 | BM34: 13.65109375 | BN34: 13.64803711 | BO34: 14.01605615 | BP34: 13.88678896 | BQ34: 13.80878133 | BR34: 0.07800762917 | BS34: 13.96479659 | BT34: 13.84468421 | BU34: 13.7761406 | BV34: 13.7474598 | BW34: 13.95309065 | BX34: 0.5733810135 | BY34: =BY33-1 -> 16 | BZ34: 13.8859122 | CA34: 52.92904929 | CB34: 14.14302808 | CC34: 1.183028076 | CD34: 2.489498535 | CE34: 47.52073799 | CF34: 39.34062586 | CG34: 100 | CH34: 50 | CI34: 0 | CK34: 13.88793699 | CL34: 14.1208435 | CM34: 14.0196165 | CN34: 13.87450449 | CO34: 100 | CP34: 16.7 | CR34: 14.26
A35: 4 | B35: =OFFSET(InputPriceData!B$15,CalculationsAndCharts!$A35+$A$11,0,1,1) -> 2010-11-04 | C35: =OFFSET(InputPriceData!G$15,CalculationsAndCharts!$A35+$A$11,0,1,1) -> 6133500 | D35: =OFFSET(InputPriceData!C$15,CalculationsAndCharts!$A35+$A$11,IF($C$7,7,0),1,1) -> 14.1 | E35: =OFFSET(InputPriceData!D$15,CalculationsAndCharts!$A35+$A$11,IF($C$7,7,0),1,1) -> 14.24 | F35: =OFFSET(InputPriceData!E$15,CalculationsAndCharts!$A35+$A$11,IF($C$7,7,0),1,1) -> 13.85 | G35: =OFFSET(InputPriceData!F$15,CalculationsAndCharts!$A35+$A$11,IF($C$7,7,0),1,1) -> 14.2 | H35: 0 | I35: 0 | J35: 0 | K35: 0 | L35: 14.09666667 | M35: 0.7566666667 | N35: 1.962512821 | O35: 1.89591988 | P35: 1.706327892 | Q35: 13.83597463 | R35: 13.93393446 | S35: 0 | T35: 0 | U35: 0 | V35: 0.39 | W35: 0.4944764969 | X35: 0.08482228851 | BE35: 14.07 | BF35: =AVERAGE(OFFSET(BE$31,$A35,0,$BE$27,1)) -> 13.9075 | BG35: 13.78375 | BH35: 13.716875 | BI35: 13.6803125 | BJ35: 13.65484375 | BK35: 13.63742188 | BL35: 13.63285156 | BM35: 13.64498047 | BN35: 13.67251953 | BO35: 13.83439648 | BP35: 13.75752177 | BQ35: 13.7307737 | BR35: 0.02674806476 | BS35: 13.78426983 | BT35: 13.72457184 | BU35: 13.70759698 | BV35: 13.71877901 | BW35: 13.76970359 | BX35: 0.6442117676 | BY35: 15 | BZ35: 13.91536927 | CA35: 44.34713539 | CB35: 13.96553158 | CC35: 1.005531576 | CD35: 2.489498535 | CE35: 40.39092859 | CF35: 32.4064309 | CG35: 100 | CH35: 50 | CI35: 0 | CK35: 13.67837399 | CL35: 13.92356199 | CM35: 13.85269416 | CN35: 13.77596888 | CO35: 100 | CP35: 16.7
A36: 5 | B36: =OFFSET(InputPriceData!B$15,CalculationsAndCharts!$A36+$A$11,0,1,1) -> 2010-11-03 | C36: =OFFSET(InputPriceData!G$15,CalculationsAndCharts!$A36+$A$11,0,1,1) -> 6566200 | D36: =OFFSET(InputPriceData!C$15,CalculationsAndCharts!$A36+$A$11,IF($C$7,7,0),1,1) -> 13.57 | E36: =OFFSET(InputPriceData!D$15,CalculationsAndCharts!$A36+$A$11,IF($C$7,7,0),1,1) -> 13.94 | F36: =OFFSET(InputPriceData!E$15,CalculationsAndCharts!$A36+$A$11,IF($C$7,7,0),1,1) -> 13.34 | G36: =OFFSET(InputPriceData!F$15,CalculationsAndCharts!$A36+$A$11,IF($C$7,7,0),1,1) -> 13.94 | H36: 0 | I36: 0 | J36: 0 | K36: 0 | L36: 13.74 | M36: 0.33 | N36: 1.847820513 | O36: 1.876893326 | P36: 1.689203993 | Q36: 13.7614912 | R36: 13.96192298 | S36: 0 | T36: 0 | U36: 0 | V36: 0.6 | W36: 0.5467147453 | X36: 0.08921913524 | BE36: 13.745 | BF36: =AVERAGE(OFFSET(BE$31,$A36,0,$BE$27,1)) -> 13.66 | BG36: 13.65 | BH36: 13.64375 | BI36: 13.629375 | BJ36: 13.62 | BK36: 13.62828125 | BL36: 13.65710938 | BM36: 13.70005859 | BN36: 13.74640625 | BO36: 13.67918652 | BP36: 13.68064705 | BQ36: 13.70402564 | BR36: -0.02337858967 | BS36: 13.65726846 | BT36: 13.66487385 | BU36: 13.69062212 | BV36: 13.72996104 | BW36: 13.65271623 | BX36: 0.6937094807 | BY36: 14 | BZ36: 13.97416726 | CA36: 38.41550222 | CB36: 13.70959326 | CC36: 0.7495932617 | CD36: 2.489498535 | CE36: 30.110211 | CF36: 28.8773467 | CG36: 100 | CH36: 50 | CI36: 0 | CK36: 13.65924797 | CL36: 13.65918699 | CM36: 13.69004583 | CN36: 13.71693164 | CO36: 0 | CQ36: 16.7
A37: 6 | B37: =OFFSET(InputPriceData!B$15,CalculationsAndCharts!$A37+$A$11,0,1,1) -> 2010-11-02 | C37: =OFFSET(InputPriceData!G$15,CalculationsAndCharts!$A37+$A$11,0,1,1) -> 5217500 | D37: =OFFSET(InputPriceData!C$15,CalculationsAndCharts!$A37+$A$11,IF($C$7,7,0),1,1) -> 13.71 | E37: =OFFSET(InputPriceData!D$15,CalculationsAndCharts!$A37+$A$11,IF($C$7,7,0),1,1) -> 13.86 | F37: =OFFSET(InputPriceData!E$15,CalculationsAndCharts!$A37+$A$11,IF($C$7,7,0),1,1) -> 13.41 | G37: =OFFSET(InputPriceData!F$15,CalculationsAndCharts!$A37+$A$11,IF($C$7,7,0),1,1) -> 13.55 | H37: 0 | I37: 0 | J37: 0 | K37: 0 | L37: 13.60666667 | M37: 0.3033333333 | N37: 1.963423077 | O37: 1.885199844 | P37: 1.69667986 | Q37: 13.76763154 | R37: 14.0191892 | S37: 0 | T37: 0 | U37: 0 | V37: 0.45 | W37: 0.520072118 | X37: 0.08838170612 | BE37: 13.575 | BF37: =AVERAGE(OFFSET(BE$31,$A37,0,$BE$27,1)) -> 13.64 | BG37: 13.6375 | BH37: 13.615 | BI37: 13.610625 | BJ37: 13.6365625 | BK37: 13.6859375 | BL37: 13.74300781 | BM37: 13.79275391 | BN37: 13.82620117 | BO37: 13.64362939 | BP37: 13.68210757 | BQ37: 13.72740423 | BR37: -0.04529665678 | BS37: 13.63681091 | BT37: 13.67247924 | BU37: 13.71637039 | BV37: 13.76929996 | BW37: 13.63762651 | BX37: 0.7204671012 | BY37: 13 | BZ37: 14.05595601 | CA37: 35.48408713 | CB37: 13.62514803 | CC37: 0.6651480306 | CD37: 2.489498535 | CE37: 26.71815312 | CF37: 28.38334343 | CG37: 100 | CH37: 50 | CI37: 0 | CK37: 13.68599594 | CL37: 13.64712399 | CM37: 13.65674305 | CN37: 13.7400295 | CO37: 0 | CQ37: 16.7
A38: 7 | B38: =OFFSET(InputPriceData!B$15,CalculationsAndCharts!$A38+$A$11,0,1,1) -> 2010-11-01 | C38: =OFFSET(InputPriceData!G$15,CalculationsAndCharts!$A38+$A$11,0,1,1) -> 5993600 | D38: =OFFSET(InputPriceData!C$15,CalculationsAndCharts!$A38+$A$11,IF($C$7,7,0),1,1) -> 13.8 | E38: =OFFSET(InputPriceData!D$15,CalculationsAndCharts!$A38+$A$11,IF($C$7,7,0),1,1) -> 14.03 | F38: =OFFSET(InputPriceData!E$15,CalculationsAndCharts!$A38+$A$11,IF($C$7,7,0),1,1) -> 13.51 | G38: =OFFSET(InputPriceData!F$15,CalculationsAndCharts!$A38+$A$11,IF($C$7,7,0),1,1) -> 13.6 | H38: 0 | I38: 0 | J38: 0 | K38: 0 | L38: 13.71333333 | M38: 0.3933333333 | N38: 2.017128205 | O38: 1.862850349 | P38: 1.676565314 | Q38: 13.8136215 | R38: 14.09106282 | S38: 0 | T38: 0 | U38: 0 | V38: 0.52 | W38: 0.5551081769 | X38: 0.09081677772 | BE38: 13.705 | BF38: =AVERAGE(OFFSET(BE$31,$A38,0,$BE$27,1)) -> 13.635 | BG38: 13.5925 | BH38: 13.60625 | BI38: 13.6625 | BJ38: 13.7353125 | BK38: 13.80007813 | BL38: 13.8425 | BM38: 13.85964844 | BN38: 13.85677734 | BO38: 13.69059082 | BP38: 13.72058574 | BQ38: 13.77270088 | BR38: -0.05211513956 | BS38: 13.6684706 | BT38: 13.70814757 | BU38: 13.76026154 | BV38: 13.82222953 | BW38: 13.6658876 | BX38: 0.7301522675 | BY38: 12 | BZ38: 14.15000065 | CA38: 33.42424337 | CB38: 13.70196208 | CC38: 0.7419620768 | CD38: 2.489498535 | CE38: 29.80367598 | CF38: 27.38385746 | CG38: 100 | CH38: 50 | CI38: 0 | CK38: 13.63699189 | CL38: 13.72799797 | CM38: 13.6901273 | CN38: 13.77719171 | CO38: 0 | CQ38: 16.7
A39: 8 | B39: =OFFSET(InputPriceData!B$15,CalculationsAndCharts!$A39+$A$11,0,1,1) -> 2010-10-29 | C39: =OFFSET(InputPriceData!G$15,CalculationsAndCharts!$A39+$A$11,0,1,1) -> 7294500 | D39: =OFFSET(InputPriceData!C$15,CalculationsAndCharts!$A39+$A$11,IF($C$7,7,0),1,1) -> 13.42 | E39: =OFFSET(InputPriceData!D$15,CalculationsAndCharts!$A39+$A$11,IF($C$7,7,0),1,1) -> 13.89 | F39: =OFFSET(InputPriceData!E$15,CalculationsAndCharts!$A39+$A$11,IF($C$7,7,0),1,1) -> 13.32 | G39: =OFFSET(InputPriceData!F$15,CalculationsAndCharts!$A39+$A$11,IF($C$7,7,0),1,1) -> 13.81 | H39: 0 | I39: 0 | J39: 0 | K39: 0 | L39: 13.67333333 | M39: 0.7133333333 | N39: 1.997102564 | O39: 1.818770961 | P39: 1.636893865 | Q39: 13.84227526 | R39: 14.17033177 | S39: 0 | T39: 0 | U39: 0 | V39: 0.57 | W39: 0.5726622654 | X39: 0.0914672169 | BE39: 13.565 | BF39: =AVERAGE(OFFSET(BE$31,$A39,0,$BE$27,1)) -> 13.55 | BG39: 13.62 | BH39: 13.71875 | BI39: 13.808125 | BJ39: 13.86484375 | BK39: 13.88492187 | BL39: 13.87679688 | BM39: 13.85390625 | BN39: 13.83018555 | BO39: 13.67206396 | BP39: 13.75058066 | BQ39: 13.82481602 | BR39: -0.0742353569 | BS39: 13.67634531 | BT39: 13.74782453 | BU39: 13.81237552 | BV39: 13.88419752 | BW39: 13.69054454 | BX39: 0.7274076644 | BY39: 11 | BZ39: 14.25153537 | CA39: 30.7195175 | CB39: 13.67269865 | CC39: 0.7126986491 | CD39: 2.489498535 | CE39: 28.62820118 | CF39: 24.99759355 | CG39: 100 | CH39: 50 | CI39: 0 | CK39: 13.66398378 | CL39: 13.62099594 | CM39: 13.67465662 | CN39: 13.7968692 | CO39: 0 | CQ39: 16.7
A40: 9 | B40: =OFFSET(InputPriceData!B$15,CalculationsAndCharts!$A40+$A$11,0,1,1) -> 2010-10-28 | C40: =OFFSET(InputPriceData!G$15,CalculationsAndCharts!$A40+$A$11,0,1,1) -> 10660200 | D40: =OFFSET(InputPriceData!C$15,CalculationsAndCharts!$A40+$A$11,IF($C$7,7,0),1,1) -> 13.74 | E40: =OFFSET(InputPriceData!D$15,CalculationsAndCharts!$A40+$A$11,IF($C$7,7,0),1,1) -> 13.8 | F40: =OFFSET(InputPriceData!E$15,CalculationsAndCharts!$A40+$A$11,IF($C$7,7,0),1,1) -> 12.96 | G40: =OFFSET(InputPriceData!F$15,CalculationsAndCharts!$A40+$A$11,IF($C$7,7,0),1,1) -> 13.32 | H40: 0 | I40: 0 | J40: 0 | K40: 0 | L40: 13.36 | M40: 0.8 | N40: 1.988910256 | O40: 1.767819075 | P40: 1.591037167 | Q40: 13.89054438 | R40: 14.26406221 | S40: 0 | T40: 0 | U40: 0 | V40: 0.84 | W40: 0.5739933981 | X40: 0.09309259745 | BE40: 13.535 | BF40: =AVERAGE(OFFSET(BE$31,$A40,0,$BE$27,1)) -> 13.69 | BG40: 13.8175 | BH40: 13.8975 | BI40: 13.9215625 | BJ40: 13.905 | BK40: 13.86867188 | BL40: 13.83101562 | BM40: 13.80646484 | BN40: 13.80484375 | BO40: 13.74100293 | BP40: 13.82909736 | BQ40: 13.89905138 | BR40: -0.06995401387 | BS40: 13.75914335 | BT40: 13.81930375 | BU40: 13.87692651 | BV40: 13.95601952 | BW40: 13.78315123 | BX40: 0.714782849 | BY40: 10 | BZ40: 14.36098549 | CA40: 29.78986682 | CB40: 13.55050146 | CC40: 0.5905014648 | CD40: 2.489498535 | CE40: 23.71969521 | CF40: 25.15776059 | CG40: 100 | CH40: 50 | CI40: 0 | CK40: 13.87296756 | CL40: 13.54023378 | CM40: 13.6755388 | CN40: 13.8672185 | CO40: 0 | CQ40: 16.7
A41: 10 | B41: =OFFSET(InputPriceData!B$15,CalculationsAndCharts!$A41+$A$11,0,1,1) -> 2010-10-27 | C41: =OFFSET(InputPriceData!G$15,CalculationsAndCharts!$A41+$A$11,0,1,1) -> 4529600 | D41: =OFFSET(InputPriceData!C$15,CalculationsAndCharts!$A41+$A$11,IF($C$7,7,0),1,1) -> 13.88 | E41: =OFFSET(InputPriceData!D$15,CalculationsAndCharts!$A41+$A$11,IF($C$7,7,0),1,1) -> 13.98 | F41: =OFFSET(InputPriceData!E$15,CalculationsAndCharts!$A41+$A$11,IF($C$7,7,0),1,1) -> 13.55 | G41: =OFFSET(InputPriceData!F$15,CalculationsAndCharts!$A41+$A$11,IF($C$7,7,0),1,1) -> 13.75 | H41: 0 | I41: 0 | J41: 0 | K41: 0 | L41: 13.76 | M41: 0.4566666667 | N41: 1.875128205 | O41: 1.704650166 | P41: 1.534185149 | Q41: 14.04212849 | R41: 14.37078158 | S41: 0 | T41: 0 | U41: 0 | V41: 0.43 | W41: 0.4409900971 | X41: 0.08207200706 | BE41: 13.845 | BF41: =AVERAGE(OFFSET(BE$31,$A41,0,$BE$27,1)) -> 13.945 | BG41: 13.9775 | BH41: 13.945625 | BI41: 13.8884375 | BJ41: 13.83234375 | BK41: 13.79335937 | BL41: 13.78191406 | BM41: 13.80322266 | BN41: 13.85722656 | BO41: 13.8892627 | BP41: 13.9171918 | BQ41: 13.96900539 | BR41: -0.05181359273 | BS41: 13.86537821 | BT41: 13.87946414 | BU41: 13.93454927 | BV41: 14.03511253 | BW41: 13.86985714 | BX41: 0.6990896637 | BY41: 9 | BZ41: 14.47101715 | CA41: 28.50204192 | CB41: 13.82463135 | CC41: 0.5146313477 | CD41: 2.272616374 | CE41: 22.64488427 | CF41: 27.2632942 | CG41: 100 | CH41: 50 | CI41: 0 | CK41: 13.95593512 | CL41: 13.81898378 | CM41: 13.88589801 | CN41: 13.99801239 | CO41: 0 | CQ41: 16.7
A42: 11 | B42: =OFFSET(InputPriceData!B$15,CalculationsAndCharts!$A42+$A$11,0,1,1) -> 2010-10-26 | C42: =OFFSET(InputPriceData!G$15,CalculationsAndCharts!$A42+$A$11,0,1,1) -> 4466600 | D42: =OFFSET(InputPriceData!C$15,CalculationsAndCharts!$A42+$A$11,IF($C$7,7,0),1,1) -> 13.99 | E42: =OFFSET(InputPriceData!D$15,CalculationsAndCharts!$A42+$A$11,IF($C$7,7,0),1,1) -> 14.17 | F42: =OFFSET(InputPriceData!E$15,CalculationsAndCharts!$A42+$A$11,IF($C$7,7,0),1,1) -> 13.91 | G42: =OFFSET(InputPriceData!F$15,CalculationsAndCharts!$A42+$A$11,IF($C$7,7,0),1,1) -> 13.94 | H42: 0 | I42: 0 | J42: 0 | K42: 0 | L42: 14.00666667 | M42: 0.1933333333 | N42: 1.839628205 | O42: 1.655942155 | P42: 1.490347939 | Q42: 14.12273663 | R42: 14.46468247 | S42: 0 | T42: 0 | U42: 0 | V42: 0.26 | W42: 0.4464851457 | X42: 0.08202906354 | BE42: 14.045 | BF42: =AVERAGE(OFFSET(BE$31,$A42,0,$BE$27,1)) -> 14.01 | BG42: 13.91375 | BH42: 13.83125 | BI42: 13.77625 | BJ42: 13.754375 | BK42: 13.77046875 | BL42: 13.82453125 | BM42: 13.91123047 | BN42: 14.02222656 | BO42: 13.9363916 | BP42: 13.9451209 | BQ42: 14.02081899 | BR42: -0.07569808108 | BS42: 13.86942282 | BT42: 13.89355008 | BU42: 13.9896344 | BV42: 14.13567578 | BW42: 13.84742281 | BX42: 0.6798919362 | BY42: 8 | BZ42: 14.58209726 | CA42: 22.98561664 | CB42: 13.97152913 | CC42: 0.6615291341 | CD42: 2.272616374 | CE42: 29.10870228 | CF42: 26.42361998 | CG42: 100 | CH42: 50 | CI42: 0 | CK42: 13.90937023 | CL42: 13.99781012 | CM42: 13.96983001 | CN42: 14.06962383 | CO42: 0 | CQ42: 16.7
A43: 12 | B43: =OFFSET(InputPriceData!B$15,CalculationsAndCharts!$A43+$A$11,0,1,1) -> 2010-10-25 | C43: =OFFSET(InputPriceData!G$15,CalculationsAndCharts!$A43+$A$11,0,1,1) -> 7605500 | D43: =OFFSET(InputPriceData!C$15,CalculationsAndCharts!$A43+$A$11,IF($C$7,7,0),1,1) -> 13.9 | E43: =OFFSET(InputPriceData!D$15,CalculationsAndCharts!$A43+$A$11,IF($C$7,7,0),1,1) -> 14.35 | F43: =OFFSET(InputPriceData!E$15,CalculationsAndCharts!$A43+$A$11,IF($C$7,7,0),1,1) -> 13.81 | G43: =OFFSET(InputPriceData!F$15,CalculationsAndCharts!$A43+$A$11,IF($C$7,7,0),1,1) -> 14.15 | H43: 0 | I43: 0 | J43: 0 | K43: 0 | L43: 14.10333333 | M43: 0.6233333333 | N43: 1.824153846 | O43: 1.603460426 | P43: 1.443114384 | Q43: 14.15589948 | R43: 14.56238128 | S43: 0 | T43: 0 | U43: 0 | V43: 0.55 | W43: 0.5397277185 | X43: 0.08814330166 | BE43: 13.975 | BF43: =AVERAGE(OFFSET(BE$31,$A43,0,$BE$27,1)) -> 13.8175 | BG43: 13.74875 | BH43: 13.72125 | BI43: 13.7325 | BJ43: 13.7865625 | BK43: 13.87859375 | BL43: 13.99792969 | BM43: 14.13322266 | BN43: 14.27516602 | BO43: 13.88188623 | BP43: 13.95385021 | BQ43: 14.09651707 | BR43: -0.1426668596 | BS43: 13.81118335 | BT43: 13.91767733 | BU43: 14.08571873 | BV43: 14.28171716 | BW43: 13.77759297 | BX43: 0.6443716108 | BY43: 7 | BZ43: 14.70593625 | CA43: 13.98261267 | CB43: 13.99260978 | CC43: 0.6826097819 | CD43: 2.272616374 | CE43: 30.03629604 | CF43: 23.98066648 | CG43: 100 | CH43: 50 | CI43: 0 | CK43: 13.76624046 | CL43: 13.98374523 | CM43: 13.94527224 | CN43: 14.09834932 | CO43: 0 | CQ43: 16.7
A44: 13 | B44: =OFFSET(InputPriceData!B$15,CalculationsAndCharts!$A44+$A$11,0,1,1) -> 2010-10-22 | C44: =OFFSET(InputPriceData!G$15,CalculationsAndCharts!$A44+$A$11,0,1,1) -> 4088100 | D44: =OFFSET(InputPriceData!C$15,CalculationsAndCharts!$A44+$A$11,IF($C$7,7,0),1,1) -> 13.56 | E44: =OFFSET(InputPriceData!D$15,CalculationsAndCharts!$A44+$A$11,IF($C$7,7,0),1,1) -> 13.81 | F44: =OFFSET(InputPriceData!E$15,CalculationsAndCharts!$A44+$A$11,IF($C$7,7,0),1,1) -> 13.48 | G44: =OFFSET(InputPriceData!F$15,CalculationsAndCharts!$A44+$A$11,IF($C$7,7,0),1,1) -> 13.8 | H44: 0 | I44: 0 | J44: 0 | K44: 0 | L44: 13.69666667 | M44: 0.3166666667 | N44: 1.693076923 | O44: 1.540405163 | P44: 1.386364647 | Q44: 14.17091838 | R44: 14.67851893 | S44: 0 | T44: 0 | U44: 0 | V44: 0.33 | W44: 0.5345915778 | X44: 0.08873852013 | BE44: 13.66 | BF44: =AVERAGE(OFFSET(BE$31,$A44,0,$BE$27,1)) -> 13.68 | BG44: 13.69375 | BH44: 13.74375 | BI44: 13.840625 | BJ44: 13.970625 | BK44: 14.11726562 | BL44: 14.26851562 | BM44: 14.41710937 | BN44: 14.55912109 | BO44: 13.83810059 | BP44: 14.02581418 | BQ44: 14.23918393 | BR44: -0.2133697431 | BS44: 13.81244444 | BT44: =BS44*$BF$28+$BF$29*BT45 -> 14.02417132 | BU44: =BT44*$BF$28+$BF$29*BU45 -> 14.25376013 | BV44: =BU44*$BF$28+$BF$29*BV45 -> 14.4777156 | BW44: =3*BT44-3*BU44+BV44 -> 13.78894918 | BX44: 0.5798794757 | BY44: 6 | BZ44: 14.84768728 | CA44: 4.355252117 | CB44: 13.76738363 | CC44: 0.4573836263 | CD44: 2.272616374 | CE44: 20.12586161 | CF44: 24.8636883 | CG44: 100 | CH44: 50 | CI44: 0 | CK44: 13.86998093 | CL44: 13.72061546 | CM44: 13.83989818 | CN44: 14.14419095 | CO44: 0 | CQ44: 16.7
A45: 14 | B45: =OFFSET(InputPriceData!B$15,CalculationsAndCharts!$A45+$A$11,0,1,1) -> 2010-10-21 | C45: =OFFSET(InputPriceData!G$15,CalculationsAndCharts!$A45+$A$11,0,1,1) -> 8428400 | D45: =OFFSET(InputPriceData!C$15,CalculationsAndCharts!$A45+$A$11,IF($C$7,7,0),1,1) -> 13.93 | E45: =OFFSET(InputPriceData!D$15,CalculationsAndCharts!$A45+$A$11,IF($C$7,7,0),1,1) -> 13.97 | F45: =OFFSET(InputPriceData!E$15,CalculationsAndCharts!$A45+$A$11,IF($C$7,7,0),1,1) -> 13.38 | G45: =OFFSET(InputPriceData!F$15,CalculationsAndCharts!$A45+$A$11,IF($C$7,7,0),1,1) -> 13.52 | H45: 0 | I45: 0 | J45: 0 | K45: 0 | L45: 13.62333333 | M45: 0.5166666667 | N45: 1.692166667 | O45: 1.49678466 | P45: 1.347106194 | Q45: 14.30641887 | R45: 14.82354766 | S45: 0 | T45: 0 | U45: 0 | V45: 0.59 | W45: 0.6368873667 | X45: 0.09710705375 | BE45: 13.7 | BF45: =AVERAGE(OFFSET(BE$31,$A45,0,$BE$27,1)) -> 13.7075 | BG45: 13.79375 | BH45: 13.9375 | BI45: 14.100625 | BJ45: 14.26390625 | BK45: 14.41976562 | BL45: 14.56570312 | BM45: 14.70113281 | BN45: 14.8259375 | BO45: 13.97316602 | BP45: 14.21352778 | BQ45: 14.45255367 | BR45: -0.2390258895 | BS45: 13.97450189 | BT45: 14.2358982 | BU45: 14.48334893 | BV45: 14.70167107 | BW45: 13.95931887 | BX45: 0.4857212458 | BY45: 5 | BZ45: 14.99823213 | CA45: -3.472710059 | CB45: 13.79824967 | CC45: 0.4882496745 | CD45: 2.241750326 | CE45: 21.7798418 | CF45: 28.86346824 | CG45: 100 | CH45: 50 | CI45: 0 | CK45: 14.03996186 | CL45: 13.78998093 | CM45: 13.93538585 | CN45: 14.31362115 | CO45: 0 | CQ45: 16.7
A46: 15 | B46: =OFFSET(InputPriceData!B$15,CalculationsAndCharts!$A46+$A$11,0,1,1) -> 2010-10-20 | C46: =OFFSET(InputPriceData!G$15,CalculationsAndCharts!$A46+$A$11,0,1,1) -> 7256000 | D46: =OFFSET(InputPriceData!C$15,CalculationsAndCharts!$A46+$A$11,IF($C$7,7,0),1,1) -> 13.75 | E46: =OFFSET(InputPriceData!D$15,CalculationsAndCharts!$A46+$A$11,IF($C$7,7,0),1,1) -> 14.11 | F46: =OFFSET(InputPriceData!E$15,CalculationsAndCharts!$A46+$A$11,IF($C$7,7,0),1,1) -> 13.7 | G46: =OFFSET(InputPriceData!F$15,CalculationsAndCharts!$A46+$A$11,IF($C$7,7,0),1,1) -> 13.88 | H46: 0 | I46: 0 | J46: 0 | K46: 0 | L46: 13.89666667 | M46: 0.5866666667 | N46: 1.676692308 | O46: 1.44096123 | P46: 1.296865107 | Q46: 14.50158617 | R46: 14.97129874 | S46: 0 | T46: 0 | U46: 0 | V46: 0.56 | W46: 0.6603310501 | X46: 0.09757428315 | BE46: 13.715 | BF46: =AVERAGE(OFFSET(BE$31,$A46,0,$BE$27,1)) -> 13.88 | BG46: 14.08125 | BH46: 14.26375 | BI46: 14.4271875 | BJ46: 14.575625 | BK46: 14.71164062 | BL46: 14.8365625 | BM46: 14.95074219 | BN46: 15.05381836 | BO46: 14.17109131 | BP46: 14.45388954 | BQ46: 14.69157956 | BR46: -0.237690015 | BS46: 14.21619953 | BT46: 14.49729452 | BU46: 14.73079966 | BV46: 14.9199932 | BW46: 14.21947775 | BX46: 0.378053629 | BY46: 4 | BZ46: 15.13912768 | CA46: -10.81477977 | CB46: 14.03387899 | CC46: 0.7238789876 | CD46: 2.214688639 | CE46: 32.68536149 | CF46: 39.99256552 | CG46: 100 | CH46: 50 | CI46: 0 | CK46: 14.21992372 | CL46: 13.99996186 | CM46: 14.14342087 | CN46: 14.52307723 | CO46: 0 | CQ46: 16.7
A47: 16 | B47: =OFFSET(InputPriceData!B$15,CalculationsAndCharts!$A47+$A$11,0,1,1) -> 2010-10-19 | C47: =OFFSET(InputPriceData!G$15,CalculationsAndCharts!$A47+$A$11,0,1,1) -> 19962500 | D47: =OFFSET(InputPriceData!C$15,CalculationsAndCharts!$A47+$A$11,IF($C$7,7,0),1,1) -> 14.13 | E47: =OFFSET(InputPriceData!D$15,CalculationsAndCharts!$A47+$A$11,IF($C$7,7,0),1,1) -> 14.14 | F47: =OFFSET(InputPriceData!E$15,CalculationsAndCharts!$A47+$A$11,IF($C$7,7,0),1,1) -> 13.31 | G47: =OFFSET(InputPriceData!F$15,CalculationsAndCharts!$A47+$A$11,IF($C$7,7,0),1,1) -> 13.55 | H47: 0 | I47: 0 | J47: 0 | K47: 0 | L47: 13.66666667 | M47: 1.196666667 | N47: 1.613884615 | O47: 1.373609494 | P47: 1.236248544 | Q47: 14.67442031 | R47: 15.10550234 | S47: 0 | T47: 0 | U47: 0 | V47: 1.23 | W47: 0.7104965751 | X47: 0.1024351716 | BE47: 14.045 | BF47: =AVERAGE(OFFSET(BE$31,$A47,0,$BE$27,1)) -> 14.2825 | BG47: 14.44625 | BH47: 14.590625 | BI47: 14.7240625 | BJ47: 14.84765625 | BK47: 14.96148438 | BL47: 15.06492188 | BM47: 15.15689453 | BN47: 15.23630859 | BO47: 14.49331641 | BP47: 14.73668778 | BQ47: 14.92926957 | BR47: -0.1925817952 | BS47: 14.54410598 | BT47: 14.7783895 | BU47: 14.96430481 | BV47: 15.10918673 | BW47: 14.5514408 | BX47: 0.2741444357 | BY47: 3 | BZ47: 15.25867297 | CA47: -14.49448486 | CB47: 14.07999154 | CC47: 0.7699915365 | CD47: 2.396845785 | CE47: 32.12520144 | CF47: 49.00938798 | CG47: 100 | CH47: 50 | CI47: 0 | CK47: 14.65734743 | CL47: 14.10179872 | CM47: 14.30792367 | CN47: 14.73232338 | CO47: 0 | CQ47: 16.7
A48: 17 | B48: =OFFSET(InputPriceData!B$15,CalculationsAndCharts!$A48+$A$11,0,1,1) -> 2010-10-18 | C48: =OFFSET(InputPriceData!G$15,CalculationsAndCharts!$A48+$A$11,0,1,1) -> 5839100 | D48: =OFFSET(InputPriceData!C$15,CalculationsAndCharts!$A48+$A$11,IF($C$7,7,0),1,1) -> 14.39 | E48: =OFFSET(InputPriceData!D$15,CalculationsAndCharts!$A48+$A$11,IF($C$7,7,0),1,1) -> 14.62 | F48: =OFFSET(InputPriceData!E$15,CalculationsAndCharts!$A48+$A$11,IF($C$7,7,0),1,1) -> 14.36 | G48: =OFFSET(InputPriceData!F$15,CalculationsAndCharts!$A48+$A$11,IF($C$7,7,0),1,1) -> 14.54 | H48: 0 | I48: 0 | J48: 0 | K48: 0 | L48: 14.50666667 | M48: 0.3366666667 | N48: 1.370846154 | O48: 1.304959459 | P48: 1.174463513 | Q48: 14.96234992 | R48: 15.22866863 | S48: 0 | T48: 0 | U48: 0 | V48: 0.26 | W48: 0.4507448626 | X48: 0.08100033443 | BE48: 14.52 | BF48: =AVERAGE(OFFSET(BE$31,$A48,0,$BE$27,1)) -> 14.61 | BG48: 14.735 | BH48: 14.8575 | BI48: 14.97125 | BJ48: 15.0753125 | BK48: 15.16835938 | BL48: 15.24886719 | BM48: 15.31572266 | BN48: 15.36848633 | BO48: 14.8053999 | BP48: 14.98005915 | BQ48: 15.12185137 | BR48: -0.1417922184 | BS48: 14.83826693 | BT48: 15.01267302 | BU48: 15.15022012 | BV48: 15.25406865 | BW48: 14.84142735 | BX48: 0.1982112344 | BY48: 2 | BZ48: 15.34707303 | CA48: -13.77611193 | CB48: 14.65603328 | CC48: 1.546033285 | CD48: 2.802453532 | CE48: 55.16713362 | CF48: 64.06925656 | CG48: 100 | CH48: 50 | CI48: 0 | CK48: 14.83719486 | CL48: 14.62797243 | CM48: 14.73542833 | CN48: 14.98453325 | CO48: 0 | CQ48: 16.7
A49: 18 | B49: =OFFSET(InputPriceData!B$15,CalculationsAndCharts!$A49+$A$11,0,1,1) -> 2010-10-15 | C49: =OFFSET(InputPriceData!G$15,CalculationsAndCharts!$A49+$A$11,0,1,1) -> 12451300 | D49: =OFFSET(InputPriceData!C$15,CalculationsAndCharts!$A49+$A$11,IF($C$7,7,0),1,1) -> 14.72 | E49: =OFFSET(InputPriceData!D$15,CalculationsAndCharts!$A49+$A$11,IF($C$7,7,0),1,1) -> 14.85 | F49: =OFFSET(InputPriceData!E$15,CalculationsAndCharts!$A49+$A$11,IF($C$7,7,0),1,1) -> 14.17 | G49: =OFFSET(InputPriceData!F$15,CalculationsAndCharts!$A49+$A$11,IF($C$7,7,0),1,1) -> 14.5 | H49: 0 | I49: 0 | J49: 0 | K49: 0 | L49: 14.50666667 | M49: 0.7533333333 | N49: 1.377217949 | O49: 1.286134689 | P49: 1.15752122 | Q49: 15.09254514 | R49: 15.30475969 | S49: 0 | T49: 0 | U49: 0 | V49: 0.73 | W49: 0.5461172939 | X49: 0.08766326165 | BE49: 14.7 | BF49: =AVERAGE(OFFSET(BE$31,$A49,0,$BE$27,1)) -> 14.86 | BG49: 14.98 | BH49: 15.085 | BI49: 15.179375 | BJ49: 15.26140625 | BK49: 15.329375 | BL49: 15.38257812 | BM49: 15.42125 | BN49: 15.44651367 | BO49: 15.0035249 | BP49: 15.1547184 | BQ49: 15.26364359 | BR49: -0.1089251889 | BS49: 15.04579321 | BT49: 15.18707911 | BU49: 15.28776722 | BV49: 15.35791719 | BW49: 15.05585285 | BX49: 0.1540873149 | BY49: 1 | BZ49: 15.40714503 | CA49: -6.995636237 | CB49: 14.75509578 | CC49: 1.795095785 | CD49: 3.005057129 | CE49: 59.73582889 | CF49: 73.49486466 | CG49: 100 | CH49: 50 | CI49: 0 | CK49: 15.11438973 | CL49: 14.73969486 | CM49: 14.88793611 | CN49: 15.12715758 | CO49: 0 | CQ49: 16.7
A50: 19 | B50: =OFFSET(InputPriceData!B$15,CalculationsAndCharts!$A50+$A$11,0,1,1) -> 2010-10-14 | C50: =OFFSET(InputPriceData!G$15,CalculationsAndCharts!$A50+$A$11,0,1,1) -> 6719400 | D50: =OFFSET(InputPriceData!C$15,CalculationsAndCharts!$A50+$A$11,IF($C$7,7,0),1,1) -> 15.07 | E50: =OFFSET(InputPriceData!D$15,CalculationsAndCharts!$A50+$A$11,IF($C$7,7,0),1,1) -> 15.17 | F50: =OFFSET(InputPriceData!E$15,CalculationsAndCharts!$A50+$A$11,IF($C$7,7,0),1,1) -> 14.7 | G50: =OFFSET(InputPriceData!F$15,CalculationsAndCharts!$A50+$A$11,IF($C$7,7,0),1,1) -> 14.9 | H50: 0 | I50: 0 | J50: 0 | K50: 0 | L50: 14.92333333 | M50: 0.5 | N50: 1.261615385 | O50: 1.2601109 | P50: 1.13409981 | Q50: 15.25993899 | R50: 15.36539242 | S50: 0 | T50: 0 | U50: 0 | V50: 0.47 | W50: 0.4541759409 | X50: 0.08048160677 | BE50: 15.02 | BF50: =AVERAGE(OFFSET(BE$31,$A50,0,$BE$27,1)) -> 15.1 | BG50: 15.19 | BH50: 15.27375 | BI50: 15.3434375 | BJ50: 15.39734375 | BK50: 15.43578125 | BL50: 15.45992187 | BM50: 15.47177734 | BN50: 15.47426758 | BO50: 15.21000146 | BP50: 15.30591189 | BQ50: 15.37256878 | BR50: -0.06665688177 | BS50: 15.23925501 | BT50: 15.32836502 | BU50: 15.38845534 | BV50: 15.42806715 | BW50: 15.24779618 | BX50: 0.1390566132 | BY50: 0 | BZ50: 15.44543968 | CA50: 14.46708156 | CB50: 15.0666674 | CC50: 2.546667399 | CD50: 3.29431958 | CE50: 77.30480717 | CF50: 82.13937817 | CG50: 100 | CH50: 50 | CI50: 0 | CK50: 15.26877945 | CL50: 15.04938973 | CM50: 15.14211574 | CN50: 15.28214267 | CO50: 0 | CQ50: 16.7 | CS50: 15.07
A51: 20 | B51: =OFFSET(InputPriceData!B$15,CalculationsAndCharts!$A51+$A$11,0,1,1) -> 2010-10-13 | C51: =OFFSET(InputPriceData!G$15,CalculationsAndCharts!$A51+$A$11,0,1,1) -> 12737600 | D51: =OFFSET(InputPriceData!C$15,CalculationsAndCharts!$A51+$A$11,IF($C$7,7,0),1,1) -> 15.27 | E51: =OFFSET(InputPriceData!D$15,CalculationsAndCharts!$A51+$A$11,IF($C$7,7,0),1,1) -> 15.41 | F51: =OFFSET(InputPriceData!E$15,CalculationsAndCharts!$A51+$A$11,IF($C$7,7,0),1,1) -> 15.05 | G51: =OFFSET(InputPriceData!F$15,CalculationsAndCharts!$A51+$A$11,IF($C$7,7,0),1,1) -> 15.14 | H51: 0 | I51: 0 | J51: 0 | K51: 0 | L51: 15.2 | M51: 0.32 | N51: 1.207 | O51: 1.259681048 | P51: 1.133712943 | Q51: 15.35611203 | R51: 15.39552197 | S51: 0 | T51: 0 | U51: 0 | V51: 0.36 | W51: 0.4462639114 | X51: 0.07947581977 | BE51: 15.18 | BF51: =AVERAGE(OFFSET(BE$31,$A51,0,$BE$27,1)) -> 15.28 | BG51: 15.3575 | BH51: 15.413125 | BI51: 15.45125 | BJ51: 15.47421875 | BK51: 15.4840625 | BL51: 15.48363281 | BM51: 15.47675781 | BN51: 15.46775391 | BO51: 15.33782129 | BP51: 15.40182232 | BQ51: 15.43922566 | BR51: -0.03740333408 | BS51: 15.36441899 | BT51: 15.41747502 | BU51: 15.44854566 | BV51: 15.46767896 | BW51: 15.37446704 | BX51: 0.1547544792 | BY51: -1 | BZ51: 15.46255955 | CA51: 35.76898935 | CB51: 15.26891064 | CC51: 2.748910645 | CD51: 3.29431958 | CE51: 83.44395793 | CF51: 87.33792124 | CG51: 100 | CH51: 50 | CI51: 0 | CK51: 15.3200589 | CL51: 15.24938973 | CM51: 15.28797068 | CN51: 15.37524385 | CO51: 0 | CQ51: 16.7
A52: 21 | B52: =OFFSET(InputPriceData!B$15,CalculationsAndCharts!$A52+$A$11,0,1,1) -> 2010-10-12 | C52: =OFFSET(InputPriceData!G$15,CalculationsAndCharts!$A52+$A$11,0,1,1) -> 14478800 | D52: =OFFSET(InputPriceData!C$15,CalculationsAndCharts!$A52+$A$11,IF($C$7,7,0),1,1) -> 15.22 | E52: =OFFSET(InputPriceData!D$15,CalculationsAndCharts!$A52+$A$11,IF($C$7,7,0),1,1) -> 15.25 | F52: =OFFSET(InputPriceData!E$15,CalculationsAndCharts!$A52+$A$11,IF($C$7,7,0),1,1) -> 14.88 | G52: =OFFSET(InputPriceData!F$15,CalculationsAndCharts!$A52+$A$11,IF($C$7,7,0),1,1) -> 15.22 | H52: 0 | I52: =IF($S$16,AVERAGE(OFFSET($G52,0,0,I$31,1)),0) -> 0 | J52: 0 | K52: 0 | L52: 15.11666667 | M52: 0.6833333333 | N52: 1.341717949 | O52: 1.274732776 | P52: 1.147259498 | Q52: 15.40071547 | R52: 15.40678195 | S52: 0 | T52: 0 | U52: 0 | V52: 0.66 | W52: 0.4893958671 | X52: 0.08215478759 | BE52: 15.38 | BF52: =AVERAGE(OFFSET(BE$31,$A52,0,$BE$27,1)) -> 15.435 | BG52: 15.46875 | BH52: 15.489375 | BI52: 15.4971875 | BJ52: 15.49390625 | BK52: 15.48320312 | BL52: 15.46988281 | BM52: 15.45875 | BN52: 15.45351563 | BO52: 15.44407227 | BP52: 15.46582336 | BQ52: 15.47662899 | BR52: -0.01080563342 | BS52: 15.45501773 | BT52: 15.47053105 | BU52: 15.4796163 | BV52: 15.48681226 | BW52: 15.45955651 | BX52: 0.1877541914 | BY52: -2 | BZ52: 15.46384502 | CA52: 49.42897183 | CB52: 15.28036947 | CC52: 2.910369466 | CD52: 3.397211263 | CE52: 85.6693694 | CF52: 89.70604144 | CG52: 100 | CH52: 50 | CI52: 0 | CK52: 15.49761781 | CL52: 15.2544339 | CM52: 15.3466178 | CN52: 15.42558549 | CO52: 100 | CP52: 16.7 | CR52: 15.22
A53: 22 | B53: =OFFSET(InputPriceData!B$15,CalculationsAndCharts!$A53+$A$11,0,1,1) -> 2010-10-11 | C53: =OFFSET(InputPriceData!G$15,CalculationsAndCharts!$A53+$A$11,0,1,1) -> 2361000 | D53: =OFFSET(InputPriceData!C$15,CalculationsAndCharts!$A53+$A$11,IF($C$7,7,0),1,1) -> 15.41 | E53: =OFFSET(InputPriceData!D$15,CalculationsAndCharts!$A53+$A$11,IF($C$7,7,0),1,1) -> 15.79 | F53: =OFFSET(InputPriceData!E$15,CalculationsAndCharts!$A53+$A$11,IF($C$7,7,0),1,1) -> 15.36 | G53: =OFFSET(InputPriceData!F$15,CalculationsAndCharts!$A53+$A$11,IF($C$7,7,0),1,1) -> 15.54 | H53: 0 | I53: 0 | J53: 0 | K53: 0 | L53: 15.56333333 | M53: 0.3833333333 | N53: 1.198807692 | O53: 1.255594155 | P53: 1.130034739 | Q53: 15.48187227 | R53: 15.40851523 | S53: 0 | T53: 0 | U53: 0 | V53: 0.43 | W53: 0.4040938006 | X53: 0.07600346207 | BE53: 15.49 | BF53: =AVERAGE(OFFSET(BE$31,$A53,0,$BE$27,1)) -> 15.5025 | BG53: 15.51 | BH53: 15.505 | BI53: 15.490625 | BJ53: 15.4725 | BK53: 15.4565625 | BL53: 15.44761719 | BM53: 15.44828125 | BN53: 15.45871094 | BO53: 15.48871484 | BP53: 15.48757445 | BQ53: 15.48743463 | BR53: 0.0001398260464 | BS53: 15.48771428 | BT53: 15.48604437 | BU53: 15.48870155 | BV53: 15.49400822 | BW53: 15.48603668 | BX53: 0.2288210652 | BY53: -3 | BZ53: 15.4523529 | CA53: 53.68014485 | CB53: 15.52602409 | CC53: 3.156024089 | CD53: 3.397211263 | CE53: 92.90043639 | CF53: 91.73599649 | CG53: 100 | CH53: 50 | CI53: 0 | CK53: 15.47023562 | CL53: 15.5363089 | CM53: 15.49991856 | CN53: 15.49404613 | CO53: 100 | CP53: 16.7
A54: 23 | B54: =OFFSET(InputPriceData!B$15,CalculationsAndCharts!$A54+$A$11,0,1,1) -> 2010-10-08 | C54: =OFFSET(InputPriceData!G$15,CalculationsAndCharts!$A54+$A$11,0,1,1) -> 3337000 | D54: =OFFSET(InputPriceData!C$15,CalculationsAndCharts!$A54+$A$11,IF($C$7,7,0),1,1) -> 15.58 | E54: =OFFSET(InputPriceData!D$15,CalculationsAndCharts!$A54+$A$11,IF($C$7,7,0),1,1) -> 15.58 | F54: =OFFSET(InputPriceData!E$15,CalculationsAndCharts!$A54+$A$11,IF($C$7,7,0),1,1) -> 15.18 | G54: =OFFSET(InputPriceData!F$15,CalculationsAndCharts!$A54+$A$11,IF($C$7,7,0),1,1) -> 15.44 | H54: 0 | I54: 0 | J54: 0 | K54: 0 | L54: 15.4 | M54: 0.3266666667 | N54: 1.161487179 | O54: 1.271818858 | P54: 1.144636973 | Q54: 15.45859768 | R54: 15.38755608 | S54: 0 | T54: 0 | U54: 0 | V54: 0.41 | W54: 0.3911407009 | X54: 0.07533294695 | BE54: 15.515 | BF54: =AVERAGE(OFFSET(BE$31,$A54,0,$BE$27,1)) -> 15.5175 | BG54: 15.5 | BH54: 15.47625 | BI54: 15.454375 | BJ54: 15.440625 | BK54: 15.43867188 | BL54: 15.44894531 | BM54: 15.46914063 | BN54: 15.49544922 | BO54: 15.49223535 | BP54: 15.48643406 | BQ54: 15.4872948 | BR54: -0.0008607402462 | BS54: 15.48557332 | BT54: 15.48437446 | BU54: 15.49135873 | BV54: 15.49931489 | BW54: 15.47836209 | BX54: 0.2798083209 | BY54: -4 | BZ54: 15.43303714 | CA54: 54.04964286 | CB54: 15.44611768 | CC54: 3.076117676 | CD54: 3.397211263 | CE54: 90.54831854 | CF54: 93.18949907 | CG54: 100 | CH54: 50 | CI54: 0 | CK54: 15.49547123 | CL54: 15.42511781 | CM54: 15.45764205 | CN54: 15.47714102 | CO54: 0 | CQ54: 16.7
A55: 24 | B55: =OFFSET(InputPriceData!B$15,CalculationsAndCharts!$A55+$A$11,0,1,1) -> 2010-10-07 | C55: =OFFSET(InputPriceData!G$15,CalculationsAndCharts!$A55+$A$11,0,1,1) -> 3003400 | D55: =OFFSET(InputPriceData!C$15,CalculationsAndCharts!$A55+$A$11,IF($C$7,7,0),1,1) -> 15.52 | E55: =OFFSET(InputPriceData!D$15,CalculationsAndCharts!$A55+$A$11,IF($C$7,7,0),1,1) -> 15.65 | F55: =OFFSET(InputPriceData!E$15,CalculationsAndCharts!$A55+$A$11,IF($C$7,7,0),1,1) -> 15.28 | G55: =OFFSET(InputPriceData!F$15,CalculationsAndCharts!$A55+$A$11,IF($C$7,7,0),1,1) -> 15.59 | H55: 0 | I55: 0 | J55: 0 | K55: 0 | L55: 15.50666667 | M55: 0.1366666667 | N55: 1.145102564 | O55: 1.303342195 | P55: 1.173007976 | Q55: 15.47533987 | R55: 15.36725848 | S55: 0 | T55: 0 | U55: 0 | V55: 0.37 | W55: 0.3817110513 | X55: 0.07448435223 | BE55: 15.52 | BF55: =AVERAGE(OFFSET(BE$31,$A55,0,$BE$27,1)) -> 15.4825 | BG55: 15.4525 | BH55: 15.4325 | BI55: 15.426875 | BJ55: 15.43671875 | BK55: 15.45921875 | BL55: 15.48933594 | BM55: 15.52175781 | BN55: 15.55180664 | BO55: 15.48191064 | BP55: 15.48063277 | BQ55: 15.48815554 | BR55: -0.007522772983 | BS55: 15.47310999 | BT55: 15.4831756 | BU55: 15.498343 | BV55: 15.50727106 | BW55: 15.46176888 | BX55: 0.3484014192 | BY55: -5 | BZ55: 15.40803025 | CA55: 53.85608567 | CB55: 15.49428866 | CC55: 3.124288656 | CD55: 3.404876546 | CE55: 91.75923453 | CF55: 94.76349503 | CG55: 100 | CH55: 50 | CI55: 0 | CK55: 15.48094247 | CL55: 15.48023562 | CM55: 15.49607008 | CN55: 15.4979503 | CO55: 0 | CQ55: 16.7
A56: 25 | B56: =OFFSET(InputPriceData!B$15,CalculationsAndCharts!$A56+$A$11,0,1,1) -> 2010-10-06 | C56: =OFFSET(InputPriceData!G$15,CalculationsAndCharts!$A56+$A$11,0,1,1) -> 4262700 | D56: =OFFSET(InputPriceData!C$15,CalculationsAndCharts!$A56+$A$11,IF($C$7,7,0),1,1) -> 15.43 | E56: =OFFSET(InputPriceData!D$15,CalculationsAndCharts!$A56+$A$11,IF($C$7,7,0),1,1) -> 15.6 | F56: =OFFSET(InputPriceData!E$15,CalculationsAndCharts!$A56+$A$11,IF($C$7,7,0),1,1) -> 15.37 | G56: =OFFSET(InputPriceData!F$15,CalculationsAndCharts!$A56+$A$11,IF($C$7,7,0),1,1) -> 15.45 | H56: 0 | I56: 0 | J56: 0 | K56: 0 | L56: 15.47333333 | M56: 0.1433333333 | N56: 1.237948718 | O56: 1.348553518 | P56: 1.213698167 | Q56: 15.46638936 | R56: 15.33637809 | S56: 0 | T56: 0 | U56: 0 | V56: 0.23 | W56: 0.387566577 | X56: 0.07508521534 | BE56: 15.445 | BF56: =AVERAGE(OFFSET(BE$31,$A56,0,$BE$27,1)) -> 15.4225 | BG56: 15.4125 | BH56: 15.42125 | BI56: 15.4465625 | BJ56: 15.48171875 | BK56: 15.51945313 | BL56: 15.55417969 | BM56: 15.58185547 | BN56: 15.59919922 | BO56: 15.45889844 | BP56: 15.47935489 | BQ56: 15.49567831 | BR56: -0.01632342392 | BS56: 15.46303146 | BT56: 15.49324121 | BU56: 15.51351039 | BV56: 15.51619912 | BW56: 15.45539158 | BX56: 0.4354751784 | BY56: -6 | BZ56: 15.37659296 | CA56: 54.52371452 | CB56: =(BO56+L56)/2 -> 15.46611589 | CC56: =CB56-MIN(OFFSET(F56,0,0,$BI$27,1)) -> 3.586115885 | CD56: =MAX(OFFSET(E56,0,0,$BI$27,1))-MIN(OFFSET(CB56,0,0,$BI$27,1)) -> 3.687107829 | CE56: 97.26094413 | CF56: 95.90662183 | CG56: 100 | CH56: 50 | CI56: 0 | CK56: 15.49938493 | CL56: 15.48297123 | CM56: 15.48900568 | CN56: 15.50503618 | CO56: 0 | CQ56: 16.7 | CS56: 15.43
A57: 26 | B57: =OFFSET(InputPriceData!B$15,CalculationsAndCharts!$A57+$A$11,0,1,1) -> 2010-10-05 | C57: =OFFSET(InputPriceData!G$15,CalculationsAndCharts!$A57+$A$11,0,1,1) -> 4271700 | D57: =OFFSET(InputPriceData!C$15,CalculationsAndCharts!$A57+$A$11,IF($C$7,7,0),1,1) -> 15.53 | E57: =OFFSET(InputPriceData!D$15,CalculationsAndCharts!$A57+$A$11,IF($C$7,7,0),1,1) -> 15.59 | F57: =OFFSET(InputPriceData!E$15,CalculationsAndCharts!$A57+$A$11,IF($C$7,7,0),1,1) -> 15.33 | G57: =OFFSET(InputPriceData!F$15,CalculationsAndCharts!$A57+$A$11,IF($C$7,7,0),1,1) -> 15.44 | H57: 0 | I57: 0 | J57: 0 | K57: 0 | L57: 15.45333333 | M57: 0.3133333333 | N57: 1.266166667 | O57: 1.38015489 | P57: 1.242139401 | Q57: 15.46440537 | R57: 15.29923201 | S57: 0 | T57: 0 | U57: 0 | V57: 0.26 | W57: 0.4663498655 | X57: 0.08020400683 | BE57: 15.4 | BF57: =AVERAGE(OFFSET(BE$31,$A57,0,$BE$27,1)) -> 15.4025 | BG57: 15.43 | BH57: 15.471875 | BI57: 15.516875 | BJ57: 15.5571875 | BK57: 15.58890625 | BL57: 15.60953125 | BM57: 15.61654297 | BN57: 15.60802734 | BO57: 15.46704102 | BP57: 15.49981134 | BQ57: 15.51200174 | BR57: -0.0121903967 | BS57: 15.48762094 | BT57: 15.52345095 | BU57: 15.53377957 | BV57: 15.51888785 | BW57: 15.487902 | BX57: 0.5278042814 | BY57: -7 | BZ57: 15.33619135 | CA57: 57.18593329 | CB57: 15.46018717 | CC57: 3.580187174 | CD57: 3.757925537 | CE57: 95.27030643 | CF57: 96.34640451 | CG57: 100 | CH57: 50 | CI57: 0 | CK57: 15.52626986 | CL57: 15.47969247 | CM57: 15.49945392 | CN57: 15.51386216 | CO57: 0 | CQ57: 16.7
A58: 27 | B58: =OFFSET(InputPriceData!B$15,CalculationsAndCharts!$A58+$A$11,0,1,1) -> 2010-10-04 | C58: =OFFSET(InputPriceData!G$15,CalculationsAndCharts!$A58+$A$11,0,1,1) -> 3072100 | D58: =OFFSET(InputPriceData!C$15,CalculationsAndCharts!$A58+$A$11,IF($C$7,7,0),1,1) -> 15.39 | E58: =OFFSET(InputPriceData!D$15,CalculationsAndCharts!$A58+$A$11,IF($C$7,7,0),1,1) -> 15.72 | F58: =OFFSET(InputPriceData!E$15,CalculationsAndCharts!$A58+$A$11,IF($C$7,7,0),1,1) -> 15.14 | G58: =OFFSET(InputPriceData!F$15,CalculationsAndCharts!$A58+$A$11,IF($C$7,7,0),1,1) -> 15.36 | H58: 0 | I58: 0 | J58: 0 | K58: 0 | L58: 15.40666667 | M58: 0.46 | N58: 1.267076923 | O58: 1.412722954 | P58: 1.271450658 | Q58: 15.4675688 | R58: 15.25203962 | S58: 0 | T58: 0 | U58: 0 | V58: 0.58 | W58: 0.5695247982 | X58: 0.08707843738 | BE58: 15.405 | BF58: =AVERAGE(OFFSET(BE$31,$A58,0,$BE$27,1)) -> 15.4575 | BG58: 15.51375 | BH58: 15.561875 | BI58: 15.5975 | BJ58: 15.620625 | BK58: 15.63015625 | BL58: 15.62355469 | BM58: 15.59951172 | BN58: 15.56000977 | BO58: 15.50756787 | BP58: 15.53258166 | BQ58: 15.52419213 | BR58: 0.008389530742 | BS58: 15.54097119 | BT58: 15.55928097 | BU58: 15.54410818 | BV58: 15.50399613 | BW58: 15.54951447 | BX58: 0.618191542 | BY58: -8 | BZ58: 15.28117813 | CA58: 60.85166674 | CB58: 15.45711727 | CC58: 3.577117269 | CD58: 3.757925537 | CE58: 95.18861493 | CF58: 97.92296904 | CG58: 100 | CH58: 50 | CI58: 0 | CK58: 15.65003972 | CL58: 15.47813493 | CM58: 15.53020097 | CN58: 15.52753003 | CO58: 100 | CP58: 16.7 | CR58: =IF(AND($S$18,$CO59>$CO60),$D58,NA()) ->  | CS58: =IF(AND($S$18,$CO59<$CO60),$D58,NA()) -> 
A59: 28 | B59: =OFFSET(InputPriceData!B$15,CalculationsAndCharts!$A59+$A$11,0,1,1) -> 2010-10-01 | C59: =OFFSET(InputPriceData!G$15,CalculationsAndCharts!$A59+$A$11,0,1,1) -> 3363400 | D59: =OFFSET(InputPriceData!C$15,CalculationsAndCharts!$A59+$A$11,IF($C$7,7,0),1,1) -> 15.72 | E59: =OFFSET(InputPriceData!D$15,CalculationsAndCharts!$A59+$A$11,IF($C$7,7,0),1,1) -> 16 | F59: =OFFSET(InputPriceData!E$15,CalculationsAndCharts!$A59+$A$11,IF($C$7,7,0),1,1) -> 15.35 | G59: =OFFSET(InputPriceData!F$15,CalculationsAndCharts!$A59+$A$11,IF($C$7,7,0),1,1) -> 15.45 | H59: 0 | I59: 0 | J59: 0 | K59: 0 | L59: 15.6 | M59: 0.3566666667 | N59: 1.214282051 | O59: 1.454336105 | P59: 1.308902495 | Q59: 15.48496942 | R59: 15.19045985 | S59: 0 | T59: 0 | U59: 0 | V59: 0.65 | W59: 0.5642871973 | X59: 0.08652344319 | BE59: 15.51 | BF59: =AVERAGE(OFFSET(BE$31,$A59,0,$BE$27,1)) -> 15.57 | BG59: 15.61 | BH59: 15.633125 | BI59: 15.64375 | BJ59: 15.6396875 | BK59: 15.61695313 | BL59: 15.57546875 | BM59: 15.52050781 | BN59: 15.4603418 | BO59: 15.56914795 | BP59: 15.55759546 | BQ59: 15.5158026 | BR59: 0.04179285429 | BS59: 15.59938831 | BT59: 15.57759074 | BU59: 15.5289354 | BV59: 15.46388408 | BW59: 15.60985008 | BX59: 0.7108924325 | BY59: -9 | BZ59: 15.20639789 | CA59: 64.18822898 | CB59: 15.58457397 | CC59: 3.704573975 | CD59: 3.757925537 | CE59: 98.58029219 | CF59: 99.52676406 | CG59: 100 | CH59: 50 | CI59: 0 | CK59: 15.67007944 | CL59: 15.66251986 | CM59: 15.61255718 | CN59: 15.54728807 | CO59: 100 | CP59: 16.7
A60: 29 | B60: =OFFSET(InputPriceData!B$15,CalculationsAndCharts!$A60+$A$11,0,1,1) -> 2010-09-30 | C60: =OFFSET(InputPriceData!G$15,CalculationsAndCharts!$A60+$A$11,0,1,1) -> 3745200 | D60: =OFFSET(InputPriceData!C$15,CalculationsAndCharts!$A60+$A$11,IF($C$7,7,0),1,1) -> 15.85 | E60: =OFFSET(InputPriceData!D$15,CalculationsAndCharts!$A60+$A$11,IF($C$7,7,0),1,1) -> 16.04 | F60: =OFFSET(InputPriceData!E$15,CalculationsAndCharts!$A60+$A$11,IF($C$7,7,0),1,1) -> 15.51 | G60: =OFFSET(InputPriceData!F$15,CalculationsAndCharts!$A60+$A$11,IF($C$7,7,0),1,1) -> 15.57 | H60: 0 | I60: 0 | J60: 0 | K60: 0 | L60: 15.70666667 | M60: 0.3066666667 | N60: 1.285282051 | O60: 1.522922978 | P60: 1.37063068 | Q60: 15.45210353 | R60: 15.10631426 | S60: 0 | T60: 0 | U60: 0 | V60: 0.53 | W60: 0.5214307959 | X60: 0.08348945382 | BE60: 15.63 | BF60: =AVERAGE(OFFSET(BE$31,$A60,0,$BE$27,1)) -> 15.65 | BG60: 15.65625 | BH60: 15.654375 | BI60: 15.635625 | BJ60: 15.59421875 | BK60: 15.53398437 | BL60: 15.46554687 | BM60: 15.40017578 | BN60: 15.34527344 | BO60: 15.60011621 | BP60: 15.54604296 | BQ60: 15.47400975 | BR60: 0.07203321608 | BS60: 15.61807618 | BT60: 15.55579316 | BU60: 15.48028007 | BV60: 15.39883275 | BW60: 15.62537202 | BX60: 0.7983454672 | BY60: -10 | BZ60: 15.11006321 | CA60: 66.13677384 | CB60: 15.65339144 | CC60: 3.773391439 | CD60: 3.757925537 | CE60: 100 | CF60: 100 | CG60: 100 | CH60: 50 | CI60: 0 | CK60: 15.59765889 | CL60: 15.72253972 | CM60: 15.62092863 | CN60: 15.50119536 | CO60: 100 | CP60: 16.7
A61: 30 | B61: =OFFSET(InputPriceData!B$15,CalculationsAndCharts!$A61+$A$11,0,1,1) -> 2010-09-29 | C61: =OFFSET(InputPriceData!G$15,CalculationsAndCharts!$A61+$A$11,0,1,1) -> 4609000 | D61: =OFFSET(InputPriceData!C$15,CalculationsAndCharts!$A61+$A$11,IF($C$7,7,0),1,1) -> 15.64 | E61: =OFFSET(InputPriceData!D$15,CalculationsAndCharts!$A61+$A$11,IF($C$7,7,0),1,1) -> 15.89 | F61: =OFFSET(InputPriceData!E$15,CalculationsAndCharts!$A61+$A$11,IF($C$7,7,0),1,1) -> 15.4 | G61: =OFFSET(InputPriceData!F$15,CalculationsAndCharts!$A61+$A$11,IF($C$7,7,0),1,1) -> 15.69 | H61: 0 | I61: 0 | J61: 0 | K61: 0 | L61: 15.66 | M61: 0.36 | N61: 1.447307692 | O61: 1.590820385 | P61: 1.431738347 | Q61: 15.37937121 | R61: 15.00751733 | S61: 0 | T61: 0 | U61: 0 | V61: 0.49 | W61: 0.5171461939 | X61: 0.0829602418 | Y61: 16.7 | BE61: 15.67 | BF61: =AVERAGE(OFFSET(BE$31,$A61,0,$BE$27,1)) -> 15.6625 | BG61: 15.6525 | BH61: 15.616875 | BI61: 15.5528125 | BJ61: 15.47375 | BK61: 15.39710937 | BL61: 15.33480469 | BM61: 15.29037109 | BN61: 15.26081055 | BO61: 15.57504541 | BP61: 15.49196972 | BQ61: 15.40197653 | BR61: 0.08999318543 | BS61: 15.5819629 | BT61: 15.49351014 | BU61: 15.40476698 | BV61: 15.31738543 | BW61: 15.58361492 | BX61: 0.8703708591 | BY61: -11 | BZ61: 14.99577014 | CA61: 66.8848938 | CB61: 15.61752271 | CC61: 3.737522705 | CD61: 3.617925537 | CE61: 100 | CF61: 100 | CG61: 100 | CH61: 50 | CI61: 0 | CJ61: 100 | CK61: 15.54031777 | CL61: 15.62132944 | CM61: 15.56376994 | CN61: 15.41265761 | CO61: 100 | CP61: 16.7
A62: 31 | B62: =OFFSET(InputPriceData!B$15,CalculationsAndCharts!$A62+$A$11,0,1,1) -> 2010-09-28 | C62: =OFFSET(InputPriceData!G$15,CalculationsAndCharts!$A62+$A$11,0,1,1) -> 2477200 | D62: =OFFSET(InputPriceData!C$15,CalculationsAndCharts!$A62+$A$11,IF($C$7,7,0),1,1) -> 15.7 | E62: =OFFSET(InputPriceData!D$15,CalculationsAndCharts!$A62+$A$11,IF($C$7,7,0),1,1) -> 15.78 | F62: =OFFSET(InputPriceData!E$15,CalculationsAndCharts!$A62+$A$11,IF($C$7,7,0),1,1) -> 15.3 | G62: =OFFSET(InputPriceData!F$15,CalculationsAndCharts!$A62+$A$11,IF($C$7,7,0),1,1) -> 15.65 | H62: 0 | I62: 0 | J62: 0 | K62: 0 | L62: 15.57666667 | M62: 0.33 | N62: 1.447307692 | O62: 1.631824012 | P62: 1.468641611 | Q62: 15.29919156 | R62: 14.90127336 | S62: 0 | T62: 0 | U62: 0 | V62: 0.48 | W62: 0.5307192908 | X62: 0.08391177577 | BE62: 15.655 | BF62: =AVERAGE(OFFSET(BE$31,$A62,0,$BE$27,1)) -> 15.6425 | BG62: 15.58125 | BH62: 15.48875 | BI62: 15.3946875 | BJ62: 15.32046875 | BK62: 15.2725 | BL62: 15.2459375 | BM62: 15.23125 | BN62: 15.21932617 | BO62: 15.512521 | BP62: 15.40889402 | BQ62: 15.31198335 | BR62: 0.09691067818 | BS62: 15.5058047 | BT62: 15.40505738 | BU62: 15.31602381 | BV62: 15.23000387 | BW62: 15.49710459 | BX62: 0.9228080119 | BY62: -12 | BZ62: 14.86925529 | CA62: 67.00920699 | CB62: 15.54459383 | CC62: 3.664593831 | CD62: 3.617925537 | CE62: 100 | CF62: 100 | CG62: 100 | CH62: 50 | CI62: 0 | CK62: 15.47313554 | CL62: 15.54015889 | CM62: 15.49961656 | CN62: 15.32918888 | CO62: 100 | CP62: 16.7
A63: 32 | B63: =OFFSET(InputPriceData!B$15,CalculationsAndCharts!$A63+$A$11,0,1,1) -> 2010-09-27 | C63: =OFFSET(InputPriceData!G$15,CalculationsAndCharts!$A63+$A$11,0,1,1) -> 4160100 | D63: =OFFSET(InputPriceData!C$15,CalculationsAndCharts!$A63+$A$11,IF($C$7,7,0),1,1) -> 15.59 | E63: =OFFSET(InputPriceData!D$15,CalculationsAndCharts!$A63+$A$11,IF($C$7,7,0),1,1) -> 15.9 | F63: =OFFSET(InputPriceData!E$15,CalculationsAndCharts!$A63+$A$11,IF($C$7,7,0),1,1) -> 15.33 | G63: =OFFSET(InputPriceData!F$15,CalculationsAndCharts!$A63+$A$11,IF($C$7,7,0),1,1) -> 15.66 | H63: 0 | I63: 0 | J63: 0 | K63: 0 | L63: 15.63 | M63: 0.3 | N63: 1.544705128 | O63: 1.684542961 | P63: 1.516088665 | Q63: 15.21991295 | R63: 14.78758245 | S63: 0 | T63: 0 | U63: 0 | V63: 0.57 | W63: 0.5560789362 | X63: 0.08550951061 | BE63: 15.63 | BF63: =AVERAGE(OFFSET(BE$31,$A63,0,$BE$27,1)) -> 15.52 | BG63: 15.39625 | BH63: 15.300625 | BI63: 15.24625 | BJ63: 15.22453125 | BK63: 15.219375 | BL63: 15.2165625 | BM63: 15.20740234 | BN63: 15.18861328 | BO63: 15.41613672 | BP63: 15.30526705 | BQ63: 15.21507267 | BR63: 0.09019438505 | BS63: 15.39546144 | BT63: 15.30431006 | BU63: 15.22699024 | BV63: 15.14398394 | BW63: 15.37594341 | BX63: 0.9544511982 | BY63: -13 | BZ63: 14.7356444 | CA63: 66.77139197 | CB63: 15.52306836 | CC63: 3.663068359 | CD63: 3.617925537 | CE63: 100 | CF63: 100 | CG63: 100 | CH63: 50 | CI63: 0 | CK63: 15.32627108 | CL63: 15.54313554 | CM63: 15.44824983 | CN63: 15.24480087 | CO63: 100 | CP63: 16.7
A64: 33 | B64: =OFFSET(InputPriceData!B$15,CalculationsAndCharts!$A64+$A$11,0,1,1) -> 2010-09-24 | C64: =OFFSET(InputPriceData!G$15,CalculationsAndCharts!$A64+$A$11,0,1,1) -> 3777900 | D64: =OFFSET(InputPriceData!C$15,CalculationsAndCharts!$A64+$A$11,IF($C$7,7,0),1,1) -> 15.35 | E64: =OFFSET(InputPriceData!D$15,CalculationsAndCharts!$A64+$A$11,IF($C$7,7,0),1,1) -> 15.85 | F64: =OFFSET(InputPriceData!E$15,CalculationsAndCharts!$A64+$A$11,IF($C$7,7,0),1,1) -> 15.33 | G64: =OFFSET(InputPriceData!F$15,CalculationsAndCharts!$A64+$A$11,IF($C$7,7,0),1,1) -> 15.6 | H64: 0 | I64: 0 | J64: 0 | K64: 0 | L64: 15.59333333 | M64: 0.8133333333 | N64: 1.687615385 | O64: 1.724496627 | P64: 1.552046964 | Q64: 15.10274523 | R64: 14.66405945 | S64: 0 | T64: 0 | U64: 0 | V64: 0.63 | W64: 0.5491184043 | X64: 0.08519989771 | BE64: 15.41 | BF64: =AVERAGE(OFFSET(BE$31,$A64,0,$BE$27,1)) -> 15.2725 | BG64: 15.205 | BH64: 15.191875 | BI64: 15.2028125 | BJ64: 15.21421875 | BK64: 15.21375 | BL64: 15.19824219 | BM64: 15.16982422 | BN64: 15.13199219 | BO64: 15.26347949 | BP64: 15.19439739 | BQ64: 15.12487828 | BR64: 0.06951910485 | BS64: 15.26391649 | BT64: 15.21315869 | BU64: 15.14967042 | BV64: 15.06097763 | BW64: 15.25144245 | BX64: 0.9684871134 | BY64: -14 | BZ64: 14.5994238 | CA64: 66.83085495 | CB64: 15.42840641 | CC64: 3.568406413 | CD64: 3.567925537 | CE64: 100 | CF64: 100 | CG64: 100 | CH64: 50 | CI64: 0 | CK64: 15.12004216 | CL64: 15.40564608 | CM64: 15.32708305 | CN64: 15.12546701 | CO64: 100 | CP64: 16.7
A65: 34 | B65: =OFFSET(InputPriceData!B$15,CalculationsAndCharts!$A65+$A$11,0,1,1) -> 2010-09-23 | C65: =OFFSET(InputPriceData!G$15,CalculationsAndCharts!$A65+$A$11,0,1,1) -> 5102800 | D65: =OFFSET(InputPriceData!C$15,CalculationsAndCharts!$A65+$A$11,IF($C$7,7,0),1,1) -> 14.85 | E65: =OFFSET(InputPriceData!D$15,CalculationsAndCharts!$A65+$A$11,IF($C$7,7,0),1,1) -> 15.48 | F65: =OFFSET(InputPriceData!E$15,CalculationsAndCharts!$A65+$A$11,IF($C$7,7,0),1,1) -> 14.78 | G65: =OFFSET(InputPriceData!F$15,CalculationsAndCharts!$A65+$A$11,IF($C$7,7,0),1,1) -> 15.22 | H65: 0 | I65: 0 | J65: 0 | K65: 0 | L65: 15.16 | M65: 0.16 | N65: 1.587487179 | O65: 1.735034125 | P65: 1.561530712 | Q65: 14.9625772 | R65: 14.53872065 | S65: 0 | T65: 0 | U65: 0 | V65: 0.7 | W65: 0.5086776065 | X65: 0.08342165614 | BE65: 15.135 | BF65: =AVERAGE(OFFSET(BE$31,$A65,0,$BE$27,1)) -> 15.1375 | BG65: 15.17875 | BH65: 15.21375 | BI65: 15.225625 | BJ65: 15.21328125 | BK65: 15.18273438 | BL65: 15.14140625 | BM65: 15.09416016 | BN65: 15.04188477 | BO65: 15.15439209 | BP65: 15.12531528 | BQ65: 15.05535918 | BR65: 0.06995610574 | BS65: 15.19527139 | BT65: 15.16240088 | BU65: 15.08618215 | BV65: 14.97228485 | BW65: 15.20094107 | BX65: 0.9720258736 | BY65: -15 | BZ65: 14.46152174 | CA65: 69.01748062 | CB65: 15.15719604 | CC65: 3.297196045 | CD65: 3.197925537 | CE65: 100 | CF65: 100 | CG65: 100 | CH65: 50 | CI65: 0 | CK65: 15.15758433 | CL65: 15.12502108 | CM65: 15.14958286 | CN65: 15.01339538 | CO65: 100 | CP65: 16.7
A66: 35 | B66: =OFFSET(InputPriceData!B$15,CalculationsAndCharts!$A66+$A$11,0,1,1) -> 2010-09-22 | C66: =OFFSET(InputPriceData!G$15,CalculationsAndCharts!$A66+$A$11,0,1,1) -> 3211700 | D66: =OFFSET(InputPriceData!C$15,CalculationsAndCharts!$A66+$A$11,IF($C$7,7,0),1,1) -> 15.16 | E66: =OFFSET(InputPriceData!D$15,CalculationsAndCharts!$A66+$A$11,IF($C$7,7,0),1,1) -> 15.39 | F66: =OFFSET(InputPriceData!E$15,CalculationsAndCharts!$A66+$A$11,IF($C$7,7,0),1,1) -> 15 | G66: =OFFSET(InputPriceData!F$15,CalculationsAndCharts!$A66+$A$11,IF($C$7,7,0),1,1) -> 15.05 | H66: 0 | I66: 0 | J66: 0 | K66: 0 | L66: 15.14666667 | M66: 0.2466666667 | N66: 1.729487179 | O66: 1.777190395 | P66: 1.599471355 | Q66: 14.90617068 | R66: 14.41761878 | S66: 0 | T66: 0 | U66: 0 | V66: 0.39 | W66: 0.4130164097 | X66: 0.07744295081 | BE66: 15.14 | BF66: =AVERAGE(OFFSET(BE$31,$A66,0,$BE$27,1)) -> 15.22 | BG66: 15.24875 | BH66: 15.2375 | BI66: 15.2009375 | BJ66: 15.1521875 | BK66: 15.10007812 | BL66: 15.04691406 | BM66: 14.98960938 | BN66: 14.92341797 | BO66: 15.16071973 | BP66: 15.09623848 | BQ66: 14.98540307 | BR66: 0.1108354059 | BS66: 15.20707388 | BT66: 15.12953038 | BU66: 15.00996341 | BV66: 14.85838756 | BW66: 15.21708846 | BX66: 0.9687136413 | BY66: -16 | BZ66: 14.31361063 | CA66: 73.31643205 | CB66: 15.1536932 | CC66: 3.293693197 | CD66: 3.187925537 | CE66: 100 | CF66: 100 | CG66: 100 | CH66: 50 | CI66: 0 | CK66: 15.16516865 | CL66: 15.17629216 | CM66: 15.1426381 | CN66: 14.96874509 | CO66: 100 | CP66: 16.7
A67: 36 | B67: =OFFSET(InputPriceData!B$15,CalculationsAndCharts!$A67+$A$11,0,1,1) -> 2010-09-21 | C67: =OFFSET(InputPriceData!G$15,CalculationsAndCharts!$A67+$A$11,0,1,1) -> 5179700 | D67: =OFFSET(InputPriceData!C$15,CalculationsAndCharts!$A67+$A$11,IF($C$7,7,0),1,1) -> 15.08 | E67: =OFFSET(InputPriceData!D$15,CalculationsAndCharts!$A67+$A$11,IF($C$7,7,0),1,1) -> 15.46 | F67: =OFFSET(InputPriceData!E$15,CalculationsAndCharts!$A67+$A$11,IF($C$7,7,0),1,1) -> 15.05 | G67: =OFFSET(InputPriceData!F$15,CalculationsAndCharts!$A67+$A$11,IF($C$7,7,0),1,1) -> 15.23 | H67: 0 | I67: 0 | J67: 0 | K67: 0 | L67: 15.24666667 | M67: 0.2666666667 | N67: 1.741320513 | O67: 1.790819885 | P67: 1.611737897 | Q67: 14.83745754 | R67: 14.27803253 | S67: 0 | T67: 0 | U67: 0 | V67: 0.41 | W67: 0.4245246146 | X67: 0.07787423602 | BE67: 15.3 | BF67: =AVERAGE(OFFSET(BE$31,$A67,0,$BE$27,1)) -> 15.2775 | BG67: 15.22625 | BH67: 15.164375 | BI67: 15.1034375 | BJ67: 15.04796875 | BK67: 14.99375 | BL67: 14.93230469 | BM67: 14.85722656 | BN67: 14.76701172 | BO67: 15.16595996 | BP67: 15.03175723 | BQ67: 14.87456767 | BR67: 0.157189564 | BS67: 15.18894679 | BT67: 15.05198687 | BU67: 14.89039644 | BV67: 14.70681171 | BW67: 15.191583 | BX67: 0.9516624216 | BY67: -17 | BZ67: 14.14770859 | CA67: 77.42239214 | CB67: 15.20631331 | CC67: 3.346313314 | CD67: 3.187925537 | CE67: 100 | CF67: 100 | CG67: 100 | CH67: 50 | CI67: 0 | CK67: 15.12533731 | CL67: 15.21008433 | CM67: 15.13995239 | CN67: 14.88572626 | CO67: 100 | CP67: 16.7
A68: 37 | B68: =OFFSET(InputPriceData!B$15,CalculationsAndCharts!$A68+$A$11,0,1,1) -> 2010-09-20 | C68: =OFFSET(InputPriceData!G$15,CalculationsAndCharts!$A68+$A$11,0,1,1) -> 3109300 | D68: =OFFSET(InputPriceData!C$15,CalculationsAndCharts!$A68+$A$11,IF($C$7,7,0),1,1) -> 15.2 | E68: =OFFSET(InputPriceData!D$15,CalculationsAndCharts!$A68+$A$11,IF($C$7,7,0),1,1) -> 15.47 | F68: =OFFSET(InputPriceData!E$15,CalculationsAndCharts!$A68+$A$11,IF($C$7,7,0),1,1) -> 15.11 | G68: =OFFSET(InputPriceData!F$15,CalculationsAndCharts!$A68+$A$11,IF($C$7,7,0),1,1) -> 15.37 | H68: 0 | I68: 0 | J68: 0 | K68: 0 | L68: 15.31666667 | M68: 0.4766666667 | N68: 1.788653846 | O68: 1.804962563 | P68: 1.624466307 | Q68: 14.72054065 | R68: 14.11819681 | S68: 0 | T68: 0 | U68: 0 | V68: 0.36 | W68: 0.4317869219 | X68: 0.07809283812 | BE68: 15.255 | BF68: =AVERAGE(OFFSET(BE$31,$A68,0,$BE$27,1)) -> 15.175 | BG68: 15.1025 | BH68: 15.0425 | BI68: 14.9925 | BJ68: 14.93953125 | BK68: 14.87085938 | BL68: 14.78214844 | BM68: 14.67679688 | BN68: 14.56112305 | BO68: 15.05952295 | BP68: 14.8975545 | BQ68: 14.7173781 | BR68: 0.1801763978 | BS68: 15.0777309 | BT68: 14.91502694 | BU68: 14.72880601 | BV68: 14.52322699 | BW68: 15.08188977 | BX68: 0.915430795 | BY68: -18 | BZ68: 13.96795579 | CA68: 80.42103194 | CB68: 15.18809481 | CC68: 3.328094808 | CD68: 3.187925537 | CE68: 100 | CF68: 100 | CG68: 100 | CH68: 50 | CI68: 0 | CK68: 14.96317461 | CL68: 15.17096231 | CM68: 15.06880954 | CN68: 14.75598304 | CO68: 100 | CP68: 16.7
A69: 38 | B69: =OFFSET(InputPriceData!B$15,CalculationsAndCharts!$A69+$A$11,0,1,1) -> 2010-09-17 | C69: =OFFSET(InputPriceData!G$15,CalculationsAndCharts!$A69+$A$11,0,1,1) -> 3968000 | D69: =OFFSET(InputPriceData!C$15,CalculationsAndCharts!$A69+$A$11,IF($C$7,7,0),1,1) -> 15.1 | E69: =OFFSET(InputPriceData!D$15,CalculationsAndCharts!$A69+$A$11,IF($C$7,7,0),1,1) -> 15.25 | F69: =OFFSET(InputPriceData!E$15,CalculationsAndCharts!$A69+$A$11,IF($C$7,7,0),1,1) -> 14.84 | G69: =OFFSET(InputPriceData!F$15,CalculationsAndCharts!$A69+$A$11,IF($C$7,7,0),1,1) -> 15.14 | H69: 0 | I69: 0 | J69: 0 | K69: 0 | L69: 15.07666667 | M69: 0.2466666667 | N69: 1.802307692 | O69: 1.809622196 | P69: 1.628659977 | Q69: 14.55021893 | R69: 13.94609857 | S69: 0 | T69: 0 | U69: 0 | V69: 0.41 | W69: 0.4676803828 | X69: 0.08089038196 | BE69: 15.095 | BF69: =AVERAGE(OFFSET(BE$31,$A69,0,$BE$27,1)) -> 15.03 | BG69: 14.9825 | BH69: 14.9425 | BI69: 14.8865625 | BJ69: 14.8021875 | BK69: 14.6934375 | BL69: 14.57144531 | BM69: 14.44544922 | BN69: 14.31958008 | BO69: 14.90730811 | BP69: 14.73558605 | BQ69: 14.53720171 | BR69: 0.1983843472 | BS69: 14.9339704 | BT69: 14.75232298 | BU69: 14.54258508 | BV69: 14.31764796 | BW69: 14.94686165 | BX69: 0.8608196499 | BY69: -19 | BZ69: 13.78396657 | CA69: 83.77290142 | CB69: 14.99198739 | CC69: 3.131987386 | CD69: 3.017925537 | CE69: 100 | CF69: 98.58736688 | CG69: 100 | CH69: 50 | CI69: 0 | CK69: 14.84384923 | CL69: 15.00408731 | CM69: 14.90357146 | CN69: 14.58999133 | CO69: 100 | CP69: 16.7
A70: 39 | B70: =OFFSET(InputPriceData!B$15,CalculationsAndCharts!$A70+$A$11,0,1,1) -> 2010-09-16 | C70: =OFFSET(InputPriceData!G$15,CalculationsAndCharts!$A70+$A$11,0,1,1) -> 3585500 | D70: =OFFSET(InputPriceData!C$15,CalculationsAndCharts!$A70+$A$11,IF($C$7,7,0),1,1) -> 14.87 | E70: =OFFSET(InputPriceData!D$15,CalculationsAndCharts!$A70+$A$11,IF($C$7,7,0),1,1) -> 15.11 | F70: =OFFSET(InputPriceData!E$15,CalculationsAndCharts!$A70+$A$11,IF($C$7,7,0),1,1) -> 14.83 | G70: =OFFSET(InputPriceData!F$15,CalculationsAndCharts!$A70+$A$11,IF($C$7,7,0),1,1) -> 15.05 | H70: 0 | I70: 0 | J70: 0 | K70: 0 | L70: 14.99666667 | M70: 0.3166666667 | N70: 1.835076923 | O70: 1.811712054 | P70: 1.630540849 | Q70: 14.39980529 | R70: 13.77349275 | S70: 0 | T70: 0 | U70: 0 | V70: 0.28 | W70: 0.4965205743 | X70: 0.08299140028 | BE70: 14.965 | BF70: =AVERAGE(OFFSET(BE$31,$A70,0,$BE$27,1)) -> 14.935 | BG70: 14.9025 | BH70: 14.830625 | BI70: 14.7178125 | BJ70: 14.5846875 | BK70: 14.44945313 | BL70: 14.31945313 | BM70: 14.19371094 | BN70: 14.06816406 | BO70: 14.76335156 | BP70: 14.563864 | BQ70: 14.33881736 | BR70: 0.2250466413 | BS70: 14.78891064 | BT70: 14.57067556 | BU70: 14.33284719 | BV70: 14.09271083 | BW70: 14.80619597 | BX70: 0.7891650361 | BY70: -20 | BZ70: 13.59944203 | CA70: 88.22882045 | CB70: 14.88000911 | CC70: 3.020009115 | CD70: 3.017925537 | CE70: 100 | CF70: 96.30988187 | CG70: 100 | CH70: 50 | CI70: 0 | CK70: 14.72269846 | CL70: 14.88009923 | CM70: 14.78817465 | CN70: 14.42435294 | CO70: 100 | CP70: 16.7
A71: 40 | B71: =OFFSET(InputPriceData!B$15,CalculationsAndCharts!$A71+$A$11,0,1,1) -> 2010-09-15 | C71: =OFFSET(InputPriceData!G$15,CalculationsAndCharts!$A71+$A$11,0,1,1) -> 4063700 | D71: =OFFSET(InputPriceData!C$15,CalculationsAndCharts!$A71+$A$11,IF($C$7,7,0),1,1) -> 14.84 | E71: =OFFSET(InputPriceData!D$15,CalculationsAndCharts!$A71+$A$11,IF($C$7,7,0),1,1) -> 15.1 | F71: =OFFSET(InputPriceData!E$15,CalculationsAndCharts!$A71+$A$11,IF($C$7,7,0),1,1) -> 14.68 | G71: =OFFSET(InputPriceData!F$15,CalculationsAndCharts!$A71+$A$11,IF($C$7,7,0),1,1) -> 14.88 | H71: 0 | I71: 0 | J71: 0 | K71: 0 | L71: 14.88666667 | M71: 0.2666666667 | N71: 1.825974359 | O71: 1.805036378 | P71: 1.62453274 | Q71: 14.22927347 | R71: 13.59454631 | S71: 0 | T71: 0 | U71: 0 | V71: 0.42 | W71: 0.6047808614 | X71: 0.09064387509 | BE71: 14.905 | BF71: =AVERAGE(OFFSET(BE$31,$A71,0,$BE$27,1)) -> 14.87 | BG71: 14.75875 | BH71: 14.605 | BI71: 14.4515625 | BJ71: 14.31421875 | BK71: 14.18945312 | BL71: 14.06796875 | BM71: 13.94261719 | BN71: 13.81075195 | BO71: 14.61339111 | BP71: 14.36437644 | BQ71: 14.11377072 | BR71: 0.2506057192 | BS71: 14.61498216 | BT71: 14.35244049 | BU71: 14.09501881 | BV71: 13.85257448 | BW71: 14.62483952 | BX71: 0.7031216562 | BY71: -21 | BZ71: 13.41574376 | CA71: 92.9902759 | CB71: 14.75002889 | CC71: 2.89002889 | CD71: 3.017925537 | CE71: 95.76210064 | CF71: 94.20464048 | CG71: 100 | CH71: 50 | CI71: 0 | CK71: 14.57039692 | CL71: 14.77894846 | CM71: 14.64917998 | CN71: 14.24205443 | CO71: 100 | CP71: 16.7
A72: 41 | B72: =OFFSET(InputPriceData!B$15,CalculationsAndCharts!$A72+$A$11,0,1,1) -> 2010-09-14 | C72: =OFFSET(InputPriceData!G$15,CalculationsAndCharts!$A72+$A$11,0,1,1) -> 6109200 | D72: =OFFSET(InputPriceData!C$15,CalculationsAndCharts!$A72+$A$11,IF($C$7,7,0),1,1) -> 14.65 | E72: =OFFSET(InputPriceData!D$15,CalculationsAndCharts!$A72+$A$11,IF($C$7,7,0),1,1) -> 15.3 | F72: =OFFSET(InputPriceData!E$15,CalculationsAndCharts!$A72+$A$11,IF($C$7,7,0),1,1) -> 14.61 | G72: =OFFSET(InputPriceData!F$15,CalculationsAndCharts!$A72+$A$11,IF($C$7,7,0),1,1) -> 14.93 | H72: 0 | I72: =IF($S$16,AVERAGE(OFFSET($G72,0,0,I$31,1)),0) -> 0 | J72: 0 | K72: 0 | L72: 14.94666667 | M72: 0.6166666667 | N72: 2.002564103 | O72: 1.799054097 | P72: 1.619148688 | Q72: 14.04144684 | R72: 13.41319569 | S72: 0 | T72: 0 | U72: 0 | V72: 0.69 | W72: 0.6971712921 | X72: 0.09669600081 | BE72: 14.835 | BF72: =AVERAGE(OFFSET(BE$31,$A72,0,$BE$27,1)) -> 14.6475 | BG72: 14.45125 | BH72: 14.298125 | BI72: 14.176875 | BJ72: 14.0646875 | BK72: 13.94648437 | BL72: 13.81726562 | BM72: 13.67888672 | BN72: 13.53655273 | BO72: 14.3967876 | BP72: 14.11536176 | BQ72: 13.863165 | BR72: 0.2521967609 | BS72: 14.36755852 | BT72: 14.08989882 | BU72: 13.83759713 | BV72: 13.61013015 | BW72: 14.36703523 | BX72: 0.6064844775 | BY72: -22 | BZ72: 13.2380958 | CA72: 96.53620488 | CB72: 14.67172713 | CC72: 2.811727132 | CD72: 3.017925537 | CE72: 93.16754498 | CF72: 94.95562351 | CG72: 100 | CH72: 50 | CI72: 0 | CK72: 14.26829383 | CL72: 14.67727192 | CM72: 14.49085552 | CN72: 14.02729681 | CO72: 100 | CP72: 16.7
A73: 42 | B73: =OFFSET(InputPriceData!B$15,CalculationsAndCharts!$A73+$A$11,0,1,1) -> 2010-09-13 | C73: =OFFSET(InputPriceData!G$15,CalculationsAndCharts!$A73+$A$11,0,1,1) -> 6351700 | D73: =OFFSET(InputPriceData!C$15,CalculationsAndCharts!$A73+$A$11,IF($C$7,7,0),1,1) -> 14.38 | E73: =OFFSET(InputPriceData!D$15,CalculationsAndCharts!$A73+$A$11,IF($C$7,7,0),1,1) -> 14.97 | F73: =OFFSET(InputPriceData!E$15,CalculationsAndCharts!$A73+$A$11,IF($C$7,7,0),1,1) -> 14.33 | G73: =OFFSET(InputPriceData!F$15,CalculationsAndCharts!$A73+$A$11,IF($C$7,7,0),1,1) -> 14.74 | H73: 0 | I73: 0 | J73: 0 | K73: 0 | L73: 14.68 | M73: 0.9 | N73: 1.937025641 | O73: 1.740908382 | P73: 1.566817543 | Q73: 13.78281261 | R73: 13.23369536 | S73: 0 | T73: 0 | U73: 0 | V73: 0.79 | W73: 0.7007569381 | X73: 0.09754117626 | BE73: 14.46 | BF73: =AVERAGE(OFFSET(BE$31,$A73,0,$BE$27,1)) -> 14.255 | BG73: 14.145 | BH73: 14.055625 | BI73: 13.9525 | BJ73: 13.82828125 | BK73: 13.68804687 | BL73: 13.54050781 | BM73: 13.39421875 | BN73: 13.25673828 | BO73: 14.07632715 | BP73: 13.83393592 | BQ73: 13.61096824 | BR73: 0.2229676826 | BS73: 14.0569036 | BT73: 13.81223912 | BU73: 13.58529544 | BV73: 13.38266318 | BW73: 14.06349424 | BX73: 0.5095156361 | BY73: -23 | BZ73: 13.07592952 | CA73: 98.45605554 | CB73: 14.37816357 | CC73: 2.518163574 | CD73: 2.687925537 | CE73: 93.68427583 | CF73: 94.97790272 | CG73: 100 | CH73: 50 | CI73: 0 | CK73: 13.93158766 | CL73: 14.35954383 | CM73: 14.18698142 | CN73: 13.76730677 | CO73: 100 | CP73: 16.7
A74: 43 | B74: =OFFSET(InputPriceData!B$15,CalculationsAndCharts!$A74+$A$11,0,1,1) -> 2010-09-10 | C74: =OFFSET(InputPriceData!G$15,CalculationsAndCharts!$A74+$A$11,0,1,1) -> 5736900 | D74: =OFFSET(InputPriceData!C$15,CalculationsAndCharts!$A74+$A$11,IF($C$7,7,0),1,1) -> 13.92 | E74: =OFFSET(InputPriceData!D$15,CalculationsAndCharts!$A74+$A$11,IF($C$7,7,0),1,1) -> 14.43 | F74: =OFFSET(InputPriceData!E$15,CalculationsAndCharts!$A74+$A$11,IF($C$7,7,0),1,1) -> 13.78 | G74: =OFFSET(InputPriceData!F$15,CalculationsAndCharts!$A74+$A$11,IF($C$7,7,0),1,1) -> 14.18 | H74: 0 | I74: 0 | J74: 0 | K74: 0 | L74: 14.13 | M74: 0.36 | N74: 1.814141026 | O74: 1.684874879 | P74: 1.516387391 | Q74: 13.52647336 | R74: 13.07680472 | S74: 0 | T74: 0 | U74: 0 | V74: 0.65 | W74: 0.6561354072 | X74: 0.09627189049 | BE74: 14.05 | BF74: =AVERAGE(OFFSET(BE$31,$A74,0,$BE$27,1)) -> 14.035 | BG74: 13.96625 | BH74: 13.849375 | BI74: 13.7040625 | BJ74: 13.5478125 | BK74: 13.39296875 | BL74: 13.24792969 | BM74: 13.11925781 | BN74: 13.01208008 | BO74: 13.80058057 | BP74: =BO74*$BF$28+$BF$29*BP75 -> 13.59154469 | BQ74: =BP74*$BF$28+$BF$29*BQ75 -> 13.38800055 | BR74: =BP74-BQ74 -> 0.2035441359 | BS74: =BP74+BR74 -> 13.79508883 | BT74: 13.56757464 | BU74: 13.35835175 | BV74: 13.18003092 | BW74: 13.80769961 | BX74: 0.4207312506 | BY74: -24 | BZ74: 12.93585549 | CA74: 101.8052866 | CB74: 13.96529028 | CC74: 2.105290283 | CD74: 2.147925537 | CE74: 98.01504972 | CF74: 92.63252436 | CG74: 100 | CH74: 50 | CI74: 0 | CK74: 13.78567532 | CL74: 14.01829383 | CM74: 13.85830237 | CN74: 13.53041195 | CO74: 100 | CP74: 16.7
A75: 44 | B75: =OFFSET(InputPriceData!B$15,CalculationsAndCharts!$A75+$A$11,0,1,1) -> 2010-09-09 | C75: =OFFSET(InputPriceData!G$15,CalculationsAndCharts!$A75+$A$11,0,1,1) -> 5978600 | D75: =OFFSET(InputPriceData!C$15,CalculationsAndCharts!$A75+$A$11,IF($C$7,7,0),1,1) -> 14.25 | E75: =OFFSET(InputPriceData!D$15,CalculationsAndCharts!$A75+$A$11,IF($C$7,7,0),1,1) -> 14.39 | F75: =OFFSET(InputPriceData!E$15,CalculationsAndCharts!$A75+$A$11,IF($C$7,7,0),1,1) -> 13.77 | G75: =OFFSET(InputPriceData!F$15,CalculationsAndCharts!$A75+$A$11,IF($C$7,7,0),1,1) -> 13.92 | H75: 0 | I75: 0 | J75: 0 | K75: 0 | L75: 14.02666667 | M75: 0.6866666667 | N75: 1.771358974 | O75: 1.647941694 | P75: 1.483147525 | Q75: 13.35403717 | R75: 12.94832797 | S75: 0 | T75: 0 | U75: 0 | V75: 0.62 | W75: 0.6592031108 | X75: 0.09735654532 | BE75: 14.02 | BF75: =AVERAGE(OFFSET(BE$31,$A75,0,$BE$27,1)) -> 13.8975 | BG75: 13.7325 | BH75: 13.55875 | BI75: 13.3915625 | BJ75: 13.238125 | BK75: 13.10289063 | BL75: 12.99058594 | BM75: 12.90490234 | BN75: 12.84605469 | BO75: 13.62395605 | BP75: =BO75*$BF$28+$BF$29*BP76 -> 13.38250881 | BQ75: =BP75*$BF$28+$BF$29*BQ76 -> 13.18445642 | BR75: =BP75-BQ75 -> 0.198052395 | BS75: =BP75+BR75 -> 13.58056121 | BT75: 13.34006046 | BU75: 13.14912886 | BV75: 13.0017101 | BW75: 13.57450492 | BX75: 0.3312789784 | BY75: -25 | BZ75: 12.81537723 | CA75: 107.2876444 | CB75: 13.82531136 | CC75: 1.965311361 | CD75: 2.107925537 | CE75: 93.23438262 | CF75: 84.80936162 | CG75: 100 | CH75: 50 | CI75: 0 | CK75: 13.48885064 | CL75: 13.86255032 | CM75: 13.67717062 | CN75: 13.3352592 | CO75: 100 | CP75: 16.7
A76: 45 | B76: =OFFSET(InputPriceData!B$15,CalculationsAndCharts!$A76+$A$11,0,1,1) -> 2010-09-08 | C76: =OFFSET(InputPriceData!G$15,CalculationsAndCharts!$A76+$A$11,0,1,1) -> 12538200 | D76: =OFFSET(InputPriceData!C$15,CalculationsAndCharts!$A76+$A$11,IF($C$7,7,0),1,1) -> 13.34 | E76: =OFFSET(InputPriceData!D$15,CalculationsAndCharts!$A76+$A$11,IF($C$7,7,0),1,1) -> 14.34 | F76: =OFFSET(InputPriceData!E$15,CalculationsAndCharts!$A76+$A$11,IF($C$7,7,0),1,1) -> 13.34 | G76: =OFFSET(InputPriceData!F$15,CalculationsAndCharts!$A76+$A$11,IF($C$7,7,0),1,1) -> 14.12 | H76: 0 | I76: 0 | J76: 0 | K76: 0 | L76: 13.93333333 | M76: 0.8233333333 | N76: 1.644833333 | O76: 1.612679614 | P76: 1.451411653 | Q76: 13.16185732 | R76: 12.83241105 | S76: 0 | T76: 0 | U76: 0 | V76: 1 | W76: 0.6788046662 | X76: 0.09807398486 | BE76: 13.775 | BF76: =AVERAGE(OFFSET(BE$31,$A76,0,$BE$27,1)) -> 13.5675 | BG76: 13.385 | BH76: 13.224375 | BI76: 13.0846875 | BJ76: 12.96765625 | BK76: 12.87828125 | BL76: 12.81921875 | BM76: 12.78720703 | BN76: 12.77370117 | BO76: 13.3529751 | BP76: 13.14106157 | BQ76: 12.98640402 | BR76: 0.1546575484 | BS76: 13.29571912 | BT76: 13.09955972 | BU76: 12.95819725 | BV76: 12.85429134 | BW76: 13.27837876 | BX76: 0.2544306321 | BY76: -26 | BZ76: 12.71538592 | CA76: 105.3188933 | CB76: 13.64315422 | CC76: 1.783154215 | CD76: 2.057925537 | CE76: 86.64814073 | CF76: 74.9251413 | CG76: 100 | CH76: 50 | CI76: 0 | CK76: 13.19270129 | CL76: 13.62760064 | CM76: 13.44417326 | CN76: 13.12434275 | CO76: 100 | CP76: 16.7
A77: 46 | B77: =OFFSET(InputPriceData!B$15,CalculationsAndCharts!$A77+$A$11,0,1,1) -> 2010-09-07 | C77: =OFFSET(InputPriceData!G$15,CalculationsAndCharts!$A77+$A$11,0,1,1) -> 9330200 | D77: =OFFSET(InputPriceData!C$15,CalculationsAndCharts!$A77+$A$11,IF($C$7,7,0),1,1) -> 13.45 | E77: =OFFSET(InputPriceData!D$15,CalculationsAndCharts!$A77+$A$11,IF($C$7,7,0),1,1) -> 13.68 | F77: =OFFSET(InputPriceData!E$15,CalculationsAndCharts!$A77+$A$11,IF($C$7,7,0),1,1) -> 13.11 | G77: =OFFSET(InputPriceData!F$15,CalculationsAndCharts!$A77+$A$11,IF($C$7,7,0),1,1) -> 13.43 | H77: 0 | I77: 0 | J77: 0 | K77: 0 | L77: 13.40666667 | M77: 0.4466666667 | N77: 1.527410256 | O77: 1.603492837 | P77: 1.443143554 | Q77: 12.9414356 | R77: 12.73828355 | S77: 0 | T77: 0 | U77: 0 | V77: 0.57 | W77: 0.5182069993 | X77: 0.08858577806 | BE77: 13.36 | BF77: =AVERAGE(OFFSET(BE$31,$A77,0,$BE$27,1)) -> 13.2025 | BG77: 13.06375 | BH77: 12.945 | BI77: 12.850625 | BJ77: 12.78890625 | BK77: 12.76015625 | BL77: 12.75519531 | BM77: 12.76019531 | BN77: 12.76219727 | BO77: 13.06842627 | BP77: 12.92914805 | BQ77: 12.83174647 | BR77: 0.09740157064 | BS77: 13.02654962 | BT77: 12.90340032 | BU77: 12.81683477 | BV77: 12.75038543 | BW77: 13.01008207 | BX77: 0.2453740743 | BY77: -27 | BZ77: 12.64618332 | CA77: 87.07591675 | CB77: 13.23754647 | CC77: 1.377546468 | CD77: 1.847925537 | CE77: 74.54556152 | CF77: 62.01854801 | CG77: 100 | CH77: 50 | CI77: 0 | CK77: 12.96790257 | CL77: 13.25832629 | CM77: 13.11806654 | CN77: 12.92303959 | CO77: 100 | CP77: 16.7
A78: 47 | B78: =OFFSET(InputPriceData!B$15,CalculationsAndCharts!$A78+$A$11,0,1,1) -> 2010-09-03 | C78: =OFFSET(InputPriceData!G$15,CalculationsAndCharts!$A78+$A$11,0,1,1) -> 4790700 | D78: =OFFSET(InputPriceData!C$15,CalculationsAndCharts!$A78+$A$11,IF($C$7,7,0),1,1) -> 13.1 | E78: =OFFSET(InputPriceData!D$15,CalculationsAndCharts!$A78+$A$11,IF($C$7,7,0),1,1) -> 13.35 | F78: =OFFSET(InputPriceData!E$15,CalculationsAndCharts!$A78+$A$11,IF($C$7,7,0),1,1) -> 12.96 | G78: =OFFSET(InputPriceData!F$15,CalculationsAndCharts!$A78+$A$11,IF($C$7,7,0),1,1) -> 13.29 | H78: 0 | I78: 0 | J78: 0 | K78: 0 | L78: 13.2 | M78: 0.68 | N78: 1.570192308 | O78: 1.625230718 | P78: 1.462707646 | Q78: 12.80851243 | R78: 12.68024011 | S78: 0 | T78: 0 | U78: 0 | V78: 0.55 | W78: 0.492310499 | X78: 0.08704367938 | BE78: 13.045 | BF78: =AVERAGE(OFFSET(BE$31,$A78,0,$BE$27,1)) -> 12.925 | BG78: 12.82625 | BH78: 12.75625 | BI78: 12.7271875 | BJ78: 12.73140625 | BK78: 12.75023437 | BL78: 12.76519531 | BM78: 12.76419922 | BN78: 12.74324219 | BO78: 12.86988574 | BP78: 12.78986982 | BQ78: 12.7343449 | BR78: 0.05552491694 | BS78: 12.84539474 | BT78: 12.78025103 | BU78: 12.73026922 | BV78: 12.68393608 | BW78: 12.83388149 | BX78: 0.2971853904 | BY78: -28 | BZ78: 12.60772501 | CA78: 69.02486519 | CB78: 13.03494287 | CC78: 1.174942871 | CD78: 1.847925537 | CE78: 63.58172164 | CF78: 53.17324039 | CG78: 100 | CH78: 50 | CI78: 0 | CK78: 12.76080515 | CL78: 13.01165257 | CM78: 12.92566646 | CN78: 12.78892491 | CO78: 100 | CP78: 16.7
A79: 48 | B79: =OFFSET(InputPriceData!B$15,CalculationsAndCharts!$A79+$A$11,0,1,1) -> 2010-09-02 | C79: =OFFSET(InputPriceData!G$15,CalculationsAndCharts!$A79+$A$11,0,1,1) -> 5824300 | D79: =OFFSET(InputPriceData!C$15,CalculationsAndCharts!$A79+$A$11,IF($C$7,7,0),1,1) -> 12.83 | E79: =OFFSET(InputPriceData!D$15,CalculationsAndCharts!$A79+$A$11,IF($C$7,7,0),1,1) -> 12.93 | F79: =OFFSET(InputPriceData!E$15,CalculationsAndCharts!$A79+$A$11,IF($C$7,7,0),1,1) -> 12.52 | G79: =OFFSET(InputPriceData!F$15,CalculationsAndCharts!$A79+$A$11,IF($C$7,7,0),1,1) -> 12.8 | H79: 0 | I79: 0 | J79: 0 | K79: 0 | L79: 12.75 | M79: 0.29 | N79: 1.552897436 | O79: 1.640955977 | P79: 1.47686038 | Q79: 12.69665884 | R79: 12.64359087 | S79: 0 | T79: 0 | U79: 0 | V79: 0.41 | W79: 0.4634657484 | X79: 0.0862082616 | BE79: 12.805 | BF79: =AVERAGE(OFFSET(BE$31,$A79,0,$BE$27,1)) -> 12.7275 | BG79: 12.68625 | BH79: 12.698125 | BI79: 12.735625 | BJ79: 12.7690625 | BK79: 12.78015625 | BL79: 12.76320313 | BM79: 12.72228516 | BN79: 12.66688477 | BO79: 12.74136084 | BP79: 12.7098539 | BQ79: 12.67881999 | BR79: 0.03103391252 | BS79: 12.74088781 | BT79: 12.71510732 | BU79: 12.68028742 | BV79: 12.63760294 | BW79: 12.74206262 | BX79: 0.3518569708 | BY79: -29 | BZ79: 12.59159263 | CA79: 60.6911337 | CB79: 12.74568042 | CC79: 0.8856804199 | CD79: 1.847925537 | CE79: 47.92836086 | CF79: 46.09946809 | CG79: 100 | CH79: 50 | CI79: 0 | CK79: 12.75161029 | CL79: 12.74290257 | CM79: 12.74277743 | CN79: 12.69983385 | CO79: 100 | CP79: 16.7
A80: 49 | B80: =OFFSET(InputPriceData!B$15,CalculationsAndCharts!$A80+$A$11,0,1,1) -> 2010-09-01 | C80: =OFFSET(InputPriceData!G$15,CalculationsAndCharts!$A80+$A$11,0,1,1) -> 2568900 | D80: =OFFSET(InputPriceData!C$15,CalculationsAndCharts!$A80+$A$11,IF($C$7,7,0),1,1) -> 12.68 | E80: =OFFSET(InputPriceData!D$15,CalculationsAndCharts!$A80+$A$11,IF($C$7,7,0),1,1) -> 12.97 | F80: =OFFSET(InputPriceData!E$15,CalculationsAndCharts!$A80+$A$11,IF($C$7,7,0),1,1) -> 12.65 | G80: =OFFSET(InputPriceData!F$15,CalculationsAndCharts!$A80+$A$11,IF($C$7,7,0),1,1) -> 12.81 | H80: 0 | I80: 0 | J80: 0 | K80: 0 | L80: 12.81 | M80: 0.44 | N80: 1.598410256 | O80: 1.666115561 | P80: 1.499504005 | Q80: 12.68141851 | R80: 12.6284286 | S80: 0 | T80: 0 | U80: 0 | V80: 0.48 | W80: 0.4901986227 | X80: 0.0882668714 | BE80: 12.65 | BF80: =AVERAGE(OFFSET(BE$31,$A80,0,$BE$27,1)) -> 12.645 | BG80: 12.71 | BH80: 12.773125 | BI80: 12.8025 | BJ80: 12.79125 | BK80: 12.74625 | BL80: 12.68136719 | BM80: 12.61148437 | BN80: 12.54819336 | BO80: 12.68436475 | BP80: 12.67834696 | BQ80: 12.64778607 | BR80: 0.03056088467 | BS80: 12.70890784 | BT80: 12.68932682 | BU80: 12.64546753 | BV80: 12.59491846 | BW80: 12.72649634 | BX80: 0.3882919877 | BY80: -30 | BZ80: 12.58895466 | CA80: 58.85555697 | CB80: 12.74718237 | CC80: 0.887182373 | CD80: 1.847925537 | CE80: 48.00963866 | CF80: 47.47717574 | CG80: 100 | CH80: 50 | CI80: 0 | CK80: 12.72572059 | CL80: 12.78080515 | CM80: 12.73796238 | CN80: 12.68260636 | CO80: 100 | CP80: 16.7
A81: 50 | B81: =OFFSET(InputPriceData!B$15,CalculationsAndCharts!$A81+$A$11,0,1,1) -> 2010-08-31 | C81: =OFFSET(InputPriceData!G$15,CalculationsAndCharts!$A81+$A$11,0,1,1) -> 3801000 | D81: =OFFSET(InputPriceData!C$15,CalculationsAndCharts!$A81+$A$11,IF($C$7,7,0),1,1) -> 12.84 | E81: =OFFSET(InputPriceData!D$15,CalculationsAndCharts!$A81+$A$11,IF($C$7,7,0),1,1) -> 12.89 | F81: =OFFSET(InputPriceData!E$15,CalculationsAndCharts!$A81+$A$11,IF($C$7,7,0),1,1) -> 12.37 | G81: =OFFSET(InputPriceData!F$15,CalculationsAndCharts!$A81+$A$11,IF($C$7,7,0),1,1) -> 12.49 | H81: 0 | I81: 0 | J81: 0 | K81: 0 | L81: 12.58333333 | M81: 0.5266666667 | N81: 1.564730769 | O81: 1.685459933 | P81: 1.51691394 | Q81: 12.64468095 | R81: 12.61328862 | S81: 0 | T81: 0 | U81: 0 | V81: 0.52 | W81: 0.495297934 | X81: 0.08965555917 | BE81: 12.64 | BF81: =AVERAGE(OFFSET(BE$31,$A81,0,$BE$27,1)) -> 12.775 | BG81: 12.83625 | BH81: 12.831875 | BI81: 12.78 | BJ81: 12.70125 | BK81: 12.61648438 | BL81: 12.54160156 | BM81: 12.48490234 | BN81: 12.44814453 | BO81: 12.70224414 | BP81: 12.67232917 | BQ81: 12.61722519 | BR81: 0.05510398234 | BS81: 12.72743315 | BT81: 12.6697458 | BU81: 12.60160823 | BV81: 12.54436938 | BW81: 12.74878208 | BX81: 0.4121471549 | BY81: -31 | BZ81: 12.59142479 | CA81: 59.54497016 | CB81: 12.64278874 | CC81: 0.782788737 | CD81: 1.847925537 | CE81: 42.36040475 | CF81: 47.84344401 | CG81: 100 | CH81: 50 | CI81: 0 | CK81: 12.80394117 | CL81: 12.67786029 | CM81: 12.6899373 | CN81: 12.64332685 | CO81: 100 | CP81: 16.7
A82: 51 | B82: =OFFSET(InputPriceData!B$15,CalculationsAndCharts!$A82+$A$11,0,1,1) -> 2010-08-30 | C82: =OFFSET(InputPriceData!G$15,CalculationsAndCharts!$A82+$A$11,0,1,1) -> 2804800 | D82: =OFFSET(InputPriceData!C$15,CalculationsAndCharts!$A82+$A$11,IF($C$7,7,0),1,1) -> 12.9 | E82: =OFFSET(InputPriceData!D$15,CalculationsAndCharts!$A82+$A$11,IF($C$7,7,0),1,1) -> 13.12 | F82: =OFFSET(InputPriceData!E$15,CalculationsAndCharts!$A82+$A$11,IF($C$7,7,0),1,1) -> 12.78 | G82: =OFFSET(InputPriceData!F$15,CalculationsAndCharts!$A82+$A$11,IF($C$7,7,0),1,1) -> 12.79 | H82: 0 | I82: 0 | J82: 0 | K82: 0 | L82: 12.89666667 | M82: 0.3666666667 | N82: 1.679423077 | O82: 1.71995398 | P82: 1.547958582 | Q82: 12.66220884 | R82: 12.60431938 | S82: 0 | T82: 0 | U82: 0 | V82: 0.34 | W82: 0.482946901 | X82: 0.08775972642 | BE82: 12.91 | BF82: =AVERAGE(OFFSET(BE$31,$A82,0,$BE$27,1)) -> 12.8975 | BG82: 12.8275 | BH82: 12.728125 | BI82: 12.6225 | BJ82: 12.53171875 | BK82: 12.46671875 | BL82: 12.42820312 | BM82: 12.41138672 | BN82: 12.4096875 | BO82: 12.74744824 | BP82: 12.6424142 | BQ82: 12.56212121 | BR82: 0.08029299617 | BS82: 12.7227072 | BT82: 12.61205844 | BU82: 12.53347067 | BV82: 12.48713053 | BW82: 12.72289386 | BX82: 0.4304205591 | BY82: -32 | BZ82: 12.59472421 | CA82: 57.44444297 | CB82: 12.82205745 | CC82: 0.9620574544 | CD82: 1.847925537 | CE82: 52.06148382 | CF82: 47.70517575 | CG82: 100 | CH82: 50 | CI82: 0 | CK82: 12.71038234 | CL82: 12.85956617 | CM82: 12.76100662 | CN82: 12.62951347 | CO82: 100 | CP82: 16.7
A83: 52 | B83: =OFFSET(InputPriceData!B$15,CalculationsAndCharts!$A83+$A$11,0,1,1) -> 2010-08-27 | C83: =OFFSET(InputPriceData!G$15,CalculationsAndCharts!$A83+$A$11,0,1,1) -> 3260100 | D83: =OFFSET(InputPriceData!C$15,CalculationsAndCharts!$A83+$A$11,IF($C$7,7,0),1,1) -> 12.9 | E83: =OFFSET(InputPriceData!D$15,CalculationsAndCharts!$A83+$A$11,IF($C$7,7,0),1,1) -> 13.12 | F83: =OFFSET(InputPriceData!E$15,CalculationsAndCharts!$A83+$A$11,IF($C$7,7,0),1,1) -> 12.53 | G83: =OFFSET(InputPriceData!F$15,CalculationsAndCharts!$A83+$A$11,IF($C$7,7,0),1,1) -> 13.03 | H83: 0 | I83: 0 | J83: 0 | K83: 0 | L83: 12.89333333 | M83: 0.2833333333 | N83: 1.776820513 | O83: 1.731534239 | P83: 1.558380815 | Q83: 12.59522088 | R83: 12.58777954 | S83: 0 | T83: 0 | U83: 0 | V83: 0.59 | W83: 0.5544203514 | X83: 0.09254952812 | BE83: 12.885 | BF83: =AVERAGE(OFFSET(BE$31,$A83,0,$BE$27,1)) -> 12.7575 | BG83: 12.62875 | BH83: 12.516875 | BI83: 12.4409375 | BJ83: 12.40171875 | BK83: 12.3896875 | BL83: 12.39457031 | BM83: 12.40798828 | BN83: 12.42292969 | BO83: 12.6416416 | BP83: 12.53738016 | BQ83: 12.48182821 | BR83: 0.05555195375 | BS83: 12.59293212 | BT83: 12.50140969 | BU83: 12.45488289 | BV83: 12.44079039 | BW83: 12.58037078 | BX83: 0.4430910956 | BY83: -33 | BZ83: 12.60381222 | CA83: 48.67739151 | CB83: 12.76748747 | CC83: 0.9074874674 | CD83: 1.847925537 | CE83: 49.10844345 | CF83: 39.24225749 | CG83: 100 | CH83: 50 | CI83: 0 | CK83: 12.52576469 | CL83: 12.76663234 | CM83: 12.67056658 | CN83: 12.53749239 | CO83: 100 | CP83: 16.7 | CR83: 12.9
A84: 53 | B84: =OFFSET(InputPriceData!B$15,CalculationsAndCharts!$A84+$A$11,0,1,1) -> 2010-08-26 | C84: =OFFSET(InputPriceData!G$15,CalculationsAndCharts!$A84+$A$11,0,1,1) -> 5474800 | D84: =OFFSET(InputPriceData!C$15,CalculationsAndCharts!$A84+$A$11,IF($C$7,7,0),1,1) -> 12.66 | E84: =OFFSET(InputPriceData!D$15,CalculationsAndCharts!$A84+$A$11,IF($C$7,7,0),1,1) -> 13.03 | F84: =OFFSET(InputPriceData!E$15,CalculationsAndCharts!$A84+$A$11,IF($C$7,7,0),1,1) -> 12.61 | G84: =OFFSET(InputPriceData!F$15,CalculationsAndCharts!$A84+$A$11,IF($C$7,7,0),1,1) -> 12.74 | H84: 0 | I84: 0 | J84: 0 | K84: 0 | L84: 12.79333333 | M84: 0.9133333333 | N84: 1.829615385 | O84: 1.718595303 | P84: 1.546735773 | Q84: 12.5100459 | R84: 12.58565344 | S84: 0 | T84: 0 | U84: 0 | V84: 0.51 | W84: 0.5366305272 | X84: 0.09212170543 | BE84: 12.63 | BF84: =AVERAGE(OFFSET(BE$31,$A84,0,$BE$27,1)) -> 12.5 | BG84: 12.405 | BH84: 12.365 | BI84: 12.3625 | BJ84: 12.37765625 | BK84: 12.39945313 | BL84: 12.42140625 | BM84: 12.43787109 | BN84: 12.44438477 | BO84: 12.47691357 | BP84: 12.43311873 | BQ84: 12.42627626 | BR84: 0.006842470928 | BS84: 12.4399612 | BT84: 12.40988726 | BU84: 12.4083561 | BV84: 12.4266979 | BW84: 12.43129138 | BX84: 0.4489367241 | BY84: -34 | BZ84: 12.63164502 | CA84: 38.84288013 | CB84: 12.63512345 | CC84: 0.7751234538 | CD84: 1.847925537 | CE84: 41.94559998 | CF84: 30.48625885 | CG84: 100 | CH84: 50 | CI84: 0 | CK84: 12.29152938 | CL84: 12.59326469 | CM84: 12.52205541 | CN84: 12.44583641 | CO84: 100 | CP84: 16.7
A85: 54 | B85: =OFFSET(InputPriceData!B$15,CalculationsAndCharts!$A85+$A$11,0,1,1) -> 2010-08-25 | C85: =OFFSET(InputPriceData!G$15,CalculationsAndCharts!$A85+$A$11,0,1,1) -> 4435600 | D85: =OFFSET(InputPriceData!C$15,CalculationsAndCharts!$A85+$A$11,IF($C$7,7,0),1,1) -> 12.05 | E85: =OFFSET(InputPriceData!D$15,CalculationsAndCharts!$A85+$A$11,IF($C$7,7,0),1,1) -> 12.61 | F85: =OFFSET(InputPriceData!E$15,CalculationsAndCharts!$A85+$A$11,IF($C$7,7,0),1,1) -> 11.88 | G85: =OFFSET(InputPriceData!F$15,CalculationsAndCharts!$A85+$A$11,IF($C$7,7,0),1,1) -> 12.52 | H85: 0 | I85: 0 | J85: 0 | K85: 0 | L85: 12.33666667 | M85: 0.3766666667 | N85: 1.751333333 | O85: 1.68687528 | P85: 1.518187752 | Q85: 12.42910663 | R85: 12.6072556 | S85: 0 | T85: 0 | U85: 0 | V85: 0.73 | W85: 0.5499457908 | X85: 0.09392538265 | BE85: 12.37 | BF85: =AVERAGE(OFFSET(BE$31,$A85,0,$BE$27,1)) -> 12.31 | BG85: 12.325 | BH85: 12.36 | BI85: 12.3928125 | BJ85: 12.42125 | BK85: 12.44335938 | BL85: 12.45433594 | BM85: 12.45089844 | BN85: 12.43469727 | BO85: 12.36911768 | BP85: 12.38932388 | BQ85: 12.41943379 | BR85: -0.03010990394 | BS85: 12.35921398 | BT85: 12.37981332 | BU85: 12.40682493 | BV85: 12.4450397 | BW85: 12.36400485 | BX85: 0.4455417706 | BY85: -35 | BZ85: 12.67986984 | CA85: 32.27635386 | CB85: 12.35289217 | CC85: 0.4928921712 | CD85: 1.847925537 | CE85: 26.67272903 | CF85: 26.67730614 | CG85: 100 | CH85: 50 | CI85: 0 | CK85: 12.31805875 | CL85: 12.26826469 | CM85: 12.34120346 | CN85: 12.38686509 | CO85: 0 | CQ85: 16.7
A86: 55 | B86: =OFFSET(InputPriceData!B$15,CalculationsAndCharts!$A86+$A$11,0,1,1) -> 2010-08-24 | C86: =OFFSET(InputPriceData!G$15,CalculationsAndCharts!$A86+$A$11,0,1,1) -> 2972000 | D86: =OFFSET(InputPriceData!C$15,CalculationsAndCharts!$A86+$A$11,IF($C$7,7,0),1,1) -> 12.14 | E86: =OFFSET(InputPriceData!D$15,CalculationsAndCharts!$A86+$A$11,IF($C$7,7,0),1,1) -> 12.42 | F86: =OFFSET(InputPriceData!E$15,CalculationsAndCharts!$A86+$A$11,IF($C$7,7,0),1,1) -> 11.96 | G86: =OFFSET(InputPriceData!F$15,CalculationsAndCharts!$A86+$A$11,IF($C$7,7,0),1,1) -> 12.22 | H86: 0 | I86: 0 | J86: 0 | K86: 0 | L86: 12.2 | M86: 0.45 | N86: 1.731307692 | O86: 1.668458693 | P86: 1.501612824 | Q86: 12.45551805 | R86: 12.6581553 | S86: 0 | T86: 0 | U86: 0 | V86: 0.46 | W86: 0.4599186861 | X86: 0.08763655369 | BE86: 12.25 | BF86: =AVERAGE(OFFSET(BE$31,$A86,0,$BE$27,1)) -> 12.34 | BG86: 12.395 | BH86: 12.425625 | BI86: 12.4496875 | BJ86: 12.46546875 | BK86: 12.4653125 | BL86: 12.44746094 | BM86: 12.41849609 | BN86: 12.39030273 | BO86: 12.36414893 | BP86: 12.40953009 | BQ86: 12.44954369 | BR86: -0.04001360103 | BS86: 12.36951649 | BT86: 12.40041266 | BU86: 12.43383655 | BV86: 12.48325446 | BW86: 12.38298278 | BX86: 0.4350288362 | BY86: -36 | BZ86: 12.74056408 | CA86: 29.45071299 | CB86: 12.28207446 | CC86: 0.4220744629 | CD86: 1.847925537 | CE86: 22.84044754 | CF86: 28.44499584 | CG86: 100 | CH86: 50 | CI86: 0 | CK86: 12.4511175 | CL86: 12.26180875 | CM86: 12.344228 | CN86: 12.43430525 | CO86: 0 | CQ86: 16.7
A87: 56 | B87: =OFFSET(InputPriceData!B$15,CalculationsAndCharts!$A87+$A$11,0,1,1) -> 2010-08-23 | C87: =OFFSET(InputPriceData!G$15,CalculationsAndCharts!$A87+$A$11,0,1,1) -> 2520900 | D87: =OFFSET(InputPriceData!C$15,CalculationsAndCharts!$A87+$A$11,IF($C$7,7,0),1,1) -> 12.65 | E87: =OFFSET(InputPriceData!D$15,CalculationsAndCharts!$A87+$A$11,IF($C$7,7,0),1,1) -> 12.7 | F87: =OFFSET(InputPriceData!E$15,CalculationsAndCharts!$A87+$A$11,IF($C$7,7,0),1,1) -> 12.25 | G87: =OFFSET(InputPriceData!F$15,CalculationsAndCharts!$A87+$A$11,IF($C$7,7,0),1,1) -> 12.28 | H87: 0 | I87: 0 | J87: 0 | K87: 0 | L87: 12.41 | M87: 0.2033333333 | N87: 1.665769231 | O87: 1.650501836 | P87: 1.485451652 | Q87: 12.52852321 | R87: 12.71605166 | S87: 0 | T87: 0 | U87: 0 | V87: 0.45 | W87: 0.4598780292 | X87: 0.08744935091 | BE87: 12.43 | BF87: =AVERAGE(OFFSET(BE$31,$A87,0,$BE$27,1)) -> 12.45 | BG87: 12.45625 | BH87: 12.47375 | BI87: 12.48125 | BJ87: 12.46515625 | BK87: 12.42960938 | BL87: 12.38953125 | BM87: 12.36210938 | BN87: 12.36107422 | BO87: 12.43774902 | BP87: 12.45491125 | BQ87: 12.48955729 | BR87: -0.03464603835 | BS87: 12.42026521 | BT87: 12.43130883 | BU87: 12.46726044 | BV87: 12.53267237 | BW87: 12.42481753 | BX87: 0.4235053227 | BY87: -37 | BZ87: 12.80505285 | CA87: 27.55427729 | CB87: 12.42387451 | CC87: 0.5638745117 | CD87: 1.847633545 | CE87: 30.51874184 | CF87: 31.04151518 | CG87: 100 | CH87: 50 | CI87: 0 | CK87: 12.43223501 | CL87: 12.46305875 | CM87: 12.44037999 | CN87: 12.50330386 | CO87: 0 | CQ87: 16.7
A88: 57 | B88: =OFFSET(InputPriceData!B$15,CalculationsAndCharts!$A88+$A$11,0,1,1) -> 2010-08-20 | C88: =OFFSET(InputPriceData!G$15,CalculationsAndCharts!$A88+$A$11,0,1,1) -> 2255000 | D88: =OFFSET(InputPriceData!C$15,CalculationsAndCharts!$A88+$A$11,IF($C$7,7,0),1,1) -> 12.29 | E88: =OFFSET(InputPriceData!D$15,CalculationsAndCharts!$A88+$A$11,IF($C$7,7,0),1,1) -> 12.61 | F88: =OFFSET(InputPriceData!E$15,CalculationsAndCharts!$A88+$A$11,IF($C$7,7,0),1,1) -> 12.17 | G88: =OFFSET(InputPriceData!F$15,CalculationsAndCharts!$A88+$A$11,IF($C$7,7,0),1,1) -> 12.58 | H88: 0 | I88: 0 | J88: 0 | K88: 0 | L88: 12.45333333 | M88: 0.2233333333 | N88: 1.686705128 | O88: 1.646139723 | P88: 1.481525751 | Q88: 12.56238698 | R88: 12.76963122 | S88: 0 | T88: 0 | U88: 0 | V88: 0.44 | W88: 0.4648170438 | X88: 0.0869488906 | BE88: 12.47 | BF88: =AVERAGE(OFFSET(BE$31,$A88,0,$BE$27,1)) -> 12.4625 | BG88: 12.49125 | BH88: 12.48875 | BI88: 12.4490625 | BJ88: 12.3940625 | BK88: 12.34945313 | BL88: 12.3346875 | BM88: 12.36003906 | BN88: 12.42660156 | BO88: 12.44825781 | BP88: 12.47207348 | BQ88: 12.52420333 | BR88: -0.05212984695 | BS88: 12.41994364 | BT88: 12.44235244 | BU88: 12.50321206 | BV88: 12.5980843 | BW88: 12.41550546 | BX88: 0.4100664661 | BY88: -38 | BZ88: 12.87095068 | CA88: 22.23345095 | CB88: 12.45079557 | CC88: 0.5907955729 | CD88: 1.847633545 | CE88: 31.97579815 | CF88: 33.354117 | CG88: 100 | CH88: 50 | CI88: 0 | CK88: 12.45197002 | CL88: 12.4111175 | CM88: 12.46063332 | CN88: 12.5194019 | CO88: 0 | CQ88: 16.7
A89: 58 | B89: =OFFSET(InputPriceData!B$15,CalculationsAndCharts!$A89+$A$11,0,1,1) -> 2010-08-19 | C89: =OFFSET(InputPriceData!G$15,CalculationsAndCharts!$A89+$A$11,0,1,1) -> 2909800 | D89: =OFFSET(InputPriceData!C$15,CalculationsAndCharts!$A89+$A$11,IF($C$7,7,0),1,1) -> 12.49 | E89: =OFFSET(InputPriceData!D$15,CalculationsAndCharts!$A89+$A$11,IF($C$7,7,0),1,1) -> 12.6 | F89: =OFFSET(InputPriceData!E$15,CalculationsAndCharts!$A89+$A$11,IF($C$7,7,0),1,1) -> 12.23 | G89: =OFFSET(InputPriceData!F$15,CalculationsAndCharts!$A89+$A$11,IF($C$7,7,0),1,1) -> 12.36 | H89: 0 | I89: 0 | J89: 0 | K89: 0 | L89: 12.39666667 | M89: 0.3933333333 | N89: 1.673961538 | O89: 1.634549608 | P89: 1.471094647 | Q89: 12.59354516 | R89: 12.82884386 | S89: 0 | T89: 0 | U89: 0 | V89: 0.37 | W89: 0.4772255657 | X89: 0.08861048266 | BE89: 12.455 | BF89: =AVERAGE(OFFSET(BE$31,$A89,0,$BE$27,1)) -> 12.52 | BG89: 12.48625 | BH89: 12.409375 | BI89: 12.3390625 | BJ89: 12.30484375 | BK89: 12.31992188 | BL89: 12.38539062 | BM89: 12.49316406 | BN89: 12.62899414 | BO89: 12.45519385 | BP89: 12.49588915 | BQ89: 12.57633318 | BR89: -0.08044402348 | BS89: 12.41544513 | BT89: 12.46476125 | BU89: 12.56407167 | BV89: 12.69295654 | BW89: 12.39502528 | BX89: 0.3838050282 | BY89: -39 | BZ89: 12.94313673 | CA89: 14.29753356 | CB89: 12.42593026 | CC89: 0.5659302572 | CD89: 1.847633545 | CE89: 30.63000554 | CF89: 33.37293183 | CG89: 100 | CH89: 50 | CI89: 0 | CK89: 12.48394004 | CL89: 12.43348501 | CM89: 12.46549998 | CN89: 12.56271565 | CO89: 0 | CQ89: 16.7
A90: 59 | B90: =OFFSET(InputPriceData!B$15,CalculationsAndCharts!$A90+$A$11,0,1,1) -> 2010-08-18 | C90: =OFFSET(InputPriceData!G$15,CalculationsAndCharts!$A90+$A$11,0,1,1) -> 3066800 | D90: =OFFSET(InputPriceData!C$15,CalculationsAndCharts!$A90+$A$11,IF($C$7,7,0),1,1) -> 12.6 | E90: =OFFSET(InputPriceData!D$15,CalculationsAndCharts!$A90+$A$11,IF($C$7,7,0),1,1) -> 12.82 | F90: =OFFSET(InputPriceData!E$15,CalculationsAndCharts!$A90+$A$11,IF($C$7,7,0),1,1) -> 12.5 | G90: =OFFSET(InputPriceData!F$15,CalculationsAndCharts!$A90+$A$11,IF($C$7,7,0),1,1) -> 12.55 | H90: 0 | I90: 0 | J90: 0 | K90: 0 | L90: 12.62333333 | M90: 0.6033333333 | N90: 1.683064103 | O90: 1.623289056 | P90: 1.46096015 | Q90: 12.64979616 | R90: 12.89607206 | S90: 0 | T90: 0 | U90: 0 | V90: 0.32 | W90: 0.5308383486 | X90: 0.09229787638 | BE90: 12.585 | BF90: =AVERAGE(OFFSET(BE$31,$A90,0,$BE$27,1)) -> 12.4525 | BG90: 12.3325 | BH90: 12.26875 | BI90: 12.270625 | BJ90: 12.335 | BK90: 12.45085938 | BL90: 12.6009375 | BM90: 12.76482422 | BN90: 12.92347656 | BO90: 12.48078613 | BP90: 12.53658446 | BQ90: 12.6567772 | BR90: -0.1201927412 | BS90: 12.41639172 | BT90: 12.51407737 | BU90: 12.66338209 | BV90: 12.82184141 | BW90: 12.37392726 | BX90: 0.3441904662 | BY90: -40 | BZ90: 13.02128013 | CA90: 2.980040576 | CB90: 12.55205973 | CC90: 0.6920597331 | CD90: 1.847633545 | CE90: 37.45654732 | CF90: 30.78288356 | CG90: 100 | CH90: 50 | CI90: 0 | CK90: 12.35038007 | CL90: 12.53456504 | CM90: 12.51138886 | CN90: 12.61440791 | CO90: 0 | CQ90: 16.7
A91: 60 | B91: =OFFSET(InputPriceData!B$15,CalculationsAndCharts!$A91+$A$11,0,1,1) -> 2010-08-17 | C91: =OFFSET(InputPriceData!G$15,CalculationsAndCharts!$A91+$A$11,0,1,1) -> 4897400 | D91: =OFFSET(InputPriceData!C$15,CalculationsAndCharts!$A91+$A$11,IF($C$7,7,0),1,1) -> 12.11 | E91: =OFFSET(InputPriceData!D$15,CalculationsAndCharts!$A91+$A$11,IF($C$7,7,0),1,1) -> 12.79 | F91: =OFFSET(InputPriceData!E$15,CalculationsAndCharts!$A91+$A$11,IF($C$7,7,0),1,1) -> 12.02 | G91: =OFFSET(InputPriceData!F$15,CalculationsAndCharts!$A91+$A$11,IF($C$7,7,0),1,1) -> 12.62 | H91: 0 | I91: 0 | J91: 0 | K91: 0 | L91: 12.47666667 | M91: 0.6166666667 | N91: 1.591128205 | O91: 1.606210471 | P91: 1.445589424 | Q91: 12.65735697 | R91: 12.96643661 | S91: 0 | T91: 0 | U91: 0 | V91: 0.77 | W91: 0.6362575228 | X91: 0.1004166024 | BE91: 12.32 | BF91: =AVERAGE(OFFSET(BE$31,$A91,0,$BE$27,1)) -> 12.2125 | BG91: 12.205 | BH91: 12.2725 | BI91: 12.399375 | BJ91: 12.56671875 | BK91: 12.75101563 | BL91: 12.92871094 | BM91: 13.08212891 | BN91: 13.20225586 | BO91: 12.42701025 | BP91: 12.59238279 | BQ91: 12.77696994 | BR91: -0.1845871562 | BS91: 12.40779563 | BT91: 12.61176302 | BU91: 12.8126868 | BV91: 12.98030072 | BW91: 12.37752938 | BX91: 0.3066238418 | BY91: -41 | BZ91: 13.10383948 | CA91: -9.218331805 | CB91: 12.45183846 | CC91: 0.5918384603 | CD91: 1.847633545 | CE91: 32.03224264 | CF91: 29.73683807 | CG91: 100 | CH91: 50 | CI91: 0 | CK91: 12.31576015 | CL91: 12.37769004 | CM91: 12.43675922 | CN91: 12.64634506 | CO91: 0 | CQ91: 16.7
A92: 61 | B92: =OFFSET(InputPriceData!B$15,CalculationsAndCharts!$A92+$A$11,0,1,1) -> 2010-08-16 | C92: =OFFSET(InputPriceData!G$15,CalculationsAndCharts!$A92+$A$11,0,1,1) -> 4638400 | D92: =OFFSET(InputPriceData!C$15,CalculationsAndCharts!$A92+$A$11,IF($C$7,7,0),1,1) -> 12.09 | E92: =OFFSET(InputPriceData!D$15,CalculationsAndCharts!$A92+$A$11,IF($C$7,7,0),1,1) -> 12.3 | F92: =OFFSET(InputPriceData!E$15,CalculationsAndCharts!$A92+$A$11,IF($C$7,7,0),1,1) -> 11.86 | G92: =OFFSET(InputPriceData!F$15,CalculationsAndCharts!$A92+$A$11,IF($C$7,7,0),1,1) -> 12.02 | H92: 0 | I92: =IF($S$16,AVERAGE(OFFSET($G92,0,0,I$31,1)),0) -> 0 | J92: 0 | K92: 0 | L92: 12.06 | M92: 0.4566666667 | N92: 1.567461538 | O92: 1.61051969 | P92: 1.449467721 | Q92: 12.70898277 | R92: 13.05474507 | S92: 0 | T92: 0 | U92: 0 | V92: 0.44 | W92: 0.5693862843 | X92: 0.09736990718 | BE92: 12.105 | BF92: =AVERAGE(OFFSET(BE$31,$A92,0,$BE$27,1)) -> 12.1975 | BG92: 12.34 | BH92: 12.52625 | BI92: 12.7340625 | BJ92: 12.9353125 | BK92: 13.10640625 | BL92: 13.23554687 | BM92: 13.32238281 | BN92: 13.37344727 | BO92: 12.50473291 | BP92: 12.75775532 | BQ92: 12.9615571 | BR92: -0.2038017811 | BS92: 12.55395354 | BT92: 12.81573041 | BU92: 13.01361058 | BV92: 13.14791465 | BW92: 12.55427414 | BX92: 0.2746750817 | BY92: -42 | BZ92: 13.1874976 | CA92: -7.633864748 | CB92: 12.28236646 | CC92: 0.4223664551 | CD92: 1.847633545 | CE92: 22.85986073 | CF92: 33.84945806 | CG92: 100 | CH92: 50 | CI92: 0 | CK92: 12.56402029 | CL92: 12.26388515 | CM92: 12.41015425 | CN92: 12.75380707 | CO92: 0 | CQ92: 16.7
A93: 62 | B93: =OFFSET(InputPriceData!B$15,CalculationsAndCharts!$A93+$A$11,0,1,1) -> 2010-08-13 | C93: =OFFSET(InputPriceData!G$15,CalculationsAndCharts!$A93+$A$11,0,1,1) -> 3884100 | D93: =OFFSET(InputPriceData!C$15,CalculationsAndCharts!$A93+$A$11,IF($C$7,7,0),1,1) -> 12.45 | E93: =OFFSET(InputPriceData!D$15,CalculationsAndCharts!$A93+$A$11,IF($C$7,7,0),1,1) -> 12.64 | F93: =OFFSET(InputPriceData!E$15,CalculationsAndCharts!$A93+$A$11,IF($C$7,7,0),1,1) -> 12.12 | G93: =OFFSET(InputPriceData!F$15,CalculationsAndCharts!$A93+$A$11,IF($C$7,7,0),1,1) -> 12.19 | H93: 0 | I93: 0 | J93: 0 | K93: 0 | L93: 12.31666667 | M93: 0.3166666667 | N93: 1.576564103 | O93: 1.622822019 | P93: 1.460539817 | Q93: 12.89440642 | R93: 13.1535343 | S93: 0 | T93: 0 | U93: 0 | V93: 0.52 | W93: 0.6340794264 | X93: 0.1020163598 | BE93: 12.29 | BF93: =AVERAGE(OFFSET(BE$31,$A93,0,$BE$27,1)) -> 12.4825 | BG93: 12.7125 | BH93: 12.941875 | BI93: 13.1365625 | BJ93: 13.2775 | BK93: 13.3646875 | BL93: 13.40921875 | BM93: 13.42451172 | BN93: 13.42157227 | BO93: 12.77176514 | BP93: 13.01077772 | BQ93: 13.16535888 | BR93: -0.1545811556 | BS93: 12.85619657 | BT93: 13.07750729 | BU93: 13.21149075 | BV93: 13.28221871 | BW93: 12.88026832 | BX93: 0.2550451597 | BY93: -43 | BZ93: 13.25357305 | CA93: 13.40797749 | CB93: 12.5442159 | CC93: 0.5442159017 | CD93: 1.585784098 | CE93: 34.31841083 | CF93: 48.41254134 | CG93: 100 | CH93: 50 | CI93: 0 | CK93: 12.77804059 | CL93: 12.50652029 | CM93: 12.64359041 | CN93: 12.94977584 | CO93: 0 | CQ93: 16.7
A94: 63 | B94: =OFFSET(InputPriceData!B$15,CalculationsAndCharts!$A94+$A$11,0,1,1) -> 2010-08-12 | C94: =OFFSET(InputPriceData!G$15,CalculationsAndCharts!$A94+$A$11,0,1,1) -> 6918900 | D94: =OFFSET(InputPriceData!C$15,CalculationsAndCharts!$A94+$A$11,IF($C$7,7,0),1,1) -> 12.43 | E94: =OFFSET(InputPriceData!D$15,CalculationsAndCharts!$A94+$A$11,IF($C$7,7,0),1,1) -> 12.5 | F94: =OFFSET(InputPriceData!E$15,CalculationsAndCharts!$A94+$A$11,IF($C$7,7,0),1,1) -> 12 | G94: =OFFSET(InputPriceData!F$15,CalculationsAndCharts!$A94+$A$11,IF($C$7,7,0),1,1) -> 12.39 | H94: 0 | I94: 0 | J94: 0 | K94: 0 | L94: 12.29666667 | M94: 0.9466666667 | N94: 1.573833333 | O94: 1.636038567 | P94: 1.47243471 | Q94: 13.05947493 | R94: 13.22757084 | S94: 0 | T94: 0 | U94: 0 | V94: 0.96 | W94: 0.6911191396 | X94: 0.1057803987 | BE94: 12.675 | BF94: =AVERAGE(OFFSET(BE$31,$A94,0,$BE$27,1)) -> 12.9425 | BG94: 13.17125 | BH94: 13.33125 | BI94: 13.4184375 | BJ94: 13.451875 | BK94: 13.45375 | BL94: 13.43980469 | BM94: 13.41863281 | BN94: 13.3940332 | BO94: 13.09488916 | BP94: 13.24979031 | BQ94: 13.31994003 | BR94: -0.07014972454 | BS94: 13.17964059 | BT94: 13.29881801 | BU94: 13.34547422 | BV94: 13.35294667 | BW94: 13.21297806 | BX94: 0.2519937224 | BY94: -44 | BZ94: 13.28562617 | CA94: 42.792667 | CB94: 12.69577791 | CC94: 0.6957779134 | CD94: 1.568123291 | CE94: 44.37010262 | CF94: 65.2257292 | CG94: 100 | CH94: 50 | CI94: 0 | CK94: 13.22608118 | CL94: 12.69554059 | CM94: 12.86153958 | CN94: 13.12707806 | CO94: 0 | CQ94: 16.7 | CS94: 12.43
A95: 64 | B95: =OFFSET(InputPriceData!B$15,CalculationsAndCharts!$A95+$A$11,0,1,1) -> 2010-08-11 | C95: =OFFSET(InputPriceData!G$15,CalculationsAndCharts!$A95+$A$11,0,1,1) -> 3738600 | D95: =OFFSET(InputPriceData!C$15,CalculationsAndCharts!$A95+$A$11,IF($C$7,7,0),1,1) -> 13.18 | E95: =OFFSET(InputPriceData!D$15,CalculationsAndCharts!$A95+$A$11,IF($C$7,7,0),1,1) -> 13.2 | F95: =OFFSET(InputPriceData!E$15,CalculationsAndCharts!$A95+$A$11,IF($C$7,7,0),1,1) -> 12.68 | G95: =OFFSET(InputPriceData!F$15,CalculationsAndCharts!$A95+$A$11,IF($C$7,7,0),1,1) -> 12.96 | H95: 0 | I95: 0 | J95: 0 | K95: 0 | L95: 12.94666667 | M95: 0.7233333333 | N95: 1.562910256 | O95: 1.65381149 | P95: 1.488430341 | Q95: 13.27742014 | R95: 13.27559824 | S95: 0 | T95: 0 | U95: 0 | V95: 0.78 | W95: 0.5566787094 | X95: 0.09295360412 | BE95: 13.21 | BF95: =AVERAGE(OFFSET(BE$31,$A95,0,$BE$27,1)) -> 13.4 | BG95: 13.49125 | BH95: 13.505625 | BI95: 13.4853125 | BJ95: 13.455625 | BK95: 13.42585937 | BL95: 13.39746094 | BM95: 13.36943359 | BN95: 13.34085937 | BO95: 13.38047754 | BP95: 13.40469146 | BQ95: 13.39008976 | BR95: 0.01460170066 | BS95: 13.41929316 | BT95: 13.41799544 | BU95: 13.39213042 | BV95: 13.36041913 | BW95: 13.43801419 | BX95: 0.2520015238 | BY95: -45 | BZ95: 13.28230073 | CA95: 65.44767062 | CB95: 13.1635721 | CC95: 1.043572103 | CD95: 1.568123291 | CE95: 66.54911057 | CF95: 80.74281695 | CG95: 100 | CH95: 50 | CI95: 0 | CK95: 13.44716235 | CL95: 13.14483118 | CM95: 13.23812152 | CN95: 13.29969305 | CO95: 0 | CQ95: 16.7
A96: 65 | B96: =OFFSET(InputPriceData!B$15,CalculationsAndCharts!$A96+$A$11,0,1,1) -> 2010-08-10 | C96: =OFFSET(InputPriceData!G$15,CalculationsAndCharts!$A96+$A$11,0,1,1) -> 2895100 | D96: =OFFSET(InputPriceData!C$15,CalculationsAndCharts!$A96+$A$11,IF($C$7,7,0),1,1) -> 13.51 | E96: =OFFSET(InputPriceData!D$15,CalculationsAndCharts!$A96+$A$11,IF($C$7,7,0),1,1) -> 13.56 | F96: =OFFSET(InputPriceData!E$15,CalculationsAndCharts!$A96+$A$11,IF($C$7,7,0),1,1) -> 13.19 | G96: =OFFSET(InputPriceData!F$15,CalculationsAndCharts!$A96+$A$11,IF($C$7,7,0),1,1) -> 13.46 | H96: =IF($S$16,$C$17*G96+$D$17*H97,0) -> 0 | I96: 0 | J96: 0 | K96: 0 | L96: =AVERAGE(E96:G96) -> 13.40333333 | M96: =IF(L96>=L97,L96-F97,L97-F96) -> 0.4766666667 | N96: 1.593858974 | O96: 1.679783272 | P96: 1.511804944 | Q96: =(L96*$E$17+Q97*$F$17) -> 13.37192114 | R96: =Q96*$E$17+R97*$F$17 -> 13.2750777 | S96: 0 | T96: 0 | U96: 0 | V96: =MAX(E96-F96,ABS(E96-G97),ABS(F96-G97)) -> 0.53 | W96: =(W97*($W$31-1)+V96)/$W$31 -> 0.4450180641 | X96: =$B$16+W96/G96*$F$16 -> 0.08306226331 | BE96: 13.59 | BF96: =AVERAGE(OFFSET(BE$31,$A96,0,$BE$27,1)) -> 13.5825 | BG96: 13.52 | BH96: 13.465 | BI96: 13.4259375 | BJ96: 13.39609375 | BK96: 13.3690625 | BL96: 13.34140625 | BM96: 13.31228516 | BN96: 13.28292969 | BO96: 13.49488574 | BP96: 13.42890538 | BQ96: 13.37548806 | BR96: 0.05341732191 | BS96: 13.4823227 | BT96: 13.41669772 | BU96: 13.3662654 | BV96: 13.32870784 | BW96: 13.4800048 | BX96: 0.2469909793 | BY96: -46 | BZ96: 13.25464451 | CA96: 72.81057964 | CB96: 13.44910954 | CC96: 1.329109538 | CD96: 1.568123291 | CE96: 84.75797441 | CF96: 83.93677013 | CG96: 100 | CH96: 50 | CI96: 0 | CK96: 13.4643247 | CL96: 13.41108118 | CM96: 13.43242475 | CN96: 13.36163781 | CO96: 100 | CP96: 16.7
A97: 66 | B97: =OFFSET(InputPriceData!B$15,CalculationsAndCharts!$A97+$A$11,0,1,1) -> 2010-08-09 | C97: =OFFSET(InputPriceData!G$15,CalculationsAndCharts!$A97+$A$11,0,1,1) -> 3221200 | D97: =OFFSET(InputPriceData!C$15,CalculationsAndCharts!$A97+$A$11,IF($C$7,7,0),1,1) -> 13.51 | E97: =OFFSET(InputPriceData!D$15,CalculationsAndCharts!$A97+$A$11,IF($C$7,7,0),1,1) -> 13.78 | F97: =OFFSET(InputPriceData!E$15,CalculationsAndCharts!$A97+$A$11,IF($C$7,7,0),1,1) -> 13.5 | G97: =OFFSET(InputPriceData!F$15,CalculationsAndCharts!$A97+$A$11,IF($C$7,7,0),1,1) -> 13.72 | H97: 0 | I97: 0 | J97: 0 | K97: 0 | L97: 13.66666667 | M97: 0.6266666667 | N97: =AVERAGE(OFFSET(M97,0,0,$F$19,1))*$F$20 -> 1.622076923 | O97: =(N97*$E$17+O98*$F$17) -> 1.704333071 | P97: =O97*$F$21 -> 1.533899764 | Q97: 13.36294622 | R97: 13.24740814 | S97: =IF($S$15,AVERAGE(OFFSET(Q97,0,0,$F$18,1)),0) -> 0 | T97: =IF($S$15,R97+O97,0) -> 0 | U97: =IF($S$15,R97-P97,0) -> 0 | V97: 0.35 | W97: 0.4025270962 | X97: 0.07933870963 | Y97: =IF($A97=$B$28,Y$31,NA()) ->  | Z97: =IF(AA97="","",OFFSET($B$31,AA97,0,1,1)) ->  | BE97: =AVERAGE(OFFSET($G$31,$A97,0,$BE$27,1)) -> 13.575 | BF97: =AVERAGE(OFFSET(BE$31,$A97,0,$BE$27,1)) -> 13.4575 | BG97: 13.41 | BH97: 13.386875 | BI97: 13.36625 | BJ97: 13.34203125 | BK97: 13.31375 | BL97: 13.28316406 | BM97: 13.25357422 | BN97: 13.22951172 | BO97: =(5*BE97+4*BF97+3*BG97+2*BH97+BI97+BJ97+BK97+BL97+BM97+BN97)/20 -> 13.42485156 | BP97: 13.36292502 | BQ97: 13.32207074 | BR97: 0.04085428186 | BS97: 13.4037793 | BT97: 13.35107273 | BU97: 13.31583308 | BV97: 13.29115029 | BW97: 13.39686925 | BX97: =_xlfn.STDEV.P(OFFSET(BW97,0,0,$BG$27,1)) -> 0.237814185 | BY97: -47 | BZ97: =SUMPRODUCT(OFFSET(BW97,0,0,$BG$27,1),OFFSET($BY$31,1,0,$BG$27,1))/$BH$27 -> 13.22149403 | CA97: =(BW97+2*BX97-BZ97)/(4*BX97)*100 -> 68.4361609 | CB97: 13.54575911 | CC97: 1.425759115 | CD97: 1.568123291 | CE97: =IF(CD97<0.000000000001,IF($A97>=$A$8,50,CE98),MIN(100,MAX(0,100*CC97/CD97))) -> 90.92136586 | CF97: =AVERAGE(OFFSET(CE$31,$A97,0,$BJ$27,1)) -> 79.81144166 | CG97: =CG$30 -> 100 | CH97: 50 | CI97: 0 | CJ97: =IF($A97=$B$28,CJ$30,NA()) ->  | CK97: =IF(A97>=$A$8,0,(AVERAGE(D98:G98)+CK98)/2) -> 13.30114941 | CL97: =(AVERAGE(D97:G97)+CK97+MAX(E97,CK97)+MIN(F97,CK97))/4 -> 13.5024497 | CM97: =IF(A97>=$A$8,L97,(L97*CM$28+CM98*CM$29)) -> 13.45181902 | CN97: =IF(A97>=$A$8,CL97,(CL97*CN$28+CN98*CN$29)) -> 13.34186046 | CO97: =IF(AND(CM97>CN97,G97>D97),100,IF(AND(CM97<CN97,G97<D97),0,CO98)) -> 100 | CP97: =IF($S$17,IF($A97>$A$8,NA(),IF($CO97=100,CP$30,NA())),NA()) -> 16.7 | CQ97: =IF($S$17,IF($A97>$A$8,NA(),IF($CO97=0,CQ$30,NA())),NA()) -> 
A98: 67 | B98: =OFFSET(InputPriceData!B$15,CalculationsAndCharts!$A98+$A$11,0,1,1) -> 2010-08-06 | C98: =OFFSET(InputPriceData!G$15,CalculationsAndCharts!$A98+$A$11,0,1,1) -> 2517600 | D98: =OFFSET(InputPriceData!C$15,CalculationsAndCharts!$A98+$A$11,IF($C$7,7,0),1,1) -> 13.11 | E98: =OFFSET(InputPriceData!D$15,CalculationsAndCharts!$A98+$A$11,IF($C$7,7,0),1,1) -> 13.45 | F98: =OFFSET(InputPriceData!E$15,CalculationsAndCharts!$A98+$A$11,IF($C$7,7,0),1,1) -> 13.04 | G98: =OFFSET(InputPriceData!F$15,CalculationsAndCharts!$A98+$A$11,IF($C$7,7,0),1,1) -> 13.43 | H98: 0 | I98: 0 | J98: 0 | K98: 0 | L98: 13.30666667 | M98: 0.3033333333 | N98: 1.522858974 | O98: 1.727834827 | P98: 1.555051345 | Q98: 13.27616895 | R98: 13.21439726 | S98: 0 | T98: 0 | U98: 0 | V98: 0.41 | W98: 0.4287906443 | X98: 0.08192782161 | BE98: 13.34 | BF98: =AVERAGE(OFFSET(BE$31,$A98,0,$BE$27,1)) -> 13.3625 | BG98: 13.36375 | BH98: 13.345625 | BI98: 13.3178125 | BJ98: 13.28546875 | BK98: 13.25257812 | BL98: 13.22398438 | BM98: 13.20544922 | BN98: 13.20197266 | BO98: 13.32098828 | BP98: 13.30099847 | BQ98: 13.28121645 | BR98: 0.0197820195 | BS98: 13.32078049 | BT98: 13.29836617 | BU98: 13.28059342 | BV98: 13.26646749 | BW98: 13.31978573 | BX98: 0.2319483339 | BY98: =BY97-1 -> -48 | BZ98: 13.19514566 | CA98: 63.43403345 | CB98: 13.31382747 | CC98: 1.193827474 | CD98: 1.568123291 | CE98: 76.13097011 | CF98: 70.88848624 | CG98: 100 | CH98: 50 | CI98: 0 | CK98: 13.34479881 | CL98: 13.2730747 | CM98: 13.30858726 | CN98: 13.27762476 | CO98: 100 | CP98: 16.7
A99: 68 | B99: =OFFSET(InputPriceData!B$15,CalculationsAndCharts!$A99+$A$11,0,1,1) -> 2010-08-05 | C99: =OFFSET(InputPriceData!G$15,CalculationsAndCharts!$A99+$A$11,0,1,1) -> 2672400 | D99: =OFFSET(InputPriceData!C$15,CalculationsAndCharts!$A99+$A$11,IF($C$7,7,0),1,1) -> 13.57 | E99: =OFFSET(InputPriceData!D$15,CalculationsAndCharts!$A99+$A$11,IF($C$7,7,0),1,1) -> 13.61 | F99: =OFFSET(InputPriceData!E$15,CalculationsAndCharts!$A99+$A$11,IF($C$7,7,0),1,1) -> 13.17 | G99: =OFFSET(InputPriceData!F$15,CalculationsAndCharts!$A99+$A$11,IF($C$7,7,0),1,1) -> 13.25 | H99: 0 | I99: 0 | J99: 0 | K99: 0 | L99: 13.34333333 | M99: 0.21 | N99: 1.575653846 | O99: 1.786399357 | P99: 1.607759421 | Q99: 13.26745532 | R99: 13.1967482 | S99: 0 | T99: 0 | U99: 0 | V99: 0.44 | W99: 0.4381859664 | X99: 0.08307063897 | BE99: 13.385 | BF99: =AVERAGE(OFFSET(BE$31,$A99,0,$BE$27,1)) -> 13.365 | BG99: 13.3275 | BH99: 13.29 | BI99: 13.253125 | BJ99: 13.2196875 | BK99: 13.19539062 | BL99: 13.18691406 | BM99: 13.19849609 | BN99: 13.22905273 | BO99: 13.3115083 | BP99: 13.28100867 | BQ99: 13.26143444 | BR99: 0.01957423179 | BS99: 13.3005829 | BT99: 13.27595184 | BU99: 13.26282068 | BV99: 13.25234157 | BW99: 13.29173507 | BX99: 0.238122053 | BY99: -49 | BZ99: 13.17409461 | CA99: 62.35085693 | CB99: 13.32742082 | CC99: 1.207420817 | CD99: 1.668123291 | CE99: 72.381989 | CF99: 62.19897178 | CG99: 100 | CH99: 50 | CI99: 0 | CK99: 13.28959762 | CL99: 13.36739941 | CM99: 13.30986766 | CN99: 13.27944478 | CO99: 100 | CP99: 16.7
A100: 69 | B100: =OFFSET(InputPriceData!B$15,CalculationsAndCharts!$A100+$A$11,0,1,1) -> 2010-08-04 | C100: =OFFSET(InputPriceData!G$15,CalculationsAndCharts!$A100+$A$11,0,1,1) -> 3569200 | D100: =OFFSET(InputPriceData!C$15,CalculationsAndCharts!$A100+$A$11,IF($C$7,7,0),1,1) -> 13.27 | E100: =OFFSET(InputPriceData!D$15,CalculationsAndCharts!$A100+$A$11,IF($C$7,7,0),1,1) -> 13.55 | F100: =OFFSET(InputPriceData!E$15,CalculationsAndCharts!$A100+$A$11,IF($C$7,7,0),1,1) -> 13.07 | G100: =OFFSET(InputPriceData!F$15,CalculationsAndCharts!$A100+$A$11,IF($C$7,7,0),1,1) -> 13.52 | H100: 0 | I100: 0 | J100: 0 | K100: 0 | L100: 13.38 | M100: 0.28 | N100: 1.659397436 | O100: 1.84661236 | P100: 1.661951124 | Q100: 13.24577589 | R100: 13.17654617 | S100: 0 | T100: 0 | U100: 0 | V100: 0.48 | W100: 0.4372789496 | X100: 0.08234311758 | BE100: 13.345 | BF100: =AVERAGE(OFFSET(BE$31,$A100,0,$BE$27,1)) -> 13.29 | BG100: 13.2525 | BH100: 13.21625 | BI100: 13.18625 | BJ100: 13.17109375 | BK100: 13.1784375 | BL100: 13.21007813 | BM100: 13.25960938 | BN100: 13.31405273 | BO100: 13.26972607 | BP100: 13.25050903 | BQ100: 13.2418602 | BR100: 0.00864882964 | BS100: 13.25915786 | BT100: 13.25132079 | BU100: 13.24968951 | BV100: 13.24186245 | BW100: 13.24675629 | BX100: 0.2479586393 | BY100: -50 | BZ100: 13.15287014 | CA100: 59.46590841 | CB100: 13.32486304 | CC100: 1.204863037 | CD100: 1.878123291 | CE100: 64.15249962 | CF100: 52.60911289 | CG100: 100 | CH100: 50 | CI100: 0 | CK100: 13.22669524 | CL100: 13.29979881 | CM100: 13.28755721 | CN100: 13.24426293 | CO100: 100 | CP100: 16.7
A101: 70 | B101: =OFFSET(InputPriceData!B$15,CalculationsAndCharts!$A101+$A$11,0,1,1) -> 2010-08-03 | C101: =OFFSET(InputPriceData!G$15,CalculationsAndCharts!$A101+$A$11,0,1,1) -> 2439700 | D101: =OFFSET(InputPriceData!C$15,CalculationsAndCharts!$A101+$A$11,IF($C$7,7,0),1,1) -> 13.21 | E101: =OFFSET(InputPriceData!D$15,CalculationsAndCharts!$A101+$A$11,IF($C$7,7,0),1,1) -> 13.4 | F101: =OFFSET(InputPriceData!E$15,CalculationsAndCharts!$A101+$A$11,IF($C$7,7,0),1,1) -> 13.1 | G101: =OFFSET(InputPriceData!F$15,CalculationsAndCharts!$A101+$A$11,IF($C$7,7,0),1,1) -> 13.17 | H101: 0 | I101: 0 | J101: 0 | K101: 0 | L101: 13.22333333 | M101: 0.1766666667 | N101: 1.786833333 | O101: 1.900102338 | P101: 1.710092104 | Q101: 13.20742615 | R101: 13.15676625 | S101: 0 | T101: 0 | U101: 0 | V101: 0.3 | W101: 0.4159184244 | X101: 0.08158074597 | BE101: 13.235 | BF101: =AVERAGE(OFFSET(BE$31,$A101,0,$BE$27,1)) -> 13.215 | BG101: 13.18 | BH101: 13.15625 | BI101: 13.1559375 | BJ101: 13.18578125 | BK101: 13.24171875 | BL101: 13.30914063 | BM101: 13.36849609 | BN101: 13.40236328 | BO101: 13.22754687 | BP101: 13.23129199 | BQ101: 13.23321137 | BR101: -0.001919382044 | BS101: 13.22937261 | BT101: 13.24348371 | BU101: 13.24805823 | BV101: 13.2340354 | BW101: 13.22031185 | BX101: 0.2570533657 | BY101: -51 | BZ101: 13.13342673 | CA101: 58.45010508 | CB101: 13.2254401 | CC101: 1.105440104 | CD101: 2.208123291 | CE101: 50.06242671 | CF101: 44.47225953 | CG101: 100 | CH101: 50 | CI101: 0 | CK101: 13.23339049 | CL101: 13.23834762 | CM101: 13.22592869 | CN101: 13.22204858 | CO101: 100 | CP101: 16.7
A102: 71 | B102: =OFFSET(InputPriceData!B$15,CalculationsAndCharts!$A102+$A$11,0,1,1) -> 2010-08-02 | C102: =OFFSET(InputPriceData!G$15,CalculationsAndCharts!$A102+$A$11,0,1,1) -> 1931600 | D102: =OFFSET(InputPriceData!C$15,CalculationsAndCharts!$A102+$A$11,IF($C$7,7,0),1,1) -> 13.36 | E102: =OFFSET(InputPriceData!D$15,CalculationsAndCharts!$A102+$A$11,IF($C$7,7,0),1,1) -> 13.4 | F102: =OFFSET(InputPriceData!E$15,CalculationsAndCharts!$A102+$A$11,IF($C$7,7,0),1,1) -> 13.13 | G102: =OFFSET(InputPriceData!F$15,CalculationsAndCharts!$A102+$A$11,IF($C$7,7,0),1,1) -> 13.3 | H102: 0 | I102: 0 | J102: 0 | K102: 0 | L102: 13.27666667 | M102: 0.4266666667 | N102: 1.892423077 | O102: 1.932464911 | P102: 1.739218419 | Q102: 13.20288124 | R102: 13.14229199 | S102: 0 | T102: 0 | U102: 0 | V102: 0.31 | W102: 0.4738776367 | X102: 0.08562989749 | BE102: 13.195 | BF102: =AVERAGE(OFFSET(BE$31,$A102,0,$BE$27,1)) -> 13.145 | BG102: 13.1325 | BH102: 13.155625 | BI102: 13.215625 | BJ102: 13.29765625 | BK102: 13.3765625 | BL102: 13.42785156 | BM102: 13.43623047 | BN102: 13.39871094 | BO102: 13.22081934 | BP102: 13.23503711 | BQ102: 13.23513076 | BR102: -9.364751961e-05 | BS102: 13.23494346 | BT102: 13.25759482 | BU102: 13.25263275 | BV102: 13.22001257 | BW102: 13.23489877 | BX102: 0.2676918466 | BY102: -52 | BZ102: 13.11364244 | CA102: 61.32424625 | CB102: 13.248743 | CC102: 1.128743001 | CD102: 2.588123291 | CE102: 43.61241233 | CF102: 41.67658637 | CG102: 100 | CH102: 50 | CI102: 0 | CK102: 13.16928098 | CL102: 13.24919524 | CM102: 13.22765893 | CN102: 13.21552897 | CO102: 100 | CP102: 16.7
A103: 72 | B103: =OFFSET(InputPriceData!B$15,CalculationsAndCharts!$A103+$A$11,0,1,1) -> 2010-07-30 | C103: =OFFSET(InputPriceData!G$15,CalculationsAndCharts!$A103+$A$11,0,1,1) -> 3479200 | D103: =OFFSET(InputPriceData!C$15,CalculationsAndCharts!$A103+$A$11,IF($C$7,7,0),1,1) -> 12.9 | E103: =OFFSET(InputPriceData!D$15,CalculationsAndCharts!$A103+$A$11,IF($C$7,7,0),1,1) -> 13.29 | F103: =OFFSET(InputPriceData!E$15,CalculationsAndCharts!$A103+$A$11,IF($C$7,7,0),1,1) -> 12.85 | G103: =OFFSET(InputPriceData!F$15,CalculationsAndCharts!$A103+$A$11,IF($C$7,7,0),1,1) -> 13.09 | H103: 0 | I103: 0 | J103: 0 | K103: 0 | L103: 13.07666667 | M103: 0.2666666667 | N103: 1.96524359 | O103: 1.943905434 | P103: 1.749514891 | Q103: 13.18179968 | R103: 13.12498078 | S103: 0 | T103: 0 | U103: 0 | V103: 0.44 | W103: 0.555816455 | X103: 0.09246115011 | BE103: 13.095 | BF103: =AVERAGE(OFFSET(BE$31,$A103,0,$BE$27,1)) -> 13.12 | BG103: 13.17875 | BH103: 13.275625 | BI103: 13.3796875 | BJ103: 13.45546875 | BK103: 13.47914062 | BL103: 13.44460937 | BM103: 13.36119141 | BN103: 13.24688477 | BO103: 13.22047412 | BP103: 13.24925488 | BQ103: 13.2352244 | BR103: 0.01403047716 | BS103: 13.26328536 | BT103: 13.28024618 | BU103: 13.24767068 | BV103: 13.18739238 | BW103: 13.28511887 | BX103: 0.2794713222 | BY103: -53 | BZ103: 13.08866572 | CA103: 67.57364114 | CB103: 13.14857039 | CC103: 1.028570394 | CD103: 2.588123291 | CE103: 39.74193955 | CF103: 42.91054357 | CG103: 100 | CH103: 50 | CI103: 0 | CK103: 13.30606195 | CL103: 13.12365598 | CM103: 13.1949871 | CN103: 13.20206246 | CO103: 100 | CP103: 16.7
A104: 73 | B104: =OFFSET(InputPriceData!B$15,CalculationsAndCharts!$A104+$A$11,0,1,1) -> 2010-07-29 | C104: =OFFSET(InputPriceData!G$15,CalculationsAndCharts!$A104+$A$11,0,1,1) -> 2747700 | D104: =OFFSET(InputPriceData!C$15,CalculationsAndCharts!$A104+$A$11,IF($C$7,7,0),1,1) -> 13.36 | E104: =OFFSET(InputPriceData!D$15,CalculationsAndCharts!$A104+$A$11,IF($C$7,7,0),1,1) -> 13.45 | F104: =OFFSET(InputPriceData!E$15,CalculationsAndCharts!$A104+$A$11,IF($C$7,7,0),1,1) -> 12.8 | G104: =OFFSET(InputPriceData!F$15,CalculationsAndCharts!$A104+$A$11,IF($C$7,7,0),1,1) -> 13.1 | H104: 0 | I104: 0 | J104: 0 | K104: 0 | L104: 13.11666667 | M104: 0.53 | N104: 2.073564103 | O104: 1.937808819 | P104: 1.744027937 | Q104: 13.21183769 | R104: 13.10874681 | S104: 0 | T104: 0 | U104: 0 | V104: 0.65 | W104: 0.6137246825 | X104: 0.0968492124 | BE104: 13.145 | BF104: =AVERAGE(OFFSET(BE$31,$A104,0,$BE$27,1)) -> 13.2375 | BG104: 13.3725 | BH104: 13.48375 | BI104: 13.53125 | BJ104: 13.5028125 | BK104: 13.41007812 | BL104: 13.27777344 | BM104: 13.13257812 | BN104: 12.99661133 | BO104: 13.28055518 | BP104: 13.27803564 | BQ104: 13.22119393 | BR104: 0.05684171357 | BS104: 13.33487735 | BT104: 13.297207 | BU104: 13.21509518 | BV104: 13.12711408 | BW104: 13.37344952 | BX104: 0.2805053747 | BY104: -54 | BZ104: 13.0547393 | CA104: 78.4050013 | CB104: 13.19861092 | CC104: 1.078610921 | CD104: 2.588123291 | CE104: 41.67540723 | CF104: 47.77697292 | CG104: 100 | CH104: 50 | CI104: 0 | CK104: 13.43462391 | CL104: 13.21553098 | CM104: 13.27386739 | CN104: 13.23342505 | CO104: 100 | CP104: 16.7
A105: 74 | B105: =OFFSET(InputPriceData!B$15,CalculationsAndCharts!$A105+$A$11,0,1,1) -> 2010-07-28 | C105: =OFFSET(InputPriceData!G$15,CalculationsAndCharts!$A105+$A$11,0,1,1) -> 2857200 | D105: =OFFSET(InputPriceData!C$15,CalculationsAndCharts!$A105+$A$11,IF($C$7,7,0),1,1) -> 13.41 | E105: =OFFSET(InputPriceData!D$15,CalculationsAndCharts!$A105+$A$11,IF($C$7,7,0),1,1) -> 13.62 | F105: =OFFSET(InputPriceData!E$15,CalculationsAndCharts!$A105+$A$11,IF($C$7,7,0),1,1) -> 13.18 | G105: =OFFSET(InputPriceData!F$15,CalculationsAndCharts!$A105+$A$11,IF($C$7,7,0),1,1) -> 13.19 | H105: 0 | I105: 0 | J105: 0 | K105: 0 | L105: 13.33 | M105: 0.49 | N105: 1.976166667 | O105: 1.899021595 | P105: 1.709119435 | Q105: 13.23902941 | R105: 13.07929227 | S105: 0 | T105: 0 | U105: 0 | V105: 0.44 | W105: 0.5955870237 | X105: 0.09515443698 | BE105: 13.33 | BF105: =AVERAGE(OFFSET(BE$31,$A105,0,$BE$27,1)) -> 13.5075 | BG105: 13.595 | BH105: 13.57875 | BI105: 13.474375 | BJ105: 13.31734375 | BK105: 13.14546875 | BL105: 12.98738281 | BM105: 12.86064453 | BN105: 12.77436523 | BO105: 13.359104 | BP105: 13.2755161 | BQ105: 13.16435221 | BR105: 0.1111638909 | BS105: 13.38667999 | BT105: 13.25953664 | BU105: 13.13298337 | BV105: 13.03913298 | BW105: 13.41879279 | BX105: 0.2631831221 | BY105: -55 | BZ105: 13.00840097 | CA105: 88.98348609 | CB105: 13.344552 | CC105: 1.224552002 | CD105: 2.588123291 | CE105: 47.31428391 | CF105: 51.06318376 | CG105: 100 | CH105: 50 | CI105: 0 | CK105: 13.51924781 | CL105: 13.41731195 | CM105: 13.37866788 | CN105: 13.24058268 | CO105: 100 | CP105: 16.7
A106: 75 | B106: =OFFSET(InputPriceData!B$15,CalculationsAndCharts!$A106+$A$11,0,1,1) -> 2010-07-27 | C106: =OFFSET(InputPriceData!G$15,CalculationsAndCharts!$A106+$A$11,0,1,1) -> 4718200 | D106: =OFFSET(InputPriceData!C$15,CalculationsAndCharts!$A106+$A$11,IF($C$7,7,0),1,1) -> 14 | E106: =OFFSET(InputPriceData!D$15,CalculationsAndCharts!$A106+$A$11,IF($C$7,7,0),1,1) -> 14.13 | F106: =OFFSET(InputPriceData!E$15,CalculationsAndCharts!$A106+$A$11,IF($C$7,7,0),1,1) -> 13.41 | G106: =OFFSET(InputPriceData!F$15,CalculationsAndCharts!$A106+$A$11,IF($C$7,7,0),1,1) -> 13.47 | H106: 0 | I106: 0 | J106: 0 | K106: 0 | L106: 13.67 | M106: 0.3066666667 | N106: 1.93975641 | O106: 1.876980145 | P106: 1.689282131 | Q106: 13.21303781 | R106: 13.03365308 | S106: 0 | T106: 0 | U106: 0 | V106: 0.72 | W106: 0.6733805356 | X106: 0.09999113107 | BE106: 13.685 | BF106: =AVERAGE(OFFSET(BE$31,$A106,0,$BE$27,1)) -> 13.6825 | BG106: 13.5625 | BH106: 13.37 | BI106: 13.1603125 | BJ106: 12.97359375 | BK106: 12.82929687 | BL106: 12.73390625 | BM106: 12.68808594 | BN106: 12.68902344 | BO106: 13.38283594 | BP106: 13.1919282 | BQ106: 13.05318832 | BR106: 0.1387398814 | BS106: 13.33066808 | BT106: 13.13239329 | BU106: 13.0064301 | BV106: 12.94528258 | BW106: 13.32317215 | BX106: 0.2380375486 | BY106: -56 | BZ106: 12.95519117 | CA106: 88.64736677 | CB106: 13.52641797 | CC106: 1.406417969 | CD106: 2.588123291 | CE106: 54.34122762 | CF106: 47.46436057 | CG106: 100 | CH106: 50 | CI106: 0 | CK106: 13.28599562 | CL106: 13.61362281 | CM106: 13.41111313 | CN106: 13.16989097 | CO106: 100 | CP106: 16.7
A107: 76 | B107: =OFFSET(InputPriceData!B$15,CalculationsAndCharts!$A107+$A$11,0,1,1) -> 2010-07-26 | C107: =OFFSET(InputPriceData!G$15,CalculationsAndCharts!$A107+$A$11,0,1,1) -> 4094500 | D107: =OFFSET(InputPriceData!C$15,CalculationsAndCharts!$A107+$A$11,IF($C$7,7,0),1,1) -> 13.48 | E107: =OFFSET(InputPriceData!D$15,CalculationsAndCharts!$A107+$A$11,IF($C$7,7,0),1,1) -> 13.95 | F107: =OFFSET(InputPriceData!E$15,CalculationsAndCharts!$A107+$A$11,IF($C$7,7,0),1,1) -> 13.3 | G107: =OFFSET(InputPriceData!F$15,CalculationsAndCharts!$A107+$A$11,IF($C$7,7,0),1,1) -> 13.9 | H107: 0 | I107: 0 | J107: 0 | K107: 0 | L107: 13.71666667 | M107: 0.9066666667 | N107: 2.024410256 | O107: 1.85904407 | P107: 1.673139663 | Q107: 13.08247719 | R107: 12.9824003 | S107: 0 | T107: 0 | U107: 0 | V107: 0.65 | W107: 0.6500708033 | X107: 0.09676768369 | BE107: 13.68 | BF107: =AVERAGE(OFFSET(BE$31,$A107,0,$BE$27,1)) -> 13.4425 | BG107: 13.1775 | BH107: 12.950625 | BI107: 12.786875 | BJ107: 12.685 | BK107: 12.63851563 | BL107: 12.64226563 | BM107: 12.68996094 | BN107: 12.77087891 | BO107: 13.1908623 | BP107: 13.00102047 | BQ107: 12.91444844 | BR107: 0.08657202811 | BS107: 13.0875925 | BT107: 12.9341185 | BU107: 12.88046691 | BV107: 12.88413506 | BW107: 13.04508982 | BX107: 0.2398486482 | BY107: -57 | BZ107: 12.91215552 | CA107: 63.85606124 | CB107: 13.45376449 | CC107: 1.333764486 | CD107: 2.588123291 | CE107: 51.53403975 | CF107: 37.15723063 | CG107: 100 | CH107: 50 | CI107: 0 | CK107: 12.91449125 | CL107: 13.35912062 | CM107: 13.23852189 | CN107: 12.99239823 | CO107: 100 | CP107: 16.7 | CR107: 13.48
A108: 77 | B108: =OFFSET(InputPriceData!B$15,CalculationsAndCharts!$A108+$A$11,0,1,1) -> 2010-07-23 | C108: =OFFSET(InputPriceData!G$15,CalculationsAndCharts!$A108+$A$11,0,1,1) -> 5364300 | D108: =OFFSET(InputPriceData!C$15,CalculationsAndCharts!$A108+$A$11,IF($C$7,7,0),1,1) -> 12.92 | E108: =OFFSET(InputPriceData!D$15,CalculationsAndCharts!$A108+$A$11,IF($C$7,7,0),1,1) -> 13.5 | F108: =OFFSET(InputPriceData!E$15,CalculationsAndCharts!$A108+$A$11,IF($C$7,7,0),1,1) -> 12.81 | G108: =OFFSET(InputPriceData!F$15,CalculationsAndCharts!$A108+$A$11,IF($C$7,7,0),1,1) -> 13.46 | H108: 0 | I108: 0 | J108: 0 | K108: 0 | L108: 13.25666667 | M108: 0.8366666667 | N108: 1.935205128 | O108: 1.811796588 | P108: 1.630616929 | Q108: 12.90128019 | R108: 12.95380691 | S108: 0 | T108: 0 | U108: 0 | V108: 0.69 | W108: 0.650106205 | X108: 0.0982991237 | BE108: 13.205 | BF108: =AVERAGE(OFFSET(BE$31,$A108,0,$BE$27,1)) -> 12.9125 | BG108: 12.72375 | BH108: 12.623125 | BI108: 12.583125 | BJ108: 12.59203125 | BK108: 12.64601563 | BL108: 12.73765625 | BM108: 12.85179687 | BN108: 12.96858398 | BO108: 12.87358545 | BP108: 12.81117863 | BQ108: 12.82787641 | BR108: -0.01669778021 | BS108: 12.79448085 | BT108: =BS108*$BF$28+$BF$29*BT109 -> 12.7806445 | BU108: =BT108*$BF$28+$BF$29*BU109 -> 12.82681533 | BV108: =BU108*$BF$28+$BF$29*BV109 -> 12.88780322 | BW108: =3*BT108-3*BU108+BV108 -> 12.74929072 | BX108: 0.2921016618 | BY108: -58 | BZ108: 12.90191477 | CA108: 36.93742048 | CB108: 13.06512606 | CC108: 0.9451260579 | CD108: 2.588123291 | CE108: 36.51781433 | CF108: 25.56243773 | CG108: 100 | CH108: 50 | CI108: 0 | CK108: 12.6564825 | CL108: 12.99636625 | CM108: 12.9197587 | CN108: 12.84570928 | CO108: 100 | CP108: 16.7
A109: 78 | B109: =OFFSET(InputPriceData!B$15,CalculationsAndCharts!$A109+$A$11,0,1,1) -> 2010-07-22 | C109: =OFFSET(InputPriceData!G$15,CalculationsAndCharts!$A109+$A$11,0,1,1) -> 3971900 | D109: =OFFSET(InputPriceData!C$15,CalculationsAndCharts!$A109+$A$11,IF($C$7,7,0),1,1) -> 12.49 | E109: =OFFSET(InputPriceData!D$15,CalculationsAndCharts!$A109+$A$11,IF($C$7,7,0),1,1) -> 13 | F109: =OFFSET(InputPriceData!E$15,CalculationsAndCharts!$A109+$A$11,IF($C$7,7,0),1,1) -> 12.42 | G109: =OFFSET(InputPriceData!F$15,CalculationsAndCharts!$A109+$A$11,IF($C$7,7,0),1,1) -> 12.95 | H109: 0 | I109: 0 | J109: 0 | K109: 0 | L109: 12.79 | M109: 0.58 | N109: 1.789564103 | O109: 1.776537005 | P109: 1.598883304 | Q109: 12.7997412 | R109: 12.96881454 | S109: 0 | T109: 0 | U109: 0 | V109: 0.71 | W109: 0.6301593075 | X109: 0.09866095039 | BE109: 12.62 | BF109: =AVERAGE(OFFSET(BE$31,$A109,0,$BE$27,1)) -> 12.535 | BG109: 12.5225 | BH109: 12.543125 | BI109: 12.6009375 | BJ109: 12.7 | BK109: 12.82929687 | BL109: 12.9659375 | BM109: 13.08537109 | BN109: 13.17007812 | BO109: 12.66226855 | BP109: 12.74877181 | BQ109: 12.84457419 | BR109: -0.09580237784 | BS109: 12.65296944 | BT109: 12.76680814 | BU109: 12.87298616 | BV109: 12.9487911 | BW109: 12.63025706 | BX109: 0.3594705656 | BY109: -59 | BZ109: 12.92952825 | CA109: 29.1866692 | CB109: 12.72613428 | CC109: 0.6061342773 | CD109: 2.588123291 | CE109: 23.41983782 | CF109: 20.31626008 | CG109: 100 | CH109: 50 | CI109: 0 | CK109: 12.59796499 | CL109: 12.68324125 | CM109: 12.69515339 | CN109: 12.78544649 | CO109: 0 | CQ109: 16.7
A110: 79 | B110: =OFFSET(InputPriceData!B$15,CalculationsAndCharts!$A110+$A$11,0,1,1) -> 2010-07-21 | C110: =OFFSET(InputPriceData!G$15,CalculationsAndCharts!$A110+$A$11,0,1,1) -> 2973700 | D110: =OFFSET(InputPriceData!C$15,CalculationsAndCharts!$A110+$A$11,IF($C$7,7,0),1,1) -> 12.76 | E110: =OFFSET(InputPriceData!D$15,CalculationsAndCharts!$A110+$A$11,IF($C$7,7,0),1,1) -> 12.79 | F110: =OFFSET(InputPriceData!E$15,CalculationsAndCharts!$A110+$A$11,IF($C$7,7,0),1,1) -> 12.21 | G110: =OFFSET(InputPriceData!F$15,CalculationsAndCharts!$A110+$A$11,IF($C$7,7,0),1,1) -> 12.29 | H110: 0 | I110: 0 | J110: 0 | K110: 0 | L110: 12.43 | M110: 0.2633333333 | N110: 1.709461538 | O110: 1.772814977 | P110: 1.595533479 | Q110: 12.8025244 | R110: 13.01712121 | S110: 0 | T110: 0 | U110: 0 | V110: 0.58 | W110: 0.5902389613 | X110: 0.09802595291 | BE110: 12.45 | BF110: =AVERAGE(OFFSET(BE$31,$A110,0,$BE$27,1)) -> 12.51 | BG110: 12.56375 | BH110: 12.65875 | BI110: 12.7990625 | BJ110: 12.95859375 | BK110: 13.10257812 | BL110: 13.20480469 | BM110: 13.25478516 | BN110: 13.25649414 | BO110: 12.69375342 | BP110: 12.83527507 | BQ110: 12.94037657 | BR110: -0.105101496 | BS110: 12.73017358 | BT110: 12.88064685 | BU110: 12.97916417 | BV110: 13.02459605 | BW110: 12.72904407 | BX110: 0.4253525176 | BY110: -60 | BZ110: 12.97830009 | CA110: 35.35003236 | CB110: 12.56187671 | CC110: 0.441876709 | CD110: 2.638123291 | CE110: 16.74966104 | CF110: 21.70224991 | CG110: 100 | CH110: 50 | CI110: 0 | CK110: 12.68342998 | CL110: 12.5489825 | CM110: 12.63192231 | CN110: 12.82632858 | CO110: 0 | CQ110: 16.7
A111: 80 | B111: =OFFSET(InputPriceData!B$15,CalculationsAndCharts!$A111+$A$11,0,1,1) -> 2010-07-20 | C111: =OFFSET(InputPriceData!G$15,CalculationsAndCharts!$A111+$A$11,0,1,1) -> 5155300 | D111: =OFFSET(InputPriceData!C$15,CalculationsAndCharts!$A111+$A$11,IF($C$7,7,0),1,1) -> 12.25 | E111: =OFFSET(InputPriceData!D$15,CalculationsAndCharts!$A111+$A$11,IF($C$7,7,0),1,1) -> 12.65 | F111: =OFFSET(InputPriceData!E$15,CalculationsAndCharts!$A111+$A$11,IF($C$7,7,0),1,1) -> 12.16 | G111: =OFFSET(InputPriceData!F$15,CalculationsAndCharts!$A111+$A$11,IF($C$7,7,0),1,1) -> 12.61 | H111: 0 | I111: 0 | J111: 0 | K111: 0 | L111: 12.47333333 | M111: 0.4966666667 | N111: 1.828705128 | O111: 1.790915959 | P111: 1.611824364 | Q111: 12.90895994 | R111: 13.07843458 | S111: 0 | T111: 0 | U111: 0 | V111: 0.49 | W111: 0.5953584419 | X111: 0.0972131992 | BE111: 12.57 | BF111: =AVERAGE(OFFSET(BE$31,$A111,0,$BE$27,1)) -> 12.6175 | BG111: 12.75375 | BH111: 12.939375 | BI111: 13.118125 | BJ111: 13.2465625 | BK111: 13.30703125 | BL111: 13.30476562 | BM111: 13.25820312 | BN111: 13.18868164 | BO111: 12.84416846 | BP111: 12.97679673 | BQ111: 13.04547807 | BR111: -0.06868133583 | BS111: 12.90811539 | BT111: 13.03112012 | BU111: 13.0776815 | BV111: 13.07002792 | BW111: 12.93034378 | BX111: 0.4956497511 | BY111: -61 | BZ111: 13.02580764 | CA111: 45.18491331 | CB111: 12.6587509 | CC111: 0.5387508952 | CD111: 2.59273112 | CE111: 20.77928139 | CF111: 28.25404486 | CG111: 100 | CH111: 50 | CI111: 0 | CK111: 12.94935996 | CL111: 12.61905498 | CM111: 12.76653719 | CN111: 12.93726702 | CO111: 0 | CQ111: 16.7 | CS111: 12.25
A112: 81 | B112: =OFFSET(InputPriceData!B$15,CalculationsAndCharts!$A112+$A$11,0,1,1) -> 2010-07-19 | C112: =OFFSET(InputPriceData!G$15,CalculationsAndCharts!$A112+$A$11,0,1,1) -> 4842200 | D112: =OFFSET(InputPriceData!C$15,CalculationsAndCharts!$A112+$A$11,IF($C$7,7,0),1,1) -> 12.83 | E112: =OFFSET(InputPriceData!D$15,CalculationsAndCharts!$A112+$A$11,IF($C$7,7,0),1,1) -> 13.01 | F112: =OFFSET(InputPriceData!E$15,CalculationsAndCharts!$A112+$A$11,IF($C$7,7,0),1,1) -> 12.43 | G112: =OFFSET(InputPriceData!F$15,CalculationsAndCharts!$A112+$A$11,IF($C$7,7,0),1,1) -> 12.53 | H112: 0 | I112: =IF($S$16,AVERAGE(OFFSET($G112,0,0,I$31,1)),0) -> 0 | J112: 0 | K112: 0 | L112: 12.65666667 | M112: 0.5166666667 | N112: 1.811410256 | O112: 1.780119054 | P112: 1.602107149 | Q112: 13.03342469 | R112: 13.12685591 | S112: 0 | T112: 0 | U112: 0 | V112: 0.58 | W112: 0.6480376628 | X112: 0.1017188877 | BE112: 12.665 | BF112: =AVERAGE(OFFSET(BE$31,$A112,0,$BE$27,1)) -> 12.89 | BG112: 13.125 | BH112: 13.296875 | BI112: 13.375 | BJ112: 13.3675 | BK112: 13.3025 | BL112: 13.21164062 | BM112: 13.11916016 | BN112: 13.03785156 | BO112: 13.01337012 | BP112: 13.109425 | BQ112: 13.1141594 | BR112: -0.004734398471 | BS112: 13.1046906 | BT112: 13.15412484 | BU112: 13.12424288 | BV112: 13.06237434 | BW112: 13.15202023 | BX112: 0.5682525675 | BY112: -62 | BZ112: 13.06093623 | CA112: 54.00719682 | CB112: 12.83501839 | CC112: 0.7150183919 | CD112: 2.59273112 | CE112: 27.5778073 | CF112: 34.96973364 | CG112: 100 | CH112: 50 | CI112: 0 | CK112: 13.19871993 | CL112: 12.88185996 | CM112: 12.96200642 | CN112: 13.06455183 | CO112: 0 | CQ112: 16.7
A113: 82 | B113: =OFFSET(InputPriceData!B$15,CalculationsAndCharts!$A113+$A$11,0,1,1) -> 2010-07-16 | C113: =OFFSET(InputPriceData!G$15,CalculationsAndCharts!$A113+$A$11,0,1,1) -> 6426200 | D113: =OFFSET(InputPriceData!C$15,CalculationsAndCharts!$A113+$A$11,IF($C$7,7,0),1,1) -> 13.32 | E113: =OFFSET(InputPriceData!D$15,CalculationsAndCharts!$A113+$A$11,IF($C$7,7,0),1,1) -> 13.42 | F113: =OFFSET(InputPriceData!E$15,CalculationsAndCharts!$A113+$A$11,IF($C$7,7,0),1,1) -> 12.62 | G113: =OFFSET(InputPriceData!F$15,CalculationsAndCharts!$A113+$A$11,IF($C$7,7,0),1,1) -> 12.8 | H113: 0 | I113: 0 | J113: 0 | K113: 0 | L113: 12.94666667 | M113: 0.7466666667 | N113: 1.815961538 | O113: 1.771178711 | P113: 1.59406084 | Q113: 13.14106984 | R113: 13.15355055 | S113: 0 | T113: 0 | U113: 0 | V113: 0.81 | W113: 0.6820564943 | X113: 0.1032856636 | BE113: 13.115 | BF113: =AVERAGE(OFFSET(BE$31,$A113,0,$BE$27,1)) -> 13.36 | BG113: 13.46875 | BH113: 13.453125 | BI113: 13.36 | BJ113: 13.2375 | BK113: 13.12078125 | BL113: 13.02667969 | BM113: 12.95654297 | BN113: 12.90364258 | BO113: 13.24663232 | BP113: 13.20547989 | BQ113: 13.1188938 | BR113: 0.08658608929 | BS113: 13.29206598 | BT113: 13.20355908 | BU113: 13.09436092 | BV113: 13.00050581 | BW113: 13.32810028 | BX113: 0.639070577 | BY113: -63 | BZ113: 13.08092151 | CA113: 59.66946311 | CB113: 13.0966495 | CC113: 0.9766494954 | CD113: 2.68273112 | CE113: 36.4050459 | CF113: 40.20506795 | CG113: 100 | CH113: 50 | CI113: 0 | CK113: 13.35743985 | CL113: 13.10935996 | CM113: 13.16556626 | CN113: 13.13762858 | CO113: 100 | CP113: 16.7
A114: 83 | B114: =OFFSET(InputPriceData!B$15,CalculationsAndCharts!$A114+$A$11,0,1,1) -> 2010-07-15 | C114: =OFFSET(InputPriceData!G$15,CalculationsAndCharts!$A114+$A$11,0,1,1) -> 5770900 | D114: =OFFSET(InputPriceData!C$15,CalculationsAndCharts!$A114+$A$11,IF($C$7,7,0),1,1) -> 13.47 | E114: =OFFSET(InputPriceData!D$15,CalculationsAndCharts!$A114+$A$11,IF($C$7,7,0),1,1) -> 13.54 | F114: =OFFSET(InputPriceData!E$15,CalculationsAndCharts!$A114+$A$11,IF($C$7,7,0),1,1) -> 13.13 | G114: =OFFSET(InputPriceData!F$15,CalculationsAndCharts!$A114+$A$11,IF($C$7,7,0),1,1) -> 13.43 | H114: 0 | I114: 0 | J114: 0 | K114: 0 | L114: 13.36666667 | M114: 0.5633333333 | N114: 1.729487179 | O114: 1.758383617 | P114: 1.582545255 | Q114: 13.1966136 | R114: 13.15711646 | S114: 0 | T114: 0 | U114: 0 | V114: 0.65 | W114: 0.6180847414 | X114: 0.09602269109 | BE114: 13.605 | BF114: =AVERAGE(OFFSET(BE$31,$A114,0,$BE$27,1)) -> 13.5775 | BG114: 13.4375 | BH114: 13.266875 | BI114: 13.115 | BJ114: 13.0040625 | BK114: 12.93257813 | BL114: 12.88640625 | BM114: 12.85074219 | BN114: 12.81666016 | BO114: 13.33933496 | BP114: 13.16432746 | BQ114: 13.03230771 | BR114: 0.132019744 | BS114: 13.2963472 | BT114: 13.11505218 | BU114: 12.98516276 | BV114: 12.90665069 | BW114: 13.29631894 | BX114: 0.7019619075 | BY114: -64 | BZ114: 13.0898721 | CA114: 57.35249441 | CB114: 13.35300081 | CC114: 1.233000814 | CD114: 3.01273112 | CE114: 40.92634771 | CF114: 38.63438324 | CG114: 100 | CH114: 50 | CI114: 0 | CK114: 13.32237971 | CL114: 13.34621993 | CM114: 13.31149933 | CN114: 13.14893603 | CO114: 100 | CP114: 16.7
A115: 84 | B115: =OFFSET(InputPriceData!B$15,CalculationsAndCharts!$A115+$A$11,0,1,1) -> 2010-07-14 | C115: =OFFSET(InputPriceData!G$15,CalculationsAndCharts!$A115+$A$11,0,1,1) -> 6872500 | D115: =OFFSET(InputPriceData!C$15,CalculationsAndCharts!$A115+$A$11,IF($C$7,7,0),1,1) -> 13.43 | E115: =OFFSET(InputPriceData!D$15,CalculationsAndCharts!$A115+$A$11,IF($C$7,7,0),1,1) -> 13.95 | F115: =OFFSET(InputPriceData!E$15,CalculationsAndCharts!$A115+$A$11,IF($C$7,7,0),1,1) -> 13.35 | G115: =OFFSET(InputPriceData!F$15,CalculationsAndCharts!$A115+$A$11,IF($C$7,7,0),1,1) -> 13.78 | H115: 0 | I115: 0 | J115: 0 | K115: 0 | L115: 13.69333333 | M115: 0.6933333333 | N115: 1.826884615 | O115: 1.766639742 | P115: 1.589975768 | Q115: 13.14802701 | R115: 13.14583156 | S115: 0 | T115: 0 | U115: 0 | V115: 0.63 | W115: 0.6021271121 | X115: 0.09369572657 | BE115: 13.55 | BF115: =AVERAGE(OFFSET(BE$31,$A115,0,$BE$27,1)) -> 13.2975 | BG115: 13.09625 | BH115: 12.963125 | BI115: 12.893125 | BJ115: 12.86109375 | BK115: 12.84023438 | BL115: 12.81507813 | BM115: 12.78257813 | BN115: 12.7472168 | BO115: 13.15471631 | BP115: 12.98931995 | BQ115: 12.90028797 | BR115: 0.08903198212 | BS115: 13.07835193 | BT115: 12.93375716 | BU115: 12.85527335 | BV115: 12.82813862 | BW115: 13.06359006 | BX115: 0.7516305675 | BY115: -65 | BZ115: 13.10978927 | CA115: 48.46336718 | CB115: 13.42402482 | CC115: 1.304024821 | CD115: 3.01273112 | CE115: 43.28381024 | CF115: 31.005719 | CG115: 100 | CH115: 50 | CI115: 0 | CK115: 13.01725941 | CL115: 13.40300471 | CM115: 13.2747211 | CN115: 13.07002247 | CO115: 100 | CP115: 16.7 | CR115: 13.43
A116: 85 | B116: =OFFSET(InputPriceData!B$15,CalculationsAndCharts!$A116+$A$11,0,1,1) -> 2010-07-13 | C116: =OFFSET(InputPriceData!G$15,CalculationsAndCharts!$A116+$A$11,0,1,1) -> 6314000 | D116: =OFFSET(InputPriceData!C$15,CalculationsAndCharts!$A116+$A$11,IF($C$7,7,0),1,1) -> 13.08 | E116: =OFFSET(InputPriceData!D$15,CalculationsAndCharts!$A116+$A$11,IF($C$7,7,0),1,1) -> 13.5 | F116: =OFFSET(InputPriceData!E$15,CalculationsAndCharts!$A116+$A$11,IF($C$7,7,0),1,1) -> 13 | G116: =OFFSET(InputPriceData!F$15,CalculationsAndCharts!$A116+$A$11,IF($C$7,7,0),1,1) -> 13.32 | H116: 0 | I116: 0 | J116: 0 | K116: 0 | L116: 13.27333333 | M116: 0.6633333333 | N116: 1.748602564 | O116: 1.749426921 | P116: 1.574484229 | Q116: 12.99222521 | R116: 13.14520429 | S116: 0 | T116: 0 | U116: 0 | V116: 0.73 | W116: 0.5881906681 | X116: 0.09415845857 | BE116: 13.045 | BF116: =AVERAGE(OFFSET(BE$31,$A116,0,$BE$27,1)) -> 12.895 | BG116: 12.83 | BH116: 12.823125 | BI116: 12.8290625 | BJ116: 12.819375 | BK116: 12.78992188 | BL116: 12.75007813 | BM116: 12.71185547 | BN116: 12.68477539 | BO116: 12.87631592 | BP116: 12.82392359 | BQ116: 12.81125598 | BR116: 0.01266760485 | BS116: 12.83659119 | BT116: 12.78916239 | BU116: 12.77678953 | BV116: 12.80100389 | BW116: 12.83812246 | BX116: 0.7808932398 | BY116: -66 | BZ116: 13.16282149 | CA116: 39.60488402 | CB116: 13.07482463 | CC116: 0.9548246257 | CD116: 3.01273112 | CE116: 31.69299176 | CF116: 22.36439955 | CG116: 100 | CH116: 50 | CI116: 0 | CK116: 12.80951883 | CL116: 13.08600941 | CM116: 12.99564628 | CN116: 12.93682957 | CO116: 100 | CP116: 16.7
A117: 86 | B117: =OFFSET(InputPriceData!B$15,CalculationsAndCharts!$A117+$A$11,0,1,1) -> 2010-07-12 | C117: =OFFSET(InputPriceData!G$15,CalculationsAndCharts!$A117+$A$11,0,1,1) -> 3117600 | D117: =OFFSET(InputPriceData!C$15,CalculationsAndCharts!$A117+$A$11,IF($C$7,7,0),1,1) -> 12.76 | E117: =OFFSET(InputPriceData!D$15,CalculationsAndCharts!$A117+$A$11,IF($C$7,7,0),1,1) -> 13.06 | F117: =OFFSET(InputPriceData!E$15,CalculationsAndCharts!$A117+$A$11,IF($C$7,7,0),1,1) -> 12.61 | G117: =OFFSET(InputPriceData!F$15,CalculationsAndCharts!$A117+$A$11,IF($C$7,7,0),1,1) -> 12.77 | H117: 0 | I117: 0 | J117: 0 | K117: 0 | L117: 12.81333333 | M117: 0.1733333333 | N117: 1.700358974 | O117: 1.749662451 | P117: 1.574696206 | Q117: 12.9119086 | R117: 13.18891261 | S117: 0 | T117: 0 | U117: 0 | V117: 0.45 | W117: 0.5172860022 | X117: 0.09050790933 | BE117: 12.745 | BF117: =AVERAGE(OFFSET(BE$31,$A117,0,$BE$27,1)) -> 12.765 | BG117: 12.81625 | BH117: 12.835 | BI117: 12.8096875 | BJ117: 12.76046875 | BK117: 12.71023438 | BL117: 12.67363281 | BM117: 12.65769531 | BN117: 12.66513672 | BO117: 12.75903027 | BP117: 12.77153126 | BQ117: 12.79858838 | BR117: -0.02705711848 | BS117: 12.74447414 | BT117: 12.74173358 | BU117: 12.76441667 | BV117: 12.82521824 | BW117: 12.75716897 | BX117: 0.7817113278 | BY117: -67 | BZ117: 13.24870974 | CA117: 34.27997826 | CB117: 12.7861818 | CC117: 0.6661818034 | CD117: 3.69273112 | CE117: 18.040355 | CF117: 18.77384542 | CG117: 100 | CH117: 50 | CI117: 0 | CK117: 12.81903766 | CL117: 12.82225941 | CM117: 12.81052158 | CN117: 12.87715763 | CO117: 0 | CQ117: 16.7
A118: 87 | B118: =OFFSET(InputPriceData!B$15,CalculationsAndCharts!$A118+$A$11,0,1,1) -> 2010-07-09 | C118: =OFFSET(InputPriceData!G$15,CalculationsAndCharts!$A118+$A$11,0,1,1) -> 4815900 | D118: =OFFSET(InputPriceData!C$15,CalculationsAndCharts!$A118+$A$11,IF($C$7,7,0),1,1) -> 12.82 | E118: =OFFSET(InputPriceData!D$15,CalculationsAndCharts!$A118+$A$11,IF($C$7,7,0),1,1) -> 12.87 | F118: =OFFSET(InputPriceData!E$15,CalculationsAndCharts!$A118+$A$11,IF($C$7,7,0),1,1) -> 12.64 | G118: =OFFSET(InputPriceData!F$15,CalculationsAndCharts!$A118+$A$11,IF($C$7,7,0),1,1) -> 12.72 | H118: 0 | I118: 0 | J118: 0 | K118: 0 | L118: 12.74333333 | M118: 0.3566666667 | N118: 1.834166667 | O118: 1.763749159 | P118: 1.587374243 | Q118: 12.94007296 | R118: 13.26805661 | S118: 0 | T118: 0 | U118: 0 | V118: 0.23 | W118: 0.5509290033 | X118: 0.09331202856 | BE118: 12.785 | BF118: =AVERAGE(OFFSET(BE$31,$A118,0,$BE$27,1)) -> 12.8675 | BG118: 12.85375 | BH118: 12.784375 | BI118: 12.71125 | BJ118: 12.66 | BK118: 12.63703125 | BL118: 12.64175781 | BM118: 12.67257813 | BN118: 12.72782227 | BO118: 12.77877197 | BP118: 12.78403225 | BQ118: 12.8256455 | BR118: -0.04161324876 | BS118: 12.742419 | BT118: 12.73899302 | BU118: 12.78709976 | BV118: 12.88601981 | BW118: 12.7416996 | BX118: 0.7606752172 | BY118: -68 | BZ118: 13.3517864 | CA118: 29.94916929 | CB118: 12.76105265 | CC118: 0.641052653 | CD118: 3.69273112 | CE118: 17.35985189 | CF118: 18.64284159 | CG118: 100 | CH118: 50 | CI118: 0 | CK118: 12.87557531 | CL118: 12.78841266 | CM118: 12.80864707 | CN118: 12.89911692 | CO118: 0 | CQ118: 16.7
A119: 88 | B119: =OFFSET(InputPriceData!B$15,CalculationsAndCharts!$A119+$A$11,0,1,1) -> 2010-07-08 | C119: =OFFSET(InputPriceData!G$15,CalculationsAndCharts!$A119+$A$11,0,1,1) -> 6067900 | D119: =OFFSET(InputPriceData!C$15,CalculationsAndCharts!$A119+$A$11,IF($C$7,7,0),1,1) -> 13.22 | E119: =OFFSET(InputPriceData!D$15,CalculationsAndCharts!$A119+$A$11,IF($C$7,7,0),1,1) -> 13.46 | F119: =OFFSET(InputPriceData!E$15,CalculationsAndCharts!$A119+$A$11,IF($C$7,7,0),1,1) -> 12.68 | G119: =OFFSET(InputPriceData!F$15,CalculationsAndCharts!$A119+$A$11,IF($C$7,7,0),1,1) -> 12.85 | H119: 0 | I119: 0 | J119: 0 | K119: 0 | L119: 12.99666667 | M119: 0.6166666667 | N119: 1.805948718 | O119: 1.743629871 | P119: 1.569266884 | Q119: 12.99628428 | R119: 13.36176622 | S119: 0 | T119: 0 | U119: 0 | V119: 0.78 | W119: 0.7113935049 | X119: 0.1053613622 | BE119: 12.95 | BF119: =AVERAGE(OFFSET(BE$31,$A119,0,$BE$27,1)) -> 12.84 | BG119: 12.715 | BH119: 12.638125 | BI119: 12.60875 | BJ119: 12.6140625 | BK119: 12.64648438 | BL119: 12.70339844 | BM119: 12.78306641 | BN119: 12.88239258 | BO119: 12.78847021 | BP119: 12.78929253 | BQ119: 12.86725875 | BR119: -0.07796622035 | BS119: 12.71132631 | BT119: 12.73556705 | BU119: 12.8352065 | BV119: 12.98493985 | BW119: 12.6860215 | BX119: 0.7256777098 | BY119: -69 | BZ119: 13.46465797 | CA119: 23.1755414 | CB119: 12.89256844 | CC119: 0.7725684408 | CD119: 3.69273112 | CE119: 20.92132938 | CF119: 17.25467506 | CG119: 100 | CH119: 50 | CI119: 0 | CK119: 12.69865063 | CL119: 12.97278766 | CM119: 12.85218957 | CN119: 12.94339862 | CO119: 0 | CQ119: 16.7
A120: 89 | B120: =OFFSET(InputPriceData!B$15,CalculationsAndCharts!$A120+$A$11,0,1,1) -> 2010-07-07 | C120: =OFFSET(InputPriceData!G$15,CalculationsAndCharts!$A120+$A$11,0,1,1) -> 4859500 | D120: =OFFSET(InputPriceData!C$15,CalculationsAndCharts!$A120+$A$11,IF($C$7,7,0),1,1) -> 12.41 | E120: =OFFSET(InputPriceData!D$15,CalculationsAndCharts!$A120+$A$11,IF($C$7,7,0),1,1) -> 13.12 | F120: =OFFSET(InputPriceData!E$15,CalculationsAndCharts!$A120+$A$11,IF($C$7,7,0),1,1) -> 12.38 | G120: =OFFSET(InputPriceData!F$15,CalculationsAndCharts!$A120+$A$11,IF($C$7,7,0),1,1) -> 13.05 | H120: 0 | I120: 0 | J120: 0 | K120: 0 | L120: 12.85 | M120: 0.58 | N120: 1.686705128 | O120: 1.725824487 | P120: 1.553242038 | Q120: 12.99617503 | R120: 13.46618963 | S120: 0 | T120: 0 | U120: 0 | V120: 0.74 | W120: 0.6770902574 | X120: 0.1018843109 | BE120: 12.73 | BF120: =AVERAGE(OFFSET(BE$31,$A120,0,$BE$27,1)) -> 12.59 | BG120: 12.56125 | BH120: 12.579375 | BI120: 12.619375 | BJ120: 12.67890625 | BK120: 12.7603125 | BL120: 12.86273438 | BM120: 12.98171875 | BN120: 13.11121094 | BO120: 12.69333789 | BP120: 12.79011484 | BQ120: 12.94522497 | BR120: -0.1551101286 | BS120: 12.63500471 | BT120: 12.75980779 | BU120: 12.93484595 | BV120: 13.13467321 | BW120: 12.60955873 | BX120: 0.673535929 | BY120: -70 | BZ120: 13.59148251 | CA120: 13.55340004 | CB120: =(BO120+L120)/2 -> 12.77166895 | CC120: =CB120-MIN(OFFSET(F120,0,0,$BI$27,1)) -> 0.6516689453 | CD120: =MAX(OFFSET(E120,0,0,$BI$27,1))-MIN(OFFSET(CB120,0,0,$BI$27,1)) -> 3.69273112 | CE120: 17.6473435 | CF120: 15.86924172 | CG120: 100 | CH120: 50 | CI120: 0 | CK120: 12.65730125 | CL120: 12.72432531 | CM120: 12.7558715 | CN120: 12.93164301 | CO120: 0 | CQ120: 16.7
A121: 90 | B121: =OFFSET(InputPriceData!B$15,CalculationsAndCharts!$A121+$A$11,0,1,1) -> 2010-07-06 | C121: =OFFSET(InputPriceData!G$15,CalculationsAndCharts!$A121+$A$11,0,1,1) -> 3306900 | D121: =OFFSET(InputPriceData!C$15,CalculationsAndCharts!$A121+$A$11,IF($C$7,7,0),1,1) -> 12.67 | E121: =OFFSET(InputPriceData!D$15,CalculationsAndCharts!$A121+$A$11,IF($C$7,7,0),1,1) -> 12.9 | F121: =OFFSET(InputPriceData!E$15,CalculationsAndCharts!$A121+$A$11,IF($C$7,7,0),1,1) -> 12.27 | G121: =OFFSET(InputPriceData!F$15,CalculationsAndCharts!$A121+$A$11,IF($C$7,7,0),1,1) -> 12.41 | H121: 0 | I121: 0 | J121: 0 | K121: 0 | L121: 12.52666667 | M121: 0.3033333333 | N121: 1.61024359 | O121: 1.737001446 | P121: 1.563301302 | Q121: 13.03793932 | R121: 13.60047952 | S121: 0 | T121: 0 | U121: 0 | V121: 0.63 | W121: 0.645635386 | X121: 0.1020254139 | BE121: 12.45 | BF121: =AVERAGE(OFFSET(BE$31,$A121,0,$BE$27,1)) -> 12.5325 | BG121: 12.5975 | BH121: 12.659375 | BI121: 12.7384375 | BJ121: 12.84171875 | BK121: 12.96515625 | BL121: 13.10070312 | BM121: 13.24070312 | BN121: 13.37945312 | BO121: 12.68787109 | BP121: 12.88689179 | BQ121: 13.1003351 | BR121: -0.2134433086 | BS121: 12.67344848 | BT121: 12.88461087 | BU121: 13.10988411 | BV121: 13.33450046 | BW121: 12.65868074 | BX121: 0.5979663765 | BY121: -71 | BZ121: 13.73485164 | CA121: 5.007047913 | CB121: 12.60726888 | CC121: 0.4872688802 | CD121: 3.69273112 | CE121: 13.19535229 | CF121: 16.67771082 | CG121: 100 | CH121: 50 | CI121: 0 | CK121: 12.7521025 | CL121: 12.62115063 | CM121: 12.69311917 | CN121: 13.01457009 | CO121: 0 | CQ121: 16.7
A122: 91 | B122: =OFFSET(InputPriceData!B$15,CalculationsAndCharts!$A122+$A$11,0,1,1) -> 2010-07-02 | C122: =OFFSET(InputPriceData!G$15,CalculationsAndCharts!$A122+$A$11,0,1,1) -> 3295000 | D122: =OFFSET(InputPriceData!C$15,CalculationsAndCharts!$A122+$A$11,IF($C$7,7,0),1,1) -> 12.83 | E122: =OFFSET(InputPriceData!D$15,CalculationsAndCharts!$A122+$A$11,IF($C$7,7,0),1,1) -> 12.93 | F122: =OFFSET(InputPriceData!E$15,CalculationsAndCharts!$A122+$A$11,IF($C$7,7,0),1,1) -> 12.3 | G122: =OFFSET(InputPriceData!F$15,CalculationsAndCharts!$A122+$A$11,IF($C$7,7,0),1,1) -> 12.49 | H122: 0 | I122: 0 | J122: 0 | K122: 0 | L122: 12.57333333 | M122: 0.2866666667 | N122: 1.639371795 | O122: 1.773217977 | P122: 1.595896179 | Q122: 13.18401722 | R122: 13.76120529 | S122: 0 | T122: 0 | U122: 0 | V122: 0.63 | W122: 0.653453079 | X122: 0.1023181008 | BE122: 12.615 | BF122: =AVERAGE(OFFSET(BE$31,$A122,0,$BE$27,1)) -> 12.6625 | BG122: 12.72125 | BH122: 12.8175 | BI122: 12.945 | BJ122: 13.08859375 | BK122: 13.23625 | BL122: 13.38070313 | BM122: 13.51820312 | BN122: 13.64727539 | BO122: 12.86698877 | BP122: 13.08591248 | BQ122: 13.3137784 | BR122: -0.2278659233 | BS122: 12.85804656 | BT122: 13.09577326 | BU122: 13.33515735 | BV122: 13.55911682 | BW122: 12.84096455 | BX122: 0.5074057489 | BY122: -72 | BZ122: 13.88209593 | CA122: -1.296787086 | CB122: 12.72016105 | CC122: 0.6001610514 | CD122: 3.579838949 | CE122: 16.76502938 | CF122: 16.98210044 | CG122: 100 | CH122: 50 | CI122: 0 | CK122: 12.866705 | CL122: 12.68355125 | CM122: 12.8040875 | CN122: 13.17193788 | CO122: 0 | CQ122: 16.7 | CR122: =IF(AND($S$18,$CO123>$CO124),$D122,NA()) ->  | CS122: =IF(AND($S$18,$CO123<$CO124),$D122,NA()) -> 
A123: 92 | B123: =OFFSET(InputPriceData!B$15,CalculationsAndCharts!$A123+$A$11,0,1,1) -> 2010-07-01 | C123: =OFFSET(InputPriceData!G$15,CalculationsAndCharts!$A123+$A$11,0,1,1) -> 6629800 | D123: =OFFSET(InputPriceData!C$15,CalculationsAndCharts!$A123+$A$11,IF($C$7,7,0),1,1) -> 12.67 | E123: =OFFSET(InputPriceData!D$15,CalculationsAndCharts!$A123+$A$11,IF($C$7,7,0),1,1) -> 12.9 | F123: =OFFSET(InputPriceData!E$15,CalculationsAndCharts!$A123+$A$11,IF($C$7,7,0),1,1) -> 12.12 | G123: =OFFSET(InputPriceData!F$15,CalculationsAndCharts!$A123+$A$11,IF($C$7,7,0),1,1) -> 12.74 | H123: 0 | I123: 0 | J123: 0 | K123: 0 | L123: 12.58666667 | M123: 0.7 | N123: 1.663948718 | O123: 1.811459743 | P123: 1.630313768 | Q123: 13.35849834 | R123: 13.92611616 | S123: 0 | T123: 0 | U123: 0 | V123: 0.78 | W123: 0.6651796186 | X123: 0.102211901 | BE123: 12.71 | BF123: =AVERAGE(OFFSET(BE$31,$A123,0,$BE$27,1)) -> 12.78 | BG123: 12.91375 | BH123: 13.0725 | BI123: 13.2321875 | BJ123: 13.38390625 | BK123: 13.52515625 | BL123: 13.65570312 | BM123: 13.77634766 | BN123: 13.88820313 | BO123: 13.0508877 | BP123: 13.30483619 | BQ123: 13.54164433 | BR123: -0.2368081346 | BS123: 13.06802806 | BT123: 13.33349997 | BU123: 13.57454145 | BV123: 13.78307628 | BW123: 13.05995185 | BX123: 0.4219395235 | BY123: -73 | BZ123: 14.01991509 | CA123: -6.878010939 | CB123: 12.81877718 | CC123: 0.698777181 | CD123: 3.481222819 | CE123: 20.07275079 | CF123: 15.21021789 | CG123: 100 | CH123: 50 | CI123: 0 | CK123: 13.12591001 | CL123: 12.74483 | CM123: 12.95792362 | CN123: 13.36729253 | CO123: 0 | CQ123: 16.7
A124: 93 | B124: =OFFSET(InputPriceData!B$15,CalculationsAndCharts!$A124+$A$11,0,1,1) -> 2010-06-30 | C124: =OFFSET(InputPriceData!G$15,CalculationsAndCharts!$A124+$A$11,0,1,1) -> 4182600 | D124: =OFFSET(InputPriceData!C$15,CalculationsAndCharts!$A124+$A$11,IF($C$7,7,0),1,1) -> 13.01 | E124: =OFFSET(InputPriceData!D$15,CalculationsAndCharts!$A124+$A$11,IF($C$7,7,0),1,1) -> 13.18 | F124: =OFFSET(InputPriceData!E$15,CalculationsAndCharts!$A124+$A$11,IF($C$7,7,0),1,1) -> 12.6 | G124: =OFFSET(InputPriceData!F$15,CalculationsAndCharts!$A124+$A$11,IF($C$7,7,0),1,1) -> 12.68 | H124: 0 | I124: 0 | J124: 0 | K124: 0 | L124: 12.82 | M124: 0.4333333333 | N124: 1.627538462 | O124: 1.85360575 | P124: 1.668245175 | Q124: 13.57902167 | R124: 14.08829268 | S124: 0 | T124: 0 | U124: 0 | V124: 0.58 | W124: 0.6077694279 | X124: 0.09793134289 | BE124: 12.85 | BF124: =AVERAGE(OFFSET(BE$31,$A124,0,$BE$27,1)) -> 13.0475 | BG124: 13.23125 | BH124: 13.391875 | BI124: 13.535625 | BJ124: 13.66640625 | BK124: 13.78625 | BL124: 13.89699219 | BM124: 14.00005859 | BN124: 14.09607422 | BO124: 13.29494531 | BP124: 13.55878469 | BQ124: 13.77845246 | BR124: -0.219667771 | BS124: 13.33911692 | BT124: 13.59897188 | BU124: 13.81558292 | BV124: 13.99161111 | BW124: 13.341778 | BX124: 0.3643771958 | BY124: -74 | BZ124: 14.14544342 | CA124: -5.139662587 | CB124: 13.05747266 | CC124: 0.4574726562 | CD124: 3.242527344 | CE124: 14.10852116 | CF124: 14.52951198 | CG124: 100 | CH124: 50 | CI124: 0 | CK124: 13.38432001 | CL124: 13.05903501 | CM124: 13.20542825 | CN124: 13.61627754 | CO124: 0 | CQ124: 16.7
A125: 94 | B125: =OFFSET(InputPriceData!B$15,CalculationsAndCharts!$A125+$A$11,0,1,1) -> 2010-06-29 | C125: =OFFSET(InputPriceData!G$15,CalculationsAndCharts!$A125+$A$11,0,1,1) -> 6912500 | D125: =OFFSET(InputPriceData!C$15,CalculationsAndCharts!$A125+$A$11,IF($C$7,7,0),1,1) -> 13.15 | E125: =OFFSET(InputPriceData!D$15,CalculationsAndCharts!$A125+$A$11,IF($C$7,7,0),1,1) -> 13.18 | F125: =OFFSET(InputPriceData!E$15,CalculationsAndCharts!$A125+$A$11,IF($C$7,7,0),1,1) -> 12.9 | G125: =OFFSET(InputPriceData!F$15,CalculationsAndCharts!$A125+$A$11,IF($C$7,7,0),1,1) -> 13.02 | H125: 0 | I125: 0 | J125: 0 | K125: 0 | L125: 13.03333333 | M125: 0.5333333333 | N125: 1.674871795 | O125: 1.918196404 | P125: 1.726376763 | Q125: 13.79588501 | R125: 14.23379869 | S125: 0 | T125: 0 | U125: 0 | V125: 0.57 | W125: 0.6216541418 | X125: 0.09774609384 | BE125: 13.245 | BF125: =AVERAGE(OFFSET(BE$31,$A125,0,$BE$27,1)) -> 13.415 | BG125: 13.5525 | BH125: 13.679375 | BI125: 13.7971875 | BJ125: 13.90609375 | BK125: 14.00773438 | BL125: 14.103125 | BM125: 14.19208984 | BN125: 14.27384766 | BO125: 13.60906641 | BP125: 13.82262407 | BQ125: 13.99812023 | BR125: -0.1754961628 | BS125: 13.64712791 | BT125: 13.85882684 | BU125: 14.03219396 | BV125: 14.16763931 | BW125: 13.64753795 | BX125: 0.3555654229 | BY125: -75 | BZ125: 14.25220438 | CA125: 7.48557179 | CB125: 13.32119987 | CC125: 0.4211998698 | CD125: 3.67880013 | CE125: 11.44938172 | CF125: 17.94813713 | CG125: 100 | CH125: 50 | CI125: 0 | CK125: 13.70614002 | CL125: 13.34369501 | CM125: 13.46238042 | CN125: 13.83917455 | CO125: 0 | CQ125: 16.7
A126: 95 | B126: =OFFSET(InputPriceData!B$15,CalculationsAndCharts!$A126+$A$11,0,1,1) -> 2010-06-28 | C126: =OFFSET(InputPriceData!G$15,CalculationsAndCharts!$A126+$A$11,0,1,1) -> 5826100 | D126: =OFFSET(InputPriceData!C$15,CalculationsAndCharts!$A126+$A$11,IF($C$7,7,0),1,1) -> 13.63 | E126: =OFFSET(InputPriceData!D$15,CalculationsAndCharts!$A126+$A$11,IF($C$7,7,0),1,1) -> 13.68 | F126: =OFFSET(InputPriceData!E$15,CalculationsAndCharts!$A126+$A$11,IF($C$7,7,0),1,1) -> 13.15 | G126: =OFFSET(InputPriceData!F$15,CalculationsAndCharts!$A126+$A$11,IF($C$7,7,0),1,1) -> 13.47 | H126: 0 | I126: 0 | J126: 0 | K126: 0 | L126: 13.43333333 | M126: 0.43 | N126: 1.727666667 | O126: 1.98771772 | P126: 1.788945948 | Q126: 14.01375691 | R126: 14.35891688 | S126: 0 | T126: 0 | U126: 0 | V126: 0.55 | W126: 0.6474812127 | X126: 0.09806838995 | BE126: 13.585 | BF126: =AVERAGE(OFFSET(BE$31,$A126,0,$BE$27,1)) -> 13.69 | BG126: 13.80625 | BH126: 13.915 | BI126: 14.015 | BJ126: 14.109375 | BK126: 14.19851562 | BL126: 14.28105469 | BM126: 14.35560547 | BN126: 14.42089844 | BO126: 13.86570996 | BP126: 14.03618174 | BQ126: 14.1736164 | BR126: -0.1374346607 | BS126: 13.89874708 | BT126: 14.07052577 | BU126: 14.20556108 | BV126: 14.30308465 | BW126: 13.89797874 | BX126: 0.3768026028 | BY126: -76 | BZ126: 14.33658736 | CA126: 20.89931106 | CB126: 13.64952165 | CC126: 0.6095216471 | CD126: 3.380478353 | CE126: 18.03063305 | CF126: 19.67120925 | CG126: 100 | CH126: 50 | CI126: 0 | CK126: 13.92978004 | CL126: 13.62301502 | CM126: 13.74841181 | CN126: 14.03736637 | CO126: 0 | CQ126: 16.7
A127: 96 | B127: =OFFSET(InputPriceData!B$15,CalculationsAndCharts!$A127+$A$11,0,1,1) -> 2010-06-25 | C127: =OFFSET(InputPriceData!G$15,CalculationsAndCharts!$A127+$A$11,0,1,1) -> 11094400 | D127: =OFFSET(InputPriceData!C$15,CalculationsAndCharts!$A127+$A$11,IF($C$7,7,0),1,1) -> 14 | E127: =OFFSET(InputPriceData!D$15,CalculationsAndCharts!$A127+$A$11,IF($C$7,7,0),1,1) -> 14 | F127: =OFFSET(InputPriceData!E$15,CalculationsAndCharts!$A127+$A$11,IF($C$7,7,0),1,1) -> 13.04 | G127: =OFFSET(InputPriceData!F$15,CalculationsAndCharts!$A127+$A$11,IF($C$7,7,0),1,1) -> 13.7 | H127: 0 | I127: 0 | J127: 0 | K127: 0 | L127: 13.58 | M127: 0.92 | N127: 1.855102564 | O127: 2.062018021 | P127: 1.855816219 | Q127: 14.17959222 | R127: 14.45753402 | S127: 0 | T127: 0 | U127: 0 | V127: 0.96 | W127: 0.696221819 | X127: 0.1008191109 | BE127: 13.795 | BF127: =AVERAGE(OFFSET(BE$31,$A127,0,$BE$27,1)) -> 13.9225 | BG127: 14.02375 | BH127: 14.115 | BI127: 14.20375 | BJ127: 14.28765625 | BK127: 14.36359375 | BL127: 14.43015625 | BM127: 14.48619141 | BN127: 14.52985352 | BO127: 14.06337256 | BP127: 14.20665351 | BQ127: 14.31105106 | BR127: -0.1043975466 | BS127: 14.10225596 | BT127: 14.24230447 | BU127: 14.34059638 | BV127: 14.40060823 | BW127: 14.10573251 | BX127: 0.4106884105 | BY127: -77 | BZ127: 14.40341012 | CA127: 31.87935128 | CB127: 13.82168628 | CC127: 0.7816862793 | CD127: 3.208313721 | CE127: 24.36439661 | CF127: 20.71142538 | CG127: 100 | CH127: 50 | CI127: 0 | CK127: 14.17456008 | CL127: 13.76853004 | CM127: 13.95846412 | CN127: 14.20310691 | CO127: 0 | CQ127: 16.7
A128: 97 | B128: =OFFSET(InputPriceData!B$15,CalculationsAndCharts!$A128+$A$11,0,1,1) -> 2010-06-24 | C128: =OFFSET(InputPriceData!G$15,CalculationsAndCharts!$A128+$A$11,0,1,1) -> 3891000 | D128: =OFFSET(InputPriceData!C$15,CalculationsAndCharts!$A128+$A$11,IF($C$7,7,0),1,1) -> 14.14 | E128: =OFFSET(InputPriceData!D$15,CalculationsAndCharts!$A128+$A$11,IF($C$7,7,0),1,1) -> 14.23 | F128: =OFFSET(InputPriceData!E$15,CalculationsAndCharts!$A128+$A$11,IF($C$7,7,0),1,1) -> 13.76 | G128: =OFFSET(InputPriceData!F$15,CalculationsAndCharts!$A128+$A$11,IF($C$7,7,0),1,1) -> 13.89 | H128: 0 | I128: 0 | J128: 0 | K128: 0 | L128: 13.96 | M128: 0.4066666667 | N128: 1.790474359 | O128: 2.121136724 | P128: 1.909023051 | Q128: 14.35090428 | R128: 14.53694596 | S128: 0 | T128: 0 | U128: 0 | V128: 0.47 | W128: 0.5643327285 | X128: 0.09062870616 | BE128: 14.05 | BF128: =AVERAGE(OFFSET(BE$31,$A128,0,$BE$27,1)) -> 14.125 | BG128: 14.20625 | BH128: 14.2925 | BI128: 14.3715625 | BJ128: 14.43953125 | BK128: 14.49671875 | BL128: 14.54222656 | BM128: 14.57351562 | BN128: 14.58837891 | BO128: 14.24828418 | BP128: 14.34993446 | BQ128: 14.4154486 | BR128: -0.06551414089 | BS128: 14.28442032 | BT128: 14.38235298 | BU128: 14.43888829 | BV128: 14.46062007 | BW128: 14.29101416 | BX128: 0.4600646266 | BY128: -78 | BZ128: 14.45692583 | CA128: 40.98432798 | CB128: 14.10414209 | CC128: 0.6341420898 | CD128: 3.81585791 | CE128: 16.61859809 | CF128: 20.90105103 | CG128: 100 | CH128: 50 | CI128: 0 | CK128: 14.34412017 | CL128: 14.11331008 | CM128: 14.21077354 | CN128: 14.37693766 | CO128: 0 | CQ128: 16.7
A129: 98 | B129: =OFFSET(InputPriceData!B$15,CalculationsAndCharts!$A129+$A$11,0,1,1) -> 2010-06-23 | C129: =OFFSET(InputPriceData!G$15,CalculationsAndCharts!$A129+$A$11,0,1,1) -> 4384800 | D129: =OFFSET(InputPriceData!C$15,CalculationsAndCharts!$A129+$A$11,IF($C$7,7,0),1,1) -> 14.2 | E129: =OFFSET(InputPriceData!D$15,CalculationsAndCharts!$A129+$A$11,IF($C$7,7,0),1,1) -> 14.44 | F129: =OFFSET(InputPriceData!E$15,CalculationsAndCharts!$A129+$A$11,IF($C$7,7,0),1,1) -> 13.85 | G129: =OFFSET(InputPriceData!F$15,CalculationsAndCharts!$A129+$A$11,IF($C$7,7,0),1,1) -> 14.21 | H129: 0 | I129: 0 | J129: 0 | K129: 0 | L129: 14.16666667 | M129: 0.4866666667 | N129: 1.951589744 | O129: 2.215611685 | P129: 1.994050516 | Q129: 14.46259122 | R129: 14.59010073 | S129: 0 | T129: 0 | U129: 0 | V129: 0.59 | W129: 0.6114990927 | X129: 0.09303301145 | BE129: 14.2 | BF129: =AVERAGE(OFFSET(BE$31,$A129,0,$BE$27,1)) -> 14.2875 | BG129: 14.37875 | BH129: 14.450625 | BI129: 14.5075 | BJ129: 14.55390625 | BK129: 14.58773438 | BL129: 14.60480469 | BM129: 14.60324219 | BN129: 14.58429687 | BO129: 14.38144922 | BP129: 14.45158475 | BQ129: 14.48096274 | BR129: -0.02937799842 | BS129: 14.42220675 | BT129: 14.48028564 | BU129: 14.49542359 | BV129: 14.48235186 | BW129: 14.43693801 | BX129: 0.5091130586 | BY129: -79 | BZ129: 14.49885388 | CA129: 46.9596211 | CB129: 14.27405794 | CC129: 0.8040579427 | CD129: 3.801462077 | CE129: 21.15128144 | CF129: 25.65066247 | CG129: 100 | CH129: 50 | CI129: 0 | CK129: 14.51324034 | CL129: 14.26287017 | CM129: 14.3779559 | CN129: 14.48238869 | CO129: 0 | CQ129: 16.7 | CS129: 14.2
A130: 99 | B130: =OFFSET(InputPriceData!B$15,CalculationsAndCharts!$A130+$A$11,0,1,1) -> 2010-06-22 | C130: =OFFSET(InputPriceData!G$15,CalculationsAndCharts!$A130+$A$11,0,1,1) -> 6343000 | D130: =OFFSET(InputPriceData!C$15,CalculationsAndCharts!$A130+$A$11,IF($C$7,7,0),1,1) -> 14.38 | E130: =OFFSET(InputPriceData!D$15,CalculationsAndCharts!$A130+$A$11,IF($C$7,7,0),1,1) -> 14.77 | F130: =OFFSET(InputPriceData!E$15,CalculationsAndCharts!$A130+$A$11,IF($C$7,7,0),1,1) -> 14.05 | G130: =OFFSET(InputPriceData!F$15,CalculationsAndCharts!$A130+$A$11,IF($C$7,7,0),1,1) -> 14.19 | H130: 0 | I130: 0 | J130: 0 | K130: 0 | L130: 14.33666667 | M130: 0.6633333333 | N130: 2.089038462 | O130: 2.291046525 | P130: 2.061941873 | Q130: 14.54714109 | R130: 14.62653201 | S130: 0 | T130: 0 | U130: 0 | V130: 0.72 | W130: 0.6222486391 | X130: 0.09385120783 | BE130: 14.375 | BF130: =AVERAGE(OFFSET(BE$31,$A130,0,$BE$27,1)) -> 14.47 | BG130: 14.5225 | BH130: 14.564375 | BI130: 14.6003125 | BJ130: 14.6215625 | BK130: 14.621875 | BL130: 14.60167969 | BM130: 14.56535156 | BN130: 14.51779297 | BO130: 14.49899121 | BP130: 14.52172027 | BQ130: 14.51034074 | BR130: 0.01137953081 | BS130: 14.5330998 | BT130: 14.53836454 | BU130: 14.51056154 | BV130: 14.46928012 | BW130: 14.55268912 | BX130: 0.5405821608 | BY130: -80 | BZ130: 14.53188051 | CA130: 50.96232393 | CB130: 14.41782894 | CC130: 0.9478289388 | CD130: 3.801462077 | CE130: 24.93327356 | CF130: 28.41265915 | CG130: 100 | CH130: 50 | CI130: 0 | CK130: 14.67898068 | CL130: 14.46162017 | CM130: 14.51881539 | CN130: 14.5701961 | CO130: 0 | CQ130: 16.7
A131: 100 | B131: =OFFSET(InputPriceData!B$15,CalculationsAndCharts!$A131+$A$11,0,1,1) -> 2010-06-21 | C131: =OFFSET(InputPriceData!G$15,CalculationsAndCharts!$A131+$A$11,0,1,1) -> 5033300 | D131: =OFFSET(InputPriceData!C$15,CalculationsAndCharts!$A131+$A$11,IF($C$7,7,0),1,1) -> 14.83 | E131: =OFFSET(InputPriceData!D$15,CalculationsAndCharts!$A131+$A$11,IF($C$7,7,0),1,1) -> 15.15 | F131: =OFFSET(InputPriceData!E$15,CalculationsAndCharts!$A131+$A$11,IF($C$7,7,0),1,1) -> 14.43 | G131: =OFFSET(InputPriceData!F$15,CalculationsAndCharts!$A131+$A$11,IF($C$7,7,0),1,1) -> 14.56 | H131: 0 | I131: 0 | J131: 0 | K131: 0 | L131: 14.71333333 | M131: 0.2533333333 | N131: 2.00074359 | O131: 2.348763115 | P131: 2.113886803 | Q131: 14.60727664 | R131: 14.64921513 | S131: 0 | T131: 0 | U131: 0 | V131: 0.72 | W131: 0.5733729587 | X131: 0.0893800109 | BE131: 14.565 | BF131: =AVERAGE(OFFSET(BE$31,$A131,0,$BE$27,1)) -> 14.575 | BG131: 14.60625 | BH131: 14.63625 | BI131: 14.6428125 | BJ131: 14.6221875 | BK131: 14.58148437 | BL131: 14.52902344 | BM131: 14.47023438 | BN131: 14.40789063 | BO131: 14.57349414 | BP131: 14.54444934 | BQ131: 14.49896121 | BR131: 0.04548812474 | BS131: 14.58993746 | BT131: 14.54362928 | BU131: 14.48275854 | BV131: 14.4279987 | BW131: 14.6106109 | BX131: 0.562695591 | BY131: -81 | BZ131: 14.55812076 | CA131: 52.33208456 | CB131: 14.64341374 | CC131: 1.173413737 | CD131: 3.801462077 | CE131: 30.86743241 | CF131: 29.20378997 | CG131: 100 | CH131: 50 | CI131: 0 | CK131: 14.61546135 | CL131: 14.73449034 | CM131: 14.64024786 | CN131: 14.61362647 | CO131: 100 | CP131: 16.7
A132: 101 | B132: =OFFSET(InputPriceData!B$15,CalculationsAndCharts!$A132+$A$11,0,1,1) -> 2010-06-18 | C132: =OFFSET(InputPriceData!G$15,CalculationsAndCharts!$A132+$A$11,0,1,1) -> 2391100 | D132: =OFFSET(InputPriceData!C$15,CalculationsAndCharts!$A132+$A$11,IF($C$7,7,0),1,1) -> 14.64 | E132: =OFFSET(InputPriceData!D$15,CalculationsAndCharts!$A132+$A$11,IF($C$7,7,0),1,1) -> 14.79 | F132: =OFFSET(InputPriceData!E$15,CalculationsAndCharts!$A132+$A$11,IF($C$7,7,0),1,1) -> 14.46 | G132: =OFFSET(InputPriceData!F$15,CalculationsAndCharts!$A132+$A$11,IF($C$7,7,0),1,1) -> 14.57 | H132: 0 | I132: =IF($S$16,AVERAGE(OFFSET($G132,0,0,I$31,1)),0) -> 0 | J132: 0 | K132: 0 | L132: 14.60666667 | M132: 0.18 | N132: 2.062641026 | O132: 2.448197265 | P132: 2.203377539 | Q132: 14.57697473 | R132: 14.66119756 | S132: 0 | T132: 0 | U132: 0 | V132: 0.33 | W132: 0.500059438 | X132: 0.08432116939 | BE132: 14.585 | BF132: =AVERAGE(OFFSET(BE$31,$A132,0,$BE$27,1)) -> 14.6375 | BG132: 14.66625 | BH132: 14.649375 | BI132: 14.6015625 | BJ132: 14.54078125 | BK132: 14.4765625 | BL132: 14.41144531 | BM132: 14.34554688 | BN132: 14.28013672 | BO132: 14.57142676 | BP132: 14.51540453 | BQ132: 14.45347309 | BR132: 0.06193144602 | BS132: 14.57733598 | BT132: 14.49732109 | BU132: 14.42188781 | BV132: 14.37323887 | BW132: 14.59953871 | BX132: 0.5818851877 | BY132: -82 | BZ132: 14.58341368 | CA132: 50.69279241 | CB132: 14.58904671 | CC132: 1.119046712 | CD132: 3.801462077 | CE132: 29.43727149 | CF132: 27.75640007 | CG132: 100 | CH132: 50 | CI132: 0 | CK132: 14.6159227 | CL132: 14.62023068 | CM132: 14.59152422 | CN132: 14.56528093 | CO132: 100 | CP132: 16.7
A133: 102 | B133: =OFFSET(InputPriceData!B$15,CalculationsAndCharts!$A133+$A$11,0,1,1) -> 2010-06-17 | C133: =OFFSET(InputPriceData!G$15,CalculationsAndCharts!$A133+$A$11,0,1,1) -> 3950000 | D133: =OFFSET(InputPriceData!C$15,CalculationsAndCharts!$A133+$A$11,IF($C$7,7,0),1,1) -> 14.85 | E133: =OFFSET(InputPriceData!D$15,CalculationsAndCharts!$A133+$A$11,IF($C$7,7,0),1,1) -> 14.9 | F133: =OFFSET(InputPriceData!E$15,CalculationsAndCharts!$A133+$A$11,IF($C$7,7,0),1,1) -> 14.42 | G133: =OFFSET(InputPriceData!F$15,CalculationsAndCharts!$A133+$A$11,IF($C$7,7,0),1,1) -> 14.6 | H133: 0 | I133: 0 | J133: 0 | K133: 0 | L133: 14.64 | M133: 0.3 | N133: 2.279282051 | O133: 2.558356191 | P133: 2.302520572 | Q133: 14.56849132 | R133: 14.68526122 | S133: 0 | T133: 0 | U133: 0 | V133: 0.48 | W133: 0.585089157 | X133: 0.0900745998 | BE133: 14.69 | BF133: =AVERAGE(OFFSET(BE$31,$A133,0,$BE$27,1)) -> 14.695 | BG133: 14.6325 | BH133: 14.55375 | BI133: 14.48 | BJ133: 14.41234375 | BK133: 14.34632812 | BL133: 14.27964844 | BM133: 14.21472656 | BN133: 14.15853516 | BO133: 14.5563291 | BP133: 14.45938231 | BQ133: 14.39154164 | BR133: 0.06784066796 | BS133: 14.52722298 | BT133: 14.4173062 | BU133: 14.34645453 | BV133: 14.32458992 | BW133: 14.53714494 | BX133: 0.5993368572 | BY133: -83 | BZ133: 14.61541074 | CA133: 46.73531681 | CB133: 14.59816455 | CC133: 1.128164551 | CD133: 4.131462077 | CE133: 27.30666601 | CF133: 24.80573819 | CG133: 100 | CH133: 50 | CI133: 0 | CK133: 14.5393454 | CL133: 14.63796135 | CM133: 14.58142925 | CN133: 14.54330103 | CO133: 100 | CP133: 16.7 | CR133: 14.85
A134: 103 | B134: =OFFSET(InputPriceData!B$15,CalculationsAndCharts!$A134+$A$11,0,1,1) -> 2010-06-16 | C134: =OFFSET(InputPriceData!G$15,CalculationsAndCharts!$A134+$A$11,0,1,1) -> 5789900 | D134: =OFFSET(InputPriceData!C$15,CalculationsAndCharts!$A134+$A$11,IF($C$7,7,0),1,1) -> 14.45 | E134: =OFFSET(InputPriceData!D$15,CalculationsAndCharts!$A134+$A$11,IF($C$7,7,0),1,1) -> 14.95 | F134: =OFFSET(InputPriceData!E$15,CalculationsAndCharts!$A134+$A$11,IF($C$7,7,0),1,1) -> 14.43 | G134: =OFFSET(InputPriceData!F$15,CalculationsAndCharts!$A134+$A$11,IF($C$7,7,0),1,1) -> 14.78 | H134: 0 | I134: 0 | J134: 0 | K134: 0 | L134: 14.72 | M134: 0.41 | N134: 2.367576923 | O134: 2.638091659 | P134: 2.374282493 | Q134: 14.54806027 | R134: 14.71862405 | S134: 0 | T134: 0 | U134: 0 | V134: 0.52 | W134: 0.6376337355 | X134: 0.09314166005 | BE134: 14.7 | BF134: =AVERAGE(OFFSET(BE$31,$A134,0,$BE$27,1)) -> 14.57 | BG134: 14.475 | BH134: 14.40625 | BI134: 14.3446875 | BJ134: 14.2803125 | BK134: 14.21296875 | BL134: 14.14980469 | BM134: 14.10234375 | BN134: 14.08253906 | BO134: 14.45950781 | BP134: 14.36243552 | BQ134: 14.32370097 | BR134: 0.03873454398 | BS134: 14.40117006 | BT134: 14.30738943 | BU134: 14.27560286 | BV134: 14.30272531 | BW134: 14.39808503 | BX134: 0.6192747917 | BY134: -84 | BZ134: 14.66082473 | CA134: 39.39325082 | CB134: 14.58975391 | CC134: 1.119753906 | CD134: 4.221462077 | CE134: 26.52526271 | CF134: 21.01238375 | CG134: 100 | CH134: 50 | CI134: 0 | CK134: 14.42619081 | CL134: 14.6137204 | CM134: 14.54238209 | CN134: 14.5054369 | CO134: 100 | CP134: 16.7
A135: 104 | B135: =OFFSET(InputPriceData!B$15,CalculationsAndCharts!$A135+$A$11,0,1,1) -> 2010-06-15 | C135: =OFFSET(InputPriceData!G$15,CalculationsAndCharts!$A135+$A$11,0,1,1) -> 6279800 | D135: =OFFSET(InputPriceData!C$15,CalculationsAndCharts!$A135+$A$11,IF($C$7,7,0),1,1) -> 14.36 | E135: =OFFSET(InputPriceData!D$15,CalculationsAndCharts!$A135+$A$11,IF($C$7,7,0),1,1) -> 14.8 | F135: =OFFSET(InputPriceData!E$15,CalculationsAndCharts!$A135+$A$11,IF($C$7,7,0),1,1) -> 14.31 | G135: =OFFSET(InputPriceData!F$15,CalculationsAndCharts!$A135+$A$11,IF($C$7,7,0),1,1) -> 14.62 | H135: 0 | I135: 0 | J135: 0 | K135: 0 | L135: 14.57666667 | M135: 0.3766666667 | N135: 2.403987179 | O135: 2.715381583 | P135: 2.443843425 | Q135: 14.49893464 | R135: 14.76735656 | S135: 0 | T135: 0 | U135: 0 | V135: 0.54 | W135: 0.6964506033 | X135: 0.09763684017 | BE135: 14.44 | BF135: =AVERAGE(OFFSET(BE$31,$A135,0,$BE$27,1)) -> 14.38 | BG135: 14.3375 | BH135: 14.283125 | BI135: 14.2159375 | BJ135: 14.145625 | BK135: 14.08664062 | BL135: 14.05488281 | BM135: 14.06273437 | BN135: 14.11447266 | BO135: 14.29895215 | BP135: 14.26536322 | BQ135: 14.28496643 | BR135: -0.01960320684 | BS135: 14.24576002 | BT135: 14.2136088 | BU135: 14.24381628 | BV135: 14.32984776 | BW135: 14.23922532 | BX135: 0.649114367 | BY135: -85 | BZ135: 14.73050391 | CA135: 31.07888916 | CB135: 14.43780941 | CC135: 0.9678094076 | CD135: 4.701462077 | CE135: 20.58528585 | CF135: 16.79257283 | CG135: 100 | CH135: 50 | CI135: 0 | CK135: 14.32988162 | CL135: 14.4905954 | CM135: 14.42397015 | CN135: 14.4621235 | CO135: 0 | CQ135: 16.7
A136: 105 | B136: =OFFSET(InputPriceData!B$15,CalculationsAndCharts!$A136+$A$11,0,1,1) -> 2010-06-14 | C136: =OFFSET(InputPriceData!G$15,CalculationsAndCharts!$A136+$A$11,0,1,1) -> 5376400 | D136: =OFFSET(InputPriceData!C$15,CalculationsAndCharts!$A136+$A$11,IF($C$7,7,0),1,1) -> 14.5 | E136: =OFFSET(InputPriceData!D$15,CalculationsAndCharts!$A136+$A$11,IF($C$7,7,0),1,1) -> 14.82 | F136: =OFFSET(InputPriceData!E$15,CalculationsAndCharts!$A136+$A$11,IF($C$7,7,0),1,1) -> 14.2 | G136: =OFFSET(InputPriceData!F$15,CalculationsAndCharts!$A136+$A$11,IF($C$7,7,0),1,1) -> 14.26 | H136: 0 | I136: 0 | J136: 0 | K136: 0 | L136: 14.42666667 | M136: 0.5666666667 | N136: 2.586038462 | O136: 2.804351413 | P136: 2.523916272 | Q136: 14.47672548 | R136: 14.84404854 | S136: 0 | T136: 0 | U136: 0 | V136: 0.62 | W136: 0.7746759049 | X136: 0.1043250985 | BE136: 14.32 | BF136: =AVERAGE(OFFSET(BE$31,$A136,0,$BE$27,1)) -> 14.295 | BG136: 14.22875 | BH136: 14.14875 | BI136: 14.0753125 | BJ136: 14.02765625 | BK136: 14.023125 | BL136: 14.07058594 | BM136: 14.16621094 | BN136: 14.29597656 | BO136: 14.22113086 | BP136: 14.2317743 | BQ136: 14.30456964 | BR136: -0.07279533922 | BS136: 14.15897896 | BT136: 14.18145758 | BU136: 14.27402376 | BV136: 14.41587924 | BW136: 14.1381807 | BX136: 0.6869706454 | BY136: -86 | BZ136: 14.82965557 | CA136: 24.8360838 | CB136: 14.32389876 | CC136: 0.853898763 | CD136: 5.361462077 | CE136: 15.92660268 | CF136: 13.96290706 | CG136: 100 | CH136: 50 | CI136: 0 | CK136: 14.21476323 | CL136: 14.41994081 | CM136: 14.32217247 | CN136: 14.45073473 | CO136: 0 | CQ136: 16.7
A137: 106 | B137: =OFFSET(InputPriceData!B$15,CalculationsAndCharts!$A137+$A$11,0,1,1) -> 2010-06-11 | C137: =OFFSET(InputPriceData!G$15,CalculationsAndCharts!$A137+$A$11,0,1,1) -> 5159700 | D137: =OFFSET(InputPriceData!C$15,CalculationsAndCharts!$A137+$A$11,IF($C$7,7,0),1,1) -> 13.93 | E137: =OFFSET(InputPriceData!D$15,CalculationsAndCharts!$A137+$A$11,IF($C$7,7,0),1,1) -> 14.5 | F137: =OFFSET(InputPriceData!E$15,CalculationsAndCharts!$A137+$A$11,IF($C$7,7,0),1,1) -> 13.86 | G137: =OFFSET(InputPriceData!F$15,CalculationsAndCharts!$A137+$A$11,IF($C$7,7,0),1,1) -> 14.38 | H137: 0 | I137: 0 | J137: 0 | K137: 0 | L137: 14.24666667 | M137: 0.6066666667 | N137: 2.694358974 | O137: 2.866726542 | P137: 2.580053888 | Q137: 14.491028 | R137: 14.94899798 | S137: 0 | T137: 0 | U137: 0 | V137: 0.64 | W137: 0.8520138574 | X137: 0.1092499205 | BE137: 14.27 | BF137: =AVERAGE(OFFSET(BE$31,$A137,0,$BE$27,1)) -> 14.1625 | BG137: 14.06875 | BH137: 14.001875 | BI137: 13.98 | BJ137: 14.01859375 | BK137: 14.11804687 | BL137: 14.26183594 | BM137: 14.42574219 | BN137: 14.58889648 | BO137: 14.18015576 | BP137: 14.24241774 | BQ137: 14.37736498 | BR137: -0.1349472405 | BS137: 14.10747049 | BT137: 14.20393621 | BU137: 14.36658995 | BV137: 14.55773472 | BW137: 14.0697735 | BX137: 0.7151506304 | BY137: -87 | BZ137: 14.95411504 | CA137: 19.08548001 | CB137: 14.21341121 | CC137: 0.7434112142 | CD137: 5.361462077 | CE137: 13.86582995 | CF137: 13.73386939 | CG137: 100 | CH137: 50 | CI137: 0 | CK137: 14.26202647 | CL137: 14.19738162 | CM137: 14.25250967 | CN137: 14.4630523 | CO137: 0 | CQ137: 16.7
A138: 107 | B138: =OFFSET(InputPriceData!B$15,CalculationsAndCharts!$A138+$A$11,0,1,1) -> 2010-06-10 | C138: =OFFSET(InputPriceData!G$15,CalculationsAndCharts!$A138+$A$11,0,1,1) -> 9649000 | D138: =OFFSET(InputPriceData!C$15,CalculationsAndCharts!$A138+$A$11,IF($C$7,7,0),1,1) -> 14.23 | E138: =OFFSET(InputPriceData!D$15,CalculationsAndCharts!$A138+$A$11,IF($C$7,7,0),1,1) -> 14.49 | F138: =OFFSET(InputPriceData!E$15,CalculationsAndCharts!$A138+$A$11,IF($C$7,7,0),1,1) -> 13.64 | G138: =OFFSET(InputPriceData!F$15,CalculationsAndCharts!$A138+$A$11,IF($C$7,7,0),1,1) -> 14.16 | H138: 0 | I138: 0 | J138: 0 | K138: 0 | L138: 14.09666667 | M138: 0.7266666667 | N138: 2.849102564 | O138: 2.915974419 | P138: 2.624376977 | Q138: 14.56084553 | R138: 15.07984655 | S138: 0 | T138: 0 | U138: 0 | V138: 0.85 | W138: 0.9580207861 | X138: 0.1176568352 | BE138: 14.055 | BF138: =AVERAGE(OFFSET(BE$31,$A138,0,$BE$27,1)) -> 13.975 | BG138: 13.935 | BH138: 13.958125 | BI138: 14.0571875 | BJ138: 14.2175 | BK138: 14.405625 | BL138: 14.58964844 | BM138: 14.75205078 | BN138: 14.88992187 | BO138: 14.14040918 | BP138: 14.30467971 | BQ138: 14.51231222 | BR138: -0.2076325073 | BS138: 14.0970472 | BT138: 14.30040192 | BU138: 14.52924369 | BV138: 14.7488795 | BW138: 14.06235419 | BX138: 0.7194793964 | BY138: -88 | BZ138: 15.10152176 | CA138: 13.89168408 | CB138: 14.11853792 | CC138: 0.6485379232 | CD138: 5.361462077 | CE138: 12.09628855 | CF138: 13.17126465 | CG138: 100 | CH138: 50 | CI138: 0 | CK138: 14.39405293 | CL138: 14.16351323 | CM138: 14.256405 | CN138: 14.56932058 | CO138: 0 | CQ138: 16.7
A139: 108 | B139: =OFFSET(InputPriceData!B$15,CalculationsAndCharts!$A139+$A$11,0,1,1) -> 2010-06-09 | C139: =OFFSET(InputPriceData!G$15,CalculationsAndCharts!$A139+$A$11,0,1,1) -> 13792300 | D139: =OFFSET(InputPriceData!C$15,CalculationsAndCharts!$A139+$A$11,IF($C$7,7,0),1,1) -> 15.01 | E139: =OFFSET(InputPriceData!D$15,CalculationsAndCharts!$A139+$A$11,IF($C$7,7,0),1,1) -> 15.2 | F139: =OFFSET(InputPriceData!E$15,CalculationsAndCharts!$A139+$A$11,IF($C$7,7,0),1,1) -> 13.95 | G139: =OFFSET(InputPriceData!F$15,CalculationsAndCharts!$A139+$A$11,IF($C$7,7,0),1,1) -> 13.95 | H139: 0 | I139: 0 | J139: 0 | K139: 0 | L139: 14.36666667 | M139: 0.8966666667 | N139: 2.845461538 | O139: 2.935080663 | P139: 2.641572597 | Q139: 14.69346806 | R139: 15.22813256 | S139: 0 | T139: 0 | U139: 0 | V139: 1.36 | W139: 1.012031179 | X139: 0.1225470379 | BE139: 13.895 | BF139: =AVERAGE(OFFSET(BE$31,$A139,0,$BE$27,1)) -> 13.895 | BG139: 13.98125 | BH139: 14.15625 | BI139: 14.3778125 | BJ139: 14.59375 | BK139: 14.77367187 | BL139: 14.91445312 | BM139: 15.02779297 | BN139: 15.12650391 | BO139: 14.20626172 | BP139: =BO139*$BF$28+$BF$29*BP140 -> 14.46895024 | BQ139: =BP139*$BF$28+$BF$29*BQ140 -> 14.71994472 | BR139: =BP139-BQ139 -> -0.2509944853 | BS139: =BP139+BR139 -> 14.21795575 | BT139: 14.50375663 | BU139: 14.75808546 | BV139: 14.96851532 | BW139: 14.20552883 | BX139: 0.7001209321 | BY139: -89 | BZ139: 15.26604695 | CA139: 12.13089538 | CB139: 14.28646419 | CC139: 0.8164641927 | CD139: 5.35755599 | CE139: 15.23948969 | CF139: 14.15524999 | CG139: 100 | CH139: 50 | CI139: 0 | CK139: 14.26060586 | CL139: 14.48452647 | CM139: 14.36289722 | CN139: 14.73164351 | CO139: 0 | CQ139: 16.7
A140: 109 | B140: =OFFSET(InputPriceData!B$15,CalculationsAndCharts!$A140+$A$11,0,1,1) -> 2010-06-08 | C140: =OFFSET(InputPriceData!G$15,CalculationsAndCharts!$A140+$A$11,0,1,1) -> 9361800 | D140: =OFFSET(InputPriceData!C$15,CalculationsAndCharts!$A140+$A$11,IF($C$7,7,0),1,1) -> 13.93 | E140: =OFFSET(InputPriceData!D$15,CalculationsAndCharts!$A140+$A$11,IF($C$7,7,0),1,1) -> 14.16 | F140: =OFFSET(InputPriceData!E$15,CalculationsAndCharts!$A140+$A$11,IF($C$7,7,0),1,1) -> 13.47 | G140: =OFFSET(InputPriceData!F$15,CalculationsAndCharts!$A140+$A$11,IF($C$7,7,0),1,1) -> 13.84 | H140: 0 | I140: 0 | J140: 0 | K140: 0 | L140: 13.82333333 | M140: 0.6833333333 | N140: 2.907358974 | O140: 2.960686127 | P140: 2.664617514 | Q140: 14.78683989 | R140: 15.38089384 | S140: 0 | T140: 0 | U140: 0 | V140: 0.69 | W140: 0.8380467687 | X140: 0.1105525122 | BE140: 13.895 | BF140: =AVERAGE(OFFSET(BE$31,$A140,0,$BE$27,1)) -> 14.0675 | BG140: 14.33125 | BH140: 14.599375 | BI140: 14.8096875 | BJ140: 14.95359375 | BK140: 15.05523437 | BL140: 15.14113281 | BM140: 15.22521484 | BN140: 15.30873047 | BO140: 14.42155469 | BP140: 14.73163876 | BQ140: 14.97093921 | BR140: -0.2393004511 | BS140: 14.49233831 | BT140: 14.78955751 | BU140: 15.01241429 | BV140: 15.17894518 | BW140: 14.51037484 | BX140: 0.6652608516 | BY140: -90 | BZ140: 15.43109444 | CA140: 15.40005324 | CB140: 14.12244401 | CC140: 0.6524440104 | CD140: 5.35755599 | CE140: 12.17801572 | CF140: 13.63732108 | CG140: 100 | CH140: 50 | CI140: 0 | CK140: 14.67121172 | CL140: 14.16560586 | CM140: 14.36038426 | CN140: 14.83049033 | CO140: 0 | CQ140: 16.7
A141: 110 | B141: =OFFSET(InputPriceData!B$15,CalculationsAndCharts!$A141+$A$11,0,1,1) -> 2010-06-07 | C141: =OFFSET(InputPriceData!G$15,CalculationsAndCharts!$A141+$A$11,0,1,1) -> 7213400 | D141: =OFFSET(InputPriceData!C$15,CalculationsAndCharts!$A141+$A$11,IF($C$7,7,0),1,1) -> 14.65 | E141: =OFFSET(InputPriceData!D$15,CalculationsAndCharts!$A141+$A$11,IF($C$7,7,0),1,1) -> 14.79 | F141: =OFFSET(InputPriceData!E$15,CalculationsAndCharts!$A141+$A$11,IF($C$7,7,0),1,1) -> 13.72 | G141: =OFFSET(InputPriceData!F$15,CalculationsAndCharts!$A141+$A$11,IF($C$7,7,0),1,1) -> 13.95 | H141: 0 | I141: 0 | J141: 0 | K141: 0 | L141: 14.15333333 | M141: 0.9966666667 | N141: 3.032974359 | O141: 2.975922456 | P141: 2.678330211 | Q141: 15.06212747 | R141: 15.55062354 | S141: 0 | T141: 0 | U141: 0 | V141: 1.07 | W141: 0.9120701531 | X141: 0.115381373 | BE141: 14.24 | BF141: =AVERAGE(OFFSET(BE$31,$A141,0,$BE$27,1)) -> 14.595 | BG141: 14.8675 | BH141: 15.02 | BI141: 15.0975 | BJ141: 15.156875 | BK141: 15.22703125 | BL141: 15.30929687 | BM141: 15.39224609 | BN141: 15.46407227 | BO141: 14.79347607 | BP141: 15.04172283 | BQ141: 15.21023966 | BR141: -0.168516832 | BS141: 14.873206 | BT141: 15.08677671 | BU141: 15.23527107 | BV141: 15.34547607 | BW141: 14.89999299 | BX141: 0.6280844586 | BY141: -91 | BZ141: 15.57733568 | CA141: 23.03934684 | CB141: 14.4734047 | CC141: 0.7534047038 | CD141: 5.006595296 | CE141: 15.04824455 | CF141: 16.55320064 | CG141: 100 | CH141: 50 | CI141: 0 | CK141: 15.06492345 | CL141: 14.53183672 | CM141: 14.7184182 | CN141: 15.09644412 | CO141: 0 | CQ141: 16.7
A142: 111 | B142: =OFFSET(InputPriceData!B$15,CalculationsAndCharts!$A142+$A$11,0,1,1) -> 2010-06-04 | C142: =OFFSET(InputPriceData!G$15,CalculationsAndCharts!$A142+$A$11,0,1,1) -> 8379100 | D142: =OFFSET(InputPriceData!C$15,CalculationsAndCharts!$A142+$A$11,IF($C$7,7,0),1,1) -> 15 | E142: =OFFSET(InputPriceData!D$15,CalculationsAndCharts!$A142+$A$11,IF($C$7,7,0),1,1) -> 15.29 | F142: =OFFSET(InputPriceData!E$15,CalculationsAndCharts!$A142+$A$11,IF($C$7,7,0),1,1) -> 14.33 | G142: =OFFSET(InputPriceData!F$15,CalculationsAndCharts!$A142+$A$11,IF($C$7,7,0),1,1) -> 14.53 | H142: 0 | I142: 0 | J142: 0 | K142: 0 | L142: 14.71666667 | M142: 0.99 | N142: 2.926474359 | O142: 2.959621913 | P142: 2.663659722 | Q142: 15.32178294 | R142: 15.69019384 | S142: 0 | T142: 0 | U142: 0 | V142: 1.04 | W142: 0.8331052296 | X142: 0.107336905 | BE142: 14.95 | BF142: =AVERAGE(OFFSET(BE$31,$A142,0,$BE$27,1)) -> 15.14 | BG142: 15.1725 | BH142: 15.175 | BI142: 15.21625 | BJ142: 15.2971875 | BK142: 15.3915625 | BL142: 15.47519531 | BM142: 15.53589844 | BN142: 15.57174805 | BO142: 15.18326709 | BP142: 15.28996958 | BQ142: 15.37875649 | BR142: -0.08878691024 | BS142: 15.20118267 | BT142: 15.30034742 | BU142: 15.38376542 | BV142: 15.45568108 | BW142: 15.20542706 | BX142: 0.6110204347 | BY142: -92 | BZ142: 15.69370758 | CA142: 30.0219232 | CB142: 14.94996688 | CC142: 0.6199668783 | CD142: 4.530033122 | CE142: 13.68570299 | CF142: 18.1356483 | CG142: 100 | CH142: 50 | CI142: 0 | CK142: 15.3423469 | CL142: 14.95054845 | CM142: 15.09514145 | CN142: 15.32228708 | CO142: 0 | CQ142: 16.7
A143: 112 | B143: =OFFSET(InputPriceData!B$15,CalculationsAndCharts!$A143+$A$11,0,1,1) -> 2010-06-03 | C143: =OFFSET(InputPriceData!G$15,CalculationsAndCharts!$A143+$A$11,0,1,1) -> 5391600 | D143: =OFFSET(InputPriceData!C$15,CalculationsAndCharts!$A143+$A$11,IF($C$7,7,0),1,1) -> 15.44 | E143: =OFFSET(InputPriceData!D$15,CalculationsAndCharts!$A143+$A$11,IF($C$7,7,0),1,1) -> 15.62 | F143: =OFFSET(InputPriceData!E$15,CalculationsAndCharts!$A143+$A$11,IF($C$7,7,0),1,1) -> 14.97 | G143: =OFFSET(InputPriceData!F$15,CalculationsAndCharts!$A143+$A$11,IF($C$7,7,0),1,1) -> 15.37 | H143: 0 | I143: 0 | J143: 0 | K143: 0 | L143: 15.32 | M143: 0.34 | N143: 2.775371795 | O143: 2.969092643 | P143: 2.672183378 | Q143: 15.49467331 | R143: 15.7954541 | S143: 0 | T143: 0 | U143: 0 | V143: 0.65 | W143: 0.7296578444 | X143: 0.09747285911 | BE143: 15.33 | BF143: =AVERAGE(OFFSET(BE$31,$A143,0,$BE$27,1)) -> 15.205 | BG143: 15.1775 | BH143: 15.2575 | BI143: 15.378125 | BJ143: 15.4859375 | BK143: 15.55882812 | BL143: 15.59660156 | BM143: 15.60759766 | BN143: 15.600625 | BO143: 15.33726074 | BP143: 15.39667207 | BQ143: 15.4675434 | BR143: -0.07087132849 | BS143: 15.32580075 | BT143: 15.39951216 | BU143: 15.46718343 | BV143: 15.52759673 | BW143: 15.32458292 | BX143: 0.6266697778 | BY143: -93 | BZ143: 15.78897928 | CA143: 31.47364166 | CB143: 15.32863037 | CC143: 0.8786303711 | CD143: 4.198819092 | CE143: 20.92565438 | CF143: 20.19714881 | CG143: 100 | CH143: 50 | CI143: 0 | CK143: 15.3346938 | CL143: 15.31867345 | CM143: 15.34745797 | CN143: 15.47098253 | CO143: 0 | CQ143: 16.7
A144: 113 | B144: =OFFSET(InputPriceData!B$15,CalculationsAndCharts!$A144+$A$11,0,1,1) -> 2010-06-02 | C144: =OFFSET(InputPriceData!G$15,CalculationsAndCharts!$A144+$A$11,0,1,1) -> 6084300 | D144: =OFFSET(InputPriceData!C$15,CalculationsAndCharts!$A144+$A$11,IF($C$7,7,0),1,1) -> 15.19 | E144: =OFFSET(InputPriceData!D$15,CalculationsAndCharts!$A144+$A$11,IF($C$7,7,0),1,1) -> 15.42 | F144: =OFFSET(InputPriceData!E$15,CalculationsAndCharts!$A144+$A$11,IF($C$7,7,0),1,1) -> 14.98 | G144: =OFFSET(InputPriceData!F$15,CalculationsAndCharts!$A144+$A$11,IF($C$7,7,0),1,1) -> 15.29 | H144: 0 | I144: 0 | J144: 0 | K144: 0 | L144: 15.23 | M144: 0.48 | N144: 2.975628205 | O144: 3.024441456 | P144: 2.721997311 | Q144: 15.54457997 | R144: 15.88139147 | S144: 0 | T144: 0 | U144: 0 | V144: 0.55 | W144: 0.7694867667 | X144: 0.1003261456 | BE144: 15.08 | BF144: =AVERAGE(OFFSET(BE$31,$A144,0,$BE$27,1)) -> 15.15 | BG144: 15.3375 | BH144: 15.49875 | BI144: 15.59375 | BJ144: 15.63171875 | BK144: 15.634375 | BL144: 15.61859375 | BM144: 15.59365234 | BN144: 15.56514648 | BO144: 15.33236182 | BP144: 15.45608341 | BQ144: 15.53841473 | BR144: -0.08233132537 | BS144: 15.37375208 | BT144: 15.47322358 | BU144: 15.5348547 | BV144: 15.58801003 | BW144: 15.40311667 | BX144: 0.6877371441 | BY144: -94 | BZ144: 15.8852924 | CA144: 32.47238293 | CB144: 15.28118091 | CC144: 0.8311809082 | CD144: 4.198819092 | CE144: 19.79558752 | CF144: 23.64525706 | CG144: 100 | CH144: 50 | CI144: 0 | CK144: 15.44938759 | CL144: 15.2746938 | CM144: 15.36576329 | CN144: 15.53190616 | CO144: 0 | CQ144: 16.7
A145: 114 | B145: =OFFSET(InputPriceData!B$15,CalculationsAndCharts!$A145+$A$11,0,1,1) -> 2010-06-01 | C145: =OFFSET(InputPriceData!G$15,CalculationsAndCharts!$A145+$A$11,0,1,1) -> 6691200 | D145: =OFFSET(InputPriceData!C$15,CalculationsAndCharts!$A145+$A$11,IF($C$7,7,0),1,1) -> 15.29 | E145: =OFFSET(InputPriceData!D$15,CalculationsAndCharts!$A145+$A$11,IF($C$7,7,0),1,1) -> 15.57 | F145: =OFFSET(InputPriceData!E$15,CalculationsAndCharts!$A145+$A$11,IF($C$7,7,0),1,1) -> 14.75 | G145: =OFFSET(InputPriceData!F$15,CalculationsAndCharts!$A145+$A$11,IF($C$7,7,0),1,1) -> 14.87 | H145: 0 | I145: 0 | J145: 0 | K145: 0 | L145: 15.06333333 | M145: 0.9733333333 | N145: 2.932846154 | O145: 3.038388099 | P145: 2.734549289 | Q145: 15.63445996 | R145: 15.97762333 | S145: 0 | T145: 0 | U145: 0 | V145: 0.82 | W145: 0.87923015 | X145: 0.1091277841 | BE145: 15.22 | BF145: =AVERAGE(OFFSET(BE$31,$A145,0,$BE$27,1)) -> 15.525 | BG145: 15.66 | BH145: 15.68875 | BI145: 15.6696875 | BJ145: 15.63703125 | BK145: 15.6028125 | BL145: 15.56871094 | BM145: 15.53664063 | BN145: 15.51273437 | BO145: 15.50425586 | BP145: 15.57980499 | BQ145: 15.62074606 | BR145: -0.04094106174 | BS145: 15.53886393 | BT145: 15.57269508 | BU145: 15.59648582 | BV145: 15.64116535 | BW145: 15.56979313 | BX145: 0.7918018859 | BY145: -95 | BZ145: 15.98979533 | CA145: 36.73903768 | CB145: 15.2837946 | CC145: 0.8337945964 | CD145: 4.196205404 | CE145: 19.87020453 | CF145: 27.94851893 | CG145: 100 | CH145: 50 | CI145: 0 | CK145: 15.77877518 | CL145: 15.35688759 | CM145: 15.45627215 | CN145: 15.6347911 | CO145: 0 | CQ145: 16.7
A146: 115 | B146: =OFFSET(InputPriceData!B$15,CalculationsAndCharts!$A146+$A$11,0,1,1) -> 2010-05-28 | C146: =OFFSET(InputPriceData!G$15,CalculationsAndCharts!$A146+$A$11,0,1,1) -> 7283500 | D146: =OFFSET(InputPriceData!C$15,CalculationsAndCharts!$A146+$A$11,IF($C$7,7,0),1,1) -> 16.21 | E146: =OFFSET(InputPriceData!D$15,CalculationsAndCharts!$A146+$A$11,IF($C$7,7,0),1,1) -> 16.3 | F146: =OFFSET(InputPriceData!E$15,CalculationsAndCharts!$A146+$A$11,IF($C$7,7,0),1,1) -> 15.3 | G146: =OFFSET(InputPriceData!F$15,CalculationsAndCharts!$A146+$A$11,IF($C$7,7,0),1,1) -> 15.57 | H146: 0 | I146: 0 | J146: 0 | K146: 0 | L146: 15.72333333 | M146: 0.6233333333 | N146: 2.909179487 | O146: 3.068542941 | P146: 2.761688647 | Q146: 15.797639 | R146: 16.07567001 | S146: 0 | T146: 0 | U146: 0 | V146: 1 | W146: 0.908845225 | X146: 0.1083715623 | BE146: 15.83 | BF146: =AVERAGE(OFFSET(BE$31,$A146,0,$BE$27,1)) -> 15.795 | BG146: 15.7175 | BH146: 15.650625 | BI146: 15.604375 | BJ146: 15.56859375 | BK146: 15.53460937 | BL146: 15.50457031 | BM146: 15.48882812 | BN146: 15.49862305 | BO146: 15.69916748 | BP146: 15.65535413 | BQ146: 15.66168712 | BR146: -0.006332988436 | BS146: 15.64902114 | BT146: 15.60652622 | BU146: 15.62027656 | BV146: 15.68584489 | BW146: 15.64459388 | BX146: 0.903907615 | BY146: -96 | BZ146: 16.09411879 | CA146: 37.56717765 | CB146: 15.71125041 | CC146: 1.261250407 | CD146: 4.033422607 | CE146: 31.26997911 | CF146: 30.98836611 | CG146: 100 | CH146: 50 | CI146: 0 | CK146: 15.71255037 | CL146: 15.78938759 | CM146: 15.71823136 | CN146: 15.74595251 | CO146: 0 | CQ146: 16.7
A147: 116 | B147: =OFFSET(InputPriceData!B$15,CalculationsAndCharts!$A147+$A$11,0,1,1) -> 2010-05-27 | C147: =OFFSET(InputPriceData!G$15,CalculationsAndCharts!$A147+$A$11,0,1,1) -> 3898000 | D147: =OFFSET(InputPriceData!C$15,CalculationsAndCharts!$A147+$A$11,IF($C$7,7,0),1,1) -> 15.73 | E147: =OFFSET(InputPriceData!D$15,CalculationsAndCharts!$A147+$A$11,IF($C$7,7,0),1,1) -> 16.11 | F147: =OFFSET(InputPriceData!E$15,CalculationsAndCharts!$A147+$A$11,IF($C$7,7,0),1,1) -> 15.57 | G147: =OFFSET(InputPriceData!F$15,CalculationsAndCharts!$A147+$A$11,IF($C$7,7,0),1,1) -> 16.09 | H147: 0 | I147: 0 | J147: 0 | K147: 0 | L147: 15.92333333 | M147: 0.5433333333 | N147: 2.880961538 | O147: 3.114075356 | P147: 2.802667821 | Q147: 15.81886918 | R147: 16.15510744 | S147: 0 | T147: 0 | U147: 0 | V147: 0.68 | W147: 0.8632678375 | X147: 0.1036524448 | BE147: 15.76 | BF147: =AVERAGE(OFFSET(BE$31,$A147,0,$BE$27,1)) -> 15.64 | BG147: 15.58375 | BH147: 15.558125 | BI147: 15.5328125 | BJ147: 15.500625 | BK147: 15.47453125 | BL147: 15.47308594 | BM147: 15.50841797 | BN147: 15.58219727 | BO147: 15.6149585 | BP147: 15.61154078 | BQ147: 15.66802011 | BR147: -0.05647932788 | BS147: 15.55506145 | BT147: 15.56403131 | BU147: 15.6340269 | BV147: 15.75141322 | BW147: 15.54142645 | BX147: 0.9862140516 | BY147: -97 | BZ147: 16.20779995 | CA147: 33.10778713 | CB147: 15.76914591 | CC147: 1.319145915 | CD147: 4.033422607 | CE147: 32.70537316 | CF147: 28.80103424 | CG147: 100 | CH147: 50 | CI147: 0 | CK147: 15.55010074 | CL147: 15.77130037 | CM147: 15.71483004 | CN147: 15.72857847 | CO147: 0 | CQ147: 16.7
A148: 117 | B148: =OFFSET(InputPriceData!B$15,CalculationsAndCharts!$A148+$A$11,0,1,1) -> 2010-05-26 | C148: =OFFSET(InputPriceData!G$15,CalculationsAndCharts!$A148+$A$11,0,1,1) -> 5606000 | D148: =OFFSET(InputPriceData!C$15,CalculationsAndCharts!$A148+$A$11,IF($C$7,7,0),1,1) -> 15.87 | E148: =OFFSET(InputPriceData!D$15,CalculationsAndCharts!$A148+$A$11,IF($C$7,7,0),1,1) -> 16.3 | F148: =OFFSET(InputPriceData!E$15,CalculationsAndCharts!$A148+$A$11,IF($C$7,7,0),1,1) -> 15.38 | G148: =OFFSET(InputPriceData!F$15,CalculationsAndCharts!$A148+$A$11,IF($C$7,7,0),1,1) -> 15.43 | H148: 0 | I148: 0 | J148: 0 | K148: 0 | L148: 15.70333333 | M148: 1.043333333 | N148: 3.014769231 | O148: 3.180679304 | P148: 2.862611374 | Q148: 15.78902228 | R148: 16.25117551 | S148: 0 | T148: 0 | U148: 0 | V148: 0.92 | W148: 0.9549017563 | X148: 0.1118860503 | BE148: 15.52 | BF148: =AVERAGE(OFFSET(BE$31,$A148,0,$BE$27,1)) -> 15.5275 | BG148: 15.5325 | BH148: 15.5075 | BI148: 15.4684375 | BJ148: 15.4484375 | BK148: 15.47164062 | BL148: 15.54375 | BM148: 15.65597656 | BN148: 15.79375 | BO148: 15.53522461 | BP148: 15.60812306 | BQ148: 15.72449943 | BR148: -0.1163763734 | BS148: 15.49174669 | BT148: 15.57300116 | BU148: 15.70402249 | BV148: 15.86879954 | BW148: 15.47573556 | BX148: 1.011362002 | BY148: -98 | BZ148: 16.34896257 | CA148: 28.41457844 | CB148: 15.61927897 | CC148: 1.169278971 | CD148: 4.033422607 | CE148: 28.98974606 | CF148: 27.65898027 | CG148: 100 | CH148: 50 | CI148: 0 | CK148: 15.35520147 | CL148: 15.68885074 | CM148: 15.57582784 | CN148: 15.71148971 | CO148: 0 | CQ148: 16.7
A149: 118 | B149: =OFFSET(InputPriceData!B$15,CalculationsAndCharts!$A149+$A$11,0,1,1) -> 2010-05-25 | C149: =OFFSET(InputPriceData!G$15,CalculationsAndCharts!$A149+$A$11,0,1,1) -> 6392800 | D149: =OFFSET(InputPriceData!C$15,CalculationsAndCharts!$A149+$A$11,IF($C$7,7,0),1,1) -> 14.88 | E149: =OFFSET(InputPriceData!D$15,CalculationsAndCharts!$A149+$A$11,IF($C$7,7,0),1,1) -> 15.69 | F149: =OFFSET(InputPriceData!E$15,CalculationsAndCharts!$A149+$A$11,IF($C$7,7,0),1,1) -> 14.66 | G149: =OFFSET(InputPriceData!F$15,CalculationsAndCharts!$A149+$A$11,IF($C$7,7,0),1,1) -> 15.61 | H149: 0 | I149: 0 | J149: 0 | K149: 0 | L149: 15.32 | M149: 0.9633333333 | N149: 3.112166667 | O149: 3.228082182 | P149: 2.905273964 | Q149: 15.81350484 | R149: 16.38321929 | S149: 0 | T149: 0 | U149: 0 | V149: 1.03 | W149: 0.9723526344 | X149: 0.1122903674 | BE149: 15.535 | BF149: =AVERAGE(OFFSET(BE$31,$A149,0,$BE$27,1)) -> 15.5375 | BG149: 15.4825 | BH149: 15.429375 | BI149: 15.4284375 | BJ149: 15.49484375 | BK149: 15.61585937 | BL149: 15.76820312 | BM149: 15.93152344 | BN149: 16.09297852 | BO149: 15.57315479 | BP149: 15.68102151 | BQ149: 15.84087581 | BR149: -0.1598542953 | BS149: 15.52116722 | BT149: 15.65425564 | BU149: 15.83504382 | BV149: 16.0335766 | BW149: 15.49121206 | BX149: 0.988115706 | BY149: -99 | BZ149: 16.51250149 | CA149: 24.16068223 | CB149: 15.44657739 | CC149: 0.9965773926 | CD149: 4.033422607 | CE149: 24.70798351 | CF149: 26.76212029 | CG149: 100 | CH149: 50 | CI149: 0 | CK149: 15.50040295 | CL149: 15.26510074 | CM149: 15.49082418 | CN149: 15.7205453 | CO149: 0 | CQ149: 16.7
A150: 119 | B150: =OFFSET(InputPriceData!B$15,CalculationsAndCharts!$A150+$A$11,0,1,1) -> 2010-05-24 | C150: =OFFSET(InputPriceData!G$15,CalculationsAndCharts!$A150+$A$11,0,1,1) -> 4151100 | D150: =OFFSET(InputPriceData!C$15,CalculationsAndCharts!$A150+$A$11,IF($C$7,7,0),1,1) -> 15.54 | E150: =OFFSET(InputPriceData!D$15,CalculationsAndCharts!$A150+$A$11,IF($C$7,7,0),1,1) -> 15.97 | F150: =OFFSET(InputPriceData!E$15,CalculationsAndCharts!$A150+$A$11,IF($C$7,7,0),1,1) -> 15.44 | G150: =OFFSET(InputPriceData!F$15,CalculationsAndCharts!$A150+$A$11,IF($C$7,7,0),1,1) -> 15.46 | H150: 0 | I150: 0 | J150: 0 | K150: 0 | L150: 15.62333333 | M150: 1.173333333 | N150: 3.39525641 | O150: 3.261200901 | P150: 2.935080811 | Q150: 15.95450623 | R150: 16.54599485 | S150: 0 | T150: 0 | U150: 0 | V150: 0.53 | W150: 0.9435289516 | X150: 0.1110303332 | BE150: 15.54 | BF150: =AVERAGE(OFFSET(BE$31,$A150,0,$BE$27,1)) -> 15.4275 | BG150: 15.37625 | BH150: 15.4275 | BI150: 15.56125 | BJ150: 15.736875 | BK150: 15.92054687 | BL150: 16.09484375 | BM150: 16.25443359 | BN150: 16.39826172 | BO150: 15.61799805 | BP150: 15.78888824 | BQ150: 16.0007301 | BR150: -0.2118418636 | BS150: 15.57704638 | BT150: 15.78734406 | BU150: 16.01583199 | BV150: 16.23210938 | BW150: 15.54664557 | BX150: 0.9348643456 | BY150: -100 | BZ150: 16.68883082 | CA150: 19.45585577 | CB150: 15.62066569 | CC150: 1.17066569 | CD150: 3.998282878 | CE150: 29.27921125 | CF150: 25.7935549 | CG150: 100 | CH150: 50 | CI150: 0 | CK150: 15.3983059 | CL150: 15.59227795 | CM150: 15.60470697 | CN150: 15.90272313 | CO150: 0 | CQ150: 16.7
A151: 120 | B151: =OFFSET(InputPriceData!B$15,CalculationsAndCharts!$A151+$A$11,0,1,1) -> 2010-05-21 | C151: =OFFSET(InputPriceData!G$15,CalculationsAndCharts!$A151+$A$11,0,1,1) -> 10440700 | D151: =OFFSET(InputPriceData!C$15,CalculationsAndCharts!$A151+$A$11,IF($C$7,7,0),1,1) -> 14.61 | E151: =OFFSET(InputPriceData!D$15,CalculationsAndCharts!$A151+$A$11,IF($C$7,7,0),1,1) -> 15.9 | F151: =OFFSET(InputPriceData!E$15,CalculationsAndCharts!$A151+$A$11,IF($C$7,7,0),1,1) -> 14.45 | G151: =OFFSET(InputPriceData!F$15,CalculationsAndCharts!$A151+$A$11,IF($C$7,7,0),1,1) -> 15.62 | H151: 0 | I151: 0 | J151: 0 | K151: 0 | L151: 15.32333333 | M151: 0.7133333333 | N151: 3.312423077 | O151: 3.222899327 | P151: 2.900609394 | Q151: 16.04912705 | R151: 16.71499159 | S151: 0 | T151: 0 | U151: 0 | V151: 1.45 | W151: 1.150293427 | X151: 0.1236423449 | BE151: 15.315 | BF151: =AVERAGE(OFFSET(BE$31,$A151,0,$BE$27,1)) -> 15.325 | BG151: 15.47875 | BH151: 15.695 | BI151: 15.9125 | BJ151: 16.10421875 | BK151: 16.26914062 | BL151: 16.41402344 | BM151: 16.54208984 | BN151: 16.65071289 | BO151: 15.67969678 | BP151: 15.95977843 | BQ151: 16.21257197 | BR151: -0.2527935347 | BS151: 15.7069849 | BT151: 15.99764174 | BU151: 16.24431993 | BV151: 16.44838676 | BW151: 15.70835218 | BX151: 0.8594294815 | BY151: -101 | BZ151: 16.87287005 | CA151: 16.12526401 | CB151: 15.50151506 | CC151: 1.051515055 | CD151: 3.998282878 | CE151: 26.29916611 | CF151: 23.45796751 | CG151: 100 | CH151: 50 | CI151: 0 | CK151: 15.65161179 | CL151: 15.28665295 | CM151: 15.5922894 | CN151: 16.0269012 | CO151: 0 | CQ151: 16.7
A152: 121 | B152: =OFFSET(InputPriceData!B$15,CalculationsAndCharts!$A152+$A$11,0,1,1) -> 2010-05-20 | C152: =OFFSET(InputPriceData!G$15,CalculationsAndCharts!$A152+$A$11,0,1,1) -> 8247300 | D152: =OFFSET(InputPriceData!C$15,CalculationsAndCharts!$A152+$A$11,IF($C$7,7,0),1,1) -> 15.21 | E152: =OFFSET(InputPriceData!D$15,CalculationsAndCharts!$A152+$A$11,IF($C$7,7,0),1,1) -> 15.46 | F152: =OFFSET(InputPriceData!E$15,CalculationsAndCharts!$A152+$A$11,IF($C$7,7,0),1,1) -> 14.61 | G152: =OFFSET(InputPriceData!F$15,CalculationsAndCharts!$A152+$A$11,IF($C$7,7,0),1,1) -> 15.01 | H152: 0 | I152: =IF($S$16,AVERAGE(OFFSET($G152,0,0,I$31,1)),0) -> 0 | J152: 0 | K152: 0 | L152: 15.02666667 | M152: 1.123333333 | N152: 3.389794872 | O152: 3.197321113 | P152: 2.877589002 | Q152: 16.25649669 | R152: 16.90523861 | S152: 0 | T152: 0 | U152: 0 | V152: 1.05 | W152: 1.000440141 | X152: 0.116651575 | BE152: 15.335 | BF152: =AVERAGE(OFFSET(BE$31,$A152,0,$BE$27,1)) -> 15.6325 | BG152: 15.91125 | BH152: 16.13 | BI152: 16.2959375 | BJ152: 16.4340625 | BK152: 16.55890625 | BL152: 16.67015625 | BM152: 16.75933594 | BN152: 16.81820312 | BO152: 15.93676758 | BP152: 16.23986009 | BQ152: 16.4653655 | BR152: -0.2255054149 | BS152: 16.01435467 | BT152: 16.28829858 | BU152: 16.49099812 | BV152: 16.65245358 | BW152: 16.04435496 | BX152: 0.776206875 | BY152: -102 | BZ152: 17.05250491 | CA152: 17.52959872 | CB152: 15.48171712 | CC152: 0.8717171224 | CD152: 3.998282878 | CE152: 21.80228736 | CF152: 22.90772941 | CG152: 100 | CH152: 50 | CI152: 0 | CK152: 16.23072359 | CL152: 15.53598679 | CM152: 15.77159344 | CN152: 16.3230005 | CO152: 0 | CQ152: 16.7
A153: 122 | B153: =OFFSET(InputPriceData!B$15,CalculationsAndCharts!$A153+$A$11,0,1,1) -> 2010-05-19 | C153: =OFFSET(InputPriceData!G$15,CalculationsAndCharts!$A153+$A$11,0,1,1) -> 8686000 | D153: =OFFSET(InputPriceData!C$15,CalculationsAndCharts!$A153+$A$11,IF($C$7,7,0),1,1) -> 16.08 | E153: =OFFSET(InputPriceData!D$15,CalculationsAndCharts!$A153+$A$11,IF($C$7,7,0),1,1) -> 16.28 | F153: =OFFSET(InputPriceData!E$15,CalculationsAndCharts!$A153+$A$11,IF($C$7,7,0),1,1) -> 15.26 | G153: =OFFSET(InputPriceData!F$15,CalculationsAndCharts!$A153+$A$11,IF($C$7,7,0),1,1) -> 15.66 | H153: 0 | I153: 0 | J153: 0 | K153: 0 | L153: 15.73333333 | M153: 1.143333333 | N153: 3.27874359 | O153: 3.14232861 | P153: 2.828095749 | Q153: 16.60787669 | R153: 17.09059344 | S153: 0 | T153: 0 | U153: 0 | V153: 1.02 | W153: 0.9756602116 | X153: 0.1123026955 | BE153: 15.93 | BF153: =AVERAGE(OFFSET(BE$31,$A153,0,$BE$27,1)) -> 16.19 | BG153: 16.34875 | BH153: 16.461875 | BI153: 16.5721875 | BJ153: 16.68375 | BK153: 16.78140625 | BL153: 16.84851562 | BM153: 16.87707031 | BN153: 16.87126953 | BO153: 16.35070996 | BP153: 16.54295259 | BQ153: 16.69087092 | BR153: -0.1479183216 | BS153: 16.39503427 | BT153: 16.56224249 | BU153: 16.69369766 | BV153: 16.81390904 | BW153: 16.41954353 | BX153: 0.7061745139 | BY153: -103 | BZ153: 17.20734333 | CA153: 22.11030032 | CB153: 16.04202165 | CC153: 0.7820216471 | CD153: 3.511161458 | CE153: 22.27244906 | CF153: 28.01521126 | CG153: 100 | CH153: 50 | CI153: 0 | CK153: 16.64144717 | CL153: 16.09072359 | CM153: 16.26821129 | CN153: 16.63780598 | CO153: 0 | CQ153: 16.7
A154: 123 | B154: =OFFSET(InputPriceData!B$15,CalculationsAndCharts!$A154+$A$11,0,1,1) -> 2010-05-18 | C154: =OFFSET(InputPriceData!G$15,CalculationsAndCharts!$A154+$A$11,0,1,1) -> 4935900 | D154: =OFFSET(InputPriceData!C$15,CalculationsAndCharts!$A154+$A$11,IF($C$7,7,0),1,1) -> 16.99 | E154: =OFFSET(InputPriceData!D$15,CalculationsAndCharts!$A154+$A$11,IF($C$7,7,0),1,1) -> 17 | F154: =OFFSET(InputPriceData!E$15,CalculationsAndCharts!$A154+$A$11,IF($C$7,7,0),1,1) -> 16.01 | G154: =OFFSET(InputPriceData!F$15,CalculationsAndCharts!$A154+$A$11,IF($C$7,7,0),1,1) -> 16.2 | H154: 0 | I154: 0 | J154: 0 | K154: 0 | L154: 16.40333333 | M154: 0.6066666667 | N154: 3.148576923 | O154: 3.103352902 | P154: 2.793017612 | Q154: 16.85774622 | R154: 17.22851251 | S154: 0 | T154: 0 | U154: 0 | V154: 0.99 | W154: 0.9534903174 | X154: 0.108857427 | BE154: 16.45 | BF154: =AVERAGE(OFFSET(BE$31,$A154,0,$BE$27,1)) -> 16.5075 | BG154: 16.575 | BH154: 16.6825 | BI154: 16.7953125 | BJ154: 16.8790625 | BK154: 16.915625 | BL154: 16.905625 | BM154: 16.86546875 | BN154: 16.82011719 | BO154: 16.62756055 | BP154: 16.73519523 | BQ154: 16.83878924 | BR154: -0.1035940096 | BS154: 16.63160122 | BT154: 16.72945071 | BU154: 16.82515283 | BV154: 16.93412042 | BW154: 16.64701405 | BX154: 0.6559699421 | BY154: -104 | BZ154: 17.33068289 | CA154: 23.94435352 | CB154: 16.51544694 | CC154: 0.8654469401 | CD154: 3.511161458 | CE154: 24.64845181 | CF154: 33.48650461 | CG154: 100 | CH154: 50 | CI154: 0 | CK154: 16.73289434 | CL154: 16.57322359 | CM154: 16.6247966 | CN154: 16.85663894 | CO154: 0 | CQ154: 16.7
A155: 124 | B155: =OFFSET(InputPriceData!B$15,CalculationsAndCharts!$A155+$A$11,0,1,1) -> 2010-05-17 | C155: =OFFSET(InputPriceData!G$15,CalculationsAndCharts!$A155+$A$11,0,1,1) -> 5892500 | D155: =OFFSET(InputPriceData!C$15,CalculationsAndCharts!$A155+$A$11,IF($C$7,7,0),1,1) -> 16.58 | E155: =OFFSET(InputPriceData!D$15,CalculationsAndCharts!$A155+$A$11,IF($C$7,7,0),1,1) -> 17.03 | F155: =OFFSET(InputPriceData!E$15,CalculationsAndCharts!$A155+$A$11,IF($C$7,7,0),1,1) -> 16.12 | G155: =OFFSET(InputPriceData!F$15,CalculationsAndCharts!$A155+$A$11,IF($C$7,7,0),1,1) -> 16.7 | H155: 0 | I155: 0 | J155: 0 | K155: 0 | L155: 16.61666667 | M155: 0.4366666667 | N155: 3.110346154 | O155: 3.090431753 | P155: 2.781388578 | Q155: 16.98757848 | R155: 17.33444574 | S155: 0 | T155: 0 | U155: 0 | V155: 0.91 | W155: 0.9352354761 | X155: 0.1060021243 | BE155: 16.565 | BF155: =AVERAGE(OFFSET(BE$31,$A155,0,$BE$27,1)) -> 16.6425 | BG155: 16.79 | BH155: 16.908125 | BI155: 16.9628125 | BJ155: 16.9521875 | BK155: 16.895625 | BL155: 16.8253125 | BM155: 16.77476563 | BN155: 16.76954102 | BO155: 16.73807471 | BP155: 16.84282991 | BQ155: 16.94238325 | BR155: -0.09955333792 | BS155: 16.74327657 | BT155: 16.8273002 | BU155: 16.92085496 | BV155: 17.04308801 | BW155: 16.76242374 | BX155: 0.616000715 | BY155: -105 | BZ155: 17.43694885 | CA155: 22.62482461 | CB155: 16.67737069 | CC155: 1.397370687 | CD155: 3.763988525 | CE155: 37.12473291 | CF155: 42.17088747 | CG155: 100 | CH155: 50 | CI155: 0 | CK155: 16.85828869 | CL155: 16.65394717 | CM155: 16.77243878 | CN155: 16.97000508 | CO155: 0 | CQ155: 16.7
A156: 125 | B156: =OFFSET(InputPriceData!B$15,CalculationsAndCharts!$A156+$A$11,0,1,1) -> 2010-05-14 | C156: =OFFSET(InputPriceData!G$15,CalculationsAndCharts!$A156+$A$11,0,1,1) -> 7088000 | D156: =OFFSET(InputPriceData!C$15,CalculationsAndCharts!$A156+$A$11,IF($C$7,7,0),1,1) -> 16.83 | E156: =OFFSET(InputPriceData!D$15,CalculationsAndCharts!$A156+$A$11,IF($C$7,7,0),1,1) -> 16.9 | F156: =OFFSET(InputPriceData!E$15,CalculationsAndCharts!$A156+$A$11,IF($C$7,7,0),1,1) -> 16.18 | G156: =OFFSET(InputPriceData!F$15,CalculationsAndCharts!$A156+$A$11,IF($C$7,7,0),1,1) -> 16.43 | H156: 0 | I156: 0 | J156: 0 | K156: 0 | L156: 16.50333333 | M156: 1.073333333 | N156: 3.157679487 | O156: 3.084741924 | P156: 2.776267732 | Q156: 17.09355328 | R156: 17.43355067 | S156: 0 | T156: 0 | U156: 0 | V156: 0.83 | W156: 0.9478532142 | X156: 0.1076903965 | BE156: 16.72 | BF156: =AVERAGE(OFFSET(BE$31,$A156,0,$BE$27,1)) -> 16.9375 | BG156: 17.02625 | BH156: 17.0175 | BI156: 16.9415625 | BJ156: 16.8390625 | BK156: 16.755 | BL156: 16.72421875 | BM156: 16.76431641 | BN156: 16.87598633 | BO156: 16.86819482 | BP156: 16.94758511 | BQ156: 17.04193659 | BR156: -0.0943514734 | BS156: 16.85323364 | BT156: 16.91132383 | BU156: 17.01440971 | BV156: 17.16532106 | BW156: 16.85606342 | BX156: 0.5778990459 | BY156: -106 | BZ156: 17.53760352 | CA156: 20.51647251 | CB156: 16.68576408 | CC156: 1.625764079 | CD156: 4.202425293 | CE156: 38.68632909 | CF156: 46.32665732 | CG156: 100 | CH156: 50 | CI156: 0 | CK156: 17.13157737 | CL156: 16.75703869 | CM156: 16.87628686 | CN156: 17.09642824 | CO156: 0 | CQ156: 16.7
A157: 126 | B157: =OFFSET(InputPriceData!B$15,CalculationsAndCharts!$A157+$A$11,0,1,1) -> 2010-05-13 | C157: =OFFSET(InputPriceData!G$15,CalculationsAndCharts!$A157+$A$11,0,1,1) -> 5879500 | D157: =OFFSET(InputPriceData!C$15,CalculationsAndCharts!$A157+$A$11,IF($C$7,7,0),1,1) -> 17.29 | E157: =OFFSET(InputPriceData!D$15,CalculationsAndCharts!$A157+$A$11,IF($C$7,7,0),1,1) -> 17.92 | F157: =OFFSET(InputPriceData!E$15,CalculationsAndCharts!$A157+$A$11,IF($C$7,7,0),1,1) -> 16.83 | G157: =OFFSET(InputPriceData!F$15,CalculationsAndCharts!$A157+$A$11,IF($C$7,7,0),1,1) -> 17.01 | H157: 0 | I157: 0 | J157: 0 | K157: 0 | L157: 17.25333333 | M157: 0.3233333333 | N157: 3.063923077 | O157: 3.063902621 | P157: 2.757512359 | Q157: 17.26218755 | R157: 17.53069278 | S157: 0 | T157: 0 | U157: 0 | V157: 1.09 | W157: 1.006779821 | X157: 0.1091875262 | BE157: 17.155 | BF157: =AVERAGE(OFFSET(BE$31,$A157,0,$BE$27,1)) -> 17.115 | BG157: 17.00875 | BH157: 16.865625 | BI157: 16.7365625 | BJ157: 16.6709375 | BK157: 16.6934375 | BL157: 16.80441406 | BM157: 16.98765625 | BN157: 17.21775391 | BO157: 17.00516309 | BP157: 17.0269754 | BQ157: 17.13628806 | BR157: -0.1093126591 | BS157: 16.91766274 | BT157: 16.96941402 | BU157: 17.11749559 | BV157: 17.31623242 | BW157: 16.8719877 | BX157: 0.5390771699 | BY157: -107 | BZ157: 17.63425568 | CA157: 14.64940373 | CB157: 17.12924821 | CC157: 2.16924821 | CD157: 4.278461019 | CE157: 50.70160041 | CF157: 48.14802465 | CG157: 100 | CH157: 50 | CI157: 0 | CK157: 17.00065474 | CL157: 17.25328869 | CM157: 17.12492254 | CN157: 17.23218406 | CO157: 0 | CQ157: 16.7
A158: 127 | B158: =OFFSET(InputPriceData!B$15,CalculationsAndCharts!$A158+$A$11,0,1,1) -> 2010-05-12 | C158: =OFFSET(InputPriceData!G$15,CalculationsAndCharts!$A158+$A$11,0,1,1) -> 4382600 | D158: =OFFSET(InputPriceData!C$15,CalculationsAndCharts!$A158+$A$11,IF($C$7,7,0),1,1) -> 17.09 | E158: =OFFSET(InputPriceData!D$15,CalculationsAndCharts!$A158+$A$11,IF($C$7,7,0),1,1) -> 17.42 | F158: =OFFSET(InputPriceData!E$15,CalculationsAndCharts!$A158+$A$11,IF($C$7,7,0),1,1) -> 16.93 | G158: =OFFSET(InputPriceData!F$15,CalculationsAndCharts!$A158+$A$11,IF($C$7,7,0),1,1) -> 17.3 | H158: 0 | I158: 0 | J158: 0 | K158: 0 | L158: 17.21666667 | M158: 0.8866666667 | N158: 3.169512821 | O158: 3.063896776 | P158: 2.757507098 | Q158: 17.26471733 | R158: 17.60740855 | S158: 0 | T158: 0 | U158: 0 | V158: 0.57 | W158: 0.9651697318 | X158: 0.1057901579 | BE158: 17.075 | BF158: =AVERAGE(OFFSET(BE$31,$A158,0,$BE$27,1)) -> 16.9025 | BG158: 16.7225 | BH158: 16.6075 | BI158: 16.6053125 | BJ158: 16.7159375 | BK158: 16.91539063 | BL158: 17.17089844 | BM158: 17.44785156 | BN158: 17.71482422 | BO158: 16.94688574 | BP158: 17.04878771 | BQ158: 17.24560072 | BR158: -0.1968130046 | BS158: 16.85197471 | BT158: 17.0211653 | BU158: 17.26557717 | BV158: 17.51496924 | BW158: 16.78173365 | BX158: 0.4931838351 | BY158: -108 | BZ158: 17.7353972 | CA158: 1.657806143 | CB158: 17.0817762 | CC158: 2.121776204 | CD158: 4.278461019 | CE158: 49.59204244 | CF158: 45.91054403 | CG158: 100 | CH158: 50 | CI158: 0 | CK158: 16.81630948 | CL158: 17.05940474 | CM158: 17.03931535 | CN158: 17.22374222 | CO158: 0 | CQ158: 16.7
A159: 128 | B159: =OFFSET(InputPriceData!B$15,CalculationsAndCharts!$A159+$A$11,0,1,1) -> 2010-05-11 | C159: =OFFSET(InputPriceData!G$15,CalculationsAndCharts!$A159+$A$11,0,1,1) -> 5477800 | D159: =OFFSET(InputPriceData!C$15,CalculationsAndCharts!$A159+$A$11,IF($C$7,7,0),1,1) -> 16.35 | E159: =OFFSET(InputPriceData!D$15,CalculationsAndCharts!$A159+$A$11,IF($C$7,7,0),1,1) -> 17.25 | F159: =OFFSET(InputPriceData!E$15,CalculationsAndCharts!$A159+$A$11,IF($C$7,7,0),1,1) -> 16.33 | G159: =OFFSET(InputPriceData!F$15,CalculationsAndCharts!$A159+$A$11,IF($C$7,7,0),1,1) -> 16.85 | H159: 0 | I159: 0 | J159: 0 | K159: 0 | L159: 16.81 | M159: 0.52 | N159: 3.1595 | O159: 3.033720763 | P159: 2.730348687 | Q159: 17.27844609 | R159: 17.70532033 | S159: 0 | T159: 0 | U159: 0 | V159: 0.92 | W159: 1.162754598 | X159: 0.1190062076 | BE159: 16.73 | BF159: =AVERAGE(OFFSET(BE$31,$A159,0,$BE$27,1)) -> 16.5425 | BG159: 16.4925 | BH159: 16.603125 | BI159: 16.8265625 | BJ159: 17.11484375 | BK159: 17.42640625 | BL159: 17.72480469 | BM159: 17.98179688 | BN159: 18.18019531 | BO159: 16.88791797 | BP159: 17.15068968 | BQ159: 17.44241372 | BR159: -0.291724038 | BS159: 16.85896565 | BT159: 17.19035589 | BU159: 17.50998903 | BV159: 17.76436132 | BW159: 16.80546192 | BX159: 0.4231526579 | BY159: -109 | BZ159: 17.85327703 | CA159: -11.90526601 | CB159: 16.84895898 | CC159: 1.888958984 | CD159: 4.278461019 | CE159: 44.1504311 | CF159: 44.17005687 | CG159: 100 | CH159: 50 | CI159: 0 | CK159: 16.93761896 | CL159: 16.80315474 | CM159: 16.92108114 | CN159: 17.28947721 | CO159: 0 | CQ159: 16.7
A160: 129 | B160: =OFFSET(InputPriceData!B$15,CalculationsAndCharts!$A160+$A$11,0,1,1) -> 2010-05-10 | C160: =OFFSET(InputPriceData!G$15,CalculationsAndCharts!$A160+$A$11,0,1,1) -> 8297200 | D160: =OFFSET(InputPriceData!C$15,CalculationsAndCharts!$A160+$A$11,IF($C$7,7,0),1,1) -> 17.05 | E160: =OFFSET(InputPriceData!D$15,CalculationsAndCharts!$A160+$A$11,IF($C$7,7,0),1,1) -> 17.15 | F160: =OFFSET(InputPriceData!E$15,CalculationsAndCharts!$A160+$A$11,IF($C$7,7,0),1,1) -> 16.29 | G160: =OFFSET(InputPriceData!F$15,CalculationsAndCharts!$A160+$A$11,IF($C$7,7,0),1,1) -> 16.61 | H160: =IF($S$16,$C$17*G160+$D$17*H161,0) -> 0 | I160: 0 | J160: 0 | K160: 0 | L160: =AVERAGE(E160:G160) -> 16.68333333 | M160: =IF(L160>=L161,L160-F161,L161-F160) -> 1.033333333 | N160: 3.188628205 | O160: 2.997783839 | P160: 2.698005455 | Q160: =(L160*$E$17+Q161*$F$17) -> 17.41228783 | R160: =Q160*$E$17+R161*$F$17 -> 17.8272844 | S160: 0 | T160: 0 | U160: 0 | V160: =MAX(E160-F160,ABS(E160-G161),ABS(F160-G161)) -> 1.05 | W160: =(W161*($W$31-1)+V160)/$W$31 -> 1.284131897 | X160: =$B$16+W160/G160*$F$16 -> 0.1273107704 | BE160: 16.355 | BF160: =AVERAGE(OFFSET(BE$31,$A160,0,$BE$27,1)) -> 16.4425 | BG160: 16.71375 | BH160: 17.05 | BI160: 17.403125 | BJ160: 17.73796875 | BK160: 18.02320313 | BL160: 18.23878906 | BM160: 18.37859375 | BN160: 18.44776367 | BO160: 17.00078467 | BP160: 17.4134614 | BQ160: 17.73413776 | BR160: -0.3206763604 | BS160: 17.09278504 | BT160: 17.52174614 | BU160: 17.82962216 | BV160: 18.01873361 | BW160: 17.09510555 | BX160: 0.330026665 | BY160: -110 | BZ160: 17.97485529 | CA160: -16.64232231 | CB160: 16.842059 | CC160: 1.882059001 | CD160: 4.278461019 | CE160: 43.98915854 | CF160: 49.53318225 | CG160: 100 | CH160: 50 | CI160: 0 | CK160: 17.10023793 | CL160: 16.82880948 | CM160: 16.99513523 | CN160: 17.48400619 | CO160: 0 | CQ160: 16.7
A161: 130 | B161: =OFFSET(InputPriceData!B$15,CalculationsAndCharts!$A161+$A$11,0,1,1) -> 2010-05-07 | C161: =OFFSET(InputPriceData!G$15,CalculationsAndCharts!$A161+$A$11,0,1,1) -> 10531700 | D161: =OFFSET(InputPriceData!C$15,CalculationsAndCharts!$A161+$A$11,IF($C$7,7,0),1,1) -> 16.93 | E161: =OFFSET(InputPriceData!D$15,CalculationsAndCharts!$A161+$A$11,IF($C$7,7,0),1,1) -> 17.11 | F161: =OFFSET(InputPriceData!E$15,CalculationsAndCharts!$A161+$A$11,IF($C$7,7,0),1,1) -> 15.65 | G161: =OFFSET(InputPriceData!F$15,CalculationsAndCharts!$A161+$A$11,IF($C$7,7,0),1,1) -> 16.1 | H161: 0 | I161: 0 | J161: 0 | K161: 0 | L161: 16.28666667 | M161: 1.4 | N161: =AVERAGE(OFFSET(M161,0,0,$F$19,1))*$F$20 -> 3.271461538 | O161: =(N161*$E$17+O162*$F$17) -> 2.943256877 | P161: =O161*$F$21 -> 2.648931189 | Q161: 17.62056054 | R161: 17.94585486 | S161: =IF($S$15,AVERAGE(OFFSET(Q161,0,0,$F$18,1)),0) -> 0 | T161: =IF($S$15,R161+O161,0) -> 0 | U161: =IF($S$15,R161-P161,0) -> 0 | V161: 1.46 | W161: 1.401197845 | X161: 0.137030922 | Y161: =IF($A161=$B$28,Y$31,NA()) ->  | Z161: =IF(AA161="","",OFFSET($B$31,AA161,0,1,1)) ->  | BE161: =AVERAGE(OFFSET($G$31,$A161,0,$BE$27,1)) -> 16.53 | BF161: =AVERAGE(OFFSET(BE$31,$A161,0,$BE$27,1)) -> 16.985 | BG161: 17.38625 | BH161: 17.75625 | BI161: 18.0728125 | BJ161: 18.3084375 | BK161: 18.454375 | BL161: 18.51839844 | BM161: 18.51693359 | BN161: 18.46958008 | BO161: =(5*BE161+4*BF161+3*BG161+2*BH161+BI161+BJ161+BK161+BL161+BM161+BN161)/20 -> 17.43008936 | BP161: 17.82613813 | BQ161: 18.05481412 | BR161: -0.2286759888 | BS161: 17.59746214 | BT161: 17.95070725 | BU161: 18.13749818 | BV161: 18.20784507 | BW161: 17.64747226 | BX161: =_xlfn.STDEV.P(OFFSET(BW161,0,0,$BG$27,1)) -> 0.2901780601 | BY161: -111 | BZ161: =SUMPRODUCT(OFFSET(BW161,0,0,$BG$27,1),OFFSET($BY$31,1,0,$BG$27,1))/$BH$27 -> 18.06775302 | CA161: =(BW161+2*BX161-BZ161)/(4*BX161)*100 -> 13.79113169 | CB161: 16.85837801 | CC161: 1.898378011 | CD161: 4.278461019 | CE161: =IF(CD161<0.000000000001,IF($A161>=$A$8,50,CE162),MIN(100,MAX(0,100*CC161/CD161))) -> 44.37058098 | CF161: =AVERAGE(OFFSET(CE$31,$A161,0,$BJ$27,1)) -> 59.92591154 | CG161: =CG$30 -> 100 | CH161: 50 | CI161: 0 | CJ161: =IF($A161=$B$28,CJ$30,NA()) ->  | CK161: =IF(A161>=$A$8,0,(AVERAGE(D162:G162)+CK162)/2) -> 17.75297586 | CL161: =(AVERAGE(D161:G161)+CK161+MAX(E161,CK161)+MIN(F161,CK161))/4 -> 16.90086293 | CM161: =IF(A161>=$A$8,L161,(L161*CM$28+CM162*CM$29)) -> 17.20300316 | CN161: =IF(A161>=$A$8,CL161,(CL161*CN$28+CN162*CN$29)) -> 17.74608488 | CO161: =IF(AND(CM161>CN161,G161>D161),100,IF(AND(CM161<CN161,G161<D161),0,CO162)) -> 0 | CP161: =IF($S$17,IF($A161>$A$8,NA(),IF($CO161=100,CP$30,NA())),NA()) ->  | CQ161: =IF($S$17,IF($A161>$A$8,NA(),IF($CO161=0,CQ$30,NA())),NA()) -> 16.7 | CS161: 16.93
A162: 131 | B162: =OFFSET(InputPriceData!B$15,CalculationsAndCharts!$A162+$A$11,0,1,1) -> 2010-05-06 | C162: =OFFSET(InputPriceData!G$15,CalculationsAndCharts!$A162+$A$11,0,1,1) -> 13420400 | D162: =OFFSET(InputPriceData!C$15,CalculationsAndCharts!$A162+$A$11,IF($C$7,7,0),1,1) -> 17.8 | E162: =OFFSET(InputPriceData!D$15,CalculationsAndCharts!$A162+$A$11,IF($C$7,7,0),1,1) -> 18.25 | F162: =OFFSET(InputPriceData!E$15,CalculationsAndCharts!$A162+$A$11,IF($C$7,7,0),1,1) -> 15.94 | G162: =OFFSET(InputPriceData!F$15,CalculationsAndCharts!$A162+$A$11,IF($C$7,7,0),1,1) -> 16.96 | H162: 0 | I162: 0 | J162: 0 | K162: 0 | L162: 17.05 | M162: 2 | N162: 3.070294872 | O162: 2.849484116 | P162: 2.564535705 | Q162: 18.00167307 | R162: 18.03879609 | S162: 0 | T162: 0 | U162: 0 | V162: 2.31 | W162: 1.371796767 | X162: 0.1308842434 | BE162: 17.44 | BF162: =AVERAGE(OFFSET(BE$31,$A162,0,$BE$27,1)) -> 17.7875 | BG162: 18.12625 | BH162: 18.389375 | BI162: 18.5440625 | BJ162: 18.6003125 | BK162: 18.58242188 | BL162: 18.51546875 | BM162: 18.42222656 | BN162: 18.32147461 | BO162: 18.02467334 | BP162: 18.22218691 | BQ162: 18.28349011 | BR162: -0.06130320109 | BS162: 18.16088371 | BT162: 18.30395235 | BU162: 18.32428912 | BV162: 18.27819195 | BW162: 18.21718164 | BX162: 0.3900532465 | BY162: =BY161-1 -> -112 | BZ162: 18.09758988 | CA162: 57.6650915 | CB162: 17.53733667 | CC162: 2.57733667 | CD162: 4.278461019 | CE162: 60.23980722 | CF162: 72.82402015 | CG162: 100 | CH162: 50 | CI162: 0 | CK162: 18.26845172 | CL162: 17.42860086 | CM162: 17.81389416 | CN162: 18.08417365 | CO162: 0 | CQ162: 16.7
A163: 132 | B163: =OFFSET(InputPriceData!B$15,CalculationsAndCharts!$A163+$A$11,0,1,1) -> 2010-05-05 | C163: =OFFSET(InputPriceData!G$15,CalculationsAndCharts!$A163+$A$11,0,1,1) -> 6582400 | D163: =OFFSET(InputPriceData!C$15,CalculationsAndCharts!$A163+$A$11,IF($C$7,7,0),1,1) -> 17.85 | E163: =OFFSET(InputPriceData!D$15,CalculationsAndCharts!$A163+$A$11,IF($C$7,7,0),1,1) -> 18.34 | F163: =OFFSET(InputPriceData!E$15,CalculationsAndCharts!$A163+$A$11,IF($C$7,7,0),1,1) -> 17.56 | G163: =OFFSET(InputPriceData!F$15,CalculationsAndCharts!$A163+$A$11,IF($C$7,7,0),1,1) -> 17.92 | H163: 0 | I163: 0 | J163: 0 | K163: 0 | L163: 17.94 | M163: 0.87 | N163: 2.742602564 | O163: 2.786395329 | P163: 2.507755796 | Q163: 18.27357967 | R163: 18.04940266 | S163: 0 | T163: 0 | U163: 0 | V163: 0.79 | W163: 0.9026951512 | X163: 0.1003736133 | BE163: 18.135 | BF163: =AVERAGE(OFFSET(BE$31,$A163,0,$BE$27,1)) -> 18.465 | BG163: 18.6525 | BH163: 18.69875 | BI163: 18.6565625 | BJ163: 18.56453125 | BK163: 18.44851563 | BL163: 18.32898438 | BM163: 18.22072266 | BN163: 18.1309082 | BO163: 18.41201123 | BP163: 18.41970048 | BQ163: 18.34479331 | BR163: 0.07490716653 | BS163: 18.49460764 | BT163: 18.44702099 | BU163: 18.34462589 | BV163: 18.23209477 | BW163: 18.53928008 | BX163: 0.53252055 | BY163: -113 | BZ163: 18.05626093 | CA163: 72.67608065 | CB163: 18.17600562 | CC163: 3.216005615 | CD163: 4.278461019 | CE163: 75.16734641 | CF163: 86.07741774 | CG163: 100 | CH163: 50 | CI163: 0 | CK163: 18.61940344 | CL163: 18.17907672 | CM163: 18.32315693 | CN163: 18.34640277 | CO163: 100 | CP163: 16.7
A164: 133 | B164: =OFFSET(InputPriceData!B$15,CalculationsAndCharts!$A164+$A$11,0,1,1) -> 2010-05-04 | C164: =OFFSET(InputPriceData!G$15,CalculationsAndCharts!$A164+$A$11,0,1,1) -> 7808500 | D164: =OFFSET(InputPriceData!C$15,CalculationsAndCharts!$A164+$A$11,IF($C$7,7,0),1,1) -> 18.81 | E164: =OFFSET(InputPriceData!D$15,CalculationsAndCharts!$A164+$A$11,IF($C$7,7,0),1,1) -> 18.82 | F164: =OFFSET(InputPriceData!E$15,CalculationsAndCharts!$A164+$A$11,IF($C$7,7,0),1,1) -> 18.12 | G164: =OFFSET(InputPriceData!F$15,CalculationsAndCharts!$A164+$A$11,IF($C$7,7,0),1,1) -> 18.35 | H164: 0 | I164: 0 | J164: 0 | K164: 0 | L164: 18.43 | M164: 0.9966666667 | N164: 2.698 | O164: 2.798907547 | P164: 2.519016793 | Q164: 18.36888814 | R164: 17.98535209 | S164: 0 | T164: 0 | U164: 0 | V164: 1.12 | W164: 0.9590427268 | X164: 0.1022639088 | BE164: 18.795 | BF164: =AVERAGE(OFFSET(BE$31,$A164,0,$BE$27,1)) -> 18.84 | BG164: 18.745 | BH164: 18.614375 | BI164: 18.4725 | BJ164: 18.3325 | BK164: 18.20945313 | BL164: 18.11246094 | BM164: 18.04109375 | BN164: 17.98922852 | BO164: 18.59779932 | BP164: 18.42738972 | BQ164: 18.26988614 | BR164: 0.1575035798 | BS164: 18.5848933 | BT164: 18.39943434 | BU164: 18.24223079 | BV164: 18.11956366 | BW164: 18.59117433 | BX164: 0.6440636751 | BY164: -114 | BZ164: 17.96634827 | CA164: 74.25327205 | CB164: 18.51389966 | CC164: 3.553899658 | CD164: 4.278461019 | CE164: 83.06490681 | CF164: 93.81493655 | CG164: 100 | CH164: 50 | CI164: 0 | CK164: 18.71380688 | CL164: 18.54470172 | CM164: 18.57859488 | CN164: 18.41333319 | CO164: 100 | CP164: 16.7
A165: 134 | B165: =OFFSET(InputPriceData!B$15,CalculationsAndCharts!$A165+$A$11,0,1,1) -> 2010-05-03 | C165: =OFFSET(InputPriceData!G$15,CalculationsAndCharts!$A165+$A$11,0,1,1) -> 5876400 | D165: =OFFSET(InputPriceData!C$15,CalculationsAndCharts!$A165+$A$11,IF($C$7,7,0),1,1) -> 18.63 | E165: =OFFSET(InputPriceData!D$15,CalculationsAndCharts!$A165+$A$11,IF($C$7,7,0),1,1) -> 19.48 | F165: =OFFSET(InputPriceData!E$15,CalculationsAndCharts!$A165+$A$11,IF($C$7,7,0),1,1) -> 18.63 | G165: =OFFSET(InputPriceData!F$15,CalculationsAndCharts!$A165+$A$11,IF($C$7,7,0),1,1) -> 19.24 | H165: 0 | I165: 0 | J165: 0 | K165: 0 | L165: 19.11666667 | M165: 0.7166666667 | N165: 2.647935897 | O165: 2.827738275 | P165: 2.544964448 | Q165: 18.35142761 | R165: 17.87577036 | S165: 0 | T165: 0 | U165: 0 | V165: 0.95 | W165: 0.8785640902 | X165: 0.09566341425 | BE165: 18.885 | BF165: =AVERAGE(OFFSET(BE$31,$A165,0,$BE$27,1)) -> 18.65 | BG165: 18.48375 | BH165: 18.330625 | BI165: 18.1925 | BJ165: 18.08640625 | BK165: 18.01546875 | BL165: 17.96972656 | BM165: 17.93736328 | BN165: 17.91110352 | BO165: 18.46250342 | BP165: 18.25698013 | BQ165: 18.11238256 | BR165: 0.1445975673 | BS165: 18.4015777 | BT165: 18.21397538 | BU165: 18.08502723 | BV165: 17.99689653 | BW165: 18.38374099 | BX165: 0.7250744147 | BY165: -115 | BZ165: 17.85517609 | CA165: 68.22450542 | CB165: 18.78958504 | CC165: 4.489585042 | CD165: 4.299429687 | CE165: 100 | CF165: 99.45996762 | CG165: 100 | CH165: 50 | CI165: 0 | CK165: 18.43261376 | CL165: 18.83505688 | CM165: 18.67765813 | CN165: 18.36078578 | CO165: 100 | CP165: 16.7
A166: 135 | B166: =OFFSET(InputPriceData!B$15,CalculationsAndCharts!$A166+$A$11,0,1,1) -> 2010-04-30 | C166: =OFFSET(InputPriceData!G$15,CalculationsAndCharts!$A166+$A$11,0,1,1) -> 9542400 | D166: =OFFSET(InputPriceData!C$15,CalculationsAndCharts!$A166+$A$11,IF($C$7,7,0),1,1) -> 18.41 | E166: =OFFSET(InputPriceData!D$15,CalculationsAndCharts!$A166+$A$11,IF($C$7,7,0),1,1) -> 19.43 | F166: =OFFSET(InputPriceData!E$15,CalculationsAndCharts!$A166+$A$11,IF($C$7,7,0),1,1) -> 18.4 | G166: =OFFSET(InputPriceData!F$15,CalculationsAndCharts!$A166+$A$11,IF($C$7,7,0),1,1) -> 18.53 | H166: 0 | I166: 0 | J166: 0 | K166: 0 | L166: 18.78666667 | M166: 0.6666666667 | N166: 2.764448718 | O166: 2.879110383 | P166: 2.591199345 | Q166: 18.13278788 | R166: 17.73986829 | S166: 0 | T166: 0 | U166: 0 | V166: 1.13 | W166: 0.8428461353 | X166: 0.0954854903 | BE166: 18.415 | BF166: =AVERAGE(OFFSET(BE$31,$A166,0,$BE$27,1)) -> 18.3175 | BG166: 18.1775 | BH166: 18.054375 | BI166: 17.9803125 | BJ166: 17.94453125 | BK166: 17.92398438 | BL166: 17.905 | BM166: 17.88484375 | BN166: 17.86513672 | BO166: 18.17450293 | BP166: 18.05145685 | BQ166: 17.967785 | BR166: 0.08367184836 | BS166: 18.13512869 | BT166: 18.02637307 | BU166: 17.95607908 | BV166: 17.90876583 | BW166: 18.1196478 | BX166: 0.8114830167 | BY166: -116 | BZ166: 17.74989954 | CA166: 61.39112752 | CB166: 18.4805848 | CC166: 4.180584798 | CD166: 4.249429687 | CE166: 98.37990285 | CF166: 99.45996762 | CG166: 100 | CH166: 50 | CI166: 0 | CK166: 18.17272752 | CL166: 18.61698876 | CM166: 18.38498577 | CN166: 18.17107734 | CO166: 100 | CP166: 16.7
A167: 136 | B167: =OFFSET(InputPriceData!B$15,CalculationsAndCharts!$A167+$A$11,0,1,1) -> 2010-04-29 | C167: =OFFSET(InputPriceData!G$15,CalculationsAndCharts!$A167+$A$11,0,1,1) -> 4680000 | D167: =OFFSET(InputPriceData!C$15,CalculationsAndCharts!$A167+$A$11,IF($C$7,7,0),1,1) -> 18.28 | E167: =OFFSET(InputPriceData!D$15,CalculationsAndCharts!$A167+$A$11,IF($C$7,7,0),1,1) -> 18.5 | F167: =OFFSET(InputPriceData!E$15,CalculationsAndCharts!$A167+$A$11,IF($C$7,7,0),1,1) -> 18.12 | G167: =OFFSET(InputPriceData!F$15,CalculationsAndCharts!$A167+$A$11,IF($C$7,7,0),1,1) -> 18.3 | H167: 0 | I167: 0 | J167: 0 | K167: 0 | L167: 18.30666667 | M167: 0.4666666667 | N167: 2.837269231 | O167: 2.911870859 | P167: 2.620683773 | Q167: 17.94596537 | R167: 17.62760555 | S167: 0 | T167: 0 | U167: 0 | V167: 0.38 | W167: 0.6992692029 | X167: 0.08821143185 | BE167: 18.22 | BF167: =AVERAGE(OFFSET(BE$31,$A167,0,$BE$27,1)) -> 18.0375 | BG167: 17.93125 | BH167: 17.90625 | BI167: 17.90875 | BJ167: 17.9034375 | BK167: 17.88601562 | BL167: 17.8646875 | BM167: 17.84542969 | BN167: 17.82908203 | BO167: 18.00468262 | BP167: 17.92841076 | BQ167: 17.88411315 | BR167: 0.04429761241 | BS167: 17.97270837 | BT167: 17.91761744 | BU167: 17.88578509 | BV167: 17.86145258 | BW167: 17.95694965 | BX167: 0.9102660831 | BY167: -117 | BZ167: 17.65639196 | CA167: 58.2546657 | CB167: 18.15567464 | CC167: 3.855674642 | CD167: 3.609429687 | CE167: 100 | CF167: 99.31736394 | CG167: 100 | CH167: 50 | CI167: 0 | CK167: 18.04545504 | CL167: 18.22272752 | CM167: 18.1171985 | CN167: 17.99271277 | CO167: 100 | CP167: 16.7
A168: 137 | B168: =OFFSET(InputPriceData!B$15,CalculationsAndCharts!$A168+$A$11,0,1,1) -> 2010-04-28 | C168: =OFFSET(InputPriceData!G$15,CalculationsAndCharts!$A168+$A$11,0,1,1) -> 8159800 | D168: =OFFSET(InputPriceData!C$15,CalculationsAndCharts!$A168+$A$11,IF($C$7,7,0),1,1) -> 18.1 | E168: =OFFSET(InputPriceData!D$15,CalculationsAndCharts!$A168+$A$11,IF($C$7,7,0),1,1) -> 18.44 | F168: =OFFSET(InputPriceData!E$15,CalculationsAndCharts!$A168+$A$11,IF($C$7,7,0),1,1) -> 17.84 | G168: =OFFSET(InputPriceData!F$15,CalculationsAndCharts!$A168+$A$11,IF($C$7,7,0),1,1) -> 18.14 | H168: 0 | I168: 0 | J168: 0 | K168: 0 | L168: 18.14 | M168: 0.61 | N168: 3.104884615 | O168: 2.93318561 | P168: 2.639867049 | Q168: 17.84290786 | R168: 17.5366456 | S168: 0 | T168: 0 | U168: 0 | V168: 0.87 | W168: 0.8589038044 | X168: 0.09734861104 | BE168: 17.855 | BF168: =AVERAGE(OFFSET(BE$31,$A168,0,$BE$27,1)) -> 17.825 | BG168: 17.88125 | BH168: 17.91125 | BI168: 17.898125 | BJ168: 17.86859375 | BK168: 17.84335937 | BL168: 17.82617188 | BM168: 17.81273438 | BN168: 17.80032227 | BO168: 17.85452783 | BP168: 17.8521389 | BQ168: 17.83981554 | BR168: 0.01232336872 | BS168: 17.86446227 | BT168: 17.86252651 | BU168: 17.85395273 | BV168: 17.83712008 | BW168: 17.86284141 | BX168: 0.9986774837 | BY168: -118 | BZ168: 17.56410737 | CA168: 57.47824118 | CB168: 17.99726392 | CC168: 3.697263916 | CD168: 3.609429687 | CE168: 100 | CF168: 99.31736394 | CG168: 100 | CH168: 50 | CI168: 0 | CK168: 17.96091008 | CL168: 18.09272752 | CM168: 17.9908864 | CN168: 17.90070687 | CO168: 100 | CP168: 16.7
A169: 138 | B169: =OFFSET(InputPriceData!B$15,CalculationsAndCharts!$A169+$A$11,0,1,1) -> 2010-04-27 | C169: =OFFSET(InputPriceData!G$15,CalculationsAndCharts!$A169+$A$11,0,1,1) -> 8263600 | D169: =OFFSET(InputPriceData!C$15,CalculationsAndCharts!$A169+$A$11,IF($C$7,7,0),1,1) -> 18.21 | E169: =OFFSET(InputPriceData!D$15,CalculationsAndCharts!$A169+$A$11,IF($C$7,7,0),1,1) -> 18.34 | F169: =OFFSET(InputPriceData!E$15,CalculationsAndCharts!$A169+$A$11,IF($C$7,7,0),1,1) -> 17.53 | G169: =OFFSET(InputPriceData!F$15,CalculationsAndCharts!$A169+$A$11,IF($C$7,7,0),1,1) -> 17.57 | H169: 0 | I169: 0 | J169: 0 | K169: 0 | L169: 17.81333333 | M169: 0.73 | N169: 3.052089744 | O169: 2.884128751 | P169: 2.595715876 | Q169: 17.75802439 | R169: 17.4491421 | S169: 0 | T169: 0 | U169: 0 | V169: 0.81 | W169: 0.8533557065 | X169: 0.0985689076 | BE169: 17.795 | BF169: =AVERAGE(OFFSET(BE$31,$A169,0,$BE$27,1)) -> 17.9375 | BG169: 17.94125 | BH169: 17.885 | BI169: 17.8390625 | BJ169: 17.818125 | BK169: 17.80898438 | BL169: 17.79929688 | BM169: 17.78791016 | BN169: 17.78167969 | BO169: 17.85769043 | BP169: 17.84974998 | BQ169: 17.82749217 | BR169: 0.02225781038 | BS169: 17.87200779 | BT169: 17.86059074 | BU169: 17.84537896 | BV169: 17.82028743 | BW169: 17.86592279 | BX169: 1.062065401 | BY169: -119 | BZ169: 17.46646093 | CA169: 59.40294865 | CB169: 17.83551188 | CC169: 3.535511882 | CD169: 3.609429687 | CE169: 97.95209182 | CF169: 99.31674152 | CG169: 100 | CH169: 50 | CI169: 0 | CK169: 18.00932016 | CL169: 17.94795504 | CM169: 17.89147733 | CN169: 17.82389861 | CO169: 100 | CP169: 16.7
A170: 139 | B170: =OFFSET(InputPriceData!B$15,CalculationsAndCharts!$A170+$A$11,0,1,1) -> 2010-04-26 | C170: =OFFSET(InputPriceData!G$15,CalculationsAndCharts!$A170+$A$11,0,1,1) -> 7331300 | D170: =OFFSET(InputPriceData!C$15,CalculationsAndCharts!$A170+$A$11,IF($C$7,7,0),1,1) -> 18.29 | E170: =OFFSET(InputPriceData!D$15,CalculationsAndCharts!$A170+$A$11,IF($C$7,7,0),1,1) -> 18.79 | F170: =OFFSET(InputPriceData!E$15,CalculationsAndCharts!$A170+$A$11,IF($C$7,7,0),1,1) -> 17.97 | G170: =OFFSET(InputPriceData!F$15,CalculationsAndCharts!$A170+$A$11,IF($C$7,7,0),1,1) -> 18.02 | H170: 0 | I170: 0 | J170: 0 | K170: 0 | L170: 18.26 | M170: 0.71 | N170: 3.025692308 | O170: 2.836139896 | P170: 2.552525906 | Q170: 17.74222184 | R170: 17.36089001 | S170: 0 | T170: 0 | U170: 0 | V170: 0.82 | W170: 0.8750335598 | X170: 0.09855902108 | BE170: 18.08 | BF170: =AVERAGE(OFFSET(BE$31,$A170,0,$BE$27,1)) -> 17.945 | BG170: 17.82875 | BH170: 17.793125 | BI170: 17.7971875 | BJ170: 17.79984375 | BK170: 17.78960938 | BL170: 17.77652344 | BM170: 17.77544922 | BN170: 17.794375 | BO170: 17.89927441 | BP170: 17.84180953 | BQ170: 17.80523436 | BR170: 0.036575169 | BS170: 17.8783847 | BT170: 17.8491737 | BU170: 17.83016717 | BV170: 17.7951959 | BW170: 17.85221549 | BX170: 1.099789246 | BY170: -120 | BZ170: 17.35343376 | CA170: 61.33812084 | CB170: 18.07963721 | CC170: 3.779637207 | CD170: 3.609429687 | CE170: 100 | CF170: 97.33895574 | CG170: 100 | CH170: 50 | CI170: 0 | CK170: 17.75114031 | CL170: 18.13994516 | CM170: 17.94357332 | CN170: 17.77427604 | CO170: 100 | CP170: 16.7
A171: 140 | B171: =OFFSET(InputPriceData!B$15,CalculationsAndCharts!$A171+$A$11,0,1,1) -> 2010-04-23 | C171: =OFFSET(InputPriceData!G$15,CalculationsAndCharts!$A171+$A$11,0,1,1) -> 6894100 | D171: =OFFSET(InputPriceData!C$15,CalculationsAndCharts!$A171+$A$11,IF($C$7,7,0),1,1) -> 17.75 | E171: =OFFSET(InputPriceData!D$15,CalculationsAndCharts!$A171+$A$11,IF($C$7,7,0),1,1) -> 18.19 | F171: =OFFSET(InputPriceData!E$15,CalculationsAndCharts!$A171+$A$11,IF($C$7,7,0),1,1) -> 17.55 | G171: =OFFSET(InputPriceData!F$15,CalculationsAndCharts!$A171+$A$11,IF($C$7,7,0),1,1) -> 18.14 | H171: 0 | I171: 0 | J171: 0 | K171: 0 | L171: 17.96 | M171: 0.85 | N171: 3.14675641 | O171: 2.781982064 | P171: 2.503783857 | Q171: 17.59428522 | R171: 17.25193806 | S171: 0 | T171: 0 | U171: 0 | V171: 0.71 | W171: 0.9025503397 | X171: 0.0997547045 | BE171: 17.81 | BF171: =AVERAGE(OFFSET(BE$31,$A171,0,$BE$27,1)) -> 17.7125 | BG171: 17.7575 | BH171: 17.80125 | BI171: 17.8025 | BJ171: 17.779375 | BK171: 17.7634375 | BL171: 17.774375 | BM171: 17.81330078 | BN171: 17.8665332 | BO171: 17.77872607 | BP171: 17.78434464 | BQ171: 17.76865919 | BR171: 0.01568545009 | BS171: 17.80003009 | BT171: 17.8199627 | BU171: 17.81116063 | BV171: 17.76022462 | BW171: 17.78663083 | BX171: 1.117698644 | BY171: -121 | BZ171: 17.22698097 | CA171: 62.517906 | CB171: 17.86936304 | CC171: 3.569363037 | CD171: 3.569429687 | CE171: 99.99813274 | CF171: 96.77270827 | CG171: 100 | CH171: 50 | CI171: 0 | CK171: 17.59478062 | CL171: 17.81057016 | CM171: 17.73262221 | CN171: 17.62800839 | CO171: 100 | CP171: 16.7
A172: 141 | B172: =OFFSET(InputPriceData!B$15,CalculationsAndCharts!$A172+$A$11,0,1,1) -> 2010-04-22 | C172: =OFFSET(InputPriceData!G$15,CalculationsAndCharts!$A172+$A$11,0,1,1) -> 6690100 | D172: =OFFSET(InputPriceData!C$15,CalculationsAndCharts!$A172+$A$11,IF($C$7,7,0),1,1) -> 17.55 | E172: =OFFSET(InputPriceData!D$15,CalculationsAndCharts!$A172+$A$11,IF($C$7,7,0),1,1) -> 17.6 | F172: =OFFSET(InputPriceData!E$15,CalculationsAndCharts!$A172+$A$11,IF($C$7,7,0),1,1) -> 17.11 | G172: =OFFSET(InputPriceData!F$15,CalculationsAndCharts!$A172+$A$11,IF($C$7,7,0),1,1) -> 17.48 | H172: 0 | I172: =IF($S$16,AVERAGE(OFFSET($G172,0,0,I$31,1)),0) -> 0 | J172: 0 | K172: 0 | L172: 17.39666667 | M172: 0.6266666667 | N172: 3.163141026 | O172: 2.677760822 | P172: 2.409984739 | Q172: 17.48979529 | R172: 17.15412458 | S172: 0 | T172: 0 | U172: 0 | V172: 0.64 | W172: 0.9988255095 | X172: 0.1071410475 | BE172: 17.615 | BF172: =AVERAGE(OFFSET(BE$31,$A172,0,$BE$27,1)) -> 17.8025 | BG172: 17.845 | BH172: 17.80375 | BI172: 17.75625 | BJ172: 17.7475 | BK172: 17.7853125 | BL172: 17.85222656 | BM172: 17.91976563 | BN172: 17.95987305 | BO172: 17.77242139 | BP172: 17.7899632 | BQ172: 17.75297374 | BR172: 0.03698946421 | BS172: 17.82695267 | BT172: =BS172*$BF$28+$BF$29*BT173 -> 17.83989532 | BU172: =BT172*$BF$28+$BF$29*BU173 -> 17.80235856 | BV172: =BU172*$BF$28+$BF$29*BV173 -> 17.70928862 | BW172: =3*BT172-3*BU172+BV172 -> 17.82189887 | BX172: 1.121076593 | BY172: -122 | BZ172: 17.09302509 | CA172: 66.25388024 | CB172: 17.58454403 | CC172: 3.284544027 | CD172: 3.569429687 | CE172: 92.01873448 | CF172: 95.57207101 | CG172: 100 | CH172: 50 | CI172: 0 | CK172: 17.75456124 | CL172: 17.51353062 | CM172: 17.58103701 | CN172: 17.55498369 | CO172: 100 | CP172: 16.7
A173: 142 | B173: =OFFSET(InputPriceData!B$15,CalculationsAndCharts!$A173+$A$11,0,1,1) -> 2010-04-21 | C173: =OFFSET(InputPriceData!G$15,CalculationsAndCharts!$A173+$A$11,0,1,1) -> 11108300 | D173: =OFFSET(InputPriceData!C$15,CalculationsAndCharts!$A173+$A$11,IF($C$7,7,0),1,1) -> 18.1 | E173: =OFFSET(InputPriceData!D$15,CalculationsAndCharts!$A173+$A$11,IF($C$7,7,0),1,1) -> 18.23 | F173: =OFFSET(InputPriceData!E$15,CalculationsAndCharts!$A173+$A$11,IF($C$7,7,0),1,1) -> 17.23 | G173: =OFFSET(InputPriceData!F$15,CalculationsAndCharts!$A173+$A$11,IF($C$7,7,0),1,1) -> 17.75 | H173: 0 | I173: 0 | J173: 0 | K173: 0 | L173: 17.73666667 | M173: 1.336666667 | N173: 3.087589744 | O173: 2.539080763 | P173: 2.285172687 | Q173: 17.51640346 | R173: 17.05821867 | S173: 0 | T173: 0 | U173: 0 | V173: 1 | W173: 1.178238264 | X173: 0.1163796205 | BE173: 17.99 | BF173: =AVERAGE(OFFSET(BE$31,$A173,0,$BE$27,1)) -> 17.8875 | BG173: 17.7625 | BH173: 17.70875 | BI173: 17.73875 | BJ173: 17.823125 | BK173: 17.91914063 | BL173: 17.98730469 | BM173: 17.99998047 | BN173: 17.94513672 | BO173: 17.88092188 | BP173: 17.80750502 | BQ173: 17.71598427 | BR173: 0.091520744 | BS173: 17.89902576 | BT173: 17.85283797 | BU173: 17.76482181 | BV173: 17.61621867 | BW173: 17.88026713 | BX173: 1.105132468 | BY173: -123 | BZ173: 16.94074368 | CA173: 71.25363891 | CB173: 17.80879427 | CC173: 3.508794271 | CD173: 3.569429687 | CE173: 98.30125757 | CF173: 95.24175114 | CG173: 100 | CH173: 50 | CI173: 0 | CK173: 17.68162248 | CL173: 17.74228062 | CM173: 17.70395057 | CN173: 17.57156492 | CO173: 100 | CP173: 16.7
A174: 143 | B174: =OFFSET(InputPriceData!B$15,CalculationsAndCharts!$A174+$A$11,0,1,1) -> 2010-04-20 | C174: =OFFSET(InputPriceData!G$15,CalculationsAndCharts!$A174+$A$11,0,1,1) -> 25449100 | D174: =OFFSET(InputPriceData!C$15,CalculationsAndCharts!$A174+$A$11,IF($C$7,7,0),1,1) -> 17.56 | E174: =OFFSET(InputPriceData!D$15,CalculationsAndCharts!$A174+$A$11,IF($C$7,7,0),1,1) -> 18.48 | F174: =OFFSET(InputPriceData!E$15,CalculationsAndCharts!$A174+$A$11,IF($C$7,7,0),1,1) -> 16.4 | G174: =OFFSET(InputPriceData!F$15,CalculationsAndCharts!$A174+$A$11,IF($C$7,7,0),1,1) -> 18.23 | H174: 0 | I174: 0 | J174: 0 | K174: 0 | L174: 17.70333333 | M174: 0.6633333333 | N174: 2.799948718 | O174: 2.382363912 | P174: 2.144127521 | Q174: 17.45347112 | R174: 16.92730873 | S174: 0 | T174: 0 | U174: 0 | V174: 2.08 | W174: 1.267357396 | X174: 0.1195204277 | BE174: 17.785 | BF174: =AVERAGE(OFFSET(BE$31,$A174,0,$BE$27,1)) -> 17.6375 | BG174: 17.655 | BH174: 17.76875 | BI174: 17.9075 | BJ174: 18.01515625 | BK174: 18.05546875 | BL174: 18.01265625 | BM174: 17.89029297 | BN174: 17.70657227 | BO174: 17.77825732 | BP174: 17.73408816 | BQ174: 17.62446353 | BR174: 0.1096246309 | BS174: 17.84371279 | BT174: 17.80665017 | BU174: 17.67680566 | BV174: 17.46761552 | BW174: 17.85714907 | BX174: 1.065262594 | BY174: -124 | BZ174: 16.76748137 | CA174: 75.57274875 | CB174: 17.74079533 | CC174: 3.440795329 | CD174: 3.569429687 | CE174: 96.39622097 | CF174: 94.74376474 | CG174: 100 | CH174: 50 | CI174: 0 | CK174: 17.69574497 | CL174: 17.56081124 | CM174: 17.68213984 | CN174: 17.50327863 | CO174: 100 | CP174: 16.7
A175: 144 | B175: =OFFSET(InputPriceData!B$15,CalculationsAndCharts!$A175+$A$11,0,1,1) -> 2010-04-19 | C175: =OFFSET(InputPriceData!G$15,CalculationsAndCharts!$A175+$A$11,0,1,1) -> 7761700 | D175: =OFFSET(InputPriceData!C$15,CalculationsAndCharts!$A175+$A$11,IF($C$7,7,0),1,1) -> 17.57 | E175: =OFFSET(InputPriceData!D$15,CalculationsAndCharts!$A175+$A$11,IF($C$7,7,0),1,1) -> 17.81 | F175: =OFFSET(InputPriceData!E$15,CalculationsAndCharts!$A175+$A$11,IF($C$7,7,0),1,1) -> 17.04 | G175: =OFFSET(InputPriceData!F$15,CalculationsAndCharts!$A175+$A$11,IF($C$7,7,0),1,1) -> 17.34 | H175: 0 | I175: 0 | J175: 0 | K175: 0 | L175: 17.39666667 | M175: 0.8 | N175: 2.669782051 | O175: 2.263053967 | P175: 2.03674857 | Q175: 17.38208192 | R175: 16.77697662 | S175: 0 | T175: 0 | U175: 0 | V175: 0.77 | W175: 0.8610360947 | X175: 0.09965606083 | BE175: 17.49 | BF175: =AVERAGE(OFFSET(BE$31,$A175,0,$BE$27,1)) -> 17.6725 | BG175: 17.8825 | BH175: 18.04625 | BI175: 18.1228125 | BJ175: 18.09578125 | BK175: 17.96984375 | BL175: 17.76792969 | BM175: 17.52285156 | BN175: 17.26655273 | BO175: 17.73128857 | BP175: 17.689919 | BQ175: 17.5148389 | BR175: 0.1750800982 | BS175: 17.8649991 | BT175: 17.76958756 | BU175: 17.54696114 | BV175: 17.25842538 | BW175: 17.92630464 | BX175: 1.006441048 | BY175: -125 | BZ175: 16.58196153 | CA175: 83.39348869 | CB175: 17.56397762 | CC175: 3.26397762 | CD175: 3.585694173 | CE175: 91.0277749 | CF175: 95.94502442 | CG175: 100 | CH175: 50 | CI175: 0 | CK175: 17.95148994 | CL175: 17.59574497 | CM175: 17.66801085 | CN175: 17.48026559 | CO175: 100 | CP175: 16.7
A176: 145 | B176: =OFFSET(InputPriceData!B$15,CalculationsAndCharts!$A176+$A$11,0,1,1) -> 2010-04-16 | C176: =OFFSET(InputPriceData!G$15,CalculationsAndCharts!$A176+$A$11,0,1,1) -> 9024400 | D176: =OFFSET(InputPriceData!C$15,CalculationsAndCharts!$A176+$A$11,IF($C$7,7,0),1,1) -> 17.91 | E176: =OFFSET(InputPriceData!D$15,CalculationsAndCharts!$A176+$A$11,IF($C$7,7,0),1,1) -> 18.42 | F176: =OFFSET(InputPriceData!E$15,CalculationsAndCharts!$A176+$A$11,IF($C$7,7,0),1,1) -> 17.46 | G176: =OFFSET(InputPriceData!F$15,CalculationsAndCharts!$A176+$A$11,IF($C$7,7,0),1,1) -> 17.64 | H176: 0 | I176: 0 | J176: 0 | K176: 0 | L176: 17.84 | M176: 0.7066666667 | N176: 2.530512821 | O176: 2.146845943 | P176: 1.932161349 | Q176: 17.37791484 | R176: 16.60408939 | S176: 0 | T176: 0 | U176: 0 | V176: 0.96 | W176: 0.9065541421 | X176: 0.1013919582 | BE176: 17.855 | BF176: =AVERAGE(OFFSET(BE$31,$A176,0,$BE$27,1)) -> 18.0925 | BG176: 18.21 | BH176: 18.199375 | BI176: 18.06875 | BJ176: 17.84390625 | BK176: 17.56601562 | BL176: 17.27777344 | BM176: 17.01025391 | BN176: 16.77777344 | BO176: 17.86091113 | BP176: 17.64854942 | BQ176: 17.3397588 | BR176: 0.3087906195 | BS176: 17.95734004 | BT176: 17.67417602 | BU176: 17.32433472 | BV176: 16.96988963 | BW176: 18.01941353 | BX176: 0.9162492016 | BY176: -126 | BZ176: 16.37387199 | CA176: 94.89885351 | CB176: 17.85045557 | CC176: 3.550455566 | CD176: 3.667549479 | CE176: 96.80729835 | CF176: 98.93576612 | CG176: 100 | CH176: 50 | CI176: 0 | CK176: 18.04547988 | CL176: 17.94574497 | CM176: 17.84890697 | CN176: 17.43407384 | CO176: 100 | CP176: 16.7
A177: 146 | B177: =OFFSET(InputPriceData!B$15,CalculationsAndCharts!$A177+$A$11,0,1,1) -> 2010-04-15 | C177: =OFFSET(InputPriceData!G$15,CalculationsAndCharts!$A177+$A$11,0,1,1) -> 9949000 | D177: =OFFSET(InputPriceData!C$15,CalculationsAndCharts!$A177+$A$11,IF($C$7,7,0),1,1) -> 18.51 | E177: =OFFSET(InputPriceData!D$15,CalculationsAndCharts!$A177+$A$11,IF($C$7,7,0),1,1) -> 18.75 | F177: =OFFSET(InputPriceData!E$15,CalculationsAndCharts!$A177+$A$11,IF($C$7,7,0),1,1) -> 17.68 | G177: =OFFSET(InputPriceData!F$15,CalculationsAndCharts!$A177+$A$11,IF($C$7,7,0),1,1) -> 18.07 | H177: 0 | I177: 0 | J177: 0 | K177: 0 | L177: 18.16666667 | M177: 0.8133333333 | N177: 2.409448718 | O177: 2.037226835 | P177: 1.833504152 | Q177: 17.24589051 | R177: 16.3829964 | S177: 0 | T177: 0 | U177: 0 | V177: 1.07 | W177: 0.8798312131 | X177: 0.09869016121 | BE177: 18.33 | BF177: =AVERAGE(OFFSET(BE$31,$A177,0,$BE$27,1)) -> 18.3275 | BG177: 18.18875 | BH177: 17.938125 | BI177: 17.6190625 | BJ177: 17.288125 | BK177: 16.98953125 | BL177: 16.74273438 | BM177: 16.54529297 | BN177: 16.38326172 | BO177: 17.84852539 | BP177: 17.43618771 | BQ177: 17.03096818 | BR177: 0.4052195264 | BS177: 17.84140723 | BT177: 17.391012 | BU177: 16.97449341 | BV177: 16.61544454 | BW177: 17.86500029 | BX177: 0.774147781 | BY177: -127 | BZ177: 16.140387 | CA177: 105.6939299 | CB177: 18.00759603 | CC177: 4.967596029 | CD177: 4.670080566 | CE177: 100 | CF177: 100 | CG177: 100 | CH177: 50 | CI177: 0 | CK177: 17.83845975 | CL177: 18.13023994 | CM177: 17.85484494 | CN177: 17.22940539 | CO177: 100 | CP177: 16.7
A178: 147 | B178: =OFFSET(InputPriceData!B$15,CalculationsAndCharts!$A178+$A$11,0,1,1) -> 2010-04-14 | C178: =OFFSET(InputPriceData!G$15,CalculationsAndCharts!$A178+$A$11,0,1,1) -> 12481500 | D178: =OFFSET(InputPriceData!C$15,CalculationsAndCharts!$A178+$A$11,IF($C$7,7,0),1,1) -> 18.3 | E178: =OFFSET(InputPriceData!D$15,CalculationsAndCharts!$A178+$A$11,IF($C$7,7,0),1,1) -> 18.73 | F178: =OFFSET(InputPriceData!E$15,CalculationsAndCharts!$A178+$A$11,IF($C$7,7,0),1,1) -> 18.16 | G178: =OFFSET(InputPriceData!F$15,CalculationsAndCharts!$A178+$A$11,IF($C$7,7,0),1,1) -> 18.59 | H178: 0 | I178: 0 | J178: 0 | K178: 0 | L178: 18.49333333 | M178: 1.143333333 | N178: 2.25925641 | O178: 1.930877726 | P178: 1.737789953 | Q178: 16.98281161 | R178: 16.13645523 | S178: 0 | T178: 0 | U178: 0 | V178: 0.67 | W178: 0.7847468197 | X178: 0.0922133846 | BE178: 18.325 | BF178: =AVERAGE(OFFSET(BE$31,$A178,0,$BE$27,1)) -> 18.05 | BG178: 17.6875 | BH178: 17.3 | BI178: 16.9571875 | BJ178: 16.6909375 | BK178: 16.4959375 | BL178: 16.34785156 | BM178: 16.22123047 | BN178: 16.09939453 | BO178: 17.51500195 | BP178: 17.02385002 | BQ178: 16.62574865 | BR178: 0.3981013699 | BS178: 17.42195139 | BT178: 16.94061676 | BU178: 16.55797483 | BV178: 16.25639566 | BW178: 17.40432145 | BX178: 0.5914410021 | BY178: -128 | BZ178: 15.90956346 | CA178: 113.1828865 | CB178: 18.00416764 | CC178: 4.964167643 | CD178: 4.650080566 | CE178: 100 | CF178: 100 | CG178: 100 | CH178: 50 | CI178: 0 | CK178: 17.2319195 | CL178: 17.90970975 | CM178: 17.6469638 | CN178: 16.86907156 | CO178: 100 | CP178: 16.7
A179: 148 | B179: =OFFSET(InputPriceData!B$15,CalculationsAndCharts!$A179+$A$11,0,1,1) -> 2010-04-13 | C179: =OFFSET(InputPriceData!G$15,CalculationsAndCharts!$A179+$A$11,0,1,1) -> 15436500 | D179: =OFFSET(InputPriceData!C$15,CalculationsAndCharts!$A179+$A$11,IF($C$7,7,0),1,1) -> 17.6 | E179: =OFFSET(InputPriceData!D$15,CalculationsAndCharts!$A179+$A$11,IF($C$7,7,0),1,1) -> 18.15 | F179: =OFFSET(InputPriceData!E$15,CalculationsAndCharts!$A179+$A$11,IF($C$7,7,0),1,1) -> 17.35 | G179: =OFFSET(InputPriceData!F$15,CalculationsAndCharts!$A179+$A$11,IF($C$7,7,0),1,1) -> 18.06 | H179: 0 | I179: 0 | J179: 0 | K179: 0 | L179: 17.85333333 | M179: 0.9333333333 | N179: 2.033512821 | O179: 1.837055245 | P179: 1.65334972 | Q179: 16.55123398 | R179: 15.89463912 | S179: 0 | T179: 0 | U179: 0 | V179: 0.8 | W179: 0.8421202295 | X179: 0.09662902711 | BE179: 17.775 | BF179: =AVERAGE(OFFSET(BE$31,$A179,0,$BE$27,1)) -> 17.325 | BG179: 16.9125 | BH179: 16.614375 | BI179: 16.4246875 | BJ179: 16.3009375 | BK179: 16.19976563 | BL179: 16.09460938 | BM179: 15.97755859 | BN179: 15.85310547 | BO179: 16.9495957 | BP179: 16.5326981 | BQ179: 16.22764728 | BR179: 0.3050508114 | BS179: 16.83774891 | BT179: 16.45928213 | BU179: 16.1753329 | BV179: 15.95481648 | BW179: 16.80666418 | BX179: 0.418697746 | BY179: -129 | BZ179: 15.71764742 | CA179: 115.0240401 | CB179: 17.40146452 | CC179: 4.361464518 | CD179: 4.070080566 | CE179: 100 | CF179: 100 | CG179: 100 | CH179: 50 | CI179: 0 | CK179: 16.673839 | CL179: 17.3219195 | CM179: 17.08271744 | CN179: 16.45281629 | CO179: 100 | CP179: 16.7
A180: 149 | B180: =OFFSET(InputPriceData!B$15,CalculationsAndCharts!$A180+$A$11,0,1,1) -> 2010-04-12 | C180: =OFFSET(InputPriceData!G$15,CalculationsAndCharts!$A180+$A$11,0,1,1) -> 15732200 | D180: =OFFSET(InputPriceData!C$15,CalculationsAndCharts!$A180+$A$11,IF($C$7,7,0),1,1) -> 16.98 | E180: =OFFSET(InputPriceData!D$15,CalculationsAndCharts!$A180+$A$11,IF($C$7,7,0),1,1) -> 17.6 | F180: =OFFSET(InputPriceData!E$15,CalculationsAndCharts!$A180+$A$11,IF($C$7,7,0),1,1) -> 16.92 | G180: =OFFSET(InputPriceData!F$15,CalculationsAndCharts!$A180+$A$11,IF($C$7,7,0),1,1) -> 17.49 | H180: 0 | I180: 0 | J180: 0 | K180: 0 | L180: 17.33666667 | M180: 1.446666667 | N180: 1.851461538 | O180: 1.780924509 | P180: 1.602832058 | Q180: 16.17920559 | R180: 15.70704058 | S180: 0 | T180: 0 | U180: 0 | V180: 1.34 | W180: 0.8631803443 | X180: 0.0993527927 | BE180: 16.875 | BF180: =AVERAGE(OFFSET(BE$31,$A180,0,$BE$27,1)) -> 16.5 | BG180: 16.31625 | BH180: 16.235 | BI180: 16.1771875 | BJ180: 16.09859375 | BK180: 15.98945313 | BL180: 15.86050781 | BM180: 15.72865234 | BN180: 15.60824219 | BO180: 16.36281934 | BP180: 16.11580049 | BQ180: 15.92259647 | BR180: 0.1932040161 | BS180: 16.30900451 | BT180: 16.08081535 | BU180: 15.89138367 | BV180: 15.73430007 | BW180: 16.30259513 | BX180: 0.3047675362 | BY180: -130 | BZ180: 15.58301948 | CA180: 109.0265991 | CB180: 16.849743 | CC180: 3.809743001 | CD180: 3.520080566 | CE180: 100 | CF180: 100 | CG180: 100 | CH180: 50 | CI180: 0 | CK180: 16.100178 | CL180: 16.761964 | CM180: 16.56897351 | CN180: 16.10517501 | CO180: 100 | CP180: 16.7
A181: 150 | B181: =OFFSET(InputPriceData!B$15,CalculationsAndCharts!$A181+$A$11,0,1,1) -> 2010-04-09 | C181: =OFFSET(InputPriceData!G$15,CalculationsAndCharts!$A181+$A$11,0,1,1) -> 4773900 | D181: =OFFSET(InputPriceData!C$15,CalculationsAndCharts!$A181+$A$11,IF($C$7,7,0),1,1) -> 16.07 | E181: =OFFSET(InputPriceData!D$15,CalculationsAndCharts!$A181+$A$11,IF($C$7,7,0),1,1) -> 16.5 | F181: =OFFSET(InputPriceData!E$15,CalculationsAndCharts!$A181+$A$11,IF($C$7,7,0),1,1) -> 15.89 | G181: =OFFSET(InputPriceData!F$15,CalculationsAndCharts!$A181+$A$11,IF($C$7,7,0),1,1) -> 16.26 | H181: 0 | I181: 0 | J181: 0 | K181: 0 | L181: 16.21666667 | M181: 0.4166666667 | N181: 1.754974359 | O181: 1.760771072 | P181: 1.584693965 | Q181: 15.84850243 | R181: 15.5721363 | S181: 0 | T181: 0 | U181: 0 | V181: 0.61 | W181: 0.6247705165 | X181: 0.088423771 | BE181: 16.125 | BF181: =AVERAGE(OFFSET(BE$31,$A181,0,$BE$27,1)) -> 16.1325 | BG181: 16.15375 | BH181: 16.119375 | BI181: 16.02 | BJ181: 15.8803125 | BK181: 15.7315625 | BL181: 15.59679687 | BM181: 15.48783203 | BN181: 15.40753906 | BO181: 15.99895215 | BP181: 15.86878164 | BQ181: 15.72939246 | BR181: 0.139389186 | BS181: 16.00817083 | BT181: 15.8526262 | BU181: 15.70195198 | BV181: 15.57721647 | BW181: 16.02923913 | BX181: 0.2507169672 | BY181: -131 | BZ181: 15.49851144 | CA181: 102.9209981 | CB181: 16.10780941 | CC181: 3.067809408 | CD181: 2.770080566 | CE181: 100 | CF181: 100 | CG181: 100 | CH181: 50 | CI181: 0 | CK181: 16.020356 | CL181: 16.147589 | CM181: 16.05717807 | CN181: 15.84245941 | CO181: 100 | CP181: 16.7
A182: 151 | B182: =OFFSET(InputPriceData!B$15,CalculationsAndCharts!$A182+$A$11,0,1,1) -> 2010-04-08 | C182: =OFFSET(InputPriceData!G$15,CalculationsAndCharts!$A182+$A$11,0,1,1) -> 5961000 | D182: =OFFSET(InputPriceData!C$15,CalculationsAndCharts!$A182+$A$11,IF($C$7,7,0),1,1) -> 16.26 | E182: =OFFSET(InputPriceData!D$15,CalculationsAndCharts!$A182+$A$11,IF($C$7,7,0),1,1) -> 16.28 | F182: =OFFSET(InputPriceData!E$15,CalculationsAndCharts!$A182+$A$11,IF($C$7,7,0),1,1) -> 15.8 | G182: =OFFSET(InputPriceData!F$15,CalculationsAndCharts!$A182+$A$11,IF($C$7,7,0),1,1) -> 15.99 | H182: 0 | I182: 0 | J182: 0 | K182: 0 | L182: 16.02333333 | M182: 0.6333333333 | N182: 1.848730769 | O182: 1.762427276 | P182: 1.586184548 | Q182: 15.74331265 | R182: 15.49317454 | S182: 0 | T182: 0 | U182: 0 | V182: 0.49 | W182: 0.6321557747 | X182: 0.08953444495 | BE182: 16.14 | BF182: =AVERAGE(OFFSET(BE$31,$A182,0,$BE$27,1)) -> 16.175 | BG182: 16.085 | BH182: 15.920625 | BI182: 15.740625 | BJ182: 15.5828125 | BK182: 15.46203125 | BL182: 15.37886719 | BM182: 15.32724609 | BN182: 15.29904297 | BO182: 15.91434375 | BP182: 15.73861114 | BQ182: 15.59000327 | BR182: 0.148607867 | BS182: 15.88721901 | BT182: 15.69708158 | BU182: 15.55127776 | BV182: 15.45248095 | BW182: 15.8898924 | BX182: 0.2235538545 | BY182: -132 | BZ182: 15.44103274 | CA182: 100.1959201 | CB182: 15.96883854 | CC182: 2.928838542 | CD182: 2.770080566 | CE182: 100 | CF182: 100 | CG182: 100 | CH182: 50 | CI182: 0 | CK182: 15.95821201 | CL182: 16.030178 | CM182: 15.95085233 | CN182: 15.72040757 | CO182: 100 | CP182: 16.7
A183: 152 | B183: =OFFSET(InputPriceData!B$15,CalculationsAndCharts!$A183+$A$11,0,1,1) -> 2010-04-07 | C183: =OFFSET(InputPriceData!G$15,CalculationsAndCharts!$A183+$A$11,0,1,1) -> 10445000 | D183: =OFFSET(InputPriceData!C$15,CalculationsAndCharts!$A183+$A$11,IF($C$7,7,0),1,1) -> 16.22 | E183: =OFFSET(InputPriceData!D$15,CalculationsAndCharts!$A183+$A$11,IF($C$7,7,0),1,1) -> 16.85 | F183: =OFFSET(InputPriceData!E$15,CalculationsAndCharts!$A183+$A$11,IF($C$7,7,0),1,1) -> 16.16 | G183: =OFFSET(InputPriceData!F$15,CalculationsAndCharts!$A183+$A$11,IF($C$7,7,0),1,1) -> 16.29 | H183: 0 | I183: 0 | J183: 0 | K183: 0 | L183: 16.43333333 | M183: 1.153333333 | N183: 1.8105 | O183: 1.737769135 | P183: 1.563992221 | Q183: 15.66330674 | R183: 15.42170651 | S183: 0 | T183: 0 | U183: 0 | V183: 0.72 | W183: 0.7032336621 | X183: 0.0931696539 | BE183: 16.21 | BF183: =AVERAGE(OFFSET(BE$31,$A183,0,$BE$27,1)) -> 15.995 | BG183: 15.75625 | BH183: 15.560625 | BI183: 15.425 | BJ183: 15.34125 | BK183: 15.29570312 | BL183: 15.275625 | BM183: 15.27083984 | BN183: 15.27430664 | BO183: 15.76513623 | BP183: 15.56287853 | BQ183: 15.4413954 | BR183: 0.1214831224 | BS183: 15.68436165 | BT183: 15.50694415 | BU183: 15.40547395 | BV183: 15.35368414 | BW183: 15.65809476 | BX183: 0.2040454889 | BY183: -133 | BZ183: 15.39665499 | CA183: 82.03204493 | CB183: 16.09923478 | CC183: 3.059234782 | CD183: 2.770080566 | CE183: 100 | CF183: 100 | CG183: 100 | CH183: 50 | CI183: 0 | CK183: 15.53642402 | CL183: 16.07571201 | CM183: 15.90253167 | CN183: 15.5964994 | CO183: 100 | CP183: 16.7 | CR183: 16.22
